Workbook

Sheet Input Figures for CA
B2: Figures used in CA model based on historic loads scaled by 2021 monthly consumption forecasts
B3: See '2021 (Monthly Scaling)' tab. Results using annual scaling factors included for reference
E5: Residential | F5: GS < 50 kW | G5: GS > 50 < 1500 | H5: GS > 1500 < 5000 | I5: LU | J5: Street Lighting | K5: Sentinel Lighting | L5: USL | M5: standby
B6: 1 CP
B7: Transformation CP | E7: ='2021 (Monthly Scaling)'!D85 -> 498442.9304 | F7: ='2021 (Monthly Scaling)'!E85 -> 117771.2823 | G7: ='2021 (Monthly Scaling)'!F85 -> 464387.9419 | H7: ='2021 (Monthly Scaling)'!G85 -> 110165.5081 | I7: ='2021 (Monthly Scaling)'!I85 -> 84758.81115 | J7: ='2021 (Monthly Scaling)'!J85 -> 0 | K7: ='2021 (Monthly Scaling)'!K85 -> 0 | L7: ='2021 (Monthly Scaling)'!L85 -> 1382.698588 | M7: ='2021 (Monthly Scaling)'!O85 -> 412.16
B8: Bulk Delivery CP | E8: ='2021 (Monthly Scaling)'!D86 -> 498442.9304 | F8: ='2021 (Monthly Scaling)'!E86 -> 117771.2823 | G8: ='2021 (Monthly Scaling)'!F86 -> 464387.9419 | H8: ='2021 (Monthly Scaling)'!G86 -> 110165.5081 | I8: ='2021 (Monthly Scaling)'!I86 -> 84758.81115 | J8: ='2021 (Monthly Scaling)'!J86 -> 0 | K8: ='2021 (Monthly Scaling)'!K86 -> 0 | L8: ='2021 (Monthly Scaling)'!L86 -> 1382.698588 | M8: ='2021 (Monthly Scaling)'!O86 -> 412.16
B9: Total Sytem CP | E9: ='2021 (Monthly Scaling)'!D87 -> 498442.9304 | F9: ='2021 (Monthly Scaling)'!E87 -> 117771.2823 | G9: ='2021 (Monthly Scaling)'!F87 -> 464387.9419 | H9: ='2021 (Monthly Scaling)'!G87 -> 110165.5081 | I9: ='2021 (Monthly Scaling)'!I87 -> 84758.81115 | J9: ='2021 (Monthly Scaling)'!J87 -> 0 | K9: ='2021 (Monthly Scaling)'!K87 -> 0 | L9: ='2021 (Monthly Scaling)'!L87 -> 1382.698588 | M9: ='2021 (Monthly Scaling)'!O87 -> 412.16
B11: 4 CP
B12: Transformation CP | E12: ='2021 (Monthly Scaling)'!D90 -> 1917300.221 | F12: ='2021 (Monthly Scaling)'!E90 -> 490077.5774 | G12: ='2021 (Monthly Scaling)'!F90 -> 1843344.474 | H12: ='2021 (Monthly Scaling)'!G90 -> 384665.0476 | I12: ='2021 (Monthly Scaling)'!I90 -> 304601.3136 | J12: ='2021 (Monthly Scaling)'!J90 -> 5807.978316 | K12: ='2021 (Monthly Scaling)'!K90 -> 8.005189141 | L12: ='2021 (Monthly Scaling)'!L90 -> 5845.326847 | M12: ='2021 (Monthly Scaling)'!O90 -> 412.16
B13: Bulk Delivery CP | E13: ='2021 (Monthly Scaling)'!D91 -> 1917300.221 | F13: ='2021 (Monthly Scaling)'!E91 -> 490077.5774 | G13: ='2021 (Monthly Scaling)'!F91 -> 1843344.474 | H13: ='2021 (Monthly Scaling)'!G91 -> 384665.0476 | I13: ='2021 (Monthly Scaling)'!I91 -> 304601.3136 | J13: ='2021 (Monthly Scaling)'!J91 -> 5807.978316 | K13: ='2021 (Monthly Scaling)'!K91 -> 8.005189141 | L13: ='2021 (Monthly Scaling)'!L91 -> 5845.326847 | M13: ='2021 (Monthly Scaling)'!O91 -> 412.16
B14: Total Sytem CP | E14: ='2021 (Monthly Scaling)'!D92 -> 1917300.221 | F14: ='2021 (Monthly Scaling)'!E92 -> 490077.5774 | G14: ='2021 (Monthly Scaling)'!F92 -> 1843344.474 | H14: ='2021 (Monthly Scaling)'!G92 -> 384665.0476 | I14: ='2021 (Monthly Scaling)'!I92 -> 304601.3136 | J14: ='2021 (Monthly Scaling)'!J92 -> 5807.978316 | K14: ='2021 (Monthly Scaling)'!K92 -> 8.005189141 | L14: ='2021 (Monthly Scaling)'!L92 -> 5845.326847 | M14: ='2021 (Monthly Scaling)'!O92 -> 412.16
B16: 12 CP
B17: Transformation CP | E17: ='2021 (Monthly Scaling)'!D95 -> 4905668.421 | F17: ='2021 (Monthly Scaling)'!E95 -> 1317426.3 | G17: ='2021 (Monthly Scaling)'!F95 -> 5122787.789 | H17: ='2021 (Monthly Scaling)'!G95 -> 1090669.52 | I17: ='2021 (Monthly Scaling)'!I95 -> 884826.9452 | J17: ='2021 (Monthly Scaling)'!J95 -> 31331.10085 | K17: ='2021 (Monthly Scaling)'!K95 -> 52.51056614 | L17: ='2021 (Monthly Scaling)'!L95 -> 18342.25477 | M17: ='2021 (Monthly Scaling)'!O95 -> 641.92
B18: Bulk Delivery CP | E18: ='2021 (Monthly Scaling)'!D96 -> 4905668.421 | F18: ='2021 (Monthly Scaling)'!E96 -> 1317426.3 | G18: ='2021 (Monthly Scaling)'!F96 -> 5122787.789 | H18: ='2021 (Monthly Scaling)'!G96 -> 1090669.52 | I18: ='2021 (Monthly Scaling)'!I96 -> 884826.9452 | J18: ='2021 (Monthly Scaling)'!J96 -> 31331.10085 | K18: ='2021 (Monthly Scaling)'!K96 -> 52.51056614 | L18: ='2021 (Monthly Scaling)'!L96 -> 18342.25477 | M18: ='2021 (Monthly Scaling)'!O96 -> 641.92
B19: Total Sytem CP | E19: ='2021 (Monthly Scaling)'!D97 -> 4905668.421 | F19: ='2021 (Monthly Scaling)'!E97 -> 1317426.3 | G19: ='2021 (Monthly Scaling)'!F97 -> 5122787.789 | H19: ='2021 (Monthly Scaling)'!G97 -> 1090669.52 | I19: ='2021 (Monthly Scaling)'!I97 -> 884826.9452 | J19: ='2021 (Monthly Scaling)'!J97 -> 31331.10085 | K19: ='2021 (Monthly Scaling)'!K97 -> 52.51056614 | L19: ='2021 (Monthly Scaling)'!L97 -> 18342.25477 | M19: ='2021 (Monthly Scaling)'!O97 -> 641.92
B22: 1NCP
B23: Classification NCP from Load Data Provider | E23: ='2021 (Monthly Scaling)'!D101 -> 575678.0492 | F23: ='2021 (Monthly Scaling)'!E101 -> 145550.5987 | G23: ='2021 (Monthly Scaling)'!F101 -> 498407.1318 | H23: ='2021 (Monthly Scaling)'!G101 -> 125662.248 | I23: ='2021 (Monthly Scaling)'!I101 -> 95229.08061 | J23: ='2021 (Monthly Scaling)'!J101 -> 6443.865297 | K23: ='2021 (Monthly Scaling)'!K101 -> 15.09041083 | L23: ='2021 (Monthly Scaling)'!L101 -> 1896.188748 | M23: ='2021 (Monthly Scaling)'!O101 -> 1152
B24: Primary NCP | E24: ='2021 (Monthly Scaling)'!D102 -> 575678.0492 | F24: ='2021 (Monthly Scaling)'!E102 -> 145550.5987 | G24: ='2021 (Monthly Scaling)'!F102 -> 498407.1318 | H24: ='2021 (Monthly Scaling)'!G102 -> 125662.248 | I24: ='2021 (Monthly Scaling)'!I102 -> 95229.08061 | J24: ='2021 (Monthly Scaling)'!J102 -> 6443.865297 | K24: ='2021 (Monthly Scaling)'!K102 -> 15.09041083 | L24: ='2021 (Monthly Scaling)'!L102 -> 1896.188748 | M24: ='2021 (Monthly Scaling)'!O102 -> 1152
B25: Line Transformer NCP | E25: ='2021 (Monthly Scaling)'!D103 -> 575678.0492 | F25: ='2021 (Monthly Scaling)'!E103 -> 145550.5987 | G25: ='2021 (Monthly Scaling)'!F103 -> 433613.9686 | H25: ='2021 (Monthly Scaling)'!G103 -> 55290.82721 | I25: ='2021 (Monthly Scaling)'!I103 -> 44757.20417 | J25: ='2021 (Monthly Scaling)'!J103 -> 6443.865297 | K25: ='2021 (Monthly Scaling)'!K103 -> 15.09041083 | L25: ='2021 (Monthly Scaling)'!L103 -> 1896.188748 | M25: ='2021 (Monthly Scaling)'!O103 -> 680
B26: Secondary NCP | E26: ='2021 (Monthly Scaling)'!D104 -> 575678.0492 | F26: ='2021 (Monthly Scaling)'!E104 -> 145550.5987 | G26: ='2021 (Monthly Scaling)'!F104 -> 249204.5496 | H26: ='2021 (Monthly Scaling)'!G104 -> 0 | I26: ='2021 (Monthly Scaling)'!I104 -> 0 | J26: ='2021 (Monthly Scaling)'!J104 -> 6443.865297 | K26: ='2021 (Monthly Scaling)'!K104 -> 15.09041083 | L26: ='2021 (Monthly Scaling)'!L104 -> 1896.188748 | M26: ='2021 (Monthly Scaling)'!O104 -> 0
E27: ='2021 (Monthly Scaling)'!D105 -> 0 | F27: ='2021 (Monthly Scaling)'!E105 -> 0 | G27: ='2021 (Monthly Scaling)'!F105 -> 0 | H27: ='2021 (Monthly Scaling)'!G105 -> 0 | I27: ='2021 (Monthly Scaling)'!I105 -> 0 | J27: ='2021 (Monthly Scaling)'!J105 -> 0 | K27: ='2021 (Monthly Scaling)'!K105 -> 0 | L27: ='2021 (Monthly Scaling)'!L105 -> 0 | M27: ='2021 (Monthly Scaling)'!O105 -> 0
B28: 4 NCP | E28: ='2021 (Monthly Scaling)'!D106 -> 0 | F28: ='2021 (Monthly Scaling)'!E106 -> 0 | G28: ='2021 (Monthly Scaling)'!F106 -> 0 | H28: ='2021 (Monthly Scaling)'!G106 -> 0 | I28: ='2021 (Monthly Scaling)'!I106 -> 0 | J28: ='2021 (Monthly Scaling)'!J106 -> 0 | K28: ='2021 (Monthly Scaling)'!K106 -> 0 | L28: ='2021 (Monthly Scaling)'!L106 -> 0 | M28: ='2021 (Monthly Scaling)'!O106 -> 0
B29: Classification NCP from Load Data Provider | E29: ='2021 (Monthly Scaling)'!D107 -> 2133424.524 | F29: ='2021 (Monthly Scaling)'!E107 -> 561857.3438 | G29: ='2021 (Monthly Scaling)'!F107 -> 1967950.808 | H29: ='2021 (Monthly Scaling)'!G107 -> 486567.6202 | I29: ='2021 (Monthly Scaling)'!I107 -> 374663.7536 | J29: ='2021 (Monthly Scaling)'!J107 -> 23997.89741 | K29: ='2021 (Monthly Scaling)'!K107 -> 58.18901517 | L29: ='2021 (Monthly Scaling)'!L107 -> 7491.830214 | M29: ='2021 (Monthly Scaling)'!O107 -> 412.16
B30: Primary NCP | E30: ='2021 (Monthly Scaling)'!D108 -> 2133424.524 | F30: ='2021 (Monthly Scaling)'!E108 -> 561857.3438 | G30: ='2021 (Monthly Scaling)'!F108 -> 1967950.808 | H30: ='2021 (Monthly Scaling)'!G108 -> 486567.6202 | I30: ='2021 (Monthly Scaling)'!I108 -> 374663.7536 | J30: ='2021 (Monthly Scaling)'!J108 -> 23997.89741 | K30: ='2021 (Monthly Scaling)'!K108 -> 58.18901517 | L30: ='2021 (Monthly Scaling)'!L108 -> 7491.830214 | M30: ='2021 (Monthly Scaling)'!O108 -> 412.16
B31: Line Transformer NCP | E31: ='2021 (Monthly Scaling)'!D109 -> 2133424.524 | F31: ='2021 (Monthly Scaling)'!E109 -> 561857.3438 | G31: ='2021 (Monthly Scaling)'!F109 -> 1712116.27 | H31: ='2021 (Monthly Scaling)'!G109 -> 214089.6044 | I31: ='2021 (Monthly Scaling)'!I109 -> 176092.4108 | J31: ='2021 (Monthly Scaling)'!J109 -> 23997.89741 | K31: ='2021 (Monthly Scaling)'!K109 -> 58.18901517 | L31: ='2021 (Monthly Scaling)'!L109 -> 7491.830214 | M31: ='2021 (Monthly Scaling)'!O109 -> 243.1486131
B32: Secondary NCP | E32: ='2021 (Monthly Scaling)'!D110 -> 2133424.524 | F32: ='2021 (Monthly Scaling)'!E110 -> 561857.3438 | G32: ='2021 (Monthly Scaling)'!F110 -> 983975.904 | H32: ='2021 (Monthly Scaling)'!G110 -> 0 | I32: ='2021 (Monthly Scaling)'!I110 -> 0 | J32: ='2021 (Monthly Scaling)'!J110 -> 23997.89741 | K32: ='2021 (Monthly Scaling)'!K110 -> 58.18901517 | L32: ='2021 (Monthly Scaling)'!L110 -> 7491.830214 | M32: ='2021 (Monthly Scaling)'!O110 -> 0
E33: ='2021 (Monthly Scaling)'!D111 -> 0 | F33: ='2021 (Monthly Scaling)'!E111 -> 0 | G33: ='2021 (Monthly Scaling)'!F111 -> 0 | H33: ='2021 (Monthly Scaling)'!G111 -> 0 | I33: ='2021 (Monthly Scaling)'!I111 -> 0 | J33: ='2021 (Monthly Scaling)'!J111 -> 0 | K33: ='2021 (Monthly Scaling)'!K111 -> 0 | L33: ='2021 (Monthly Scaling)'!L111 -> 0 | M33: ='2021 (Monthly Scaling)'!O111 -> 0
B34: 12 NCP | E34: ='2021 (Monthly Scaling)'!D112 -> 0 | F34: ='2021 (Monthly Scaling)'!E112 -> 0 | G34: ='2021 (Monthly Scaling)'!F112 -> 0 | H34: ='2021 (Monthly Scaling)'!G112 -> 0 | I34: ='2021 (Monthly Scaling)'!I112 -> 0 | J34: ='2021 (Monthly Scaling)'!J112 -> 0 | K34: ='2021 (Monthly Scaling)'!K112 -> 0 | L34: ='2021 (Monthly Scaling)'!L112 -> 0 | M34: ='2021 (Monthly Scaling)'!O112 -> 0
B35: Classification NCP from Load Data Provider | E35: ='2021 (Monthly Scaling)'!D113 -> 5509330.593 | F35: ='2021 (Monthly Scaling)'!E113 -> 1531929.374 | G35: ='2021 (Monthly Scaling)'!F113 -> 5511919.979 | H35: ='2021 (Monthly Scaling)'!G113 -> 1296039.149 | I35: ='2021 (Monthly Scaling)'!I113 -> 1012783.152 | J35: ='2021 (Monthly Scaling)'!J113 -> 62127.99518 | K35: ='2021 (Monthly Scaling)'!K113 -> 142.1980863 | L35: ='2021 (Monthly Scaling)'!L113 -> 21161.41895 | M35: ='2021 (Monthly Scaling)'!O113 -> 641.92
B36: Primary NCP | E36: ='2021 (Monthly Scaling)'!D114 -> 5509330.593 | F36: ='2021 (Monthly Scaling)'!E114 -> 1531929.374 | G36: ='2021 (Monthly Scaling)'!F114 -> 5511919.979 | H36: ='2021 (Monthly Scaling)'!G114 -> 1296039.149 | I36: ='2021 (Monthly Scaling)'!I114 -> 1012783.152 | J36: ='2021 (Monthly Scaling)'!J114 -> 62127.99518 | K36: ='2021 (Monthly Scaling)'!K114 -> 142.1980863 | L36: ='2021 (Monthly Scaling)'!L114 -> 21161.41895 | M36: ='2021 (Monthly Scaling)'!O114 -> 641.92
B37: Line Transformer NCP | E37: ='2021 (Monthly Scaling)'!D115 -> 5509330.593 | F37: ='2021 (Monthly Scaling)'!E115 -> 1531929.374 | G37: ='2021 (Monthly Scaling)'!F115 -> 4795370.791 | H37: ='2021 (Monthly Scaling)'!G115 -> 570257.2254 | I37: ='2021 (Monthly Scaling)'!I115 -> 476008.1188 | J37: ='2021 (Monthly Scaling)'!J115 -> 62127.99518 | K37: ='2021 (Monthly Scaling)'!K115 -> 142.1980863 | L37: ='2021 (Monthly Scaling)'!L115 -> 21161.41895 | M37: ='2021 (Monthly Scaling)'!O115 -> 378.6799843
B38: Secondary NCP | E38: ='2021 (Monthly Scaling)'!D116 -> 5509330.593 | F38: ='2021 (Monthly Scaling)'!E116 -> 1531929.374 | G38: ='2021 (Monthly Scaling)'!F116 -> 2755960.488 | H38: ='2021 (Monthly Scaling)'!G116 -> 0 | I38: ='2021 (Monthly Scaling)'!I116 -> 0 | J38: ='2021 (Monthly Scaling)'!J116 -> 62127.99518 | K38: ='2021 (Monthly Scaling)'!K116 -> 142.1980863 | L38: ='2021 (Monthly Scaling)'!L116 -> 21161.41895 | M38: ='2021 (Monthly Scaling)'!O116 -> 0

Sheet Hourly load shapes by class
A1: ALL UNITS IN GWh | F1: EB-2015-0004 Load data | V1: Historic Scaled to Forecast | Y1: 2021 (Annual Scaling) | AG1: Historic Scaled to Forecast | AJ1: 2021 (Monthly Scaling)
A2: Year | B2: Month | C2: Day | D2: Hour (EST) | F2: Year | G2: Month | H2: Day | I2: Hour (EST) | J2: Residential | K2: GS > 50 < 1500 | L2: Street Lighting | M2: GS < 50 kW | N2: GS > 1500 < 5000 | O2: LU | P2: Sentinel Lighting | Q2: USL | R2: standby | S2: TOTAL LDC sales | V2: Residential | W2: GS < 50 kW | X2: GS > 50 < 1500 | Y2: GS > 1500 < 5000 | Z2: LU | AA2: Street Lighting | AB2: Sentinel Lighting | AC2: USL | AD2: standby | AE2: TOTAL LDC sales | AG2: Residential | AH2: GS > 50 < 1500 | AI2: Street Lighting | AJ2: GS < 50 kW | AK2: GS > 1500 < 5000 | AL2: LU | AM2: Sentinel Lighting | AN2: USL | AO2: standby | AP2: TOTAL LDC sales | AS2: Residential | AT2: GS > 50 < 1500 | AU2: Street Lighting | AV2: GS < 50 kW | AW2: GS > 1500 < 5000 | AX2: LU | AY2: Sentinel Lighting | AZ2: USL | BA2: standby
A3: 2006 | B3: 1 | C3: 1 | D3: 1 | F3: 2013 | G3: 1 | H3: 1 | I3: 1 | J3: 0.2488666008 | K3: 0.3390469415 | L3: 0.008418087479 | M3: 0.1122816024 | N3: 0.080095 | O3: 0.061427 | P3: 1.713756668e-05 | Q3: 0.002178785549 | R3: 0 | S3: 0.8523311552 | V3: =$J3*$AS$6 -> 0.2356306284 | W3: =$M3*$AV$6 -> 0.09838419362 | X3: =$K3*$AT$6 -> 0.300122745 | Y3: =$N3*$AW$6 -> 0.0631359847 | Z3: =$O3*$AX$6 -> 0.05662566488 | AA3: =$L3*$AU$6 -> 0.004707927806 | AB3: =$P3*$AY$6 -> 8.576988365e-06 | AC3: =$Q3*$AZ$6 -> 0.0015925556 | AD3: =$R3*$BA$6 -> 0 | AE3: =SUM(V3:AD3) -> 0.760208277 | AG3: =J3*VLOOKUP($B3,$AR$36:$AZ$47,MATCH(AG$2,$AS$2:$BA$2,0)+1,FALSE) -> 0.2387970298 | AH3: =K3*VLOOKUP($B3,$AR$36:$AZ$47,MATCH(AH$2,$AS$2:$BA$2,0)+1,FALSE) -> 0.2867434547 | AI3: =L3*VLOOKUP($B3,$AR$36:$AZ$47,MATCH(AI$2,$AS$2:$BA$2,0)+1,FALSE) -> 0.00622283391 | AJ3: =M3*VLOOKUP($B3,$AR$36:$AZ$47,MATCH(AJ$2,$AS$2:$BA$2,0)+1,FALSE) -> 0.09656174365 | AK3: =N3*VLOOKUP($B3,$AR$36:$AZ$47,MATCH(AK$2,$AS$2:$BA$2,0)+1,FALSE) -> 0.06265393329 | AL3: =O3*VLOOKUP($B3,$AR$36:$AZ$47,MATCH(AL$2,$AS$2:$BA$2,0)+1,FALSE) -> 0.05443796532 | AM3: =P3*VLOOKUP($B3,$AR$36:$AZ$47,MATCH(AM$2,$AS$2:$BA$2,0)+1,FALSE) -> 8.576988365e-06 | AN3: =Q3*VLOOKUP($B3,$AR$36:$AZ$47,MATCH(AN$2,$AS$2:$BA$2,0)+1,FALSE) -> 0.001665079838 | AO3: =R3*VLOOKUP($B3,$AR$36:$BA$47,MATCH(AO$2,$AS$2:$BA$2,0)+1,FALSE) -> 0 | AP3: =SUM(AG3:AO3) -> 0.7470906175 | AR3: Historic kwh | AS3: =SUM(J3:J8762)*1000000 -> 2379642296 | AT3: 3185145846 | AU3: 39528783.69 | AV3: 799065588.2 | AW3: 866432084.2 | AX3: 622986675 | AY3: 93910.07654 | AZ3: 18608983.59 | BA3: 423090.24
A4: 2006 | B4: 1 | C4: 1 | D4: 2 | F4: 2013 | G4: 1 | H4: 1 | I4: 2 | J4: 0.2313166649 | K4: 0.3295062045 | L4: 0.008418087479 | M4: 0.1040851409 | N4: 0.0802514 | O4: 0.061637 | P4: 1.713756668e-05 | Q4: 0.002178785549 | R4: 0 | S4: 0.8174104208 | V4: 0.219014086 | W4: 0.09120223115 | X4: 0.2916773298 | Y4: 0.06325926915 | Z4: 0.05681925059 | AA4: 0.004707927806 | AB4: 8.576988365e-06 | AC4: 0.0015925556 | AD4: =$R4*$BA$6 -> 0 | AE4: 0.7282812271 | AG4: =J4*VLOOKUP($B4,$AR$36:$AZ$47,MATCH(AG$2,$AS$2:$BA$2,0)+1,FALSE) -> 0.2219571945 | AH4: =K4*VLOOKUP($B4,$AR$36:$AZ$47,MATCH(AH$2,$AS$2:$BA$2,0)+1,FALSE) -> 0.278674531 | AI4: =L4*VLOOKUP($B4,$AR$36:$AZ$47,MATCH(AI$2,$AS$2:$BA$2,0)+1,FALSE) -> 0.00622283391 | AJ4: =M4*VLOOKUP($B4,$AR$36:$AZ$47,MATCH(AJ$2,$AS$2:$BA$2,0)+1,FALSE) -> 0.08951281847 | AK4: =N4*VLOOKUP($B4,$AR$36:$AZ$47,MATCH(AK$2,$AS$2:$BA$2,0)+1,FALSE) -> 0.06277627645 | AL4: =O4*VLOOKUP($B4,$AR$36:$AZ$47,MATCH(AL$2,$AS$2:$BA$2,0)+1,FALSE) -> 0.05462407196 | AM4: =P4*VLOOKUP($B4,$AR$36:$AZ$47,MATCH(AM$2,$AS$2:$BA$2,0)+1,FALSE) -> 8.576988365e-06 | AN4: =Q4*VLOOKUP($B4,$AR$36:$AZ$47,MATCH(AN$2,$AS$2:$BA$2,0)+1,FALSE) -> 0.001665079838 | AO4: =R4*VLOOKUP($B4,$AR$36:$BA$47,MATCH(AO$2,$AS$2:$BA$2,0)+1,FALSE) -> 0 | AP4: =SUM(AG4:AO4) -> 0.7154413832
A5: 2006 | B5: 1 | C5: 1 | D5: 3 | F5: 2013 | G5: 1 | H5: 1 | I5: 3 | J5: 0.2157142412 | K5: 0.3261457456 | L5: 0.008418087479 | M5: 0.1032234691 | N5: 0.0802889 | O5: 0.061638 | P5: 1.713756668e-05 | Q5: 0.002178785549 | R5: 0 | S5: 0.7976243665 | V5: 0.2042414774 | W5: 0.09044721092 | X5: 0.2887026675 | Y5: 0.06328882904 | Z5: 0.05682017243 | AA5: 0.004707927806 | AB5: 8.576988365e-06 | AC5: 0.0015925556 | AD5: 0 | AE5: 0.7098094177 | AG5: =J5*VLOOKUP($B5,$AR$36:$AZ$47,MATCH(AG$2,$AS$2:$BA$2,0)+1,FALSE) -> 0.2069860718 | AH5: =K5*VLOOKUP($B5,$AR$36:$AZ$47,MATCH(AH$2,$AS$2:$BA$2,0)+1,FALSE) -> 0.2758324774 | AI5: =L5*VLOOKUP($B5,$AR$36:$AZ$47,MATCH(AI$2,$AS$2:$BA$2,0)+1,FALSE) -> 0.00622283391 | AJ5: =M5*VLOOKUP($B5,$AR$36:$AZ$47,MATCH(AJ$2,$AS$2:$BA$2,0)+1,FALSE) -> 0.08877178409 | AK5: =N5*VLOOKUP($B5,$AR$36:$AZ$47,MATCH(AK$2,$AS$2:$BA$2,0)+1,FALSE) -> 0.06280561065 | AL5: =O5*VLOOKUP($B5,$AR$36:$AZ$47,MATCH(AL$2,$AS$2:$BA$2,0)+1,FALSE) -> 0.05462495819 | AM5: =P5*VLOOKUP($B5,$AR$36:$AZ$47,MATCH(AM$2,$AS$2:$BA$2,0)+1,FALSE) -> 8.576988365e-06 | AN5: =Q5*VLOOKUP($B5,$AR$36:$AZ$47,MATCH(AN$2,$AS$2:$BA$2,0)+1,FALSE) -> 0.001665079838 | AO5: =R5*VLOOKUP($B5,$AR$36:$BA$47,MATCH(AO$2,$AS$2:$BA$2,0)+1,FALSE) -> 0 | AP5: =SUM(AG5:AO5) -> 0.6969173929 | AR5: 2021 Forecast | AS5: 2253081000 | AT5: 2819476000 | AU5: 22107000 | AV5: 700163000 | AW5: 682977000 | AX5: 574292000 | AY5: 47000 | AZ5: 13602000
A6: 2006 | B6: 1 | C6: 1 | D6: 4 | F6: 2013 | G6: 1 | H6: 1 | I6: 4 | J6: 0.214583 | K6: 0.3245537337 | L6: 0.008418087479 | M6: 0.1010575191 | N6: 0.0818001 | O6: 0.061535 | P6: 1.713756668e-05 | Q6: 0.002178785549 | R6: 0 | S6: 0.7941433634 | V6: 0.2031704013 | W6: 0.08854934664 | X6: 0.2872934261 | Y6: 0.06448005322 | Z6: 0.05672522325 | AA6: 0.004707927806 | AB6: 8.576988365e-06 | AC6: 0.0015925556 | AD6: 0 | AE6: 0.7065275109 | AG6: =J6*VLOOKUP($B6,$AR$36:$AZ$47,MATCH(AG$2,$AS$2:$BA$2,0)+1,FALSE) -> 0.2059006026 | AH6: =K6*VLOOKUP($B6,$AR$36:$AZ$47,MATCH(AH$2,$AS$2:$BA$2,0)+1,FALSE) -> 0.2744860591 | AI6: =L6*VLOOKUP($B6,$AR$36:$AZ$47,MATCH(AI$2,$AS$2:$BA$2,0)+1,FALSE) -> 0.00622283391 | AJ6: =M6*VLOOKUP($B6,$AR$36:$AZ$47,MATCH(AJ$2,$AS$2:$BA$2,0)+1,FALSE) -> 0.08690907549 | AK6: =N6*VLOOKUP($B6,$AR$36:$AZ$47,MATCH(AK$2,$AS$2:$BA$2,0)+1,FALSE) -> 0.06398773967 | AL6: =O6*VLOOKUP($B6,$AR$36:$AZ$47,MATCH(AL$2,$AS$2:$BA$2,0)+1,FALSE) -> 0.05453367731 | AM6: =P6*VLOOKUP($B6,$AR$36:$AZ$47,MATCH(AM$2,$AS$2:$BA$2,0)+1,FALSE) -> 8.576988365e-06 | AN6: =Q6*VLOOKUP($B6,$AR$36:$AZ$47,MATCH(AN$2,$AS$2:$BA$2,0)+1,FALSE) -> 0.001665079838 | AO6: =R6*VLOOKUP($B6,$AR$36:$BA$47,MATCH(AO$2,$AS$2:$BA$2,0)+1,FALSE) -> 0 | AP6: 0.6937136449 | AR6: Factor | AS6: =AS$5/AS$3 -> 0.9468149912 | AT6: 0.8851952583 | AU6: 0.5592633502 | AV6: 0.8762271962 | AW6: 0.7882637456 | AX6: 0.9218367311 | AY6: 0.5004787743 | AZ6: 0.730937288 | BA6: 1
A7: 2006 | B7: 1 | C7: 1 | D7: 5 | F7: 2013 | G7: 1 | H7: 1 | I7: 5 | J7: 0.2172206303 | K7: 0.3236735785 | L7: 0.008418087479 | M7: 0.09779924387 | N7: 0.083517 | O7: 0.061775 | P7: 1.713756668e-05 | Q7: 0.002178785549 | R7: 0 | S7: 0.7945994633 | V7: 0.2056677492 | W7: 0.08569435725 | X7: 0.2865143169 | Y7: 0.06583342324 | Z7: 0.05694646406 | AA7: 0.004707927806 | AB7: 8.576988365e-06 | AC7: 0.0015925556 | AD7: 0 | AE7: 0.706965371 | AG7: =J7*VLOOKUP($B7,$AR$36:$AZ$47,MATCH(AG$2,$AS$2:$BA$2,0)+1,FALSE) -> 0.2084315098 | AH7: =K7*VLOOKUP($B7,$AR$36:$AZ$47,MATCH(AH$2,$AS$2:$BA$2,0)+1,FALSE) -> 0.2737416822 | AI7: =L7*VLOOKUP($B7,$AR$36:$AZ$47,MATCH(AI$2,$AS$2:$BA$2,0)+1,FALSE) -> 0.00622283391 | AJ7: =M7*VLOOKUP($B7,$AR$36:$AZ$47,MATCH(AJ$2,$AS$2:$BA$2,0)+1,FALSE) -> 0.08410697138 | AK7: =N7*VLOOKUP($B7,$AR$36:$AZ$47,MATCH(AK$2,$AS$2:$BA$2,0)+1,FALSE) -> 0.06533077654 | AL7: =O7*VLOOKUP($B7,$AR$36:$AZ$47,MATCH(AL$2,$AS$2:$BA$2,0)+1,FALSE) -> 0.05474637062 | AM7: =P7*VLOOKUP($B7,$AR$36:$AZ$47,MATCH(AM$2,$AS$2:$BA$2,0)+1,FALSE) -> 8.576988365e-06 | AN7: =Q7*VLOOKUP($B7,$AR$36:$AZ$47,MATCH(AN$2,$AS$2:$BA$2,0)+1,FALSE) -> 0.001665079838 | AO7: =R7*VLOOKUP($B7,$AR$36:$BA$47,MATCH(AO$2,$AS$2:$BA$2,0)+1,FALSE) -> 0 | AP7: 0.6942538012
A8: 2006 | B8: 1 | C8: 1 | D8: 6 | F8: 2013 | G8: 1 | H8: 1 | I8: 6 | J8: 0.2218855971 | K8: 0.3311408142 | L8: 0.008418087479 | M8: 0.09855675327 | N8: 0.0845369 | O8: 0.062955 | P8: 1.713756668e-05 | Q8: 0.002178785549 | R8: 0 | S8: 0.8096890751 | V8: 0.2100846097 | W8: 0.08635810759 | X8: 0.2931242785 | Y8: 0.06663737344 | Z8: 0.05803423141 | AA8: 0.004707927806 | AB8: 8.576988365e-06 | AC8: 0.0015925556 | AD8: 0 | AE8: 0.720547661 | AG8: =J8*VLOOKUP($B8,$AR$36:$AZ$47,MATCH(AG$2,$AS$2:$BA$2,0)+1,FALSE) -> 0.212907724 | AH8: =K8*VLOOKUP($B8,$AR$36:$AZ$47,MATCH(AH$2,$AS$2:$BA$2,0)+1,FALSE) -> 0.2800569757 | AI8: =L8*VLOOKUP($B8,$AR$36:$AZ$47,MATCH(AI$2,$AS$2:$BA$2,0)+1,FALSE) -> 0.00622283391 | AJ8: =M8*VLOOKUP($B8,$AR$36:$AZ$47,MATCH(AJ$2,$AS$2:$BA$2,0)+1,FALSE) -> 0.08475842653 | AK8: =N8*VLOOKUP($B8,$AR$36:$AZ$47,MATCH(AK$2,$AS$2:$BA$2,0)+1,FALSE) -> 0.06612858847 | AL8: =O8*VLOOKUP($B8,$AR$36:$AZ$47,MATCH(AL$2,$AS$2:$BA$2,0)+1,FALSE) -> 0.0557921127 | AM8: =P8*VLOOKUP($B8,$AR$36:$AZ$47,MATCH(AM$2,$AS$2:$BA$2,0)+1,FALSE) -> 8.576988365e-06 | AN8: =Q8*VLOOKUP($B8,$AR$36:$AZ$47,MATCH(AN$2,$AS$2:$BA$2,0)+1,FALSE) -> 0.001665079838 | AO8: =R8*VLOOKUP($B8,$AR$36:$BA$47,MATCH(AO$2,$AS$2:$BA$2,0)+1,FALSE) -> 0 | AP8: 0.7075403181
A9: 2006 | B9: 1 | C9: 1 | D9: 7 | F9: 2013 | G9: 1 | H9: 1 | I9: 7 | J9: 0.2380743373 | K9: 0.341718023 | L9: 0.008418087479 | M9: 0.09750465862 | N9: 0.0900845 | O9: 0.066627 | P9: 1.713756668e-05 | Q9: 0.002178785549 | R9: 0 | S9: 0.8446225295 | V9: 0.2254123516 | W9: 0.08543623365 | X9: 0.3024871736 | Y9: 0.07101034539 | Z9: 0.06141921588 | AA9: 0.004707927806 | AB9: 8.576988365e-06 | AC9: 0.0015925556 | AD9: 0 | AE9: 0.7520743805 | AG9: =J9*VLOOKUP($B9,$AR$36:$AZ$47,MATCH(AG$2,$AS$2:$BA$2,0)+1,FALSE) -> 0.2284414399 | AH9: =K9*VLOOKUP($B9,$AR$36:$AZ$47,MATCH(AH$2,$AS$2:$BA$2,0)+1,FALSE) -> 0.2890024786 | AI9: =L9*VLOOKUP($B9,$AR$36:$AZ$47,MATCH(AI$2,$AS$2:$BA$2,0)+1,FALSE) -> 0.00622283391 | AJ9: =M9*VLOOKUP($B9,$AR$36:$AZ$47,MATCH(AJ$2,$AS$2:$BA$2,0)+1,FALSE) -> 0.0838536292 | AK9: =N9*VLOOKUP($B9,$AR$36:$AZ$47,MATCH(AK$2,$AS$2:$BA$2,0)+1,FALSE) -> 0.07046817222 | AL9: =O9*VLOOKUP($B9,$AR$36:$AZ$47,MATCH(AL$2,$AS$2:$BA$2,0)+1,FALSE) -> 0.05904632028 | AM9: =P9*VLOOKUP($B9,$AR$36:$AZ$47,MATCH(AM$2,$AS$2:$BA$2,0)+1,FALSE) -> 8.576988365e-06 | AN9: =Q9*VLOOKUP($B9,$AR$36:$AZ$47,MATCH(AN$2,$AS$2:$BA$2,0)+1,FALSE) -> 0.001665079838 | AO9: =R9*VLOOKUP($B9,$AR$36:$BA$47,MATCH(AO$2,$AS$2:$BA$2,0)+1,FALSE) -> 0 | AP9: 0.7387085309
A10: 2006 | B10: 1 | C10: 1 | D10: 8 | F10: 2013 | G10: 1 | H10: 1 | I10: 8 | J10: 0.2705912037 | K10: 0.3512248262 | L10: 0.005331455403 | M10: 0.0946107547 | N10: 0.0919607 | O10: 0.068381 | P10: 1.085379223e-05 | Q10: 0.002056339251 | R10: 0 | S10: 0.884167133 | V10: 0.2561998081 | W10: 0.08290051633 | X10: 0.3109025508 | Y10: 0.07248928583 | Z10: 0.06303611751 | AA10: 0.00298168761 | AB10: 5.432092631e-06 | AC10: 0.001503055035 | AD10: 0 | AE10: 0.7900184533 | AG10: =J10*VLOOKUP($B10,$AR$36:$AZ$47,MATCH(AG$2,$AS$2:$BA$2,0)+1,FALSE) -> 0.2596426179 | AH10: =K10*VLOOKUP($B10,$AR$36:$AZ$47,MATCH(AH$2,$AS$2:$BA$2,0)+1,FALSE) -> 0.2970427033 | AI10: =L10*VLOOKUP($B10,$AR$36:$AZ$47,MATCH(AI$2,$AS$2:$BA$2,0)+1,FALSE) -> 0.003941128143 | AJ10: =M10*VLOOKUP($B10,$AR$36:$AZ$47,MATCH(AJ$2,$AS$2:$BA$2,0)+1,FALSE) -> 0.08136488302 | AK10: =N10*VLOOKUP($B10,$AR$36:$AZ$47,MATCH(AK$2,$AS$2:$BA$2,0)+1,FALSE) -> 0.07193582075 | AL10: =O10*VLOOKUP($B10,$AR$36:$AZ$47,MATCH(AL$2,$AS$2:$BA$2,0)+1,FALSE) -> 0.06060075385 | AM10: =P10*VLOOKUP($B10,$AR$36:$AZ$47,MATCH(AM$2,$AS$2:$BA$2,0)+1,FALSE) -> 5.432092631e-06 | AN10: =Q10*VLOOKUP($B10,$AR$36:$AZ$47,MATCH(AN$2,$AS$2:$BA$2,0)+1,FALSE) -> 0.001571503459 | AO10: =R10*VLOOKUP($B10,$AR$36:$BA$47,MATCH(AO$2,$AS$2:$BA$2,0)+1,FALSE) -> 0 | AP10: 0.7761048425 | AR10: 1 | AS10: =SUMIF($B:$B,$AR10,J:J)*1000000 -> 231420678.9 | AT10: =SUMIF($B:$B,$AR10,K:K)*1000000 -> 312541609.7 | AU10: =SUMIF($B:$B,$AR10,L:L)*1000000 -> 3841877.959 | AV10: =SUMIF($B:$B,$AR10,M:M)*1000000 -> 78437562.15 | AW10: =SUMIF($B:$B,$AR10,N:N)*1000000 -> 74683738.9 | AX10: =SUMIF($B:$B,$AR10,O:O)*1000000 -> 54020318 | AY10: =SUMIF($B:$B,$AR10,P:P)*1000000 -> 7893.908905 | AZ10: =SUMIF($B:$B,$AR10,Q:Q)*1000000 -> 1536199.151 | BA10: =SUMIF($B:$B,$AR10,R:R)*1000000 -> 7559.36
A11: 2006 | B11: 1 | C11: 1 | D11: 9 | F11: 2013 | G11: 1 | H11: 1 | I11: 9 | J11: 0.3017204051 | K11: 0.363610537 | L11: 0 | M11: 0.09822114355 | N11: 0.0916444 | O11: 0.067813 | P11: 0 | Q11: 0.0018448411 | R11: 0 | S11: 0.9248543268 | V11: 0.2856734027 | W11: 0.08606403723 | X11: 0.3218663232 | Y11: 0.07223995801 | Z11: 0.06251251425 | AA11: 0 | AB11: 0 | AC11: 0.00134846315 | AD11: 0 | AE11: 0.8297046986 | AG11: =J11*VLOOKUP($B11,$AR$36:$AZ$47,MATCH(AG$2,$AS$2:$BA$2,0)+1,FALSE) -> 0.2895122783 | AH11: =K11*VLOOKUP($B11,$AR$36:$AZ$47,MATCH(AH$2,$AS$2:$BA$2,0)+1,FALSE) -> 0.3075177175 | AI11: =L11*VLOOKUP($B11,$AR$36:$AZ$47,MATCH(AI$2,$AS$2:$BA$2,0)+1,FALSE) -> 0 | AJ11: =M11*VLOOKUP($B11,$AR$36:$AZ$47,MATCH(AJ$2,$AS$2:$BA$2,0)+1,FALSE) -> 0.08446980347 | AK11: =N11*VLOOKUP($B11,$AR$36:$AZ$47,MATCH(AK$2,$AS$2:$BA$2,0)+1,FALSE) -> 0.07168839658 | AL11: =O11*VLOOKUP($B11,$AR$36:$AZ$47,MATCH(AL$2,$AS$2:$BA$2,0)+1,FALSE) -> 0.06009737969 | AM11: =P11*VLOOKUP($B11,$AR$36:$AZ$47,MATCH(AM$2,$AS$2:$BA$2,0)+1,FALSE) -> 0 | AN11: =Q11*VLOOKUP($B11,$AR$36:$AZ$47,MATCH(AN$2,$AS$2:$BA$2,0)+1,FALSE) -> 0.001409871532 | AO11: =R11*VLOOKUP($B11,$AR$36:$BA$47,MATCH(AO$2,$AS$2:$BA$2,0)+1,FALSE) -> 0 | AP11: 0.814695447 | AR11: 2 | AS11: 199095006.1 | AT11: 266848741.2 | AU11: 3348197.978 | AV11: 66395271.18 | AW11: 67231664.9 | AX11: 48719658 | AY11: 7782.281405 | AZ11: 1519562.465 | BA11: 150.4
A12: 2006 | B12: 1 | C12: 1 | D12: 10 | F12: 2013 | G12: 1 | H12: 1 | I12: 10 | J12: 0.3398414549 | K12: 0.3687116919 | L12: 0 | M12: 0.09145262324 | N12: 0.0909129 | O12: 0.067681 | P12: 0 | Q12: 0.0018448411 | R12: 0 | S12: 0.9604445112 | V12: 0.3217669842 | W12: 0.08013327565 | X12: 0.3263818414 | Y12: 0.07166334308 | Z12: 0.0623908318 | AA12: 0 | AB12: 0 | AC12: 0.00134846315 | AD12: 0 | AE12: 0.8636847392 | AG12: =J12*VLOOKUP($B12,$AR$36:$AZ$47,MATCH(AG$2,$AS$2:$BA$2,0)+1,FALSE) -> 0.3260908848 | AH12: =K12*VLOOKUP($B12,$AR$36:$AZ$47,MATCH(AH$2,$AS$2:$BA$2,0)+1,FALSE) -> 0.3118319365 | AI12: =L12*VLOOKUP($B12,$AR$36:$AZ$47,MATCH(AI$2,$AS$2:$BA$2,0)+1,FALSE) -> 0 | AJ12: =M12*VLOOKUP($B12,$AR$36:$AZ$47,MATCH(AJ$2,$AS$2:$BA$2,0)+1,FALSE) -> 0.07864890218 | AK12: =N12*VLOOKUP($B12,$AR$36:$AZ$47,MATCH(AK$2,$AS$2:$BA$2,0)+1,FALSE) -> 0.07111618418 | AL12: =O12*VLOOKUP($B12,$AR$36:$AZ$47,MATCH(AL$2,$AS$2:$BA$2,0)+1,FALSE) -> 0.05998039838 | AM12: =P12*VLOOKUP($B12,$AR$36:$AZ$47,MATCH(AM$2,$AS$2:$BA$2,0)+1,FALSE) -> 0 | AN12: =Q12*VLOOKUP($B12,$AR$36:$AZ$47,MATCH(AN$2,$AS$2:$BA$2,0)+1,FALSE) -> 0.001409871532 | AO12: =R12*VLOOKUP($B12,$AR$36:$BA$47,MATCH(AO$2,$AS$2:$BA$2,0)+1,FALSE) -> 0 | AP12: 0.8490781776 | AR12: 3 | AS12: 206105545.1 | AT12: 272509785.8 | AU12: 3393711.247 | AV12: 69321886.41 | AW12: 70809335.9 | AX12: 52674209 | AY12: 7851.600972 | AZ12: 1538004.674 | BA12: 21568.32
A13: 2006 | B13: 1 | C13: 1 | D13: 11 | F13: 2013 | G13: 1 | H13: 1 | I13: 11 | J13: 0.3304256796 | K13: 0.3853805835 | L13: 0 | M13: 0.1038283133 | N13: 0.0899043 | O13: 0.067655 | P13: 0 | Q13: 0.0018448411 | R13: 0 | S13: 0.9790387175 | V13: 0.3128519869 | W13: 0.09097719189 | X13: 0.3411370651 | Y13: 0.07086830026 | Z13: 0.06236686404 | AA13: 0 | AB13: 0 | AC13: 0.00134846315 | AD13: 0 | AE13: 0.8795498714 | AG13: =J13*VLOOKUP($B13,$AR$36:$AZ$47,MATCH(AG$2,$AS$2:$BA$2,0)+1,FALSE) -> 0.3170560879 | AH13: =K13*VLOOKUP($B13,$AR$36:$AZ$47,MATCH(AH$2,$AS$2:$BA$2,0)+1,FALSE) -> 0.3259293813 | AI13: =L13*VLOOKUP($B13,$AR$36:$AZ$47,MATCH(AI$2,$AS$2:$BA$2,0)+1,FALSE) -> 0 | AJ13: =M13*VLOOKUP($B13,$AR$36:$AZ$47,MATCH(AJ$2,$AS$2:$BA$2,0)+1,FALSE) -> 0.0892919478 | AK13: =N13*VLOOKUP($B13,$AR$36:$AZ$47,MATCH(AK$2,$AS$2:$BA$2,0)+1,FALSE) -> 0.07032721162 | AL13: =O13*VLOOKUP($B13,$AR$36:$AZ$47,MATCH(AL$2,$AS$2:$BA$2,0)+1,FALSE) -> 0.0599573566 | AM13: =P13*VLOOKUP($B13,$AR$36:$AZ$47,MATCH(AM$2,$AS$2:$BA$2,0)+1,FALSE) -> 0 | AN13: =Q13*VLOOKUP($B13,$AR$36:$AZ$47,MATCH(AN$2,$AS$2:$BA$2,0)+1,FALSE) -> 0.001409871532 | AO13: =R13*VLOOKUP($B13,$AR$36:$BA$47,MATCH(AO$2,$AS$2:$BA$2,0)+1,FALSE) -> 0 | AP13: 0.8639718568 | AR13: 4 | AS13: 178365764.7 | AT13: 241811390.5 | AU13: 2974730.232 | AV13: 59725491.47 | AW13: 68729643.3 | AX13: 51136567 | AY13: 7795.969458 | AZ13: 1535557.346 | BA13: 15043.84
A14: 2006 | B14: 1 | C14: 1 | D14: 12 | F14: 2013 | G14: 1 | H14: 1 | I14: 12 | J14: 0.3392615468 | K14: 0.3918176485 | L14: 0 | M14: 0.1060464224 | N14: 0.0895762 | O14: 0.067484 | P14: 0 | Q14: 0.0018448411 | R14: 0 | S14: 0.9960306588 | V14: 0.3212179185 | W14: 0.09292075935 | X14: 0.3468351245 | Y14: 0.07060967093 | Z14: 0.06220922996 | AA14: 0 | AB14: 0 | AC14: 0.00134846315 | AD14: 0 | AE14: 0.8951411664 | AG14: =J14*VLOOKUP($B14,$AR$36:$AZ$47,MATCH(AG$2,$AS$2:$BA$2,0)+1,FALSE) -> 0.3255344408 | AH14: =K14*VLOOKUP($B14,$AR$36:$AZ$47,MATCH(AH$2,$AS$2:$BA$2,0)+1,FALSE) -> 0.3313734247 | AI14: =L14*VLOOKUP($B14,$AR$36:$AZ$47,MATCH(AI$2,$AS$2:$BA$2,0)+1,FALSE) -> 0 | AJ14: =M14*VLOOKUP($B14,$AR$36:$AZ$47,MATCH(AJ$2,$AS$2:$BA$2,0)+1,FALSE) -> 0.09119951299 | AK14: =N14*VLOOKUP($B14,$AR$36:$AZ$47,MATCH(AK$2,$AS$2:$BA$2,0)+1,FALSE) -> 0.07007055695 | AL14: =O14*VLOOKUP($B14,$AR$36:$AZ$47,MATCH(AL$2,$AS$2:$BA$2,0)+1,FALSE) -> 0.05980581262 | AM14: =P14*VLOOKUP($B14,$AR$36:$AZ$47,MATCH(AM$2,$AS$2:$BA$2,0)+1,FALSE) -> 0 | AN14: =Q14*VLOOKUP($B14,$AR$36:$AZ$47,MATCH(AN$2,$AS$2:$BA$2,0)+1,FALSE) -> 0.001409871532 | AO14: =R14*VLOOKUP($B14,$AR$36:$BA$47,MATCH(AO$2,$AS$2:$BA$2,0)+1,FALSE) -> 0 | AP14: 0.8793936196 | AR14: 5 | AS14: 180789046.7 | AT14: 242485499.6 | AU14: 2991509.809 | AV14: 61146017.29 | AW14: 72511622.1 | AX14: 54181758 | AY14: 7824.341235 | AZ14: 1546707.028 | BA14: 27366.4 | BB14: Monthly Historic
A15: 2006 | B15: 1 | C15: 1 | D15: 13 | F15: 2013 | G15: 1 | H15: 1 | I15: 13 | J15: 0.3242436248 | K15: 0.4001900976 | L15: 0 | M15: 0.1187100526 | N15: 0.089578 | O15: 0.067535 | P15: 0 | Q15: 0.0018448411 | R15: 0 | S15: 1.002101616 | V15: 0.3069987248 | W15: 0.1040169766 | X15: 0.3542463768 | Y15: 0.0706110898 | Z15: 0.06225624363 | AA15: 0 | AB15: 0 | AC15: 0.00134846315 | AD15: 0 | AE15: 0.8994778747 | AG15: =J15*VLOOKUP($B15,$AR$36:$AZ$47,MATCH(AG$2,$AS$2:$BA$2,0)+1,FALSE) -> 0.3111241697 | AH15: =K15*VLOOKUP($B15,$AR$36:$AZ$47,MATCH(AH$2,$AS$2:$BA$2,0)+1,FALSE) -> 0.3384542879 | AI15: =L15*VLOOKUP($B15,$AR$36:$AZ$47,MATCH(AI$2,$AS$2:$BA$2,0)+1,FALSE) -> 0 | AJ15: =M15*VLOOKUP($B15,$AR$36:$AZ$47,MATCH(AJ$2,$AS$2:$BA$2,0)+1,FALSE) -> 0.102090186 | AK15: =N15*VLOOKUP($B15,$AR$36:$AZ$47,MATCH(AK$2,$AS$2:$BA$2,0)+1,FALSE) -> 0.070071965 | AL15: =O15*VLOOKUP($B15,$AR$36:$AZ$47,MATCH(AL$2,$AS$2:$BA$2,0)+1,FALSE) -> 0.05985100995 | AM15: =P15*VLOOKUP($B15,$AR$36:$AZ$47,MATCH(AM$2,$AS$2:$BA$2,0)+1,FALSE) -> 0 | AN15: =Q15*VLOOKUP($B15,$AR$36:$AZ$47,MATCH(AN$2,$AS$2:$BA$2,0)+1,FALSE) -> 0.001409871532 | AO15: =R15*VLOOKUP($B15,$AR$36:$BA$47,MATCH(AO$2,$AS$2:$BA$2,0)+1,FALSE) -> 0 | AP15: 0.88300149 | AR15: 6 | AS15: 196523013.1 | AT15: 258326477.8 | AU15: 3225389.63 | AV15: 65238989.43 | AW15: 70859580.3 | AX15: 53999473 | AY15: 7789.628652 | AZ15: 1544656.779 | BA15: 28504.96
A16: 2006 | B16: 1 | C16: 1 | D16: 14 | F16: 2013 | G16: 1 | H16: 1 | I16: 14 | J16: 0.3200274369 | K16: 0.397298993 | L16: 0 | M16: 0.1140923496 | N16: 0.0891076 | O16: 0.06764 | P16: 0 | Q16: 0.0018448411 | R16: 0 | S16: 0.9900112206 | V16: 0.3030067749 | W16: 0.09997081962 | X16: 0.3516871847 | Y16: 0.07024029054 | Z16: 0.06235303649 | AA16: 0 | AB16: 0 | AC16: 0.00134846315 | AD16: 0 | AE16: 0.8886065694 | AG16: =J16*VLOOKUP($B16,$AR$36:$AZ$47,MATCH(AG$2,$AS$2:$BA$2,0)+1,FALSE) -> 0.3070785761 | AH16: =K16*VLOOKUP($B16,$AR$36:$AZ$47,MATCH(AH$2,$AS$2:$BA$2,0)+1,FALSE) -> 0.3360091829 | AI16: =L16*VLOOKUP($B16,$AR$36:$AZ$47,MATCH(AI$2,$AS$2:$BA$2,0)+1,FALSE) -> 0 | AJ16: =M16*VLOOKUP($B16,$AR$36:$AZ$47,MATCH(AJ$2,$AS$2:$BA$2,0)+1,FALSE) -> 0.09811897928 | AK16: =N16*VLOOKUP($B16,$AR$36:$AZ$47,MATCH(AK$2,$AS$2:$BA$2,0)+1,FALSE) -> 0.06970399683 | AL16: =O16*VLOOKUP($B16,$AR$36:$AZ$47,MATCH(AL$2,$AS$2:$BA$2,0)+1,FALSE) -> 0.05994406327 | AM16: =P16*VLOOKUP($B16,$AR$36:$AZ$47,MATCH(AM$2,$AS$2:$BA$2,0)+1,FALSE) -> 0 | AN16: =Q16*VLOOKUP($B16,$AR$36:$AZ$47,MATCH(AN$2,$AS$2:$BA$2,0)+1,FALSE) -> 0.001409871532 | AO16: =R16*VLOOKUP($B16,$AR$36:$BA$47,MATCH(AO$2,$AS$2:$BA$2,0)+1,FALSE) -> 0 | AP16: 0.8722646699 | AR16: 7 | AS16: 206078982.6 | AT16: 278979385.8 | AU16: 3431708.974 | AV16: 69987191.49 | AW16: 80021077.8 | AX16: 58779060 | AY16: 7809.271193 | AZ16: 1552684.703 | BA16: 251190.72
A17: 2006 | B17: 1 | C17: 1 | D17: 15 | F17: 2013 | G17: 1 | H17: 1 | I17: 15 | J17: 0.3381651019 | K17: 0.3886232548 | L17: 0 | M17: 0.09948855706 | N17: 0.0892859 | O17: 0.067844 | P17: 0 | Q17: 0.0018448411 | R17: 0 | S17: 0.9852516549 | V17: 0.320179788 | W17: 0.08717457941 | X17: 0.3440074624 | Y17: 0.07038083796 | Z17: 0.06254109118 | AA17: 0 | AB17: 0 | AC17: 0.00134846315 | AD17: 0 | AE17: 0.8856322222 | AG17: =J17*VLOOKUP($B17,$AR$36:$AZ$47,MATCH(AG$2,$AS$2:$BA$2,0)+1,FALSE) -> 0.3244823599 | AH17: =K17*VLOOKUP($B17,$AR$36:$AZ$47,MATCH(AH$2,$AS$2:$BA$2,0)+1,FALSE) -> 0.3286718181 | AI17: =L17*VLOOKUP($B17,$AR$36:$AZ$47,MATCH(AI$2,$AS$2:$BA$2,0)+1,FALSE) -> 0 | AJ17: =M17*VLOOKUP($B17,$AR$36:$AZ$47,MATCH(AJ$2,$AS$2:$BA$2,0)+1,FALSE) -> 0.08555977418 | AK17: =N17*VLOOKUP($B17,$AR$36:$AZ$47,MATCH(AK$2,$AS$2:$BA$2,0)+1,FALSE) -> 0.06984347116 | AL17: =O17*VLOOKUP($B17,$AR$36:$AZ$47,MATCH(AL$2,$AS$2:$BA$2,0)+1,FALSE) -> 0.06012485258 | AM17: =P17*VLOOKUP($B17,$AR$36:$AZ$47,MATCH(AM$2,$AS$2:$BA$2,0)+1,FALSE) -> 0 | AN17: =Q17*VLOOKUP($B17,$AR$36:$AZ$47,MATCH(AN$2,$AS$2:$BA$2,0)+1,FALSE) -> 0.001409871532 | AO17: =R17*VLOOKUP($B17,$AR$36:$BA$47,MATCH(AO$2,$AS$2:$BA$2,0)+1,FALSE) -> 0 | AP17: 0.8700921474 | AR17: 8 | AS17: 199282760.5 | AT17: 265813683 | AU17: 3322549.45 | AV17: 66627309.17 | AW17: 76647625.9 | AX17: 55107537 | AY17: 7833.726627 | AZ17: 1560853.167 | BA17: 27161.6
A18: 2006 | B18: 1 | C18: 1 | D18: 16 | F18: 2013 | G18: 1 | H18: 1 | I18: 16 | J18: 0.3488144217 | K18: 0.393394904 | L18: 0 | M18: 0.1048701646 | N18: 0.0896763 | O18: 0.067657 | P18: 0 | Q18: 0.0018448411 | R18: 0 | S18: 1.006257631 | V18: 0.3302627236 | W18: 0.09189009026 | X18: 0.3482313036 | Y18: 0.07068857613 | Z18: 0.06236870772 | AA18: 0 | AB18: 0 | AC18: 0.00134846315 | AD18: 0 | AE18: 0.9047898645 | AG18: =J18*VLOOKUP($B18,$AR$36:$AZ$47,MATCH(AG$2,$AS$2:$BA$2,0)+1,FALSE) -> 0.3347007899 | AH18: =K18*VLOOKUP($B18,$AR$36:$AZ$47,MATCH(AH$2,$AS$2:$BA$2,0)+1,FALSE) -> 0.332707363 | AI18: =L18*VLOOKUP($B18,$AR$36:$AZ$47,MATCH(AI$2,$AS$2:$BA$2,0)+1,FALSE) -> 0 | AJ18: =M18*VLOOKUP($B18,$AR$36:$AZ$47,MATCH(AJ$2,$AS$2:$BA$2,0)+1,FALSE) -> 0.09018793581 | AK18: =N18*VLOOKUP($B18,$AR$36:$AZ$47,MATCH(AK$2,$AS$2:$BA$2,0)+1,FALSE) -> 0.0701488597 | AL18: =O18*VLOOKUP($B18,$AR$36:$AZ$47,MATCH(AL$2,$AS$2:$BA$2,0)+1,FALSE) -> 0.05995912904 | AM18: =P18*VLOOKUP($B18,$AR$36:$AZ$47,MATCH(AM$2,$AS$2:$BA$2,0)+1,FALSE) -> 0 | AN18: =Q18*VLOOKUP($B18,$AR$36:$AZ$47,MATCH(AN$2,$AS$2:$BA$2,0)+1,FALSE) -> 0.001409871532 | AO18: =R18*VLOOKUP($B18,$AR$36:$BA$47,MATCH(AO$2,$AS$2:$BA$2,0)+1,FALSE) -> 0 | AP18: 0.889113949 | AR18: 9 | AS18: 181234271.5 | AT18: 240974493.1 | AU18: 3026618.362 | AV18: 60041612.08 | AW18: 69539334.1 | AX18: 47265597 | AY18: 7818.616675 | AZ18: 1559177.941 | BA18: 2688.64
A19: 2006 | B19: 1 | C19: 1 | D19: 17 | F19: 2013 | G19: 1 | H19: 1 | I19: 17 | J19: 0.3968355519 | K19: 0.3966914995 | L19: 0.002946330617 | M19: 0.1051916034 | N19: 0.0914758 | O19: 0.067858 | P19: 5.998148338e-06 | Q19: 0.001961721657 | R19: 0 | S19: 1.062966505 | V19: 0.3757298496 | W19: 0.09217174375 | X19: 0.3511494344 | Y19: 0.07210705674 | Z19: 0.0625539969 | AA19: 0.001647774732 | AB19: 3.001945928e-06 | AC19: 0.001433895508 | AD19: 0 | AE19: 0.9567967535 | AG19: =J19*VLOOKUP($B19,$AR$36:$AZ$47,MATCH(AG$2,$AS$2:$BA$2,0)+1,FALSE) -> 0.3807789025 | AH19: =K19*VLOOKUP($B19,$AR$36:$AZ$47,MATCH(AH$2,$AS$2:$BA$2,0)+1,FALSE) -> 0.3354954052 | AI19: =L19*VLOOKUP($B19,$AR$36:$AZ$47,MATCH(AI$2,$AS$2:$BA$2,0)+1,FALSE) -> 0.002177991868 | AJ19: =M19*VLOOKUP($B19,$AR$36:$AZ$47,MATCH(AJ$2,$AS$2:$BA$2,0)+1,FALSE) -> 0.090464372 | AK19: =N19*VLOOKUP($B19,$AR$36:$AZ$47,MATCH(AK$2,$AS$2:$BA$2,0)+1,FALSE) -> 0.07155651003 | AL19: =O19*VLOOKUP($B19,$AR$36:$AZ$47,MATCH(AL$2,$AS$2:$BA$2,0)+1,FALSE) -> 0.06013725969 | AM19: =P19*VLOOKUP($B19,$AR$36:$AZ$47,MATCH(AM$2,$AS$2:$BA$2,0)+1,FALSE) -> 3.001945928e-06 | AN19: =Q19*VLOOKUP($B19,$AR$36:$AZ$47,MATCH(AN$2,$AS$2:$BA$2,0)+1,FALSE) -> 0.001499194439 | AO19: =R19*VLOOKUP($B19,$AR$36:$BA$47,MATCH(AO$2,$AS$2:$BA$2,0)+1,FALSE) -> 0 | AP19: 0.9421126377 | AR19: 10 | AS19: 184611816.6 | AT19: 249423267 | AU19: 3071337.598 | AV19: 62564310.09 | AW19: 71195701.7 | AX19: 48442879 | AY19: 7857.615448 | AZ19: 1570711.956 | BA19: 9842.24
A20: 2006 | B20: 1 | C20: 1 | D20: 18 | F20: 2013 | G20: 1 | H20: 1 | I20: 18 | J20: 0.4609263956 | K20: 0.3983720396 | L20: 0.008418087479 | M20: 0.1080573242 | N20: 0.0923018 | O20: 0.068024 | P20: 1.713756668e-05 | Q20: 0.002178785549 | R20: 0 | S20: 1.13829557 | V20: 0.4364120212 | W20: 0.09468276626 | X20: 0.3526370405 | Y20: 0.07275816259 | Z20: 0.0627070218 | AA20: 0.004707927806 | AB20: 8.576988365e-06 | AC20: 0.0015925556 | AD20: 0 | AE20: 1.025506073 | AG20: =J20*VLOOKUP($B20,$AR$36:$AZ$47,MATCH(AG$2,$AS$2:$BA$2,0)+1,FALSE) -> 0.4422765204 | AH20: =K20*VLOOKUP($B20,$AR$36:$AZ$47,MATCH(AH$2,$AS$2:$BA$2,0)+1,FALSE) -> 0.3369166948 | AI20: =L20*VLOOKUP($B20,$AR$36:$AZ$47,MATCH(AI$2,$AS$2:$BA$2,0)+1,FALSE) -> 0.00622283391 | AJ20: =M20*VLOOKUP($B20,$AR$36:$AZ$47,MATCH(AJ$2,$AS$2:$BA$2,0)+1,FALSE) -> 0.09292888081 | AK20: =N20*VLOOKUP($B20,$AR$36:$AZ$47,MATCH(AK$2,$AS$2:$BA$2,0)+1,FALSE) -> 0.07220264461 | AL20: =O20*VLOOKUP($B20,$AR$36:$AZ$47,MATCH(AL$2,$AS$2:$BA$2,0)+1,FALSE) -> 0.06028437256 | AM20: =P20*VLOOKUP($B20,$AR$36:$AZ$47,MATCH(AM$2,$AS$2:$BA$2,0)+1,FALSE) -> 8.576988365e-06 | AN20: =Q20*VLOOKUP($B20,$AR$36:$AZ$47,MATCH(AN$2,$AS$2:$BA$2,0)+1,FALSE) -> 0.001665079838 | AO20: =R20*VLOOKUP($B20,$AR$36:$BA$47,MATCH(AO$2,$AS$2:$BA$2,0)+1,FALSE) -> 0 | AP20: 1.012505604 | AR20: 11 | AS20: 194481092.1 | AT20: 259539524 | AU20: 3236229.655 | AV20: 65186150.74 | AW20: 70169897.2 | AX20: 49298397 | AY20: 7822.186614 | AZ20: 1568620.342 | BA20: 0
A21: 2006 | B21: 1 | C21: 1 | D21: 19 | F21: 2013 | G21: 1 | H21: 1 | I21: 19 | J21: 0.4893314591 | K21: 0.3891222774 | L21: 0.008418087479 | M21: 0.1116353152 | N21: 0.0880063 | O21: 0.066448 | P21: 1.713756668e-05 | Q21: 0.002178785549 | R21: 0 | S21: 1.155157362 | V21: 0.4633063612 | W21: 0.09781789926 | X21: 0.3444491948 | Y21: 0.06937217567 | Z21: 0.06125420711 | AA21: 0.004707927806 | AB21: 8.576988365e-06 | AC21: 0.0015925556 | AD21: 0 | AE21: 1.042508898 | AG21: =J21*VLOOKUP($B21,$AR$36:$AZ$47,MATCH(AG$2,$AS$2:$BA$2,0)+1,FALSE) -> 0.4695322661 | AH21: =K21*VLOOKUP($B21,$AR$36:$AZ$47,MATCH(AH$2,$AS$2:$BA$2,0)+1,FALSE) -> 0.3290938583 | AI21: =L21*VLOOKUP($B21,$AR$36:$AZ$47,MATCH(AI$2,$AS$2:$BA$2,0)+1,FALSE) -> 0.00622283391 | AJ21: =M21*VLOOKUP($B21,$AR$36:$AZ$47,MATCH(AJ$2,$AS$2:$BA$2,0)+1,FALSE) -> 0.09600593921 | AK21: =N21*VLOOKUP($B21,$AR$36:$AZ$47,MATCH(AK$2,$AS$2:$BA$2,0)+1,FALSE) -> 0.06884251014 | AL21: =O21*VLOOKUP($B21,$AR$36:$AZ$47,MATCH(AL$2,$AS$2:$BA$2,0)+1,FALSE) -> 0.05888768652 | AM21: =P21*VLOOKUP($B21,$AR$36:$AZ$47,MATCH(AM$2,$AS$2:$BA$2,0)+1,FALSE) -> 8.576988365e-06 | AN21: =Q21*VLOOKUP($B21,$AR$36:$AZ$47,MATCH(AN$2,$AS$2:$BA$2,0)+1,FALSE) -> 0.001665079838 | AO21: =R21*VLOOKUP($B21,$AR$36:$BA$47,MATCH(AO$2,$AS$2:$BA$2,0)+1,FALSE) -> 0 | AP21: 1.030258751 | AR21: 12 | AS21: 221654318.3 | AT21: 295891988.7 | AU21: 3664922.803 | AV21: 74393796.73 | AW21: 74032862.1 | AX21: 49361222 | AY21: 7830.929358 | AZ21: 1576248.041 | BA21: 32013.76
A22: 2006 | B22: 1 | C22: 1 | D22: 20 | F22: 2013 | G22: 1 | H22: 1 | I22: 20 | J22: 0.4517945684 | K22: 0.3793697661 | L22: 0.008418087479 | M22: 0.1135297001 | N22: 0.0865709 | O22: 0.06536 | P22: 1.713756668e-05 | Q22: 0.002178785549 | R22: 0 | S22: 1.107238945 | V22: 0.4277658703 | W22: 0.09947781078 | X22: 0.3358163181 | Y22: 0.06824070189 | Z22: 0.06025124874 | AA22: 0.004707927806 | AB22: 8.576988365e-06 | AC22: 0.0015925556 | AD22: 0 | AE22: 0.9978610102 | AG22: =J22*VLOOKUP($B22,$AR$36:$AZ$47,MATCH(AG$2,$AS$2:$BA$2,0)+1,FALSE) -> 0.4335141826 | AH22: =K22*VLOOKUP($B22,$AR$36:$AZ$47,MATCH(AH$2,$AS$2:$BA$2,0)+1,FALSE) -> 0.32084583 | AI22: =L22*VLOOKUP($B22,$AR$36:$AZ$47,MATCH(AI$2,$AS$2:$BA$2,0)+1,FALSE) -> 0.00622283391 | AJ22: =M22*VLOOKUP($B22,$AR$36:$AZ$47,MATCH(AJ$2,$AS$2:$BA$2,0)+1,FALSE) -> 0.09763510285 | AK22: =N22*VLOOKUP($B22,$AR$36:$AZ$47,MATCH(AK$2,$AS$2:$BA$2,0)+1,FALSE) -> 0.06771967531 | AL22: =O22*VLOOKUP($B22,$AR$36:$AZ$47,MATCH(AL$2,$AS$2:$BA$2,0)+1,FALSE) -> 0.05792347687 | AM22: =P22*VLOOKUP($B22,$AR$36:$AZ$47,MATCH(AM$2,$AS$2:$BA$2,0)+1,FALSE) -> 8.576988365e-06 | AN22: =Q22*VLOOKUP($B22,$AR$36:$AZ$47,MATCH(AN$2,$AS$2:$BA$2,0)+1,FALSE) -> 0.001665079838 | AO22: =R22*VLOOKUP($B22,$AR$36:$BA$47,MATCH(AO$2,$AS$2:$BA$2,0)+1,FALSE) -> 0 | AP22: 0.9855347583
A23: 2006 | B23: 1 | C23: 1 | D23: 21 | F23: 2013 | G23: 1 | H23: 1 | I23: 21 | J23: 0.4353584533 | K23: 0.3743121784 | L23: 0.008418087479 | M23: 0.114927806 | N23: 0.0860857 | O23: 0.065105 | P23: 1.713756668e-05 | Q23: 0.002178785549 | R23: 0 | S23: 1.086403148 | V23: 0.4122039101 | W23: 0.1007028692 | X23: 0.3313393654 | Y23: 0.06785823632 | Z23: 0.06001618038 | AA23: 0.004707927806 | AB23: 8.576988365e-06 | AC23: 0.0015925556 | AD23: 0 | AE23: 0.9784296219 | AG23: =J23*VLOOKUP($B23,$AR$36:$AZ$47,MATCH(AG$2,$AS$2:$BA$2,0)+1,FALSE) -> 0.417743101 | AH23: =K23*VLOOKUP($B23,$AR$36:$AZ$47,MATCH(AH$2,$AS$2:$BA$2,0)+1,FALSE) -> 0.3165684572 | AI23: =L23*VLOOKUP($B23,$AR$36:$AZ$47,MATCH(AI$2,$AS$2:$BA$2,0)+1,FALSE) -> 0.00622283391 | AJ23: =M23*VLOOKUP($B23,$AR$36:$AZ$47,MATCH(AJ$2,$AS$2:$BA$2,0)+1,FALSE) -> 0.09883746855 | AK23: =N23*VLOOKUP($B23,$AR$36:$AZ$47,MATCH(AK$2,$AS$2:$BA$2,0)+1,FALSE) -> 0.06734012991 | AL23: =O23*VLOOKUP($B23,$AR$36:$AZ$47,MATCH(AL$2,$AS$2:$BA$2,0)+1,FALSE) -> 0.05769749023 | AM23: =P23*VLOOKUP($B23,$AR$36:$AZ$47,MATCH(AM$2,$AS$2:$BA$2,0)+1,FALSE) -> 8.576988365e-06 | AN23: =Q23*VLOOKUP($B23,$AR$36:$AZ$47,MATCH(AN$2,$AS$2:$BA$2,0)+1,FALSE) -> 0.001665079838 | AO23: =R23*VLOOKUP($B23,$AR$36:$BA$47,MATCH(AO$2,$AS$2:$BA$2,0)+1,FALSE) -> 0 | AP23: 0.9660831376 | AR23: =AR10 -> 1 | AS23: 222057000 | AT23: 264327000 | AU23: 2840000 | AV23: 67456000 | AW23: 58421000 | AX23: 47874000 | AY23: 0 | AZ23: 1174000
A24: 2006 | B24: 1 | C24: 1 | D24: 22 | F24: 2013 | G24: 1 | H24: 1 | I24: 22 | J24: 0.398847508 | K24: 0.362941808 | L24: 0.008418087479 | M24: 0.1082548496 | N24: 0.0854277 | O24: 0.064568 | P24: 1.713756668e-05 | Q24: 0.002178785549 | R24: 0 | S24: 1.030653876 | V24: 0.3776347998 | W24: 0.09485584336 | X24: 0.3212743674 | Y24: 0.06733955878 | Z24: 0.05952115405 | AA24: 0.004707927806 | AB24: 8.576988365e-06 | AC24: 0.0015925556 | AD24: 0 | AE24: 0.9269347838 | AG24: =J24*VLOOKUP($B24,$AR$36:$AZ$47,MATCH(AG$2,$AS$2:$BA$2,0)+1,FALSE) -> 0.3827094514 | AH24: =K24*VLOOKUP($B24,$AR$36:$AZ$47,MATCH(AH$2,$AS$2:$BA$2,0)+1,FALSE) -> 0.3069521507 | AI24: =L24*VLOOKUP($B24,$AR$36:$AZ$47,MATCH(AI$2,$AS$2:$BA$2,0)+1,FALSE) -> 0.00622283391 | AJ24: =M24*VLOOKUP($B24,$AR$36:$AZ$47,MATCH(AJ$2,$AS$2:$BA$2,0)+1,FALSE) -> 0.09309875187 | AK24: =N24*VLOOKUP($B24,$AR$36:$AZ$47,MATCH(AK$2,$AS$2:$BA$2,0)+1,FALSE) -> 0.06682541254 | AL24: =O24*VLOOKUP($B24,$AR$36:$AZ$47,MATCH(AL$2,$AS$2:$BA$2,0)+1,FALSE) -> 0.05722158896 | AM24: =P24*VLOOKUP($B24,$AR$36:$AZ$47,MATCH(AM$2,$AS$2:$BA$2,0)+1,FALSE) -> 8.576988365e-06 | AN24: =Q24*VLOOKUP($B24,$AR$36:$AZ$47,MATCH(AN$2,$AS$2:$BA$2,0)+1,FALSE) -> 0.001665079838 | AO24: =R24*VLOOKUP($B24,$AR$36:$BA$47,MATCH(AO$2,$AS$2:$BA$2,0)+1,FALSE) -> 0 | AP24: 0.9147038462 | AR24: =AR11 -> 2 | AS24: 194356000 | AT24: 240079000 | AU24: 2280000 | AV24: 61243000 | AW24: 53124000 | AX24: 42822000 | AY24: 0 | AZ24: 1172000
A25: 2006 | B25: 1 | C25: 1 | D25: 23 | F25: 2013 | G25: 1 | H25: 1 | I25: 23 | J25: 0.3320931163 | K25: 0.3615806057 | L25: 0.008418087479 | M25: 0.1122883901 | N25: 0.0843296 | O25: 0.063258 | P25: 1.713756668e-05 | Q25: 0.002178785549 | R25: 0 | S25: 0.9641637227 | V25: 0.314430741 | W25: 0.09839014119 | X25: 0.3200694377 | Y25: 0.06647396636 | Z25: 0.05831354794 | AA25: 0.004707927806 | AB25: 8.576988365e-06 | AC25: 0.0015925556 | AD25: 0 | AE25: 0.8639868946 | AG25: =J25*VLOOKUP($B25,$AR$36:$AZ$47,MATCH(AG$2,$AS$2:$BA$2,0)+1,FALSE) -> 0.3186560573 | AH25: =K25*VLOOKUP($B25,$AR$36:$AZ$47,MATCH(AH$2,$AS$2:$BA$2,0)+1,FALSE) -> 0.3058009359 | AI25: =L25*VLOOKUP($B25,$AR$36:$AZ$47,MATCH(AI$2,$AS$2:$BA$2,0)+1,FALSE) -> 0.00622283391 | AJ25: =M25*VLOOKUP($B25,$AR$36:$AZ$47,MATCH(AJ$2,$AS$2:$BA$2,0)+1,FALSE) -> 0.09656758104 | AK25: =N25*VLOOKUP($B25,$AR$36:$AZ$47,MATCH(AK$2,$AS$2:$BA$2,0)+1,FALSE) -> 0.06596642903 | AL25: =O25*VLOOKUP($B25,$AR$36:$AZ$47,MATCH(AL$2,$AS$2:$BA$2,0)+1,FALSE) -> 0.056060638 | AM25: =P25*VLOOKUP($B25,$AR$36:$AZ$47,MATCH(AM$2,$AS$2:$BA$2,0)+1,FALSE) -> 8.576988365e-06 | AN25: =Q25*VLOOKUP($B25,$AR$36:$AZ$47,MATCH(AN$2,$AS$2:$BA$2,0)+1,FALSE) -> 0.001665079838 | AO25: =R25*VLOOKUP($B25,$AR$36:$BA$47,MATCH(AO$2,$AS$2:$BA$2,0)+1,FALSE) -> 0 | AP25: 0.8509481321 | AR25: 3 | AS25: 188428000 | AT25: 245272000 | AU25: 2008000 | AV25: 61629000 | AW25: 56812000 | AX25: 47722000 | AY25: 0 | AZ25: 1059000
A26: 2006 | B26: 1 | C26: 1 | D26: 24 | F26: 2013 | G26: 1 | H26: 1 | I26: 24 | J26: 0.2347178082 | K26: 0.3688803238 | L26: 0.008418087479 | M26: 0.1333091091 | N26: 0.0835273 | O26: 0.06256 | P26: 1.713756668e-05 | Q26: 0.002178785549 | R26: 0 | S26: 0.8936085517 | V26: 0.2222343395 | W26: 0.1168090669 | X26: 0.3265311135 | Y26: 0.06584154236 | Z26: 0.0576701059 | AA26: 0.004707927806 | AB26: 8.576988365e-06 | AC26: 0.0015925556 | AD26: 0 | AE26: 0.7953952286 | AG26: =J26*VLOOKUP($B26,$AR$36:$AZ$47,MATCH(AG$2,$AS$2:$BA$2,0)+1,FALSE) -> 0.2252207217 | AH26: =K26*VLOOKUP($B26,$AR$36:$AZ$47,MATCH(AH$2,$AS$2:$BA$2,0)+1,FALSE) -> 0.3119745542 | AI26: =L26*VLOOKUP($B26,$AR$36:$AZ$47,MATCH(AI$2,$AS$2:$BA$2,0)+1,FALSE) -> 0.00622283391 | AJ26: =M26*VLOOKUP($B26,$AR$36:$AZ$47,MATCH(AJ$2,$AS$2:$BA$2,0)+1,FALSE) -> 0.1146453181 | AK26: =N26*VLOOKUP($B26,$AR$36:$AZ$47,MATCH(AK$2,$AS$2:$BA$2,0)+1,FALSE) -> 0.06533883366 | AL26: =O26*VLOOKUP($B26,$AR$36:$AZ$47,MATCH(AL$2,$AS$2:$BA$2,0)+1,FALSE) -> 0.05544205497 | AM26: =P26*VLOOKUP($B26,$AR$36:$AZ$47,MATCH(AM$2,$AS$2:$BA$2,0)+1,FALSE) -> 8.576988365e-06 | AN26: =Q26*VLOOKUP($B26,$AR$36:$AZ$47,MATCH(AN$2,$AS$2:$BA$2,0)+1,FALSE) -> 0.001665079838 | AO26: =R26*VLOOKUP($B26,$AR$36:$BA$47,MATCH(AO$2,$AS$2:$BA$2,0)+1,FALSE) -> 0 | AP26: 0.7805179734 | AR26: 4 | AS26: 158773000 | AT26: 219384000 | AU26: 1586000 | AV26: 54132000 | AW26: 53717000 | AX26: 46055000 | AY26: 0 | AZ26: 1162000
A27: 2006 | B27: 1 | C27: 2 | D27: 1 | F27: 2013 | G27: 1 | H27: 2 | I27: 1 | J27: 0.2464490832 | K27: 0.3924425156 | L27: 0.008418087479 | M27: 0.1126592681 | N27: 0.0833713 | O27: 0.062484 | P27: 1.713756668e-05 | Q27: 0.002178785549 | R27: 0 | S27: 0.9080201775 | V27: 0.2333416866 | W27: 0.09871511462 | X27: 0.3473882539 | Y27: 0.06571857321 | Z27: 0.05760004631 | AA27: 0.004707927806 | AB27: 8.576988365e-06 | AC27: 0.0015925556 | AD27: 0 | AE27: 0.809072735 | AG27: =J27*VLOOKUP($B27,$AR$36:$AZ$47,MATCH(AG$2,$AS$2:$BA$2,0)+1,FALSE) -> 0.2364773292 | AH27: =K27*VLOOKUP($B27,$AR$36:$AZ$47,MATCH(AH$2,$AS$2:$BA$2,0)+1,FALSE) -> 0.3319018959 | AI27: =L27*VLOOKUP($B27,$AR$36:$AZ$47,MATCH(AI$2,$AS$2:$BA$2,0)+1,FALSE) -> 0.00622283391 | AJ27: =M27*VLOOKUP($B27,$AR$36:$AZ$47,MATCH(AJ$2,$AS$2:$BA$2,0)+1,FALSE) -> 0.09688653473 | AK27: =N27*VLOOKUP($B27,$AR$36:$AZ$47,MATCH(AK$2,$AS$2:$BA$2,0)+1,FALSE) -> 0.0652168034 | AL27: =O27*VLOOKUP($B27,$AR$36:$AZ$47,MATCH(AL$2,$AS$2:$BA$2,0)+1,FALSE) -> 0.05537470209 | AM27: =P27*VLOOKUP($B27,$AR$36:$AZ$47,MATCH(AM$2,$AS$2:$BA$2,0)+1,FALSE) -> 8.576988365e-06 | AN27: =Q27*VLOOKUP($B27,$AR$36:$AZ$47,MATCH(AN$2,$AS$2:$BA$2,0)+1,FALSE) -> 0.001665079838 | AO27: =R27*VLOOKUP($B27,$AR$36:$BA$47,MATCH(AO$2,$AS$2:$BA$2,0)+1,FALSE) -> 0 | AP27: 0.7937537561 | AR27: 5 | AS27: 154330000 | AT27: 215863000 | AU27: 1101000 | AV27: 52479000 | AW27: 55461000 | AX27: 48373000 | AY27: 0 | AZ27: 1125000 | BB27: 2021 Load Forecast (Monthly)
A28: 2006 | B28: 1 | C28: 2 | D28: 2 | F28: 2013 | G28: 1 | H28: 2 | I28: 2 | J28: 0.2357351305 | K28: 0.3832723867 | L28: 0.008418087479 | M28: 0.1074919888 | N28: 0.0828932 | O28: 0.062268 | P28: 1.713756668e-05 | Q28: 0.002178785549 | R28: 0 | S28: 0.8822747166 | V28: 0.2231975555 | W28: 0.09418740397 | X28: 0.3392708994 | Y28: 0.06534170432 | Z28: 0.05740092957 | AA28: 0.004707927806 | AB28: 8.576988365e-06 | AC28: 0.0015925556 | AD28: 0 | AE28: 0.7857075531 | AG28: =J28*VLOOKUP($B28,$AR$36:$AZ$47,MATCH(AG$2,$AS$2:$BA$2,0)+1,FALSE) -> 0.2261968814 | AH28: =K28*VLOOKUP($B28,$AR$36:$AZ$47,MATCH(AH$2,$AS$2:$BA$2,0)+1,FALSE) -> 0.3241464081 | AI28: =L28*VLOOKUP($B28,$AR$36:$AZ$47,MATCH(AI$2,$AS$2:$BA$2,0)+1,FALSE) -> 0.00622283391 | AJ28: =M28*VLOOKUP($B28,$AR$36:$AZ$47,MATCH(AJ$2,$AS$2:$BA$2,0)+1,FALSE) -> 0.09244269452 | AK28: =N28*VLOOKUP($B28,$AR$36:$AZ$47,MATCH(AK$2,$AS$2:$BA$2,0)+1,FALSE) -> 0.06484281195 | AL28: =O28*VLOOKUP($B28,$AR$36:$AZ$47,MATCH(AL$2,$AS$2:$BA$2,0)+1,FALSE) -> 0.05518327811 | AM28: =P28*VLOOKUP($B28,$AR$36:$AZ$47,MATCH(AM$2,$AS$2:$BA$2,0)+1,FALSE) -> 8.576988365e-06 | AN28: =Q28*VLOOKUP($B28,$AR$36:$AZ$47,MATCH(AN$2,$AS$2:$BA$2,0)+1,FALSE) -> 0.001665079838 | AO28: =R28*VLOOKUP($B28,$AR$36:$BA$47,MATCH(AO$2,$AS$2:$BA$2,0)+1,FALSE) -> 0 | AP28: 0.7707085649 | AR28: 6 | AS28: 186714000 | AT28: 224589000 | AU28: 975000 | AV28: 54992000 | AW28: 57672000 | AX28: 48727000 | AY28: 0 | AZ28: 1157000
A29: 2006 | B29: 1 | C29: 2 | D29: 3 | F29: 2013 | G29: 1 | H29: 2 | I29: 3 | J29: 0.2291534056 | K29: 0.3805699443 | L29: 0.008418087479 | M29: 0.1084650323 | N29: 0.0826575 | O29: 0.062208 | P29: 1.713756668e-05 | Q29: 0.002178785549 | R29: 0 | S29: 0.8736678928 | V29: 0.2169658797 | W29: 0.09504001116 | X29: 0.3368787101 | Y29: 0.06515591055 | Z29: 0.05734561937 | AA29: 0.004707927806 | AB29: 8.576988365e-06 | AC29: 0.0015925556 | AD29: 0 | AE29: 0.7776951913 | AG29: =J29*VLOOKUP($B29,$AR$36:$AZ$47,MATCH(AG$2,$AS$2:$BA$2,0)+1,FALSE) -> 0.2198814645 | AH29: =K29*VLOOKUP($B29,$AR$36:$AZ$47,MATCH(AH$2,$AS$2:$BA$2,0)+1,FALSE) -> 0.3218608612 | AI29: =L29*VLOOKUP($B29,$AR$36:$AZ$47,MATCH(AI$2,$AS$2:$BA$2,0)+1,FALSE) -> 0.00622283391 | AJ29: =M29*VLOOKUP($B29,$AR$36:$AZ$47,MATCH(AJ$2,$AS$2:$BA$2,0)+1,FALSE) -> 0.09327950818 | AK29: =N29*VLOOKUP($B29,$AR$36:$AZ$47,MATCH(AK$2,$AS$2:$BA$2,0)+1,FALSE) -> 0.06465843674 | AL29: =O29*VLOOKUP($B29,$AR$36:$AZ$47,MATCH(AL$2,$AS$2:$BA$2,0)+1,FALSE) -> 0.05513010479 | AM29: =P29*VLOOKUP($B29,$AR$36:$AZ$47,MATCH(AM$2,$AS$2:$BA$2,0)+1,FALSE) -> 8.576988365e-06 | AN29: =Q29*VLOOKUP($B29,$AR$36:$AZ$47,MATCH(AN$2,$AS$2:$BA$2,0)+1,FALSE) -> 0.001665079838 | AO29: =R29*VLOOKUP($B29,$AR$36:$BA$47,MATCH(AO$2,$AS$2:$BA$2,0)+1,FALSE) -> 0 | AP29: 0.7627068661 | AR29: 7 | AS29: 226531000 | AT29: 249517000 | AU29: 1096000 | AV29: 61543000 | AW29: 63887000 | AX29: 52777000 | AY29: 0 | AZ29: 1143000
A30: 2006 | B30: 1 | C30: 2 | D30: 4 | F30: 2013 | G30: 1 | H30: 2 | I30: 4 | J30: 0.2311946032 | K30: 0.3809097032 | L30: 0.008418087479 | M30: 0.1084237695 | N30: 0.0831818 | O30: 0.062356 | P30: 1.713756668e-05 | Q30: 0.002178785549 | R30: 0 | S30: 0.8766798865 | V30: 0.2188985162 | W30: 0.09500385557 | X30: 0.3371794631 | Y30: 0.06556919723 | Z30: 0.0574820512 | AA30: 0.004707927806 | AB30: 8.576988365e-06 | AC30: 0.0015925556 | AD30: 0 | AE30: 0.7804421437 | AG30: =J30*VLOOKUP($B30,$AR$36:$AZ$47,MATCH(AG$2,$AS$2:$BA$2,0)+1,FALSE) -> 0.2218400717 | AH30: =K30*VLOOKUP($B30,$AR$36:$AZ$47,MATCH(AH$2,$AS$2:$BA$2,0)+1,FALSE) -> 0.3221482068 | AI30: =L30*VLOOKUP($B30,$AR$36:$AZ$47,MATCH(AI$2,$AS$2:$BA$2,0)+1,FALSE) -> 0.00622283391 | AJ30: =M30*VLOOKUP($B30,$AR$36:$AZ$47,MATCH(AJ$2,$AS$2:$BA$2,0)+1,FALSE) -> 0.09324402233 | AK30: =N30*VLOOKUP($B30,$AR$36:$AZ$47,MATCH(AK$2,$AS$2:$BA$2,0)+1,FALSE) -> 0.06506856793 | AL30: =O30*VLOOKUP($B30,$AR$36:$AZ$47,MATCH(AL$2,$AS$2:$BA$2,0)+1,FALSE) -> 0.05526126566 | AM30: =P30*VLOOKUP($B30,$AR$36:$AZ$47,MATCH(AM$2,$AS$2:$BA$2,0)+1,FALSE) -> 8.576988365e-06 | AN30: =Q30*VLOOKUP($B30,$AR$36:$AZ$47,MATCH(AN$2,$AS$2:$BA$2,0)+1,FALSE) -> 0.001665079838 | AO30: =R30*VLOOKUP($B30,$AR$36:$BA$47,MATCH(AO$2,$AS$2:$BA$2,0)+1,FALSE) -> 0 | AP30: 0.7654586252 | AR30: 8 | AS30: 207670000 | AT30: 239519000 | AU30: 1347000 | AV30: 58777000 | AW30: 61540000 | AX30: 51545000 | AY30: 0 | AZ30: 1131000
A31: 2006 | B31: 1 | C31: 2 | D31: 5 | F31: 2013 | G31: 1 | H31: 2 | I31: 5 | J31: 0.2402127708 | K31: 0.3862867461 | L31: 0.008418087479 | M31: 0.1078762707 | N31: 0.0850912 | O31: 0.062594 | P31: 1.713756668e-05 | Q31: 0.002178785549 | R31: 0 | S31: 0.8926749982 | V31: 0.2274370524 | W31: 0.09452412221 | X31: 0.341939196 | Y31: 0.06707430803 | Z31: 0.05770144835 | AA31: 0.004707927806 | AB31: 8.576988365e-06 | AC31: 0.0015925556 | AD31: 0 | AE31: 0.7949851874 | AG31: =J31*VLOOKUP($B31,$AR$36:$AZ$47,MATCH(AG$2,$AS$2:$BA$2,0)+1,FALSE) -> 0.2304933487 | AH31: =K31*VLOOKUP($B31,$AR$36:$AZ$47,MATCH(AH$2,$AS$2:$BA$2,0)+1,FALSE) -> 0.3266957537 | AI31: =L31*VLOOKUP($B31,$AR$36:$AZ$47,MATCH(AI$2,$AS$2:$BA$2,0)+1,FALSE) -> 0.00622283391 | AJ31: =M31*VLOOKUP($B31,$AR$36:$AZ$47,MATCH(AJ$2,$AS$2:$BA$2,0)+1,FALSE) -> 0.09277317546 | AK31: =N31*VLOOKUP($B31,$AR$36:$AZ$47,MATCH(AK$2,$AS$2:$BA$2,0)+1,FALSE) -> 0.06656218701 | AL31: =O31*VLOOKUP($B31,$AR$36:$AZ$47,MATCH(AL$2,$AS$2:$BA$2,0)+1,FALSE) -> 0.05547218652 | AM31: =P31*VLOOKUP($B31,$AR$36:$AZ$47,MATCH(AM$2,$AS$2:$BA$2,0)+1,FALSE) -> 8.576988365e-06 | AN31: =Q31*VLOOKUP($B31,$AR$36:$AZ$47,MATCH(AN$2,$AS$2:$BA$2,0)+1,FALSE) -> 0.001665079838 | AO31: =R31*VLOOKUP($B31,$AR$36:$BA$47,MATCH(AO$2,$AS$2:$BA$2,0)+1,FALSE) -> 0 | AP31: 0.7798931421 | AR31: 9 | AS31: 164645000 | AT31: 214271000 | AU31: 1684000 | AV31: 52126000 | AW31: 55055000 | AX31: 47265000 | AY31: 0 | AZ31: 1116000
A32: 2006 | B32: 1 | C32: 2 | D32: 6 | F32: 2013 | G32: 1 | H32: 2 | I32: 6 | J32: 0.2620286812 | K32: 0.4062004898 | L32: 0.008418087479 | M32: 0.1075749071 | N32: 0.0885942 | O32: 0.065666 | P32: 1.713756668e-05 | Q32: 0.002178785549 | R32: 0 | S32: 0.9406782887 | V32: 0.2480926835 | W32: 0.0942600592 | X32: 0.3595667475 | Y32: 0.06983559593 | Z32: 0.06053333078 | AA32: 0.004707927806 | AB32: 8.576988365e-06 | AC32: 0.0015925556 | AD32: 0 | AE32: 0.8385974773 | AG32: =J32*VLOOKUP($B32,$AR$36:$AZ$47,MATCH(AG$2,$AS$2:$BA$2,0)+1,FALSE) -> 0.2514265499 | AH32: =K32*VLOOKUP($B32,$AR$36:$AZ$47,MATCH(AH$2,$AS$2:$BA$2,0)+1,FALSE) -> 0.3435374796 | AI32: =L32*VLOOKUP($B32,$AR$36:$AZ$47,MATCH(AI$2,$AS$2:$BA$2,0)+1,FALSE) -> 0.00622283391 | AJ32: =M32*VLOOKUP($B32,$AR$36:$AZ$47,MATCH(AJ$2,$AS$2:$BA$2,0)+1,FALSE) -> 0.0925140039 | AK32: =N32*VLOOKUP($B32,$AR$36:$AZ$47,MATCH(AK$2,$AS$2:$BA$2,0)+1,FALSE) -> 0.06930239212 | AL32: =O32*VLOOKUP($B32,$AR$36:$AZ$47,MATCH(AL$2,$AS$2:$BA$2,0)+1,FALSE) -> 0.05819466083 | AM32: =P32*VLOOKUP($B32,$AR$36:$AZ$47,MATCH(AM$2,$AS$2:$BA$2,0)+1,FALSE) -> 8.576988365e-06 | AN32: =Q32*VLOOKUP($B32,$AR$36:$AZ$47,MATCH(AN$2,$AS$2:$BA$2,0)+1,FALSE) -> 0.001665079838 | AO32: =R32*VLOOKUP($B32,$AR$36:$BA$47,MATCH(AO$2,$AS$2:$BA$2,0)+1,FALSE) -> 0 | AP32: 0.822871577 | AR32: 10 | AS32: 165832000 | AT32: 220342000 | AU32: 2178000 | AV32: 53865000 | AW32: 54985000 | AX32: 47632000 | AY32: 0 | AZ32: 1125000
A33: 2006 | B33: 1 | C33: 2 | D33: 7 | F33: 2013 | G33: 1 | H33: 2 | I33: 7 | J33: 0.3019024692 | K33: 0.453381709 | L33: 0.008418087479 | M33: 0.1166164521 | N33: 0.1003631 | O33: 0.070529 | P33: 1.713756668e-05 | Q33: 0.002178785549 | R33: 0 | S33: 1.053406741 | V33: 0.2858457837 | W33: 0.1021825068 | X33: 0.401331339 | Y33: 0.07911259313 | Z33: 0.06501622281 | AA33: 0.004707927806 | AB33: 8.576988365e-06 | AC33: 0.0015925556 | AD33: 0 | AE33: 0.9397975059 | AG33: =J33*VLOOKUP($B33,$AR$36:$AZ$47,MATCH(AG$2,$AS$2:$BA$2,0)+1,FALSE) -> 0.2896869757 | AH33: =K33*VLOOKUP($B33,$AR$36:$AZ$47,MATCH(AH$2,$AS$2:$BA$2,0)+1,FALSE) -> 0.3834402309 | AI33: =L33*VLOOKUP($B33,$AR$36:$AZ$47,MATCH(AI$2,$AS$2:$BA$2,0)+1,FALSE) -> 0.00622283391 | AJ33: =M33*VLOOKUP($B33,$AR$36:$AZ$47,MATCH(AJ$2,$AS$2:$BA$2,0)+1,FALSE) -> 0.1002896976 | AK33: =N33*VLOOKUP($B33,$AR$36:$AZ$47,MATCH(AK$2,$AS$2:$BA$2,0)+1,FALSE) -> 0.07850855824 | AL33: =O33*VLOOKUP($B33,$AR$36:$AZ$47,MATCH(AL$2,$AS$2:$BA$2,0)+1,FALSE) -> 0.06250435893 | AM33: =P33*VLOOKUP($B33,$AR$36:$AZ$47,MATCH(AM$2,$AS$2:$BA$2,0)+1,FALSE) -> 8.576988365e-06 | AN33: =Q33*VLOOKUP($B33,$AR$36:$AZ$47,MATCH(AN$2,$AS$2:$BA$2,0)+1,FALSE) -> 0.001665079838 | AO33: =R33*VLOOKUP($B33,$AR$36:$BA$47,MATCH(AO$2,$AS$2:$BA$2,0)+1,FALSE) -> 0 | AP33: 0.9223263122 | AR33: 11 | AS33: 172475000 | AT33: 230159000 | AU33: 2387000 | AV33: 57227000 | AW33: 54573000 | AX33: 45925000 | AY33: 0 | AZ33: 1106000
A34: 2006 | B34: 1 | C34: 2 | D34: 8 | F34: 2013 | G34: 1 | H34: 2 | I34: 8 | J34: 0.3388310987 | K34: 0.5073727536 | L34: 0.005331455403 | M34: 0.1303630461 | N34: 0.1087932 | O34: 0.07523 | P34: 1.085379223e-05 | Q34: 0.002056339251 | R34: 0 | S34: 1.167988747 | V34: 0.3208103637 | W34: 0.1142276464 | X34: 0.4491239557 | Y34: 0.08575773533 | Z34: 0.06934977728 | AA34: 0.00298168761 | AB34: 5.432092631e-06 | AC34: 0.001503055035 | AD34: 0 | AE34: 1.043759653 | AG34: =J34*VLOOKUP($B34,$AR$36:$AZ$47,MATCH(AG$2,$AS$2:$BA$2,0)+1,FALSE) -> 0.3251214093 | AH34: =K34*VLOOKUP($B34,$AR$36:$AZ$47,MATCH(AH$2,$AS$2:$BA$2,0)+1,FALSE) -> 0.4291022817 | AI34: =L34*VLOOKUP($B34,$AR$36:$AZ$47,MATCH(AI$2,$AS$2:$BA$2,0)+1,FALSE) -> 0.003941128143 | AJ34: =M34*VLOOKUP($B34,$AR$36:$AZ$47,MATCH(AJ$2,$AS$2:$BA$2,0)+1,FALSE) -> 0.1121117153 | AK34: =N34*VLOOKUP($B34,$AR$36:$AZ$47,MATCH(AK$2,$AS$2:$BA$2,0)+1,FALSE) -> 0.08510296392 | AL34: =O34*VLOOKUP($B34,$AR$36:$AZ$47,MATCH(AL$2,$AS$2:$BA$2,0)+1,FALSE) -> 0.06667048906 | AM34: =P34*VLOOKUP($B34,$AR$36:$AZ$47,MATCH(AM$2,$AS$2:$BA$2,0)+1,FALSE) -> 5.432092631e-06 | AN34: =Q34*VLOOKUP($B34,$AR$36:$AZ$47,MATCH(AN$2,$AS$2:$BA$2,0)+1,FALSE) -> 0.001571503459 | AO34: =R34*VLOOKUP($B34,$AR$36:$BA$47,MATCH(AO$2,$AS$2:$BA$2,0)+1,FALSE) -> 0 | AP34: 1.023626923 | AR34: 12 | AS34: 211270000 | AT34: 256154000 | AU34: 2625000 | AV34: 64694000 | AW34: 57730000 | AX34: 47575000 | AY34: 0 | AZ34: 1132000
A35: 2006 | B35: 1 | C35: 2 | D35: 9 | F35: 2013 | G35: 1 | H35: 2 | I35: 9 | J35: 0.3046629755 | K35: 0.5382390317 | L35: 0 | M35: 0.1385447567 | N35: 0.1122572 | O35: 0.076987 | P35: 0 | Q35: 0.0018448411 | R35: 0 | S35: 1.172535805 | V35: 0.2884594725 | W35: 0.1213966837 | X35: 0.4764466387 | Y35: 0.08848828094 | Z35: 0.07096944442 | AA35: 0 | AB35: 0 | AC35: 0.00134846315 | AD35: 0 | AE35: 1.047108983 | AG35: =J35*VLOOKUP($B35,$AR$36:$AZ$47,MATCH(AG$2,$AS$2:$BA$2,0)+1,FALSE) -> 0.2923357872 | AH35: =K35*VLOOKUP($B35,$AR$36:$AZ$47,MATCH(AH$2,$AS$2:$BA$2,0)+1,FALSE) -> 0.455206936 | AI35: =L35*VLOOKUP($B35,$AR$36:$AZ$47,MATCH(AI$2,$AS$2:$BA$2,0)+1,FALSE) -> 0 | AJ35: =M35*VLOOKUP($B35,$AR$36:$AZ$47,MATCH(AJ$2,$AS$2:$BA$2,0)+1,FALSE) -> 0.1191479548 | AK35: =N35*VLOOKUP($B35,$AR$36:$AZ$47,MATCH(AK$2,$AS$2:$BA$2,0)+1,FALSE) -> 0.08781266147 | AL35: =O35*VLOOKUP($B35,$AR$36:$AZ$47,MATCH(AL$2,$AS$2:$BA$2,0)+1,FALSE) -> 0.0682275813 | AM35: =P35*VLOOKUP($B35,$AR$36:$AZ$47,MATCH(AM$2,$AS$2:$BA$2,0)+1,FALSE) -> 0 | AN35: =Q35*VLOOKUP($B35,$AR$36:$AZ$47,MATCH(AN$2,$AS$2:$BA$2,0)+1,FALSE) -> 0.001409871532 | AO35: =R35*VLOOKUP($B35,$AR$36:$BA$47,MATCH(AO$2,$AS$2:$BA$2,0)+1,FALSE) -> 0 | AP35: 1.024140792
A36: 2006 | B36: 1 | C36: 2 | D36: 10 | F36: 2013 | G36: 1 | H36: 2 | I36: 10 | J36: 0.2830700149 | K36: 0.551371747 | L36: 0 | M36: 0.1394332963 | N36: 0.1152389 | O36: 0.079068 | P36: 0 | Q36: 0.0018448411 | R36: 0 | S36: 1.170026799 | V36: 0.2680149337 | W36: 0.1221752463 | X36: 0.488071656 | Y36: 0.09083864695 | Z36: 0.07288778665 | AA36: 0 | AB36: 0 | AC36: 0.00134846315 | AD36: 0 | AE36: 1.043336733 | AG36: =J36*VLOOKUP($B36,$AR$36:$AZ$47,MATCH(AG$2,$AS$2:$BA$2,0)+1,FALSE) -> 0.2716165149 | AH36: =K36*VLOOKUP($B36,$AR$36:$AZ$47,MATCH(AH$2,$AS$2:$BA$2,0)+1,FALSE) -> 0.4663137171 | AI36: =L36*VLOOKUP($B36,$AR$36:$AZ$47,MATCH(AI$2,$AS$2:$BA$2,0)+1,FALSE) -> 0 | AJ36: =M36*VLOOKUP($B36,$AR$36:$AZ$47,MATCH(AJ$2,$AS$2:$BA$2,0)+1,FALSE) -> 0.1199120954 | AK36: =N36*VLOOKUP($B36,$AR$36:$AZ$47,MATCH(AK$2,$AS$2:$BA$2,0)+1,FALSE) -> 0.09014508213 | AL36: =O36*VLOOKUP($B36,$AR$36:$AZ$47,MATCH(AL$2,$AS$2:$BA$2,0)+1,FALSE) -> 0.0700718095 | AM36: =P36*VLOOKUP($B36,$AR$36:$AZ$47,MATCH(AM$2,$AS$2:$BA$2,0)+1,FALSE) -> 0 | AN36: =Q36*VLOOKUP($B36,$AR$36:$AZ$47,MATCH(AN$2,$AS$2:$BA$2,0)+1,FALSE) -> 0.001409871532 | AO36: =R36*VLOOKUP($B36,$AR$36:$BA$47,MATCH(AO$2,$AS$2:$BA$2,0)+1,FALSE) -> 0 | AP36: 1.019469091 | AR36: =AR10 -> 1 | AS36: =AS23/AS10 -> 0.959538279 | AT36: =AT23/AT10 -> 0.8457337897 | AU36: =AU23/AU10 -> 0.7392218156 | AV36: 0.8599961313 | AW36: 0.7822452499 | AX36: 0.8862221063 | AY36: =$AY$6 -> 0.5004787743 | AZ36: 0.7642238307 | BA36: 1
A37: 2006 | B37: 1 | C37: 2 | D37: 11 | F37: 2013 | G37: 1 | H37: 2 | I37: 11 | J37: 0.2733185867 | K37: 0.553195663 | L37: 0 | M37: 0.1409407701 | N37: 0.115644 | O37: 0.080142 | P37: 0 | Q37: 0.0018448411 | R37: 0 | S37: 1.165085861 | V37: 0.2587821353 | W37: 0.1234961358 | X37: 0.4896861778 | Y37: 0.0911579726 | Z37: 0.0738778393 | AA37: 0 | AB37: 0 | AC37: 0.00134846315 | AD37: 0 | AE37: 1.038348724 | AG37: =J37*VLOOKUP($B37,$AR$36:$AZ$47,MATCH(AG$2,$AS$2:$BA$2,0)+1,FALSE) -> 0.2622596463 | AH37: =K37*VLOOKUP($B37,$AR$36:$AZ$47,MATCH(AH$2,$AS$2:$BA$2,0)+1,FALSE) -> 0.4678562645 | AI37: =L37*VLOOKUP($B37,$AR$36:$AZ$47,MATCH(AI$2,$AS$2:$BA$2,0)+1,FALSE) -> 0 | AJ37: =M37*VLOOKUP($B37,$AR$36:$AZ$47,MATCH(AJ$2,$AS$2:$BA$2,0)+1,FALSE) -> 0.121208517 | AK37: =N37*VLOOKUP($B37,$AR$36:$AZ$47,MATCH(AK$2,$AS$2:$BA$2,0)+1,FALSE) -> 0.09046196968 | AL37: =O37*VLOOKUP($B37,$AR$36:$AZ$47,MATCH(AL$2,$AS$2:$BA$2,0)+1,FALSE) -> 0.07102361204 | AM37: =P37*VLOOKUP($B37,$AR$36:$AZ$47,MATCH(AM$2,$AS$2:$BA$2,0)+1,FALSE) -> 0 | AN37: =Q37*VLOOKUP($B37,$AR$36:$AZ$47,MATCH(AN$2,$AS$2:$BA$2,0)+1,FALSE) -> 0.001409871532 | AO37: =R37*VLOOKUP($B37,$AR$36:$BA$47,MATCH(AO$2,$AS$2:$BA$2,0)+1,FALSE) -> 0 | AP37: 1.014219881 | AR37: =AR11 -> 2 | AS37: =AS24/AS11 -> 0.9761972627 | AT37: 0.8996819656 | AU37: 0.6809633168 | AV37: 0.922400028 | AW37: 0.7901633862 | AX37: 0.8789470566 | AY37: 0.5004787743 | AZ37: 0.7712746446 | BA37: 1
A38: 2006 | B38: 1 | C38: 2 | D38: 12 | F38: 2013 | G38: 1 | H38: 2 | I38: 12 | J38: 0.2754722933 | K38: 0.5459944342 | L38: 0 | M38: 0.1327212378 | N38: 0.1159605 | O38: 0.080861 | P38: 0 | Q38: 0.0018448411 | R38: 0 | S38: 1.152854306 | V38: 0.2608212969 | W38: 0.116293958 | X38: 0.4833116842 | Y38: 0.09140745807 | Z38: 0.07454063991 | AA38: 0 | AB38: 0 | AC38: 0.00134846315 | AD38: 0 | AE38: 1.0277235 | AG38: =J38*VLOOKUP($B38,$AR$36:$AZ$47,MATCH(AG$2,$AS$2:$BA$2,0)+1,FALSE) -> 0.2643262102 | AH38: =K38*VLOOKUP($B38,$AR$36:$AZ$47,MATCH(AH$2,$AS$2:$BA$2,0)+1,FALSE) -> 0.461765942 | AI38: =L38*VLOOKUP($B38,$AR$36:$AZ$47,MATCH(AI$2,$AS$2:$BA$2,0)+1,FALSE) -> 0 | AJ38: =M38*VLOOKUP($B38,$AR$36:$AZ$47,MATCH(AJ$2,$AS$2:$BA$2,0)+1,FALSE) -> 0.114139751 | AK38: =N38*VLOOKUP($B38,$AR$36:$AZ$47,MATCH(AK$2,$AS$2:$BA$2,0)+1,FALSE) -> 0.0907095503 | AL38: =O38*VLOOKUP($B38,$AR$36:$AZ$47,MATCH(AL$2,$AS$2:$BA$2,0)+1,FALSE) -> 0.07166080574 | AM38: =P38*VLOOKUP($B38,$AR$36:$AZ$47,MATCH(AM$2,$AS$2:$BA$2,0)+1,FALSE) -> 0 | AN38: =Q38*VLOOKUP($B38,$AR$36:$AZ$47,MATCH(AN$2,$AS$2:$BA$2,0)+1,FALSE) -> 0.001409871532 | AO38: =R38*VLOOKUP($B38,$AR$36:$BA$47,MATCH(AO$2,$AS$2:$BA$2,0)+1,FALSE) -> 0 | AP38: 1.004012131 | AR38: 3 | AS38: =AS25/AS12 -> 0.9142306187 | AT38: 0.9000484122 | AU38: 0.5916826312 | AV38: 0.8890265858 | AW38: 0.8023235817 | AX38: 0.9059841791 | AY38: 0.5004787743 | AZ38: 0.6885544742 | BA38: 1
A39: 2006 | B39: 1 | C39: 2 | D39: 13 | F39: 2013 | G39: 1 | H39: 2 | I39: 13 | J39: 0.2762280887 | K39: 0.5406784616 | L39: 0 | M39: 0.1298342962 | N39: 0.1155276 | O39: 0.080138 | P39: 0 | Q39: 0.0018448411 | R39: 0 | S39: 1.144251288 | V39: 0.2615368954 | W39: 0.1137643413 | X39: 0.4786060105 | Y39: 0.0910662187 | Z39: 0.07387415196 | AA39: 0 | AB39: 0 | AC39: 0.00134846315 | AD39: 0 | AE39: 1.020196081 | AG39: =J39*VLOOKUP($B39,$AR$36:$AZ$47,MATCH(AG$2,$AS$2:$BA$2,0)+1,FALSE) -> 0.2650514248 | AH39: =K39*VLOOKUP($B39,$AR$36:$AZ$47,MATCH(AH$2,$AS$2:$BA$2,0)+1,FALSE) -> 0.4572700443 | AI39: =L39*VLOOKUP($B39,$AR$36:$AZ$47,MATCH(AI$2,$AS$2:$BA$2,0)+1,FALSE) -> 0 | AJ39: =M39*VLOOKUP($B39,$AR$36:$AZ$47,MATCH(AJ$2,$AS$2:$BA$2,0)+1,FALSE) -> 0.1116569924 | AK39: =N39*VLOOKUP($B39,$AR$36:$AZ$47,MATCH(AK$2,$AS$2:$BA$2,0)+1,FALSE) -> 0.09037091633 | AL39: =O39*VLOOKUP($B39,$AR$36:$AZ$47,MATCH(AL$2,$AS$2:$BA$2,0)+1,FALSE) -> 0.07102006715 | AM39: =P39*VLOOKUP($B39,$AR$36:$AZ$47,MATCH(AM$2,$AS$2:$BA$2,0)+1,FALSE) -> 0 | AN39: =Q39*VLOOKUP($B39,$AR$36:$AZ$47,MATCH(AN$2,$AS$2:$BA$2,0)+1,FALSE) -> 0.001409871532 | AO39: =R39*VLOOKUP($B39,$AR$36:$BA$47,MATCH(AO$2,$AS$2:$BA$2,0)+1,FALSE) -> 0 | AP39: 0.9967793166 | AR39: 4 | AS39: =AS26/AS13 -> 0.8901540059 | AT39: 0.9072525472 | AU39: 0.5331575896 | AV39: 0.9063466649 | AW39: 0.7815696026 | AX39: 0.9006275294 | AY39: 0.5004787743 | AZ39: 0.7567284953 | BA39: 1
A40: 2006 | B40: 1 | C40: 2 | D40: 14 | F40: 2013 | G40: 1 | H40: 2 | I40: 14 | J40: 0.2723956611 | K40: 0.5366550624 | L40: 0 | M40: 0.1252465637 | N40: 0.1161341 | O40: 0.080128 | P40: 0 | Q40: 0.0018448411 | R40: 0 | S40: 1.132404228 | V40: 0.2579082955 | W40: 0.1097444454 | X40: 0.4750445166 | Y40: 0.09154430066 | Z40: 0.07386493359 | AA40: 0 | AB40: 0 | AC40: 0.00134846315 | AD40: 0 | AE40: 1.009454955 | AG40: =J40*VLOOKUP($B40,$AR$36:$AZ$47,MATCH(AG$2,$AS$2:$BA$2,0)+1,FALSE) -> 0.2613740639 | AH40: =K40*VLOOKUP($B40,$AR$36:$AZ$47,MATCH(AH$2,$AS$2:$BA$2,0)+1,FALSE) -> 0.4538673197 | AI40: =L40*VLOOKUP($B40,$AR$36:$AZ$47,MATCH(AI$2,$AS$2:$BA$2,0)+1,FALSE) -> 0 | AJ40: =M40*VLOOKUP($B40,$AR$36:$AZ$47,MATCH(AJ$2,$AS$2:$BA$2,0)+1,FALSE) -> 0.1077115603 | AK40: =N40*VLOOKUP($B40,$AR$36:$AZ$47,MATCH(AK$2,$AS$2:$BA$2,0)+1,FALSE) -> 0.09084534808 | AL40: =O40*VLOOKUP($B40,$AR$36:$AZ$47,MATCH(AL$2,$AS$2:$BA$2,0)+1,FALSE) -> 0.07101120493 | AM40: =P40*VLOOKUP($B40,$AR$36:$AZ$47,MATCH(AM$2,$AS$2:$BA$2,0)+1,FALSE) -> 0 | AN40: =Q40*VLOOKUP($B40,$AR$36:$AZ$47,MATCH(AN$2,$AS$2:$BA$2,0)+1,FALSE) -> 0.001409871532 | AO40: =R40*VLOOKUP($B40,$AR$36:$BA$47,MATCH(AO$2,$AS$2:$BA$2,0)+1,FALSE) -> 0 | AP40: 0.9862193683 | AR40: 5 | AS40: =AS27/AS14 -> 0.8536468487 | AT40: 0.8902099315 | AU40: 0.3680415812 | AV40: 0.8582570431 | AW40: 0.7648567001 | AX40: 0.8927912601 | AY40: 0.5004787743 | AZ40: 0.7273517087 | BA40: 1
A41: 2006 | B41: 1 | C41: 2 | D41: 15 | F41: 2013 | G41: 1 | H41: 2 | I41: 15 | J41: 0.2819952872 | K41: 0.5259091481 | L41: 0 | M41: 0.1178174343 | N41: 0.1154217 | O41: 0.079494 | P41: 0 | Q41: 0.0018448411 | R41: 0 | S41: 1.122482411 | V41: 0.2669973654 | W41: 0.1032348402 | X41: 0.4655322842 | Y41: 0.09098274157 | Z41: 0.0732804891 | AA41: 0 | AB41: 0 | AC41: 0.00134846315 | AD41: 0 | AE41: 1.001376184 | AG41: =J41*VLOOKUP($B41,$AR$36:$AZ$47,MATCH(AG$2,$AS$2:$BA$2,0)+1,FALSE) -> 0.2705852726 | AH41: =K41*VLOOKUP($B41,$AR$36:$AZ$47,MATCH(AH$2,$AS$2:$BA$2,0)+1,FALSE) -> 0.4447791369 | AI41: =L41*VLOOKUP($B41,$AR$36:$AZ$47,MATCH(AI$2,$AS$2:$BA$2,0)+1,FALSE) -> 0 | AJ41: =M41*VLOOKUP($B41,$AR$36:$AZ$47,MATCH(AJ$2,$AS$2:$BA$2,0)+1,FALSE) -> 0.1013225377 | AK41: =N41*VLOOKUP($B41,$AR$36:$AZ$47,MATCH(AK$2,$AS$2:$BA$2,0)+1,FALSE) -> 0.09028807656 | AL41: =O41*VLOOKUP($B41,$AR$36:$AZ$47,MATCH(AL$2,$AS$2:$BA$2,0)+1,FALSE) -> 0.07044934012 | AM41: =P41*VLOOKUP($B41,$AR$36:$AZ$47,MATCH(AM$2,$AS$2:$BA$2,0)+1,FALSE) -> 0 | AN41: =Q41*VLOOKUP($B41,$AR$36:$AZ$47,MATCH(AN$2,$AS$2:$BA$2,0)+1,FALSE) -> 0.001409871532 | AO41: =R41*VLOOKUP($B41,$AR$36:$BA$47,MATCH(AO$2,$AS$2:$BA$2,0)+1,FALSE) -> 0 | AP41: 0.9788342354 | AR41: 6 | AS41: =AS28/AS15 -> 0.9500872036 | AT41: 0.8693998458 | AU41: 0.3022890602 | AV41: 0.8429315119 | AW41: 0.8138913575 | AX41: 0.9023606582 | AY41: 0.5004787743 | AZ41: 0.7490337114 | BA41: 1 | BB41: Monthly Scaling Factors
A42: 2006 | B42: 1 | C42: 2 | D42: 16 | F42: 2013 | G42: 1 | H42: 2 | I42: 16 | J42: 0.3068130859 | K42: 0.5198895586 | L42: 0 | M42: 0.115966764 | N42: 0.1150083 | O42: 0.078273 | P42: 0 | Q42: 0.0018448411 | R42: 0 | S42: 1.13779555 | V42: 0.2904952292 | W42: 0.1016132325 | X42: 0.4602037721 | Y42: 0.09065687333 | Z42: 0.07215492645 | AA42: 0 | AB42: 0 | AC42: 0.00134846315 | AD42: 0 | AE42: 1.016472497 | AG42: =J42*VLOOKUP($B42,$AR$36:$AZ$47,MATCH(AG$2,$AS$2:$BA$2,0)+1,FALSE) -> 0.2943989004 | AH42: =K42*VLOOKUP($B42,$AR$36:$AZ$47,MATCH(AH$2,$AS$2:$BA$2,0)+1,FALSE) -> 0.4396881666 | AI42: =L42*VLOOKUP($B42,$AR$36:$AZ$47,MATCH(AI$2,$AS$2:$BA$2,0)+1,FALSE) -> 0 | AJ42: =M42*VLOOKUP($B42,$AR$36:$AZ$47,MATCH(AJ$2,$AS$2:$BA$2,0)+1,FALSE) -> 0.09973096838 | AK42: =N42*VLOOKUP($B42,$AR$36:$AZ$47,MATCH(AK$2,$AS$2:$BA$2,0)+1,FALSE) -> 0.08996469638 | AL42: =O42*VLOOKUP($B42,$AR$36:$AZ$47,MATCH(AL$2,$AS$2:$BA$2,0)+1,FALSE) -> 0.06936726293 | AM42: =P42*VLOOKUP($B42,$AR$36:$AZ$47,MATCH(AM$2,$AS$2:$BA$2,0)+1,FALSE) -> 0 | AN42: =Q42*VLOOKUP($B42,$AR$36:$AZ$47,MATCH(AN$2,$AS$2:$BA$2,0)+1,FALSE) -> 0.001409871532 | AO42: =R42*VLOOKUP($B42,$AR$36:$BA$47,MATCH(AO$2,$AS$2:$BA$2,0)+1,FALSE) -> 0 | AP42: 0.9945598662 | AR42: 7 | AS42: =AS29/AS16 -> 1.099243587 | AT42: 0.8943922479 | AU42: 0.3193744016 | AV42: 0.879346616 | AW42: 0.7983771496 | AX42: 0.8978877852 | AY42: 0.5004787743 | AZ42: 0.736144304 | BA42: 1
A43: 2006 | B43: 1 | C43: 2 | D43: 17 | F43: 2013 | G43: 1 | H43: 2 | I43: 17 | J43: 0.3578268124 | K43: 0.5238694436 | L43: 0.002665727702 | M43: 0.1243793411 | N43: 0.1135343 | O43: 0.077043 | P43: 5.426896115e-06 | Q43: 0.001950590175 | R43: 0 | S43: 1.201274642 | V43: 0.3387957903 | W43: 0.1089845614 | X43: 0.4637267474 | Y43: 0.08949497257 | Z43: 0.07102106727 | AA43: 0.001490843805 | AB43: 2.716046316e-06 | AC43: 0.001425759093 | AD43: 0 | AE43: 1.074942458 | AG43: =J43*VLOOKUP($B43,$AR$36:$AZ$47,MATCH(AG$2,$AS$2:$BA$2,0)+1,FALSE) -> 0.3433485238 | AH43: =K43*VLOOKUP($B43,$AR$36:$AZ$47,MATCH(AH$2,$AS$2:$BA$2,0)+1,FALSE) -> 0.4430540898 | AI43: =L43*VLOOKUP($B43,$AR$36:$AZ$47,MATCH(AI$2,$AS$2:$BA$2,0)+1,FALSE) -> 0.001970564071 | AJ43: =M43*VLOOKUP($B43,$AR$36:$AZ$47,MATCH(AJ$2,$AS$2:$BA$2,0)+1,FALSE) -> 0.1069657522 | AK43: =N43*VLOOKUP($B43,$AR$36:$AZ$47,MATCH(AK$2,$AS$2:$BA$2,0)+1,FALSE) -> 0.08881166688 | AL43: =O43*VLOOKUP($B43,$AR$36:$AZ$47,MATCH(AL$2,$AS$2:$BA$2,0)+1,FALSE) -> 0.06827720973 | AM43: =P43*VLOOKUP($B43,$AR$36:$AZ$47,MATCH(AM$2,$AS$2:$BA$2,0)+1,FALSE) -> 2.716046316e-06 | AN43: =Q43*VLOOKUP($B43,$AR$36:$AZ$47,MATCH(AN$2,$AS$2:$BA$2,0)+1,FALSE) -> 0.001490687496 | AO43: =R43*VLOOKUP($B43,$AR$36:$BA$47,MATCH(AO$2,$AS$2:$BA$2,0)+1,FALSE) -> 0 | AP43: 1.05392121 | AR43: 8 | AS43: =AS30/AS17 -> 1.04208713 | AT43: 0.9010785197 | AU43: 0.4054115734 | AV43: 0.8821758034 | AW43: 0.8028950574 | AX43: 0.935352999 | AY43: 0.5004787743 | AZ43: 0.7246037129 | BA43: 1
A44: 2006 | B44: 1 | C44: 2 | D44: 18 | F44: 2013 | G44: 1 | H44: 2 | I44: 18 | J44: 0.4269791443 | K44: 0.5322114866 | L44: 0.008418087479 | M44: 0.1412207416 | N44: 0.111599 | O44: 0.076067 | P44: 1.713756668e-05 | Q44: 0.002178785549 | R44: 0 | S44: 1.298691383 | V44: 0.4042702548 | W44: 0.1237414545 | X44: 0.4711110843 | Y44: 0.08796944575 | Z44: 0.07012135462 | AA44: 0.004707927806 | AB44: 8.576988365e-06 | AC44: 0.0015925556 | AD44: 0 | AE44: 1.163522654 | AG44: =J44*VLOOKUP($B44,$AR$36:$AZ$47,MATCH(AG$2,$AS$2:$BA$2,0)+1,FALSE) -> 0.4097028333 | AH44: =K44*VLOOKUP($B44,$AR$36:$AZ$47,MATCH(AH$2,$AS$2:$BA$2,0)+1,FALSE) -> 0.4501092375 | AI44: =L44*VLOOKUP($B44,$AR$36:$AZ$47,MATCH(AI$2,$AS$2:$BA$2,0)+1,FALSE) -> 0.00622283391 | AJ44: =M44*VLOOKUP($B44,$AR$36:$AZ$47,MATCH(AJ$2,$AS$2:$BA$2,0)+1,FALSE) -> 0.1214492915 | AK44: =N44*VLOOKUP($B44,$AR$36:$AZ$47,MATCH(AK$2,$AS$2:$BA$2,0)+1,FALSE) -> 0.08729778764 | AL44: =O44*VLOOKUP($B44,$AR$36:$AZ$47,MATCH(AL$2,$AS$2:$BA$2,0)+1,FALSE) -> 0.06741225696 | AM44: =P44*VLOOKUP($B44,$AR$36:$AZ$47,MATCH(AM$2,$AS$2:$BA$2,0)+1,FALSE) -> 8.576988365e-06 | AN44: =Q44*VLOOKUP($B44,$AR$36:$AZ$47,MATCH(AN$2,$AS$2:$BA$2,0)+1,FALSE) -> 0.001665079838 | AO44: =R44*VLOOKUP($B44,$AR$36:$BA$47,MATCH(AO$2,$AS$2:$BA$2,0)+1,FALSE) -> 0 | AP44: 1.143867898 | AR44: 9 | AS44: =AS31/AS18 -> 0.9084650414 | AT44: 0.8891853958 | AU44: 0.5563965452 | AV44: 0.8681645645 | AW44: 0.7917101984 | AX44: 0.9999873692 | AY44: 0.5004787743 | AZ44: 0.7157617939 | BA44: 1
A45: 2006 | B45: 1 | C45: 2 | D45: 19 | F45: 2013 | G45: 1 | H45: 2 | I45: 19 | J45: 0.4710125695 | K45: 0.5023815889 | L45: 0.008418087479 | M45: 0.1256118043 | N45: 0.1032021 | O45: 0.071157 | P45: 1.713756668e-05 | Q45: 0.002178785549 | R45: 0 | S45: 1.283979073 | V45: 0.4459617619 | W45: 0.1100644791 | X45: 0.4447058003 | Y45: 0.0813504739 | Z45: 0.06559513627 | AA45: 0.004707927806 | AB45: 8.576988365e-06 | AC45: 0.0015925556 | AD45: 0 | AE45: 1.153986712 | AG45: =J45*VLOOKUP($B45,$AR$36:$AZ$47,MATCH(AG$2,$AS$2:$BA$2,0)+1,FALSE) -> 0.4519545903 | AH45: =K45*VLOOKUP($B45,$AR$36:$AZ$47,MATCH(AH$2,$AS$2:$BA$2,0)+1,FALSE) -> 0.424881085 | AI45: =L45*VLOOKUP($B45,$AR$36:$AZ$47,MATCH(AI$2,$AS$2:$BA$2,0)+1,FALSE) -> 0.00622283391 | AJ45: =M45*VLOOKUP($B45,$AR$36:$AZ$47,MATCH(AJ$2,$AS$2:$BA$2,0)+1,FALSE) -> 0.1080256657 | AK45: =N45*VLOOKUP($B45,$AR$36:$AZ$47,MATCH(AK$2,$AS$2:$BA$2,0)+1,FALSE) -> 0.08072935251 | AL45: =O45*VLOOKUP($B45,$AR$36:$AZ$47,MATCH(AL$2,$AS$2:$BA$2,0)+1,FALSE) -> 0.06306090642 | AM45: =P45*VLOOKUP($B45,$AR$36:$AZ$47,MATCH(AM$2,$AS$2:$BA$2,0)+1,FALSE) -> 8.576988365e-06 | AN45: =Q45*VLOOKUP($B45,$AR$36:$AZ$47,MATCH(AN$2,$AS$2:$BA$2,0)+1,FALSE) -> 0.001665079838 | AO45: =R45*VLOOKUP($B45,$AR$36:$BA$47,MATCH(AO$2,$AS$2:$BA$2,0)+1,FALSE) -> 0 | AP45: 1.136548091 | AR45: 10 | AS45: =AS32/AS19 -> 0.8982740275 | AT45: 0.8834059575 | AU45: 0.7091372832 | AV45: 0.8609541114 | AW45: 0.7723078597 | AX45: 0.9832611311 | AY45: 0.5004787743 | AZ45: 0.7162357143 | BA45: 1
A46: 2006 | B46: 1 | C46: 2 | D46: 20 | F46: 2013 | G46: 1 | H46: 2 | I46: 20 | J46: 0.4713815473 | K46: 0.4858921078 | L46: 0.008418087479 | M46: 0.1197004001 | N46: 0.0986615 | O46: 0.069863 | P46: 1.713756668e-05 | Q46: 0.002178785549 | R46: 0 | S46: 1.256112566 | V46: 0.4463111155 | W46: 0.1048847459 | X46: 0.4301093898 | Y46: 0.07777128354 | Z46: 0.06440227954 | AA46: 0.004707927806 | AB46: 8.576988365e-06 | AC46: 0.0015925556 | AD46: 0 | AE46: 1.129787875 | AG46: =J46*VLOOKUP($B46,$AR$36:$AZ$47,MATCH(AG$2,$AS$2:$BA$2,0)+1,FALSE) -> 0.4523086386 | AH46: =K46*VLOOKUP($B46,$AR$36:$AZ$47,MATCH(AH$2,$AS$2:$BA$2,0)+1,FALSE) -> 0.4109353737 | AI46: =L46*VLOOKUP($B46,$AR$36:$AZ$47,MATCH(AI$2,$AS$2:$BA$2,0)+1,FALSE) -> 0.00622283391 | AJ46: =M46*VLOOKUP($B46,$AR$36:$AZ$47,MATCH(AJ$2,$AS$2:$BA$2,0)+1,FALSE) -> 0.102941881 | AK46: =N46*VLOOKUP($B46,$AR$36:$AZ$47,MATCH(AK$2,$AS$2:$BA$2,0)+1,FALSE) -> 0.07717748972 | AL46: =O46*VLOOKUP($B46,$AR$36:$AZ$47,MATCH(AL$2,$AS$2:$BA$2,0)+1,FALSE) -> 0.06191413501 | AM46: =P46*VLOOKUP($B46,$AR$36:$AZ$47,MATCH(AM$2,$AS$2:$BA$2,0)+1,FALSE) -> 8.576988365e-06 | AN46: =Q46*VLOOKUP($B46,$AR$36:$AZ$47,MATCH(AN$2,$AS$2:$BA$2,0)+1,FALSE) -> 0.001665079838 | AO46: =R46*VLOOKUP($B46,$AR$36:$BA$47,MATCH(AO$2,$AS$2:$BA$2,0)+1,FALSE) -> 0 | AP46: 1.113174009 | AR46: 11 | AS46: =AS33/AS20 -> 0.8868471382 | AT46: 0.8867974959 | AU46: 0.737586715 | AV46: 0.8779012006 | AW46: 0.7777266631 | AX46: 0.9315718724 | AY46: 0.5004787743 | AZ46: 0.7050781953 | BA46: 1
A47: 2006 | B47: 1 | C47: 2 | D47: 21 | F47: 2013 | G47: 1 | H47: 2 | I47: 21 | J47: 0.4411442145 | K47: 0.481144809 | L47: 0.008418087479 | M47: 0.1289303352 | N47: 0.0969718 | O47: 0.06898 | P47: 1.713756668e-05 | Q47: 0.002178785549 | R47: 0 | S47: 1.227785169 | V47: 0.4176819556 | W47: 0.1129722661 | X47: 0.4259071035 | Y47: 0.07643935429 | Z47: 0.06358829771 | AA47: 0.004707927806 | AB47: 8.576988365e-06 | AC47: 0.0015925556 | AD47: 0 | AE47: 1.102898038 | AG47: =J47*VLOOKUP($B47,$AR$36:$AZ$47,MATCH(AG$2,$AS$2:$BA$2,0)+1,FALSE) -> 0.4232947604 | AH47: =K47*VLOOKUP($B47,$AR$36:$AZ$47,MATCH(AH$2,$AS$2:$BA$2,0)+1,FALSE) -> 0.4069204227 | AI47: =L47*VLOOKUP($B47,$AR$36:$AZ$47,MATCH(AI$2,$AS$2:$BA$2,0)+1,FALSE) -> 0.00622283391 | AJ47: =M47*VLOOKUP($B47,$AR$36:$AZ$47,MATCH(AJ$2,$AS$2:$BA$2,0)+1,FALSE) -> 0.1108795894 | AK47: =N47*VLOOKUP($B47,$AR$36:$AZ$47,MATCH(AK$2,$AS$2:$BA$2,0)+1,FALSE) -> 0.07585572993 | AL47: =O47*VLOOKUP($B47,$AR$36:$AZ$47,MATCH(AL$2,$AS$2:$BA$2,0)+1,FALSE) -> 0.06113160089 | AM47: =P47*VLOOKUP($B47,$AR$36:$AZ$47,MATCH(AM$2,$AS$2:$BA$2,0)+1,FALSE) -> 8.576988365e-06 | AN47: =Q47*VLOOKUP($B47,$AR$36:$AZ$47,MATCH(AN$2,$AS$2:$BA$2,0)+1,FALSE) -> 0.001665079838 | AO47: =R47*VLOOKUP($B47,$AR$36:$BA$47,MATCH(AO$2,$AS$2:$BA$2,0)+1,FALSE) -> 0 | AP47: 1.085978594 | AR47: 12 | AS47: =AS34/AS21 -> 0.9531508415 | AT47: 0.8657010322 | AU47: 0.7162497387 | AV47: 0.8696155169 | AW47: 0.7797888446 | AX47: 0.9638132541 | AY47: 0.5004787743 | AZ47: 0.7181610831 | BA47: 1
A48: 2006 | B48: 1 | C48: 2 | D48: 22 | F48: 2013 | G48: 1 | H48: 2 | I48: 22 | J48: 0.4000817584 | K48: 0.4619667209 | L48: 0.008418087479 | M48: 0.134319575 | N48: 0.0949887 | O48: 0.068045 | P48: 1.713756668e-05 | Q48: 0.002178785549 | R48: 0 | S48: 1.170015765 | V48: 0.3788034065 | W48: 0.1176944646 | X48: 0.4089307508 | Y48: 0.07487614845 | Z48: 0.06272638037 | AA48: 0.004707927806 | AB48: 8.576988365e-06 | AC48: 0.0015925556 | AD48: 0 | AE48: 1.049340211 | AG48: =J48*VLOOKUP($B48,$AR$36:$AZ$47,MATCH(AG$2,$AS$2:$BA$2,0)+1,FALSE) -> 0.3838937619 | AH48: =K48*VLOOKUP($B48,$AR$36:$AZ$47,MATCH(AH$2,$AS$2:$BA$2,0)+1,FALSE) -> 0.3907008655 | AI48: =L48*VLOOKUP($B48,$AR$36:$AZ$47,MATCH(AI$2,$AS$2:$BA$2,0)+1,FALSE) -> 0.00622283391 | AJ48: =M48*VLOOKUP($B48,$AR$36:$AZ$47,MATCH(AJ$2,$AS$2:$BA$2,0)+1,FALSE) -> 0.1155143149 | AK48: =N48*VLOOKUP($B48,$AR$36:$AZ$47,MATCH(AK$2,$AS$2:$BA$2,0)+1,FALSE) -> 0.07430445937 | AL48: =O48*VLOOKUP($B48,$AR$36:$AZ$47,MATCH(AL$2,$AS$2:$BA$2,0)+1,FALSE) -> 0.06030298322 | AM48: =P48*VLOOKUP($B48,$AR$36:$AZ$47,MATCH(AM$2,$AS$2:$BA$2,0)+1,FALSE) -> 8.576988365e-06 | AN48: =Q48*VLOOKUP($B48,$AR$36:$AZ$47,MATCH(AN$2,$AS$2:$BA$2,0)+1,FALSE) -> 0.001665079838 | AO48: =R48*VLOOKUP($B48,$AR$36:$BA$47,MATCH(AO$2,$AS$2:$BA$2,0)+1,FALSE) -> 0 | AP48: 1.032612876
A49: 2006 | B49: 1 | C49: 2 | D49: 23 | F49: 2013 | G49: 1 | H49: 2 | I49: 23 | J49: 0.351399832 | K49: 0.4363158784 | L49: 0.008418087479 | M49: 0.1300107888 | N49: 0.0928527 | O49: 0.066752 | P49: 1.713756668e-05 | Q49: 0.002178785549 | R49: 0 | S49: 1.08794521 | V49: 0.3327106288 | W49: 0.1139189889 | X49: 0.3862247467 | Y49: 0.07319241709 | Z49: 0.06153444547 | AA49: 0.004707927806 | AB49: 8.576988365e-06 | AC49: 0.0015925556 | AD49: 0 | AE49: 0.9738902874 | AG49: =J49*VLOOKUP($B49,$AR$36:$AZ$47,MATCH(AG$2,$AS$2:$BA$2,0)+1,FALSE) -> 0.33718159 | AH49: =K49*VLOOKUP($B49,$AR$36:$AZ$47,MATCH(AH$2,$AS$2:$BA$2,0)+1,FALSE) -> 0.3690070813 | AI49: =L49*VLOOKUP($B49,$AR$36:$AZ$47,MATCH(AI$2,$AS$2:$BA$2,0)+1,FALSE) -> 0.00622283391 | AJ49: =M49*VLOOKUP($B49,$AR$36:$AZ$47,MATCH(AJ$2,$AS$2:$BA$2,0)+1,FALSE) -> 0.1118087754 | AK49: =N49*VLOOKUP($B49,$AR$36:$AZ$47,MATCH(AK$2,$AS$2:$BA$2,0)+1,FALSE) -> 0.07263358352 | AL49: =O49*VLOOKUP($B49,$AR$36:$AZ$47,MATCH(AL$2,$AS$2:$BA$2,0)+1,FALSE) -> 0.05915709804 | AM49: =P49*VLOOKUP($B49,$AR$36:$AZ$47,MATCH(AM$2,$AS$2:$BA$2,0)+1,FALSE) -> 8.576988365e-06 | AN49: =Q49*VLOOKUP($B49,$AR$36:$AZ$47,MATCH(AN$2,$AS$2:$BA$2,0)+1,FALSE) -> 0.001665079838 | AO49: =R49*VLOOKUP($B49,$AR$36:$BA$47,MATCH(AO$2,$AS$2:$BA$2,0)+1,FALSE) -> 0 | AP49: 0.957684619
A50: 2006 | B50: 1 | C50: 2 | D50: 24 | F50: 2013 | G50: 1 | H50: 2 | I50: 24 | J50: 0.2530951868 | K50: 0.4300116641 | L50: 0.008418087479 | M50: 0.1444620718 | N50: 0.0917343 | O50: 0.065802 | P50: 1.713756668e-05 | Q50: 0.002178785549 | R50: 0 | S50: 0.9957192334 | V50: 0.2396343171 | W50: 0.1265815962 | X50: 0.3806442861 | Y50: 0.07231082292 | Z50: 0.06065870058 | AA50: 0.004707927806 | AB50: 8.576988365e-06 | AC50: 0.0015925556 | AD50: 0 | AE50: 0.8861387832 | AG50: =J50*VLOOKUP($B50,$AR$36:$AZ$47,MATCH(AG$2,$AS$2:$BA$2,0)+1,FALSE) -> 0.24285452 | AH50: =K50*VLOOKUP($B50,$AR$36:$AZ$47,MATCH(AH$2,$AS$2:$BA$2,0)+1,FALSE) -> 0.3636753943 | AI50: =L50*VLOOKUP($B50,$AR$36:$AZ$47,MATCH(AI$2,$AS$2:$BA$2,0)+1,FALSE) -> 0.00622283391 | AJ50: =M50*VLOOKUP($B50,$AR$36:$AZ$47,MATCH(AJ$2,$AS$2:$BA$2,0)+1,FALSE) -> 0.1242368229 | AK50: =N50*VLOOKUP($B50,$AR$36:$AZ$47,MATCH(AK$2,$AS$2:$BA$2,0)+1,FALSE) -> 0.07175872043 | AL50: =O50*VLOOKUP($B50,$AR$36:$AZ$47,MATCH(AL$2,$AS$2:$BA$2,0)+1,FALSE) -> 0.05831518704 | AM50: =P50*VLOOKUP($B50,$AR$36:$AZ$47,MATCH(AM$2,$AS$2:$BA$2,0)+1,FALSE) -> 8.576988365e-06 | AN50: =Q50*VLOOKUP($B50,$AR$36:$AZ$47,MATCH(AN$2,$AS$2:$BA$2,0)+1,FALSE) -> 0.001665079838 | AO50: =R50*VLOOKUP($B50,$AR$36:$BA$47,MATCH(AO$2,$AS$2:$BA$2,0)+1,FALSE) -> 0 | AP50: 0.8687371354
A51: 2006 | B51: 1 | C51: 3 | D51: 1 | F51: 2013 | G51: 1 | H51: 3 | I51: 1 | J51: 0.238678944 | K51: 0.3542884884 | L51: 0.008418087479 | M51: 0.09418934747 | N51: 0.0909379 | O51: 0.064745 | P51: 1.713756668e-05 | Q51: 0.002178785549 | R51: 0 | S51: 0.8534536904 | V51: 0.2259848022 | W51: 0.08253126785 | X51: 0.31361449 | Y51: 0.07168304967 | Z51: 0.05968431915 | AA51: 0.004707927806 | AB51: 8.576988365e-06 | AC51: 0.0015925556 | AD51: 0 | AE51: 0.7598069893 | AG51: =J51*VLOOKUP($B51,$AR$36:$AZ$47,MATCH(AG$2,$AS$2:$BA$2,0)+1,FALSE) -> 0.2290215831 | AH51: =K51*VLOOKUP($B51,$AR$36:$AZ$47,MATCH(AH$2,$AS$2:$BA$2,0)+1,FALSE) -> 0.2996337459 | AI51: =L51*VLOOKUP($B51,$AR$36:$AZ$47,MATCH(AI$2,$AS$2:$BA$2,0)+1,FALSE) -> 0.00622283391 | AJ51: =M51*VLOOKUP($B51,$AR$36:$AZ$47,MATCH(AJ$2,$AS$2:$BA$2,0)+1,FALSE) -> 0.08100247443 | AK51: =N51*VLOOKUP($B51,$AR$36:$AZ$47,MATCH(AK$2,$AS$2:$BA$2,0)+1,FALSE) -> 0.07113574031 | AL51: =O51*VLOOKUP($B51,$AR$36:$AZ$47,MATCH(AL$2,$AS$2:$BA$2,0)+1,FALSE) -> 0.05737845027 | AM51: =P51*VLOOKUP($B51,$AR$36:$AZ$47,MATCH(AM$2,$AS$2:$BA$2,0)+1,FALSE) -> 8.576988365e-06 | AN51: =Q51*VLOOKUP($B51,$AR$36:$AZ$47,MATCH(AN$2,$AS$2:$BA$2,0)+1,FALSE) -> 0.001665079838 | AO51: =R51*VLOOKUP($B51,$AR$36:$BA$47,MATCH(AO$2,$AS$2:$BA$2,0)+1,FALSE) -> 0 | AP51: 0.7460684848
A52: 2006 | B52: 1 | C52: 3 | D52: 2 | F52: 2013 | G52: 1 | H52: 3 | I52: 2 | J52: 0.2268864693 | K52: 0.3438570935 | L52: 0.008418087479 | M52: 0.08698559493 | N52: 0.0903161 | O52: 0.064159 | P52: 1.713756668e-05 | Q52: 0.002178785549 | R52: 0 | S52: 0.8228182683 | V52: 0.2148195104 | W52: 0.07621914396 | X52: 0.3043806687 | Y52: 0.07119290727 | Z52: 0.05914412283 | AA52: 0.004707927806 | AB52: 8.576988365e-06 | AC52: 0.0015925556 | AD52: 0 | AE52: 0.7320654135 | AG52: =J52*VLOOKUP($B52,$AR$36:$AZ$47,MATCH(AG$2,$AS$2:$BA$2,0)+1,FALSE) -> 0.2177062523 | AH52: =K52*VLOOKUP($B52,$AR$36:$AZ$47,MATCH(AH$2,$AS$2:$BA$2,0)+1,FALSE) -> 0.2908115628 | AI52: =L52*VLOOKUP($B52,$AR$36:$AZ$47,MATCH(AI$2,$AS$2:$BA$2,0)+1,FALSE) -> 0.00622283391 | AJ52: =M52*VLOOKUP($B52,$AR$36:$AZ$47,MATCH(AJ$2,$AS$2:$BA$2,0)+1,FALSE) -> 0.07480727512 | AK52: =N52*VLOOKUP($B52,$AR$36:$AZ$47,MATCH(AK$2,$AS$2:$BA$2,0)+1,FALSE) -> 0.07064934022 | AL52: =O52*VLOOKUP($B52,$AR$36:$AZ$47,MATCH(AL$2,$AS$2:$BA$2,0)+1,FALSE) -> 0.05685912412 | AM52: =P52*VLOOKUP($B52,$AR$36:$AZ$47,MATCH(AM$2,$AS$2:$BA$2,0)+1,FALSE) -> 8.576988365e-06 | AN52: =Q52*VLOOKUP($B52,$AR$36:$AZ$47,MATCH(AN$2,$AS$2:$BA$2,0)+1,FALSE) -> 0.001665079838 | AO52: =R52*VLOOKUP($B52,$AR$36:$BA$47,MATCH(AO$2,$AS$2:$BA$2,0)+1,FALSE) -> 0 | AP52: 0.7187300452
A53: 2006 | B53: 1 | C53: 3 | D53: 3 | F53: 2013 | G53: 1 | H53: 3 | I53: 3 | J53: 0.2210892204 | K53: 0.3412574859 | L53: 0.008418087479 | M53: 0.08865656592 | N53: 0.0891964 | O53: 0.063722 | P53: 1.713756668e-05 | Q53: 0.002178785549 | R53: 0 | S53: 0.8145356828 | V53: 0.2093305883 | W53: 0.07768329419 | X53: 0.3020795084 | Y53: 0.07031028836 | Z53: 0.05874128018 | AA53: 0.004707927806 | AB53: 8.576988365e-06 | AC53: 0.0015925556 | AD53: 0 | AE53: 0.7244540197 | AG53: =J53*VLOOKUP($B53,$AR$36:$AZ$47,MATCH(AG$2,$AS$2:$BA$2,0)+1,FALSE) -> 0.21214357 | AH53: =K53*VLOOKUP($B53,$AR$36:$AZ$47,MATCH(AH$2,$AS$2:$BA$2,0)+1,FALSE) -> 0.2886129868 | AI53: =L53*VLOOKUP($B53,$AR$36:$AZ$47,MATCH(AI$2,$AS$2:$BA$2,0)+1,FALSE) -> 0.00622283391 | AJ53: =M53*VLOOKUP($B53,$AR$36:$AZ$47,MATCH(AJ$2,$AS$2:$BA$2,0)+1,FALSE) -> 0.07624430371 | AK53: =N53*VLOOKUP($B53,$AR$36:$AZ$47,MATCH(AK$2,$AS$2:$BA$2,0)+1,FALSE) -> 0.06977346021 | AL53: =O53*VLOOKUP($B53,$AR$36:$AZ$47,MATCH(AL$2,$AS$2:$BA$2,0)+1,FALSE) -> 0.05647184506 | AM53: =P53*VLOOKUP($B53,$AR$36:$AZ$47,MATCH(AM$2,$AS$2:$BA$2,0)+1,FALSE) -> 8.576988365e-06 | AN53: =Q53*VLOOKUP($B53,$AR$36:$AZ$47,MATCH(AN$2,$AS$2:$BA$2,0)+1,FALSE) -> 0.001665079838 | AO53: =R53*VLOOKUP($B53,$AR$36:$BA$47,MATCH(AO$2,$AS$2:$BA$2,0)+1,FALSE) -> 0 | AP53: 0.7111426565
A54: 2006 | B54: 1 | C54: 3 | D54: 4 | F54: 2013 | G54: 1 | H54: 3 | I54: 4 | J54: 0.2221974568 | K54: 0.3400278051 | L54: 0.008418087479 | M54: 0.0862581378 | N54: 0.0892968 | O54: 0.063748 | P54: 1.713756668e-05 | Q54: 0.002178785549 | R54: 0 | S54: 0.8121422103 | V54: 0.2103798831 | W54: 0.07558172624 | X54: 0.3009910008 | Y54: 0.07038943004 | Z54: 0.05876524793 | AA54: 0.004707927806 | AB54: 8.576988365e-06 | AC54: 0.0015925556 | AD54: 0 | AE54: 0.7224163485 | AG54: =J54*VLOOKUP($B54,$AR$36:$AZ$47,MATCH(AG$2,$AS$2:$BA$2,0)+1,FALSE) -> 0.2132069653 | AH54: =K54*VLOOKUP($B54,$AR$36:$AZ$47,MATCH(AH$2,$AS$2:$BA$2,0)+1,FALSE) -> 0.2875730042 | AI54: =L54*VLOOKUP($B54,$AR$36:$AZ$47,MATCH(AI$2,$AS$2:$BA$2,0)+1,FALSE) -> 0.00622283391 | AJ54: =M54*VLOOKUP($B54,$AR$36:$AZ$47,MATCH(AJ$2,$AS$2:$BA$2,0)+1,FALSE) -> 0.0741816648 | AK54: =N54*VLOOKUP($B54,$AR$36:$AZ$47,MATCH(AK$2,$AS$2:$BA$2,0)+1,FALSE) -> 0.06985199763 | AL54: =O54*VLOOKUP($B54,$AR$36:$AZ$47,MATCH(AL$2,$AS$2:$BA$2,0)+1,FALSE) -> 0.05649488683 | AM54: =P54*VLOOKUP($B54,$AR$36:$AZ$47,MATCH(AM$2,$AS$2:$BA$2,0)+1,FALSE) -> 8.576988365e-06 | AN54: =Q54*VLOOKUP($B54,$AR$36:$AZ$47,MATCH(AN$2,$AS$2:$BA$2,0)+1,FALSE) -> 0.001665079838 | AO54: =R54*VLOOKUP($B54,$AR$36:$BA$47,MATCH(AO$2,$AS$2:$BA$2,0)+1,FALSE) -> 0 | AP54: 0.7092050095
A55: 2006 | B55: 1 | C55: 3 | D55: 5 | F55: 2013 | G55: 1 | H55: 3 | I55: 5 | J55: 0.2320916892 | K55: 0.3453052651 | L55: 0.008418087479 | M55: 0.08574471242 | N55: 0.0918435 | O55: 0.064017 | P55: 1.713756668e-05 | Q55: 0.002178785549 | R55: 0 | S55: 0.8296161773 | V55: 0.2197478906 | W55: 0.07513184896 | X55: 0.3056625834 | Y55: 0.07239690132 | Z55: 0.05901322201 | AA55: 0.004707927806 | AB55: 8.576988365e-06 | AC55: 0.0015925556 | AD55: 0 | AE55: 0.7382615067 | AG55: =J55*VLOOKUP($B55,$AR$36:$AZ$47,MATCH(AG$2,$AS$2:$BA$2,0)+1,FALSE) -> 0.22270086 | AH55: =K55*VLOOKUP($B55,$AR$36:$AZ$47,MATCH(AH$2,$AS$2:$BA$2,0)+1,FALSE) -> 0.2920363305 | AI55: =L55*VLOOKUP($B55,$AR$36:$AZ$47,MATCH(AI$2,$AS$2:$BA$2,0)+1,FALSE) -> 0.00622283391 | AJ55: =M55*VLOOKUP($B55,$AR$36:$AZ$47,MATCH(AJ$2,$AS$2:$BA$2,0)+1,FALSE) -> 0.07374012096 | AK55: =N55*VLOOKUP($B55,$AR$36:$AZ$47,MATCH(AK$2,$AS$2:$BA$2,0)+1,FALSE) -> 0.07184414161 | AL55: =O55*VLOOKUP($B55,$AR$36:$AZ$47,MATCH(AL$2,$AS$2:$BA$2,0)+1,FALSE) -> 0.05673328058 | AM55: =P55*VLOOKUP($B55,$AR$36:$AZ$47,MATCH(AM$2,$AS$2:$BA$2,0)+1,FALSE) -> 8.576988365e-06 | AN55: =Q55*VLOOKUP($B55,$AR$36:$AZ$47,MATCH(AN$2,$AS$2:$BA$2,0)+1,FALSE) -> 0.001665079838 | AO55: =R55*VLOOKUP($B55,$AR$36:$BA$47,MATCH(AO$2,$AS$2:$BA$2,0)+1,FALSE) -> 0 | AP55: 0.7249512244
A56: 2006 | B56: 1 | C56: 3 | D56: 6 | F56: 2013 | G56: 1 | H56: 3 | I56: 6 | J56: 0.2534469254 | K56: 0.3648607764 | L56: 0.008418087479 | M56: 0.08446270906 | N56: 0.0956296 | O56: 0.066702 | P56: 1.713756668e-05 | Q56: 0.002178785549 | R56: 0 | S56: 0.8757160215 | V56: 0.2399673485 | W56: 0.07400852275 | X56: 0.3229730292 | Y56: 0.07538134669 | Z56: 0.06148835364 | AA56: 0.004707927806 | AB56: 8.576988365e-06 | AC56: 0.0015925556 | AD56: 0 | AE56: 0.7801276611 | AG56: =J56*VLOOKUP($B56,$AR$36:$AZ$47,MATCH(AG$2,$AS$2:$BA$2,0)+1,FALSE) -> 0.2431920267 | AH56: =K56*VLOOKUP($B56,$AR$36:$AZ$47,MATCH(AH$2,$AS$2:$BA$2,0)+1,FALSE) -> 0.3085750871 | AI56: =L56*VLOOKUP($B56,$AR$36:$AZ$47,MATCH(AI$2,$AS$2:$BA$2,0)+1,FALSE) -> 0.00622283391 | AJ56: =M56*VLOOKUP($B56,$AR$36:$AZ$47,MATCH(AJ$2,$AS$2:$BA$2,0)+1,FALSE) -> 0.07263760304 | AK56: =N56*VLOOKUP($B56,$AR$36:$AZ$47,MATCH(AK$2,$AS$2:$BA$2,0)+1,FALSE) -> 0.07480580035 | AL56: =O56*VLOOKUP($B56,$AR$36:$AZ$47,MATCH(AL$2,$AS$2:$BA$2,0)+1,FALSE) -> 0.05911278693 | AM56: =P56*VLOOKUP($B56,$AR$36:$AZ$47,MATCH(AM$2,$AS$2:$BA$2,0)+1,FALSE) -> 8.576988365e-06 | AN56: =Q56*VLOOKUP($B56,$AR$36:$AZ$47,MATCH(AN$2,$AS$2:$BA$2,0)+1,FALSE) -> 0.001665079838 | AO56: =R56*VLOOKUP($B56,$AR$36:$BA$47,MATCH(AO$2,$AS$2:$BA$2,0)+1,FALSE) -> 0 | AP56: 0.7662197948
A57: 2006 | B57: 1 | C57: 3 | D57: 7 | F57: 2013 | G57: 1 | H57: 3 | I57: 7 | J57: 0.2934858084 | K57: 0.4124064307 | L57: 0.008418087479 | M57: 0.09201133474 | N57: 0.1063048 | O57: 0.072573 | P57: 1.713756668e-05 | Q57: 0.002178785549 | R57: 0 | S57: 0.9873953844 | V57: 0.2778767631 | W57: 0.08062283386 | X57: 0.365060217 | Y57: 0.08379621982 | Z57: 0.06690045709 | AA57: 0.004707927806 | AB57: 8.576988365e-06 | AC57: 0.0015925556 | AD57: 0 | AE57: 0.8805655512 | AG57: =J57*VLOOKUP($B57,$AR$36:$AZ$47,MATCH(AG$2,$AS$2:$BA$2,0)+1,FALSE) -> 0.2816108675 | AH57: =K57*VLOOKUP($B57,$AR$36:$AZ$47,MATCH(AH$2,$AS$2:$BA$2,0)+1,FALSE) -> 0.3487860536 | AI57: =L57*VLOOKUP($B57,$AR$36:$AZ$47,MATCH(AI$2,$AS$2:$BA$2,0)+1,FALSE) -> 0.00622283391 | AJ57: =M57*VLOOKUP($B57,$AR$36:$AZ$47,MATCH(AJ$2,$AS$2:$BA$2,0)+1,FALSE) -> 0.07912939191 | AK57: =N57*VLOOKUP($B57,$AR$36:$AZ$47,MATCH(AK$2,$AS$2:$BA$2,0)+1,FALSE) -> 0.08315642484 | AL57: =O57*VLOOKUP($B57,$AR$36:$AZ$47,MATCH(AL$2,$AS$2:$BA$2,0)+1,FALSE) -> 0.06431579692 | AM57: =P57*VLOOKUP($B57,$AR$36:$AZ$47,MATCH(AM$2,$AS$2:$BA$2,0)+1,FALSE) -> 8.576988365e-06 | AN57: =Q57*VLOOKUP($B57,$AR$36:$AZ$47,MATCH(AN$2,$AS$2:$BA$2,0)+1,FALSE) -> 0.001665079838 | AO57: =R57*VLOOKUP($B57,$AR$36:$BA$47,MATCH(AO$2,$AS$2:$BA$2,0)+1,FALSE) -> 0 | AP57: 0.8648950254
A58: 2006 | B58: 1 | C58: 3 | D58: 8 | F58: 2013 | G58: 1 | H58: 3 | I58: 8 | J58: 0.3310025667 | K58: 0.4664318438 | L58: 0.005331455403 | M58: 0.109355104 | N58: 0.1138474 | O58: 0.077591 | P58: 1.085379223e-05 | Q58: 0.002056339251 | R58: 0 | S58: 1.105626563 | V58: 0.3133981923 | W58: 0.09581991614 | X58: 0.4128832565 | Y58: 0.08974177795 | Z58: 0.0715262338 | AA58: 0.00298168761 | AB58: 5.432092631e-06 | AC58: 0.001503055035 | AD58: 0 | AE58: 0.9878595514 | AG58: =J58*VLOOKUP($B58,$AR$36:$AZ$47,MATCH(AG$2,$AS$2:$BA$2,0)+1,FALSE) -> 0.3176096332 | AH58: =K58*VLOOKUP($B58,$AR$36:$AZ$47,MATCH(AH$2,$AS$2:$BA$2,0)+1,FALSE) -> 0.3944771709 | AI58: =L58*VLOOKUP($B58,$AR$36:$AZ$47,MATCH(AI$2,$AS$2:$BA$2,0)+1,FALSE) -> 0.003941128143 | AJ58: =M58*VLOOKUP($B58,$AR$36:$AZ$47,MATCH(AJ$2,$AS$2:$BA$2,0)+1,FALSE) -> 0.09404496635 | AK58: =N58*VLOOKUP($B58,$AR$36:$AZ$47,MATCH(AK$2,$AS$2:$BA$2,0)+1,FALSE) -> 0.08905658786 | AL58: =O58*VLOOKUP($B58,$AR$36:$AZ$47,MATCH(AL$2,$AS$2:$BA$2,0)+1,FALSE) -> 0.06876285945 | AM58: =P58*VLOOKUP($B58,$AR$36:$AZ$47,MATCH(AM$2,$AS$2:$BA$2,0)+1,FALSE) -> 5.432092631e-06 | AN58: =Q58*VLOOKUP($B58,$AR$36:$AZ$47,MATCH(AN$2,$AS$2:$BA$2,0)+1,FALSE) -> 0.001571503459 | AO58: =R58*VLOOKUP($B58,$AR$36:$BA$47,MATCH(AO$2,$AS$2:$BA$2,0)+1,FALSE) -> 0 | AP58: 0.9694692814
A59: 2006 | B59: 1 | C59: 3 | D59: 9 | F59: 2013 | G59: 1 | H59: 3 | I59: 9 | J59: 0.2991165164 | K59: 0.50029713 | L59: 0 | M59: 0.1211963673 | N59: 0.1178564 | O59: 0.079518 | P59: 0 | Q59: 0.0018448411 | R59: 0 | S59: 1.119829255 | V59: 0.2832080019 | W59: 0.1061955531 | X59: 0.4428606472 | Y59: 0.09290192731 | Z59: 0.07330261318 | AA59: 0 | AB59: 0 | AC59: 0.00134846315 | AD59: 0 | AE59: 0.9998172058 | AG59: =J59*VLOOKUP($B59,$AR$36:$AZ$47,MATCH(AG$2,$AS$2:$BA$2,0)+1,FALSE) -> 0.2870137474 | AH59: =K59*VLOOKUP($B59,$AR$36:$AZ$47,MATCH(AH$2,$AS$2:$BA$2,0)+1,FALSE) -> 0.4231181877 | AI59: =L59*VLOOKUP($B59,$AR$36:$AZ$47,MATCH(AI$2,$AS$2:$BA$2,0)+1,FALSE) -> 0 | AJ59: =M59*VLOOKUP($B59,$AR$36:$AZ$47,MATCH(AJ$2,$AS$2:$BA$2,0)+1,FALSE) -> 0.104228407 | AK59: =N59*VLOOKUP($B59,$AR$36:$AZ$47,MATCH(AK$2,$AS$2:$BA$2,0)+1,FALSE) -> 0.09219260907 | AL59: =O59*VLOOKUP($B59,$AR$36:$AZ$47,MATCH(AL$2,$AS$2:$BA$2,0)+1,FALSE) -> 0.07047060945 | AM59: =P59*VLOOKUP($B59,$AR$36:$AZ$47,MATCH(AM$2,$AS$2:$BA$2,0)+1,FALSE) -> 0 | AN59: =Q59*VLOOKUP($B59,$AR$36:$AZ$47,MATCH(AN$2,$AS$2:$BA$2,0)+1,FALSE) -> 0.001409871532 | AO59: =R59*VLOOKUP($B59,$AR$36:$BA$47,MATCH(AO$2,$AS$2:$BA$2,0)+1,FALSE) -> 0 | AP59: 0.9784334321
A60: 2006 | B60: 1 | C60: 3 | D60: 10 | F60: 2013 | G60: 1 | H60: 3 | I60: 10 | J60: 0.2799043435 | K60: 0.5158940804 | L60: 0 | M60: 0.1259515561 | N60: 0.1200931 | O60: 0.080846 | P60: 0 | Q60: 0.0018448411 | R60: 0 | S60: 1.124533921 | V60: 0.2650176285 | W60: 0.1103621789 | X60: 0.4566669938 | Y60: 0.09466503683 | Z60: 0.07452681236 | AA60: 0 | AB60: 0 | AC60: 0.00134846315 | AD60: 0 | AE60: 1.002587114 | AG60: =J60*VLOOKUP($B60,$AR$36:$AZ$47,MATCH(AG$2,$AS$2:$BA$2,0)+1,FALSE) -> 0.2685789321 | AH60: =K60*VLOOKUP($B60,$AR$36:$AZ$47,MATCH(AH$2,$AS$2:$BA$2,0)+1,FALSE) -> 0.4363090557 | AI60: =L60*VLOOKUP($B60,$AR$36:$AZ$47,MATCH(AI$2,$AS$2:$BA$2,0)+1,FALSE) -> 0 | AJ60: =M60*VLOOKUP($B60,$AR$36:$AZ$47,MATCH(AJ$2,$AS$2:$BA$2,0)+1,FALSE) -> 0.108317851 | AK60: =N60*VLOOKUP($B60,$AR$36:$AZ$47,MATCH(AK$2,$AS$2:$BA$2,0)+1,FALSE) -> 0.09394225702 | AL60: =O60*VLOOKUP($B60,$AR$36:$AZ$47,MATCH(AL$2,$AS$2:$BA$2,0)+1,FALSE) -> 0.0716475124 | AM60: =P60*VLOOKUP($B60,$AR$36:$AZ$47,MATCH(AM$2,$AS$2:$BA$2,0)+1,FALSE) -> 0 | AN60: =Q60*VLOOKUP($B60,$AR$36:$AZ$47,MATCH(AN$2,$AS$2:$BA$2,0)+1,FALSE) -> 0.001409871532 | AO60: =R60*VLOOKUP($B60,$AR$36:$BA$47,MATCH(AO$2,$AS$2:$BA$2,0)+1,FALSE) -> 0 | AP60: 0.9802054798
A61: 2006 | B61: 1 | C61: 3 | D61: 11 | F61: 2013 | G61: 1 | H61: 3 | I61: 11 | J61: 0.2673773251 | K61: 0.51574293 | L61: 0 | M61: 0.1251783694 | N61: 0.1208663 | O61: 0.081839 | P61: 0 | Q61: 0.0018448411 | R61: 0 | S61: 1.112848766 | V61: 0.2531568597 | W61: 0.1096846916 | X61: 0.4565331961 | Y61: 0.09527452235 | Z61: 0.07544219624 | AA61: 0 | AB61: 0 | AC61: 0.00134846315 | AD61: 0 | AE61: 0.9914399292 | AG61: =J61*VLOOKUP($B61,$AR$36:$AZ$47,MATCH(AG$2,$AS$2:$BA$2,0)+1,FALSE) -> 0.2565587783 | AH61: =K61*VLOOKUP($B61,$AR$36:$AZ$47,MATCH(AH$2,$AS$2:$BA$2,0)+1,FALSE) -> 0.4361812227 | AI61: =L61*VLOOKUP($B61,$AR$36:$AZ$47,MATCH(AI$2,$AS$2:$BA$2,0)+1,FALSE) -> 0 | AJ61: =M61*VLOOKUP($B61,$AR$36:$AZ$47,MATCH(AJ$2,$AS$2:$BA$2,0)+1,FALSE) -> 0.1076529134 | AK61: =N61*VLOOKUP($B61,$AR$36:$AZ$47,MATCH(AK$2,$AS$2:$BA$2,0)+1,FALSE) -> 0.09454708905 | AL61: =O61*VLOOKUP($B61,$AR$36:$AZ$47,MATCH(AL$2,$AS$2:$BA$2,0)+1,FALSE) -> 0.07252753096 | AM61: =P61*VLOOKUP($B61,$AR$36:$AZ$47,MATCH(AM$2,$AS$2:$BA$2,0)+1,FALSE) -> 0 | AN61: =Q61*VLOOKUP($B61,$AR$36:$AZ$47,MATCH(AN$2,$AS$2:$BA$2,0)+1,FALSE) -> 0.001409871532 | AO61: =R61*VLOOKUP($B61,$AR$36:$BA$47,MATCH(AO$2,$AS$2:$BA$2,0)+1,FALSE) -> 0 | AP61: 0.9688774059
A62: 2006 | B62: 1 | C62: 3 | D62: 12 | F62: 2013 | G62: 1 | H62: 3 | I62: 12 | J62: 0.2723004006 | K62: 0.5112727162 | L62: 0 | M62: 0.1206312174 | N62: 0.1208922 | O62: 0.081852 | P62: 0 | Q62: 0.0018448411 | R62: 0 | S62: 1.108793375 | V62: 0.2578181014 | W62: 0.1057003534 | X62: 0.4525761841 | Y62: 0.09529493839 | Z62: 0.07545418011 | AA62: 0 | AB62: 0 | AC62: 0.00134846315 | AD62: 0 | AE62: 0.9881922205 | AG62: =J62*VLOOKUP($B62,$AR$36:$AZ$47,MATCH(AG$2,$AS$2:$BA$2,0)+1,FALSE) -> 0.2612826578 | AH62: =K62*VLOOKUP($B62,$AR$36:$AZ$47,MATCH(AH$2,$AS$2:$BA$2,0)+1,FALSE) -> 0.4324006119 | AI62: =L62*VLOOKUP($B62,$AR$36:$AZ$47,MATCH(AI$2,$AS$2:$BA$2,0)+1,FALSE) -> 0 | AJ62: =M62*VLOOKUP($B62,$AR$36:$AZ$47,MATCH(AJ$2,$AS$2:$BA$2,0)+1,FALSE) -> 0.1037423803 | AK62: =N62*VLOOKUP($B62,$AR$36:$AZ$47,MATCH(AK$2,$AS$2:$BA$2,0)+1,FALSE) -> 0.0945673492 | AL62: =O62*VLOOKUP($B62,$AR$36:$AZ$47,MATCH(AL$2,$AS$2:$BA$2,0)+1,FALSE) -> 0.07253905184 | AM62: =P62*VLOOKUP($B62,$AR$36:$AZ$47,MATCH(AM$2,$AS$2:$BA$2,0)+1,FALSE) -> 0 | AN62: =Q62*VLOOKUP($B62,$AR$36:$AZ$47,MATCH(AN$2,$AS$2:$BA$2,0)+1,FALSE) -> 0.001409871532 | AO62: =R62*VLOOKUP($B62,$AR$36:$BA$47,MATCH(AO$2,$AS$2:$BA$2,0)+1,FALSE) -> 0 | AP62: 0.9659419225
A63: 2006 | B63: 1 | C63: 3 | D63: 13 | F63: 2013 | G63: 1 | H63: 3 | I63: 13 | J63: 0.2736795118 | K63: 0.507477969 | L63: 0 | M63: 0.119255877 | N63: 0.1206227 | O63: 0.081345 | P63: 0 | Q63: 0.0018448411 | R63: 0 | S63: 1.104225899 | V63: 0.2591238645 | W63: 0.1044952428 | X63: 0.4492170919 | Y63: 0.09508250131 | Z63: 0.07498680889 | AA63: 0 | AB63: 0 | AC63: 0.00134846315 | AD63: 0 | AE63: 0.9842539725 | AG63: =J63*VLOOKUP($B63,$AR$36:$AZ$47,MATCH(AG$2,$AS$2:$BA$2,0)+1,FALSE) -> 0.2626059677 | AH63: =K63*VLOOKUP($B63,$AR$36:$AZ$47,MATCH(AH$2,$AS$2:$BA$2,0)+1,FALSE) -> 0.4291912659 | AI63: =L63*VLOOKUP($B63,$AR$36:$AZ$47,MATCH(AI$2,$AS$2:$BA$2,0)+1,FALSE) -> 0 | AJ63: =M63*VLOOKUP($B63,$AR$36:$AZ$47,MATCH(AJ$2,$AS$2:$BA$2,0)+1,FALSE) -> 0.1025595929 | AK63: =N63*VLOOKUP($B63,$AR$36:$AZ$47,MATCH(AK$2,$AS$2:$BA$2,0)+1,FALSE) -> 0.09435653411 | AL63: =O63*VLOOKUP($B63,$AR$36:$AZ$47,MATCH(AL$2,$AS$2:$BA$2,0)+1,FALSE) -> 0.07208973724 | AM63: =P63*VLOOKUP($B63,$AR$36:$AZ$47,MATCH(AM$2,$AS$2:$BA$2,0)+1,FALSE) -> 0 | AN63: =Q63*VLOOKUP($B63,$AR$36:$AZ$47,MATCH(AN$2,$AS$2:$BA$2,0)+1,FALSE) -> 0.001409871532 | AO63: =R63*VLOOKUP($B63,$AR$36:$BA$47,MATCH(AO$2,$AS$2:$BA$2,0)+1,FALSE) -> 0 | AP63: 0.9622129694
A64: 2006 | B64: 1 | C64: 3 | D64: 14 | F64: 2013 | G64: 1 | H64: 3 | I64: 14 | J64: 0.2681426366 | K64: 0.5024094049 | L64: 0 | M64: 0.113061662 | N64: 0.1203901 | O64: 0.080888 | P64: 0 | Q64: 0.0018448411 | R64: 0 | S64: 1.086736645 | V64: 0.2538814682 | W64: 0.09906770313 | X64: 0.444730423 | Y64: 0.09489915116 | Z64: 0.07456552951 | AA64: 0 | AB64: 0 | AC64: 0.00134846315 | AD64: 0 | AE64: 0.9684927381 | AG64: =J64*VLOOKUP($B64,$AR$36:$AZ$47,MATCH(AG$2,$AS$2:$BA$2,0)+1,FALSE) -> 0.2572931241 | AH64: =K64*VLOOKUP($B64,$AR$36:$AZ$47,MATCH(AH$2,$AS$2:$BA$2,0)+1,FALSE) -> 0.42490461 | AI64: =L64*VLOOKUP($B64,$AR$36:$AZ$47,MATCH(AI$2,$AS$2:$BA$2,0)+1,FALSE) -> 0 | AJ64: =M64*VLOOKUP($B64,$AR$36:$AZ$47,MATCH(AJ$2,$AS$2:$BA$2,0)+1,FALSE) -> 0.09723259195 | AK64: =N64*VLOOKUP($B64,$AR$36:$AZ$47,MATCH(AK$2,$AS$2:$BA$2,0)+1,FALSE) -> 0.09417458386 | AL64: =O64*VLOOKUP($B64,$AR$36:$AZ$47,MATCH(AL$2,$AS$2:$BA$2,0)+1,FALSE) -> 0.07168473373 | AM64: =P64*VLOOKUP($B64,$AR$36:$AZ$47,MATCH(AM$2,$AS$2:$BA$2,0)+1,FALSE) -> 0 | AN64: =Q64*VLOOKUP($B64,$AR$36:$AZ$47,MATCH(AN$2,$AS$2:$BA$2,0)+1,FALSE) -> 0.001409871532 | AO64: =R64*VLOOKUP($B64,$AR$36:$BA$47,MATCH(AO$2,$AS$2:$BA$2,0)+1,FALSE) -> 0 | AP64: 0.9466995152
A65: 2006 | B65: 1 | C65: 3 | D65: 15 | F65: 2013 | G65: 1 | H65: 3 | I65: 15 | J65: 0.2756143238 | K65: 0.4896228978 | L65: 0 | M65: 0.1022168298 | N65: 0.1195634 | O65: 0.080222 | P65: 0 | Q65: 0.0018448411 | R65: 0 | S65: 1.069084292 | V65: 0.2609557736 | W65: 0.08956516616 | X65: 0.4334118675 | Y65: 0.09424749352 | Z65: 0.07395158624 | AA65: 0 | AB65: 0 | AC65: 0.00134846315 | AD65: 0 | AE65: 0.9534803501 | AG65: =J65*VLOOKUP($B65,$AR$36:$AZ$47,MATCH(AG$2,$AS$2:$BA$2,0)+1,FALSE) -> 0.264462494 | AH65: =K65*VLOOKUP($B65,$AR$36:$AZ$47,MATCH(AH$2,$AS$2:$BA$2,0)+1,FALSE) -> 0.4140906289 | AI65: =L65*VLOOKUP($B65,$AR$36:$AZ$47,MATCH(AI$2,$AS$2:$BA$2,0)+1,FALSE) -> 0 | AJ65: =M65*VLOOKUP($B65,$AR$36:$AZ$47,MATCH(AJ$2,$AS$2:$BA$2,0)+1,FALSE) -> 0.08790607816 | AK65: =N65*VLOOKUP($B65,$AR$36:$AZ$47,MATCH(AK$2,$AS$2:$BA$2,0)+1,FALSE) -> 0.09352790171 | AL65: =O65*VLOOKUP($B65,$AR$36:$AZ$47,MATCH(AL$2,$AS$2:$BA$2,0)+1,FALSE) -> 0.07109450981 | AM65: =P65*VLOOKUP($B65,$AR$36:$AZ$47,MATCH(AM$2,$AS$2:$BA$2,0)+1,FALSE) -> 0 | AN65: =Q65*VLOOKUP($B65,$AR$36:$AZ$47,MATCH(AN$2,$AS$2:$BA$2,0)+1,FALSE) -> 0.001409871532 | AO65: =R65*VLOOKUP($B65,$AR$36:$BA$47,MATCH(AO$2,$AS$2:$BA$2,0)+1,FALSE) -> 0 | AP65: 0.932491484
A66: 2006 | B66: 1 | C66: 3 | D66: 16 | F66: 2013 | G66: 1 | H66: 3 | I66: 16 | J66: 0.3038966901 | K66: 0.4867438502 | L66: 0 | M66: 0.103461045 | N66: 0.1181627 | O66: 0.079144 | P66: 0 | Q66: 0.0018448411 | R66: 0 | S66: 1.093253126 | V66: 0.2877339419 | W66: 0.09065538136 | X66: 0.4308633482 | Y66: 0.09314337249 | Z66: 0.07295784625 | AA66: 0 | AB66: 0 | AC66: 0.00134846315 | AD66: 0 | AE66: 0.9767023534 | AG66: =J66*VLOOKUP($B66,$AR$36:$AZ$47,MATCH(AG$2,$AS$2:$BA$2,0)+1,FALSE) -> 0.291600507 | AH66: =K66*VLOOKUP($B66,$AR$36:$AZ$47,MATCH(AH$2,$AS$2:$BA$2,0)+1,FALSE) -> 0.411655721 | AI66: =L66*VLOOKUP($B66,$AR$36:$AZ$47,MATCH(AI$2,$AS$2:$BA$2,0)+1,FALSE) -> 0 | AJ66: =M66*VLOOKUP($B66,$AR$36:$AZ$47,MATCH(AJ$2,$AS$2:$BA$2,0)+1,FALSE) -> 0.08897609842 | AK66: =N66*VLOOKUP($B66,$AR$36:$AZ$47,MATCH(AK$2,$AS$2:$BA$2,0)+1,FALSE) -> 0.09243221079 | AL66: =O66*VLOOKUP($B66,$AR$36:$AZ$47,MATCH(AL$2,$AS$2:$BA$2,0)+1,FALSE) -> 0.07013916238 | AM66: =P66*VLOOKUP($B66,$AR$36:$AZ$47,MATCH(AM$2,$AS$2:$BA$2,0)+1,FALSE) -> 0 | AN66: =Q66*VLOOKUP($B66,$AR$36:$AZ$47,MATCH(AN$2,$AS$2:$BA$2,0)+1,FALSE) -> 0.001409871532 | AO66: =R66*VLOOKUP($B66,$AR$36:$BA$47,MATCH(AO$2,$AS$2:$BA$2,0)+1,FALSE) -> 0 | AP66: 0.9562135711
A67: 2006 | B67: 1 | C67: 3 | D67: 17 | F67: 2013 | G67: 1 | H67: 3 | I67: 17 | J67: 0.3520120387 | K67: 0.4877934294 | L67: 0.002665727702 | M67: 0.1065398351 | N67: 0.1163421 | O67: 0.077805 | P67: 5.426896115e-06 | Q67: 0.001950590175 | R67: 0 | S67: 1.145114148 | V67: =$J67*$AS$6 -> 0.3332902753 | W67: =$M67*$AV$6 -> 0.09335310102 | X67: =$K67*$AT$6 -> 0.4317924307 | Y67: =$N67*$AW$6 -> 0.09170825952 | Z67: =$O67*$AX$6 -> 0.07172350686 | AA67: =$L67*$AU$6 -> 0.001490843805 | AB67: =$P67*$AY$6 -> 2.716046316e-06 | AC67: =$Q67*$AZ$6 -> 0.001425759093 | AD67: 0 | AE67: =SUM(V67:AD67) -> 1.024786892 | AG67: =J67*VLOOKUP($B67,$AR$36:$AZ$47,MATCH(AG$2,$AS$2:$BA$2,0)+1,FALSE) -> 0.3377690258 | AH67: =K67*VLOOKUP($B67,$AR$36:$AZ$47,MATCH(AH$2,$AS$2:$BA$2,0)+1,FALSE) -> 0.4125433856 | AI67: =L67*VLOOKUP($B67,$AR$36:$AZ$47,MATCH(AI$2,$AS$2:$BA$2,0)+1,FALSE) -> 0.001970564071 | AJ67: =M67*VLOOKUP($B67,$AR$36:$AZ$47,MATCH(AJ$2,$AS$2:$BA$2,0)+1,FALSE) -> 0.09162384604 | AK67: =N67*VLOOKUP($B67,$AR$36:$AZ$47,MATCH(AK$2,$AS$2:$BA$2,0)+1,FALSE) -> 0.09100805509 | AL67: =O67*VLOOKUP($B67,$AR$36:$AZ$47,MATCH(AL$2,$AS$2:$BA$2,0)+1,FALSE) -> 0.06895251098 | AM67: =P67*VLOOKUP($B67,$AR$36:$AZ$47,MATCH(AM$2,$AS$2:$BA$2,0)+1,FALSE) -> 2.716046316e-06 | AN67: =Q67*VLOOKUP($B67,$AR$36:$AZ$47,MATCH(AN$2,$AS$2:$BA$2,0)+1,FALSE) -> 0.001490687496 | AO67: =R67*VLOOKUP($B67,$AR$36:$BA$47,MATCH(AO$2,$AS$2:$BA$2,0)+1,FALSE) -> 0 | AP67: 1.005360791
A68: 2006 | B68: 1 | C68: 3 | D68: 18 | F68: 2013 | G68: 1 | H68: 3 | I68: 18 | J68: 0.4216251543 | K68: 0.4928951678 | L68: 0.008418087479 | M68: 0.1209324208 | N68: 0.1138351 | O68: 0.076629 | P68: 1.713756668e-05 | Q68: 0.002178785549 | R68: 0 | S68: 1.236530853 | V68: 0.3992010167 | W68: 0.105964276 | X68: 0.4363084654 | Y68: 0.08973208231 | Z68: 0.07063942687 | AA68: 0.004707927806 | AB68: 8.576988365e-06 | AC68: 0.0015925556 | AD68: =$R68*$BA$6 -> 0 | AE68: 1.108154328 | AG68: =J68*VLOOKUP($B68,$AR$36:$AZ$47,MATCH(AG$2,$AS$2:$BA$2,0)+1,FALSE) -> 0.4045654749 | AH68: =K68*VLOOKUP($B68,$AR$36:$AZ$47,MATCH(AH$2,$AS$2:$BA$2,0)+1,FALSE) -> 0.4168580982 | AI68: =L68*VLOOKUP($B68,$AR$36:$AZ$47,MATCH(AI$2,$AS$2:$BA$2,0)+1,FALSE) -> 0.00622283391 | AJ68: =M68*VLOOKUP($B68,$AR$36:$AZ$47,MATCH(AJ$2,$AS$2:$BA$2,0)+1,FALSE) -> 0.104001414 | AK68: =N68*VLOOKUP($B68,$AR$36:$AZ$47,MATCH(AK$2,$AS$2:$BA$2,0)+1,FALSE) -> 0.08904696625 | AL68: =O68*VLOOKUP($B68,$AR$36:$AZ$47,MATCH(AL$2,$AS$2:$BA$2,0)+1,FALSE) -> 0.06791031378 | AM68: =P68*VLOOKUP($B68,$AR$36:$AZ$47,MATCH(AM$2,$AS$2:$BA$2,0)+1,FALSE) -> 8.576988365e-06 | AN68: =Q68*VLOOKUP($B68,$AR$36:$AZ$47,MATCH(AN$2,$AS$2:$BA$2,0)+1,FALSE) -> 0.001665079838 | AO68: =R68*VLOOKUP($B68,$AR$36:$BA$47,MATCH(AO$2,$AS$2:$BA$2,0)+1,FALSE) -> 0 | AP68: =SUM(AG68:AO68) -> 1.090278758
A69: 2006 | B69: 1 | C69: 3 | D69: 19 | F69: 2013 | G69: 1 | H69: 3 | I69: 19 | J69: 0.4652717217 | K69: 0.461226685 | L69: 0.008418087479 | M69: 0.1021183028 | N69: 0.1057514 | O69: 0.072392 | P69: 1.713756668e-05 | Q69: 0.002178785549 | R69: 0 | S69: 1.21737412 | V69: 0.4405262411 | W69: 0.08947883416 | X69: 0.4082756746 | Y69: 0.08335999467 | Z69: 0.06673360464 | AA69: 0.004707927806 | AB69: 8.576988365e-06 | AC69: 0.0015925556 | AD69: 0 | AE69: 1.09468341 | AG69: =J69*VLOOKUP($B69,$AR$36:$AZ$47,MATCH(AG$2,$AS$2:$BA$2,0)+1,FALSE) -> 0.4464460271 | AH69: =K69*VLOOKUP($B69,$AR$36:$AZ$47,MATCH(AH$2,$AS$2:$BA$2,0)+1,FALSE) -> 0.3900749922 | AI69: =L69*VLOOKUP($B69,$AR$36:$AZ$47,MATCH(AI$2,$AS$2:$BA$2,0)+1,FALSE) -> 0.00622283391 | AJ69: =M69*VLOOKUP($B69,$AR$36:$AZ$47,MATCH(AJ$2,$AS$2:$BA$2,0)+1,FALSE) -> 0.08782134535 | AK69: =N69*VLOOKUP($B69,$AR$36:$AZ$47,MATCH(AK$2,$AS$2:$BA$2,0)+1,FALSE) -> 0.08272353032 | AL69: =O69*VLOOKUP($B69,$AR$36:$AZ$47,MATCH(AL$2,$AS$2:$BA$2,0)+1,FALSE) -> 0.06415539072 | AM69: =P69*VLOOKUP($B69,$AR$36:$AZ$47,MATCH(AM$2,$AS$2:$BA$2,0)+1,FALSE) -> 8.576988365e-06 | AN69: =Q69*VLOOKUP($B69,$AR$36:$AZ$47,MATCH(AN$2,$AS$2:$BA$2,0)+1,FALSE) -> 0.001665079838 | AO69: =R69*VLOOKUP($B69,$AR$36:$BA$47,MATCH(AO$2,$AS$2:$BA$2,0)+1,FALSE) -> 0 | AP69: 1.079117776
A70: 2006 | B70: 1 | C70: 3 | D70: 20 | F70: 2013 | G70: 1 | H70: 3 | I70: 20 | J70: 0.4649180484 | K70: 0.4448872862 | L70: 0.008418087479 | M70: 0.09650032755 | N70: 0.1019007 | O70: 0.070098 | P70: 1.713756668e-05 | Q70: 0.002178785549 | R70: 0 | S70: 1.188918373 | V70: 0.440191378 | W70: 0.08455621144 | X70: 0.3938121162 | Y70: 0.08032462746 | Z70: 0.06461891118 | AA70: 0.004707927806 | AB70: 8.576988365e-06 | AC70: 0.0015925556 | AD70: 0 | AE70: 1.069812305 | AG70: =J70*VLOOKUP($B70,$AR$36:$AZ$47,MATCH(AG$2,$AS$2:$BA$2,0)+1,FALSE) -> 0.4461066641 | AH70: =K70*VLOOKUP($B70,$AR$36:$AZ$47,MATCH(AH$2,$AS$2:$BA$2,0)+1,FALSE) -> 0.3762562105 | AI70: =L70*VLOOKUP($B70,$AR$36:$AZ$47,MATCH(AI$2,$AS$2:$BA$2,0)+1,FALSE) -> 0.00622283391 | AJ70: =M70*VLOOKUP($B70,$AR$36:$AZ$47,MATCH(AJ$2,$AS$2:$BA$2,0)+1,FALSE) -> 0.08298990836 | AK70: =N70*VLOOKUP($B70,$AR$36:$AZ$47,MATCH(AK$2,$AS$2:$BA$2,0)+1,FALSE) -> 0.07971133854 | AL70: =O70*VLOOKUP($B70,$AR$36:$AZ$47,MATCH(AL$2,$AS$2:$BA$2,0)+1,FALSE) -> 0.06212239721 | AM70: =P70*VLOOKUP($B70,$AR$36:$AZ$47,MATCH(AM$2,$AS$2:$BA$2,0)+1,FALSE) -> 8.576988365e-06 | AN70: =Q70*VLOOKUP($B70,$AR$36:$AZ$47,MATCH(AN$2,$AS$2:$BA$2,0)+1,FALSE) -> 0.001665079838 | AO70: =R70*VLOOKUP($B70,$AR$36:$BA$47,MATCH(AO$2,$AS$2:$BA$2,0)+1,FALSE) -> 0 | AP70: 1.055083009
A71: 2006 | B71: 1 | C71: 3 | D71: 21 | F71: 2013 | G71: 1 | H71: 3 | I71: 21 | J71: 0.4358870467 | K71: 0.4423477431 | L71: 0.008418087479 | M71: 0.1092370995 | N71: 0.0990295 | O71: 0.06866 | P71: 1.713756668e-05 | Q71: 0.002178785549 | R71: 0 | S71: 1.1657754 | V71: 0.4127043903 | W71: 0.09571651744 | X71: 0.3915641247 | Y71: 0.07806136459 | Z71: 0.06329330996 | AA71: 0.004707927806 | AB71: 8.576988365e-06 | AC71: 0.0015925556 | AD71: 0 | AE71: 1.047648767 | AG71: =J71*VLOOKUP($B71,$AR$36:$AZ$47,MATCH(AG$2,$AS$2:$BA$2,0)+1,FALSE) -> 0.4182503066 | AH71: =K71*VLOOKUP($B71,$AR$36:$AZ$47,MATCH(AH$2,$AS$2:$BA$2,0)+1,FALSE) -> 0.3741084331 | AI71: =L71*VLOOKUP($B71,$AR$36:$AZ$47,MATCH(AI$2,$AS$2:$BA$2,0)+1,FALSE) -> 0.00622283391 | AJ71: =M71*VLOOKUP($B71,$AR$36:$AZ$47,MATCH(AJ$2,$AS$2:$BA$2,0)+1,FALSE) -> 0.09394348299 | AK71: =N71*VLOOKUP($B71,$AR$36:$AZ$47,MATCH(AK$2,$AS$2:$BA$2,0)+1,FALSE) -> 0.07746535598 | AL71: =O71*VLOOKUP($B71,$AR$36:$AZ$47,MATCH(AL$2,$AS$2:$BA$2,0)+1,FALSE) -> 0.06084800982 | AM71: =P71*VLOOKUP($B71,$AR$36:$AZ$47,MATCH(AM$2,$AS$2:$BA$2,0)+1,FALSE) -> 8.576988365e-06 | AN71: =Q71*VLOOKUP($B71,$AR$36:$AZ$47,MATCH(AN$2,$AS$2:$BA$2,0)+1,FALSE) -> 0.001665079838 | AO71: =R71*VLOOKUP($B71,$AR$36:$BA$47,MATCH(AO$2,$AS$2:$BA$2,0)+1,FALSE) -> 0 | AP71: 1.032512079
A72: 2006 | B72: 1 | C72: 3 | D72: 22 | F72: 2013 | G72: 1 | H72: 3 | I72: 22 | J72: 0.3865495089 | K72: 0.4188057182 | L72: 0.008418087479 | M72: 0.1062058376 | N72: 0.0960082 | O72: 0.067954 | P72: 1.713756668e-05 | Q72: 0.002178785549 | R72: 0 | S72: 1.086137275 | V72: 0.3659908699 | W72: 0.09306044334 | X72: 0.3707248359 | Y72: 0.07567978334 | Z72: 0.06264249323 | AA72: 0.004707927806 | AB72: 8.576988365e-06 | AC72: 0.0015925556 | AD72: 0 | AE72: 0.974407486 | AG72: =J72*VLOOKUP($B72,$AR$36:$AZ$47,MATCH(AG$2,$AS$2:$BA$2,0)+1,FALSE) -> 0.3709090505 | AH72: =K72*VLOOKUP($B72,$AR$36:$AZ$47,MATCH(AH$2,$AS$2:$BA$2,0)+1,FALSE) -> 0.3541981472 | AI72: =L72*VLOOKUP($B72,$AR$36:$AZ$47,MATCH(AI$2,$AS$2:$BA$2,0)+1,FALSE) -> 0.00622283391 | AJ72: =M72*VLOOKUP($B72,$AR$36:$AZ$47,MATCH(AJ$2,$AS$2:$BA$2,0)+1,FALSE) -> 0.0913366095 | AK72: =N72*VLOOKUP($B72,$AR$36:$AZ$47,MATCH(AK$2,$AS$2:$BA$2,0)+1,FALSE) -> 0.0751019584 | AL72: =O72*VLOOKUP($B72,$AR$36:$AZ$47,MATCH(AL$2,$AS$2:$BA$2,0)+1,FALSE) -> 0.06022233701 | AM72: =P72*VLOOKUP($B72,$AR$36:$AZ$47,MATCH(AM$2,$AS$2:$BA$2,0)+1,FALSE) -> 8.576988365e-06 | AN72: =Q72*VLOOKUP($B72,$AR$36:$AZ$47,MATCH(AN$2,$AS$2:$BA$2,0)+1,FALSE) -> 0.001665079838 | AO72: =R72*VLOOKUP($B72,$AR$36:$BA$47,MATCH(AO$2,$AS$2:$BA$2,0)+1,FALSE) -> 0 | AP72: 0.9596645933
A73: 2006 | B73: 1 | C73: 3 | D73: 23 | F73: 2013 | G73: 1 | H73: 3 | I73: 23 | J73: 0.342526373 | K73: 0.3962043885 | L73: 0.008418087479 | M73: 0.1082617015 | N73: 0.0931725 | O73: 0.066235 | P73: 1.713756668e-05 | Q73: 0.002178785549 | R73: 0 | S73: 1.017013974 | V73: 0.3243091049 | W73: 0.09486184713 | X73: 0.350718246 | Y73: 0.07344450384 | Z73: 0.06105785588 | AA73: 0.004707927806 | AB73: 8.576988365e-06 | AC73: 0.0015925556 | AD73: 0 | AE73: 0.9107006181 | AG73: =J73*VLOOKUP($B73,$AR$36:$AZ$47,MATCH(AG$2,$AS$2:$BA$2,0)+1,FALSE) -> 0.3286671665 | AH73: =K73*VLOOKUP($B73,$AR$36:$AZ$47,MATCH(AH$2,$AS$2:$BA$2,0)+1,FALSE) -> 0.335083439 | AI73: =L73*VLOOKUP($B73,$AR$36:$AZ$47,MATCH(AI$2,$AS$2:$BA$2,0)+1,FALSE) -> 0.00622283391 | AJ73: =M73*VLOOKUP($B73,$AR$36:$AZ$47,MATCH(AJ$2,$AS$2:$BA$2,0)+1,FALSE) -> 0.09310464442 | AK73: =N73*VLOOKUP($B73,$AR$36:$AZ$47,MATCH(AK$2,$AS$2:$BA$2,0)+1,FALSE) -> 0.07288374555 | AL73: =O73*VLOOKUP($B73,$AR$36:$AZ$47,MATCH(AL$2,$AS$2:$BA$2,0)+1,FALSE) -> 0.05869892121 | AM73: =P73*VLOOKUP($B73,$AR$36:$AZ$47,MATCH(AM$2,$AS$2:$BA$2,0)+1,FALSE) -> 8.576988365e-06 | AN73: =Q73*VLOOKUP($B73,$AR$36:$AZ$47,MATCH(AN$2,$AS$2:$BA$2,0)+1,FALSE) -> 0.001665079838 | AO73: =R73*VLOOKUP($B73,$AR$36:$BA$47,MATCH(AO$2,$AS$2:$BA$2,0)+1,FALSE) -> 0 | AP73: 0.8963344074
A74: 2006 | B74: 1 | C74: 3 | D74: 24 | F74: 2013 | G74: 1 | H74: 3 | I74: 24 | J74: 0.2424514453 | K74: 0.3890082367 | L74: 0.008418087479 | M74: 0.1213966045 | N74: 0.0907968 | O74: 0.065243 | P74: 1.713756668e-05 | Q74: 0.002178785549 | R74: 0 | S74: 0.9195100971 | V74: 0.229556663 | W74: 0.1063710064 | X74: 0.3443482465 | Y74: 0.07157182566 | Z74: 0.06014339385 | AA74: 0.004707927806 | AB74: 8.576988365e-06 | AC74: 0.0015925556 | AD74: 0 | AE74: 0.8183001959 | AG74: =J74*VLOOKUP($B74,$AR$36:$AZ$47,MATCH(AG$2,$AS$2:$BA$2,0)+1,FALSE) -> 0.2326414425 | AH74: =K74*VLOOKUP($B74,$AR$36:$AZ$47,MATCH(AH$2,$AS$2:$BA$2,0)+1,FALSE) -> 0.3289974102 | AI74: =L74*VLOOKUP($B74,$AR$36:$AZ$47,MATCH(AI$2,$AS$2:$BA$2,0)+1,FALSE) -> 0.00622283391 | AJ74: =M74*VLOOKUP($B74,$AR$36:$AZ$47,MATCH(AJ$2,$AS$2:$BA$2,0)+1,FALSE) -> 0.1044006103 | AK74: =N74*VLOOKUP($B74,$AR$36:$AZ$47,MATCH(AK$2,$AS$2:$BA$2,0)+1,FALSE) -> 0.07102536551 | AL74: =O74*VLOOKUP($B74,$AR$36:$AZ$47,MATCH(AL$2,$AS$2:$BA$2,0)+1,FALSE) -> 0.05781978888 | AM74: =P74*VLOOKUP($B74,$AR$36:$AZ$47,MATCH(AM$2,$AS$2:$BA$2,0)+1,FALSE) -> 8.576988365e-06 | AN74: =Q74*VLOOKUP($B74,$AR$36:$AZ$47,MATCH(AN$2,$AS$2:$BA$2,0)+1,FALSE) -> 0.001665079838 | AO74: =R74*VLOOKUP($B74,$AR$36:$BA$47,MATCH(AO$2,$AS$2:$BA$2,0)+1,FALSE) -> 0 | AP74: 0.8027811081
A75: 2006 | B75: 1 | C75: 4 | D75: 1 | F75: 2013 | G75: 1 | H75: 4 | I75: 1 | J75: 0.23357302 | K75: 0.3441065574 | L75: 0.008418087479 | M75: 0.09220782371 | N75: 0.0900369 | O75: 0.064176 | P75: 1.713756668e-05 | Q75: 0.002178785549 | R75: 0 | S75: 0.8347143116 | V75: 0.2211504368 | W75: 0.08079500284 | X75: 0.3046014929 | Y75: 0.07097282404 | Z75: 0.05915979405 | AA75: 0.004707927806 | AB75: 8.576988365e-06 | AC75: 0.0015925556 | AD75: 0 | AE75: 0.7429886111 | AG75: =J75*VLOOKUP($B75,$AR$36:$AZ$47,MATCH(AG$2,$AS$2:$BA$2,0)+1,FALSE) -> 0.2241222536 | AH75: =K75*VLOOKUP($B75,$AR$36:$AZ$47,MATCH(AH$2,$AS$2:$BA$2,0)+1,FALSE) -> 0.2910225428 | AI75: =L75*VLOOKUP($B75,$AR$36:$AZ$47,MATCH(AI$2,$AS$2:$BA$2,0)+1,FALSE) -> 0.00622283391 | AJ75: =M75*VLOOKUP($B75,$AR$36:$AZ$47,MATCH(AJ$2,$AS$2:$BA$2,0)+1,FALSE) -> 0.07929837166 | AK75: =N75*VLOOKUP($B75,$AR$36:$AZ$47,MATCH(AK$2,$AS$2:$BA$2,0)+1,FALSE) -> 0.07043093734 | AL75: =O75*VLOOKUP($B75,$AR$36:$AZ$47,MATCH(AL$2,$AS$2:$BA$2,0)+1,FALSE) -> 0.05687418989 | AM75: =P75*VLOOKUP($B75,$AR$36:$AZ$47,MATCH(AM$2,$AS$2:$BA$2,0)+1,FALSE) -> 8.576988365e-06 | AN75: =Q75*VLOOKUP($B75,$AR$36:$AZ$47,MATCH(AN$2,$AS$2:$BA$2,0)+1,FALSE) -> 0.001665079838 | AO75: =R75*VLOOKUP($B75,$AR$36:$BA$47,MATCH(AO$2,$AS$2:$BA$2,0)+1,FALSE) -> 0 | AP75: 0.729644786
A76: 2006 | B76: 1 | C76: 4 | D76: 2 | F76: 2013 | G76: 1 | H76: 4 | I76: 2 | J76: 0.2194254915 | K76: 0.3349100888 | L76: 0.008418087479 | M76: 0.08650273743 | N76: 0.0892632 | O76: 0.063933 | P76: 1.713756668e-05 | Q76: 0.002178785549 | R76: 0 | S76: 0.8046485283 | V76: 0.2077553448 | W76: 0.07579605109 | X76: 0.2964608226 | Y76: 0.07036294438 | Z76: 0.05893578773 | AA76: 0.004707927806 | AB76: 8.576988365e-06 | AC76: 0.0015925556 | AD76: 0 | AE76: 0.715620011 | AG76: =J76*VLOOKUP($B76,$AR$36:$AZ$47,MATCH(AG$2,$AS$2:$BA$2,0)+1,FALSE) -> 0.2105471585 | AH76: =K76*VLOOKUP($B76,$AR$36:$AZ$47,MATCH(AH$2,$AS$2:$BA$2,0)+1,FALSE) -> 0.2832447786 | AI76: =L76*VLOOKUP($B76,$AR$36:$AZ$47,MATCH(AI$2,$AS$2:$BA$2,0)+1,FALSE) -> 0.00622283391 | AJ76: =M76*VLOOKUP($B76,$AR$36:$AZ$47,MATCH(AJ$2,$AS$2:$BA$2,0)+1,FALSE) -> 0.07439201954 | AK76: =N76*VLOOKUP($B76,$AR$36:$AZ$47,MATCH(AK$2,$AS$2:$BA$2,0)+1,FALSE) -> 0.06982571419 | AL76: =O76*VLOOKUP($B76,$AR$36:$AZ$47,MATCH(AL$2,$AS$2:$BA$2,0)+1,FALSE) -> 0.05665883792 | AM76: =P76*VLOOKUP($B76,$AR$36:$AZ$47,MATCH(AM$2,$AS$2:$BA$2,0)+1,FALSE) -> 8.576988365e-06 | AN76: =Q76*VLOOKUP($B76,$AR$36:$AZ$47,MATCH(AN$2,$AS$2:$BA$2,0)+1,FALSE) -> 0.001665079838 | AO76: =R76*VLOOKUP($B76,$AR$36:$BA$47,MATCH(AO$2,$AS$2:$BA$2,0)+1,FALSE) -> 0 | AP76: 0.7025649995
A77: 2006 | B77: 1 | C77: 4 | D77: 3 | F77: 2013 | G77: 1 | H77: 4 | I77: 3 | J77: 0.2168017012 | K77: 0.3316699111 | L77: 0.008418087479 | M77: 0.08631009579 | N77: 0.089083 | O77: 0.063866 | P77: 1.713756668e-05 | Q77: 0.002178785549 | R77: 0 | S77: 0.7983447187 | V77: 0.2052711009 | W77: 0.07562725324 | X77: 0.2935926326 | Y77: 0.07022089925 | Z77: 0.05887402467 | AA77: 0.004707927806 | AB77: 8.576988365e-06 | AC77: 0.0015925556 | AD77: 0 | AE77: 0.709894971 | AG77: =J77*VLOOKUP($B77,$AR$36:$AZ$47,MATCH(AG$2,$AS$2:$BA$2,0)+1,FALSE) -> 0.2080295313 | AH77: =K77*VLOOKUP($B77,$AR$36:$AZ$47,MATCH(AH$2,$AS$2:$BA$2,0)+1,FALSE) -> 0.2805044508 | AI77: =L77*VLOOKUP($B77,$AR$36:$AZ$47,MATCH(AI$2,$AS$2:$BA$2,0)+1,FALSE) -> 0.00622283391 | AJ77: =M77*VLOOKUP($B77,$AR$36:$AZ$47,MATCH(AJ$2,$AS$2:$BA$2,0)+1,FALSE) -> 0.07422634847 | AK77: =N77*VLOOKUP($B77,$AR$36:$AZ$47,MATCH(AK$2,$AS$2:$BA$2,0)+1,FALSE) -> 0.0696847536 | AL77: =O77*VLOOKUP($B77,$AR$36:$AZ$47,MATCH(AL$2,$AS$2:$BA$2,0)+1,FALSE) -> 0.05659946104 | AM77: =P77*VLOOKUP($B77,$AR$36:$AZ$47,MATCH(AM$2,$AS$2:$BA$2,0)+1,FALSE) -> 8.576988365e-06 | AN77: =Q77*VLOOKUP($B77,$AR$36:$AZ$47,MATCH(AN$2,$AS$2:$BA$2,0)+1,FALSE) -> 0.001665079838 | AO77: =R77*VLOOKUP($B77,$AR$36:$BA$47,MATCH(AO$2,$AS$2:$BA$2,0)+1,FALSE) -> 0 | AP77: 0.6969410359
A78: 2006 | B78: 1 | C78: 4 | D78: 4 | F78: 2013 | G78: 1 | H78: 4 | I78: 4 | J78: 0.2175566543 | K78: 0.3306695746 | L78: 0.008418087479 | M78: 0.08452619474 | N78: 0.0887604 | O78: 0.063913 | P78: 1.713756668e-05 | Q78: 0.002178785549 | R78: 0 | S78: 0.7960398342 | V78: 0.2059859017 | W78: 0.07406415063 | X78: 0.2927071395 | Y78: 0.06996660537 | Z78: 0.05891735099 | AA78: 0.004707927806 | AB78: 8.576988365e-06 | AC78: 0.0015925556 | AD78: 0 | AE78: 0.7079502086 | AG78: =J78*VLOOKUP($B78,$AR$36:$AZ$47,MATCH(AG$2,$AS$2:$BA$2,0)+1,FALSE) -> 0.2087539376 | AH78: =K78*VLOOKUP($B78,$AR$36:$AZ$47,MATCH(AH$2,$AS$2:$BA$2,0)+1,FALSE) -> 0.2796584325 | AI78: =L78*VLOOKUP($B78,$AR$36:$AZ$47,MATCH(AI$2,$AS$2:$BA$2,0)+1,FALSE) -> 0.00622283391 | AJ78: =M78*VLOOKUP($B78,$AR$36:$AZ$47,MATCH(AJ$2,$AS$2:$BA$2,0)+1,FALSE) -> 0.07269220047 | AK78: =N78*VLOOKUP($B78,$AR$36:$AZ$47,MATCH(AK$2,$AS$2:$BA$2,0)+1,FALSE) -> 0.06943240128 | AL78: =O78*VLOOKUP($B78,$AR$36:$AZ$47,MATCH(AL$2,$AS$2:$BA$2,0)+1,FALSE) -> 0.05664111348 | AM78: =P78*VLOOKUP($B78,$AR$36:$AZ$47,MATCH(AM$2,$AS$2:$BA$2,0)+1,FALSE) -> 8.576988365e-06 | AN78: =Q78*VLOOKUP($B78,$AR$36:$AZ$47,MATCH(AN$2,$AS$2:$BA$2,0)+1,FALSE) -> 0.001665079838 | AO78: =R78*VLOOKUP($B78,$AR$36:$BA$47,MATCH(AO$2,$AS$2:$BA$2,0)+1,FALSE) -> 0 | AP78: 0.6950745761
A79: 2006 | B79: 1 | C79: 4 | D79: 5 | F79: 2013 | G79: 1 | H79: 4 | I79: 5 | J79: 0.2256345318 | K79: 0.3367343394 | L79: 0.008418087479 | M79: 0.08536594855 | N79: 0.0896086 | O79: 0.064243 | P79: 1.713756668e-05 | Q79: 0.002178785549 | R79: 0 | S79: 0.8122004304 | V79: 0.2136341573 | W79: 0.07479996575 | X79: 0.2980756406 | Y79: 0.07063521067 | Z79: 0.05922155712 | AA79: 0.004707927806 | AB79: 8.576988365e-06 | AC79: 0.0015925556 | AD79: 0 | AE79: 0.7226755918 | AG79: =J79*VLOOKUP($B79,$AR$36:$AZ$47,MATCH(AG$2,$AS$2:$BA$2,0)+1,FALSE) -> 0.2165049704 | AH79: =K79*VLOOKUP($B79,$AR$36:$AZ$47,MATCH(AH$2,$AS$2:$BA$2,0)+1,FALSE) -> 0.284787609 | AI79: =L79*VLOOKUP($B79,$AR$36:$AZ$47,MATCH(AI$2,$AS$2:$BA$2,0)+1,FALSE) -> 0.00622283391 | AJ79: =M79*VLOOKUP($B79,$AR$36:$AZ$47,MATCH(AJ$2,$AS$2:$BA$2,0)+1,FALSE) -> 0.0734143855 | AK79: =N79*VLOOKUP($B79,$AR$36:$AZ$47,MATCH(AK$2,$AS$2:$BA$2,0)+1,FALSE) -> 0.0700959017 | AL79: =O79*VLOOKUP($B79,$AR$36:$AZ$47,MATCH(AL$2,$AS$2:$BA$2,0)+1,FALSE) -> 0.05693356677 | AM79: =P79*VLOOKUP($B79,$AR$36:$AZ$47,MATCH(AM$2,$AS$2:$BA$2,0)+1,FALSE) -> 8.576988365e-06 | AN79: =Q79*VLOOKUP($B79,$AR$36:$AZ$47,MATCH(AN$2,$AS$2:$BA$2,0)+1,FALSE) -> 0.001665079838 | AO79: =R79*VLOOKUP($B79,$AR$36:$BA$47,MATCH(AO$2,$AS$2:$BA$2,0)+1,FALSE) -> 0 | AP79: 0.7096329241
A80: 2006 | B80: 1 | C80: 4 | D80: 6 | F80: 2013 | G80: 1 | H80: 4 | I80: 6 | J80: 0.2468884273 | K80: 0.3547143763 | L80: 0.008418087479 | M80: 0.08226836911 | N80: 0.093119 | O80: 0.066099 | P80: 1.713756668e-05 | Q80: 0.002178785549 | R80: 0 | S80: 0.8537031833 | V80: 0.2337576641 | W80: 0.0720857824 | X80: 0.313991484 | Y80: 0.07340233173 | Z80: 0.06093248609 | AA80: 0.004707927806 | AB80: 8.576988365e-06 | AC80: 0.0015925556 | AD80: 0 | AE80: 0.7604788087 | AG80: =J80*VLOOKUP($B80,$AR$36:$AZ$47,MATCH(AG$2,$AS$2:$BA$2,0)+1,FALSE) -> 0.2368988966 | AH80: =K80*VLOOKUP($B80,$AR$36:$AZ$47,MATCH(AH$2,$AS$2:$BA$2,0)+1,FALSE) -> 0.2999939337 | AI80: =L80*VLOOKUP($B80,$AR$36:$AZ$47,MATCH(AI$2,$AS$2:$BA$2,0)+1,FALSE) -> 0.00622283391 | AJ80: =M80*VLOOKUP($B80,$AR$36:$AZ$47,MATCH(AJ$2,$AS$2:$BA$2,0)+1,FALSE) -> 0.07075047916 | AK80: =N80*VLOOKUP($B80,$AR$36:$AZ$47,MATCH(AK$2,$AS$2:$BA$2,0)+1,FALSE) -> 0.07284189543 | AL80: =O80*VLOOKUP($B80,$AR$36:$AZ$47,MATCH(AL$2,$AS$2:$BA$2,0)+1,FALSE) -> 0.058578395 | AM80: =P80*VLOOKUP($B80,$AR$36:$AZ$47,MATCH(AM$2,$AS$2:$BA$2,0)+1,FALSE) -> 8.576988365e-06 | AN80: =Q80*VLOOKUP($B80,$AR$36:$AZ$47,MATCH(AN$2,$AS$2:$BA$2,0)+1,FALSE) -> 0.001665079838 | AO80: =R80*VLOOKUP($B80,$AR$36:$BA$47,MATCH(AO$2,$AS$2:$BA$2,0)+1,FALSE) -> 0 | AP80: 0.7469600907
A81: 2006 | B81: 1 | C81: 4 | D81: 7 | F81: 2013 | G81: 1 | H81: 4 | I81: 7 | J81: 0.2816463082 | K81: 0.3971730952 | L81: 0.008418087479 | M81: 0.08433240627 | N81: 0.1045498 | O81: 0.071626 | P81: 1.713756668e-05 | Q81: 0.002178785549 | R81: 0 | S81: 0.9499416203 | V81: 0.2666669469 | W81: 0.0738943479 | X81: 0.3515757406 | Y81: 0.08241281695 | Z81: 0.0660274777 | AA81: 0.004707927806 | AB81: 8.576988365e-06 | AC81: 0.0015925556 | AD81: 0 | AE81: 0.8468863904 | AG81: =J81*VLOOKUP($B81,$AR$36:$AZ$47,MATCH(AG$2,$AS$2:$BA$2,0)+1,FALSE) -> 0.2702504139 | AH81: =K81*VLOOKUP($B81,$AR$36:$AZ$47,MATCH(AH$2,$AS$2:$BA$2,0)+1,FALSE) -> 0.335902707 | AI81: =L81*VLOOKUP($B81,$AR$36:$AZ$47,MATCH(AI$2,$AS$2:$BA$2,0)+1,FALSE) -> 0.00622283391 | AJ81: =M81*VLOOKUP($B81,$AR$36:$AZ$47,MATCH(AJ$2,$AS$2:$BA$2,0)+1,FALSE) -> 0.07252554314 | AK81: =N81*VLOOKUP($B81,$AR$36:$AZ$47,MATCH(AK$2,$AS$2:$BA$2,0)+1,FALSE) -> 0.08178358443 | AL81: =O81*VLOOKUP($B81,$AR$36:$AZ$47,MATCH(AL$2,$AS$2:$BA$2,0)+1,FALSE) -> 0.06347654458 | AM81: =P81*VLOOKUP($B81,$AR$36:$AZ$47,MATCH(AM$2,$AS$2:$BA$2,0)+1,FALSE) -> 8.576988365e-06 | AN81: =Q81*VLOOKUP($B81,$AR$36:$AZ$47,MATCH(AN$2,$AS$2:$BA$2,0)+1,FALSE) -> 0.001665079838 | AO81: =R81*VLOOKUP($B81,$AR$36:$BA$47,MATCH(AO$2,$AS$2:$BA$2,0)+1,FALSE) -> 0 | AP81: 0.8318352838
A82: 2006 | B82: 1 | C82: 4 | D82: 8 | F82: 2013 | G82: 1 | H82: 4 | I82: 8 | J82: 0.3099120997 | K82: 0.4496076809 | L82: 0.005331455403 | M82: 0.09851408004 | N82: 0.1113358 | O82: 0.076864 | P82: 1.085379223e-05 | Q82: 0.002056339251 | R82: 0 | S82: 1.053632309 | V82: 0.293429422 | W82: 0.08632071615 | X82: 0.3979905872 | Y82: 0.08776197473 | Z82: 0.0708560585 | AA82: 0.00298168761 | AB82: 5.432092631e-06 | AC82: 0.001503055035 | AD82: 0 | AE82: 0.9408489333 | AG82: =J82*VLOOKUP($B82,$AR$36:$AZ$47,MATCH(AG$2,$AS$2:$BA$2,0)+1,FALSE) -> 0.2973725228 | AH82: =K82*VLOOKUP($B82,$AR$36:$AZ$47,MATCH(AH$2,$AS$2:$BA$2,0)+1,FALSE) -> 0.3802484079 | AI82: =L82*VLOOKUP($B82,$AR$36:$AZ$47,MATCH(AI$2,$AS$2:$BA$2,0)+1,FALSE) -> 0.003941128143 | AJ82: =M82*VLOOKUP($B82,$AR$36:$AZ$47,MATCH(AJ$2,$AS$2:$BA$2,0)+1,FALSE) -> 0.08472172772 | AK82: =N82*VLOOKUP($B82,$AR$36:$AZ$47,MATCH(AK$2,$AS$2:$BA$2,0)+1,FALSE) -> 0.08709190069 | AL82: =O82*VLOOKUP($B82,$AR$36:$AZ$47,MATCH(AL$2,$AS$2:$BA$2,0)+1,FALSE) -> 0.06811857598 | AM82: =P82*VLOOKUP($B82,$AR$36:$AZ$47,MATCH(AM$2,$AS$2:$BA$2,0)+1,FALSE) -> 5.432092631e-06 | AN82: =Q82*VLOOKUP($B82,$AR$36:$AZ$47,MATCH(AN$2,$AS$2:$BA$2,0)+1,FALSE) -> 0.001571503459 | AO82: =R82*VLOOKUP($B82,$AR$36:$BA$47,MATCH(AO$2,$AS$2:$BA$2,0)+1,FALSE) -> 0 | AP82: 0.9230711988
A83: 2006 | B83: 1 | C83: 4 | D83: 9 | F83: 2013 | G83: 1 | H83: 4 | I83: 9 | J83: 0.2940526708 | K83: 0.4796373818 | L83: 0 | M83: 0.1058236554 | N83: 0.1147768 | O83: 0.079289 | P83: 0 | Q83: 0.0018448411 | R83: 0 | S83: 1.075424349 | V83: 0.2784134769 | W83: 0.09272556486 | X83: 0.4245727361 | Y83: 0.09047439028 | Z83: 0.07309151257 | AA83: 0 | AB83: 0 | AC83: 0.00134846315 | AD83: 0 | AE83: 0.9606261439 | AG83: =J83*VLOOKUP($B83,$AR$36:$AZ$47,MATCH(AG$2,$AS$2:$BA$2,0)+1,FALSE) -> 0.2821547937 | AH83: =K83*VLOOKUP($B83,$AR$36:$AZ$47,MATCH(AH$2,$AS$2:$BA$2,0)+1,FALSE) -> 0.4056455406 | AI83: =L83*VLOOKUP($B83,$AR$36:$AZ$47,MATCH(AI$2,$AS$2:$BA$2,0)+1,FALSE) -> 0 | AJ83: =M83*VLOOKUP($B83,$AR$36:$AZ$47,MATCH(AJ$2,$AS$2:$BA$2,0)+1,FALSE) -> 0.09100793423 | AK83: =N83*VLOOKUP($B83,$AR$36:$AZ$47,MATCH(AK$2,$AS$2:$BA$2,0)+1,FALSE) -> 0.0897836066 | AL83: =O83*VLOOKUP($B83,$AR$36:$AZ$47,MATCH(AL$2,$AS$2:$BA$2,0)+1,FALSE) -> 0.07026766459 | AM83: =P83*VLOOKUP($B83,$AR$36:$AZ$47,MATCH(AM$2,$AS$2:$BA$2,0)+1,FALSE) -> 0 | AN83: =Q83*VLOOKUP($B83,$AR$36:$AZ$47,MATCH(AN$2,$AS$2:$BA$2,0)+1,FALSE) -> 0.001409871532 | AO83: =R83*VLOOKUP($B83,$AR$36:$BA$47,MATCH(AO$2,$AS$2:$BA$2,0)+1,FALSE) -> 0 | AP83: 0.9402694112
A84: 2006 | B84: 1 | C84: 4 | D84: 10 | F84: 2013 | G84: 1 | H84: 4 | I84: 10 | J84: 0.2862618566 | K84: 0.4924037741 | L84: 0 | M84: 0.1076651259 | N84: 0.1165148 | O84: 0.079774 | P84: 0 | Q84: 0.0018448411 | R84: 0 | S84: 1.084464398 | V84: 0.2710370172 | W84: 0.09433911136 | X84: 0.435873486 | Y84: 0.09184439267 | Z84: 0.07353860339 | AA84: 0 | AB84: 0 | AC84: 0.00134846315 | AD84: 0 | AE84: 0.9679810738 | AG84: =J84*VLOOKUP($B84,$AR$36:$AZ$47,MATCH(AG$2,$AS$2:$BA$2,0)+1,FALSE) -> 0.2746792092 | AH84: =K84*VLOOKUP($B84,$AR$36:$AZ$47,MATCH(AH$2,$AS$2:$BA$2,0)+1,FALSE) -> 0.4164425099 | AI84: =L84*VLOOKUP($B84,$AR$36:$AZ$47,MATCH(AI$2,$AS$2:$BA$2,0)+1,FALSE) -> 0 | AJ84: =M84*VLOOKUP($B84,$AR$36:$AZ$47,MATCH(AJ$2,$AS$2:$BA$2,0)+1,FALSE) -> 0.09259159171 | AK84: =N84*VLOOKUP($B84,$AR$36:$AZ$47,MATCH(AK$2,$AS$2:$BA$2,0)+1,FALSE) -> 0.09114314884 | AL84: =O84*VLOOKUP($B84,$AR$36:$AZ$47,MATCH(AL$2,$AS$2:$BA$2,0)+1,FALSE) -> 0.07069748231 | AM84: =P84*VLOOKUP($B84,$AR$36:$AZ$47,MATCH(AM$2,$AS$2:$BA$2,0)+1,FALSE) -> 0 | AN84: =Q84*VLOOKUP($B84,$AR$36:$AZ$47,MATCH(AN$2,$AS$2:$BA$2,0)+1,FALSE) -> 0.001409871532 | AO84: =R84*VLOOKUP($B84,$AR$36:$BA$47,MATCH(AO$2,$AS$2:$BA$2,0)+1,FALSE) -> 0 | AP84: 0.9469638135
A85: 2006 | B85: 1 | C85: 4 | D85: 11 | F85: 2013 | G85: 1 | H85: 4 | I85: 11 | J85: 0.272047089 | K85: 0.4902602297 | L85: 0 | M85: 0.1031109955 | N85: 0.1167657 | O85: 0.080194 | P85: 0 | Q85: 0.0018448411 | R85: 0 | S85: 1.064222855 | V85: 0.2575782622 | W85: 0.09034865845 | X85: 0.4339760307 | Y85: 0.09204216804 | Z85: 0.07392577481 | AA85: 0 | AB85: 0 | AC85: 0.00134846315 | AD85: 0 | AE85: 0.9492193573 | AG85: =J85*VLOOKUP($B85,$AR$36:$AZ$47,MATCH(AG$2,$AS$2:$BA$2,0)+1,FALSE) -> 0.2610395956 | AH85: =K85*VLOOKUP($B85,$AR$36:$AZ$47,MATCH(AH$2,$AS$2:$BA$2,0)+1,FALSE) -> 0.414629642 | AI85: =L85*VLOOKUP($B85,$AR$36:$AZ$47,MATCH(AI$2,$AS$2:$BA$2,0)+1,FALSE) -> 0 | AJ85: =M85*VLOOKUP($B85,$AR$36:$AZ$47,MATCH(AJ$2,$AS$2:$BA$2,0)+1,FALSE) -> 0.08867505719 | AK85: =N85*VLOOKUP($B85,$AR$36:$AZ$47,MATCH(AK$2,$AS$2:$BA$2,0)+1,FALSE) -> 0.09133941418 | AL85: =O85*VLOOKUP($B85,$AR$36:$AZ$47,MATCH(AL$2,$AS$2:$BA$2,0)+1,FALSE) -> 0.07106969559 | AM85: =P85*VLOOKUP($B85,$AR$36:$AZ$47,MATCH(AM$2,$AS$2:$BA$2,0)+1,FALSE) -> 0 | AN85: =Q85*VLOOKUP($B85,$AR$36:$AZ$47,MATCH(AN$2,$AS$2:$BA$2,0)+1,FALSE) -> 0.001409871532 | AO85: =R85*VLOOKUP($B85,$AR$36:$BA$47,MATCH(AO$2,$AS$2:$BA$2,0)+1,FALSE) -> 0 | AP85: 0.9281632761
A86: 2006 | B86: 1 | C86: 4 | D86: 12 | F86: 2013 | G86: 1 | H86: 4 | I86: 12 | J86: 0.2780895405 | K86: 0.4854703679 | L86: 0 | M86: 0.09757218848 | N86: 0.1166584 | O86: 0.080114 | P86: 0 | Q86: 0.0018448411 | R86: 0 | S86: 1.059749338 | V86: 0.2632993458 | W86: 0.08549540514 | X86: 0.4297360677 | Y86: 0.09195758734 | Z86: 0.07385202788 | AA86: 0 | AB86: 0 | AC86: 0.00134846315 | AD86: 0 | AE86: 0.945688897 | AG86: =J86*VLOOKUP($B86,$AR$36:$AZ$47,MATCH(AG$2,$AS$2:$BA$2,0)+1,FALSE) -> 0.2668375591 | AH86: =K86*VLOOKUP($B86,$AR$36:$AZ$47,MATCH(AH$2,$AS$2:$BA$2,0)+1,FALSE) -> 0.410578694 | AI86: =L86*VLOOKUP($B86,$AR$36:$AZ$47,MATCH(AI$2,$AS$2:$BA$2,0)+1,FALSE) -> 0 | AJ86: =M86*VLOOKUP($B86,$AR$36:$AZ$47,MATCH(AJ$2,$AS$2:$BA$2,0)+1,FALSE) -> 0.08391170461 | AK86: =N86*VLOOKUP($B86,$AR$36:$AZ$47,MATCH(AK$2,$AS$2:$BA$2,0)+1,FALSE) -> 0.09125547926 | AL86: =O86*VLOOKUP($B86,$AR$36:$AZ$47,MATCH(AL$2,$AS$2:$BA$2,0)+1,FALSE) -> 0.07099879782 | AM86: =P86*VLOOKUP($B86,$AR$36:$AZ$47,MATCH(AM$2,$AS$2:$BA$2,0)+1,FALSE) -> 0 | AN86: =Q86*VLOOKUP($B86,$AR$36:$AZ$47,MATCH(AN$2,$AS$2:$BA$2,0)+1,FALSE) -> 0.001409871532 | AO86: =R86*VLOOKUP($B86,$AR$36:$BA$47,MATCH(AO$2,$AS$2:$BA$2,0)+1,FALSE) -> 0 | AP86: 0.9249921063
A87: 2006 | B87: 1 | C87: 4 | D87: 13 | F87: 2013 | G87: 1 | H87: 4 | I87: 13 | J87: 0.2598685212 | K87: 0.4889850266 | L87: 0 | M87: 0.1068200025 | N87: 0.1164083 | O87: 0.080532 | P87: 0 | Q87: 0.0018448411 | R87: 0 | S87: 1.054458691 | V87: 0.2460474117 | W87: 0.09359859131 | X87: 0.4328472269 | Y87: 0.09176044258 | Z87: 0.07423735563 | AA87: 0 | AB87: 0 | AC87: 0.00134846315 | AD87: 0 | AE87: 0.9398394912 | AG87: =J87*VLOOKUP($B87,$AR$36:$AZ$47,MATCH(AG$2,$AS$2:$BA$2,0)+1,FALSE) -> 0.2493537936 | AH87: =K87*VLOOKUP($B87,$AR$36:$AZ$47,MATCH(AH$2,$AS$2:$BA$2,0)+1,FALSE) -> 0.4135511596 | AI87: =L87*VLOOKUP($B87,$AR$36:$AZ$47,MATCH(AI$2,$AS$2:$BA$2,0)+1,FALSE) -> 0 | AJ87: =M87*VLOOKUP($B87,$AR$36:$AZ$47,MATCH(AJ$2,$AS$2:$BA$2,0)+1,FALSE) -> 0.09186478892 | AK87: =N87*VLOOKUP($B87,$AR$36:$AZ$47,MATCH(AK$2,$AS$2:$BA$2,0)+1,FALSE) -> 0.09105983973 | AL87: =O87*VLOOKUP($B87,$AR$36:$AZ$47,MATCH(AL$2,$AS$2:$BA$2,0)+1,FALSE) -> 0.07136923866 | AM87: =P87*VLOOKUP($B87,$AR$36:$AZ$47,MATCH(AM$2,$AS$2:$BA$2,0)+1,FALSE) -> 0 | AN87: =Q87*VLOOKUP($B87,$AR$36:$AZ$47,MATCH(AN$2,$AS$2:$BA$2,0)+1,FALSE) -> 0.001409871532 | AO87: =R87*VLOOKUP($B87,$AR$36:$BA$47,MATCH(AO$2,$AS$2:$BA$2,0)+1,FALSE) -> 0 | AP87: 0.9186086921
A88: 2006 | B88: 1 | C88: 4 | D88: 14 | F88: 2013 | G88: 1 | H88: 4 | I88: 14 | J88: 0.2447304197 | K88: 0.4895087808 | L88: 0 | M88: 0.1091186284 | N88: 0.1166011 | O88: 0.080466 | P88: 0 | Q88: 0.0018448411 | R88: 0 | S88: 1.04226977 | V88: 0.2317144302 | W88: 0.09561270979 | X88: 0.4333108516 | Y88: 0.09191241983 | Z88: 0.0741765144 | AA88: 0 | AB88: 0 | AC88: 0.00134846315 | AD88: 0 | AE88: 0.9280753889 | AG88: =J88*VLOOKUP($B88,$AR$36:$AZ$47,MATCH(AG$2,$AS$2:$BA$2,0)+1,FALSE) -> 0.2348282057 | AH88: =K88*VLOOKUP($B88,$AR$36:$AZ$47,MATCH(AH$2,$AS$2:$BA$2,0)+1,FALSE) -> 0.4139941162 | AI88: =L88*VLOOKUP($B88,$AR$36:$AZ$47,MATCH(AI$2,$AS$2:$BA$2,0)+1,FALSE) -> 0 | AJ88: =M88*VLOOKUP($B88,$AR$36:$AZ$47,MATCH(AJ$2,$AS$2:$BA$2,0)+1,FALSE) -> 0.09384159825 | AK88: =N88*VLOOKUP($B88,$AR$36:$AZ$47,MATCH(AK$2,$AS$2:$BA$2,0)+1,FALSE) -> 0.09121065661 | AL88: =O88*VLOOKUP($B88,$AR$36:$AZ$47,MATCH(AL$2,$AS$2:$BA$2,0)+1,FALSE) -> 0.071310748 | AM88: =P88*VLOOKUP($B88,$AR$36:$AZ$47,MATCH(AM$2,$AS$2:$BA$2,0)+1,FALSE) -> 0 | AN88: =Q88*VLOOKUP($B88,$AR$36:$AZ$47,MATCH(AN$2,$AS$2:$BA$2,0)+1,FALSE) -> 0.001409871532 | AO88: =R88*VLOOKUP($B88,$AR$36:$BA$47,MATCH(AO$2,$AS$2:$BA$2,0)+1,FALSE) -> 0 | AP88: 0.9065951963
A89: 2006 | B89: 1 | C89: 4 | D89: 15 | F89: 2013 | G89: 1 | H89: 4 | I89: 15 | J89: 0.2576375451 | K89: 0.4762378129 | L89: 0 | M89: 0.09818437362 | N89: 0.1154797 | O89: 0.080271 | P89: 0 | Q89: 0.0018448411 | R89: 0 | S89: 1.029655273 | V89: 0.24393509 | W89: 0.08603181841 | X89: 0.4215634538 | Y89: 0.09102846086 | Z89: 0.07399675624 | AA89: 0 | AB89: 0 | AC89: 0.00134846315 | AD89: 0 | AE89: 0.9179040425 | AG89: =J89*VLOOKUP($B89,$AR$36:$AZ$47,MATCH(AG$2,$AS$2:$BA$2,0)+1,FALSE) -> 0.2472130867 | AH89: =K89*VLOOKUP($B89,$AR$36:$AZ$47,MATCH(AH$2,$AS$2:$BA$2,0)+1,FALSE) -> 0.4027704103 | AI89: =L89*VLOOKUP($B89,$AR$36:$AZ$47,MATCH(AI$2,$AS$2:$BA$2,0)+1,FALSE) -> 0 | AJ89: =M89*VLOOKUP($B89,$AR$36:$AZ$47,MATCH(AJ$2,$AS$2:$BA$2,0)+1,FALSE) -> 0.08443818147 | AK89: =N89*VLOOKUP($B89,$AR$36:$AZ$47,MATCH(AK$2,$AS$2:$BA$2,0)+1,FALSE) -> 0.09033344679 | AL89: =O89*VLOOKUP($B89,$AR$36:$AZ$47,MATCH(AL$2,$AS$2:$BA$2,0)+1,FALSE) -> 0.07113793469 | AM89: =P89*VLOOKUP($B89,$AR$36:$AZ$47,MATCH(AM$2,$AS$2:$BA$2,0)+1,FALSE) -> 0 | AN89: =Q89*VLOOKUP($B89,$AR$36:$AZ$47,MATCH(AN$2,$AS$2:$BA$2,0)+1,FALSE) -> 0.001409871532 | AO89: =R89*VLOOKUP($B89,$AR$36:$BA$47,MATCH(AO$2,$AS$2:$BA$2,0)+1,FALSE) -> 0 | AP89: 0.8973029314
A90: 2006 | B90: 1 | C90: 4 | D90: 16 | F90: 2013 | G90: 1 | H90: 4 | I90: 16 | J90: 0.2811275128 | K90: 0.4668530364 | L90: 0 | M90: 0.09237312647 | N90: 0.1139207 | O90: 0.078201 | P90: 0 | Q90: 0.0018448411 | R90: 0 | S90: 1.034320217 | V90: 0.2661757436 | W90: 0.08093984562 | X90: 0.4132560941 | Y90: 0.08979955768 | Z90: 0.07208855421 | AA90: 0 | AB90: 0 | AC90: 0.00134846315 | AD90: 0 | AE90: 0.9236082583 | AG90: =J90*VLOOKUP($B90,$AR$36:$AZ$47,MATCH(AG$2,$AS$2:$BA$2,0)+1,FALSE) -> 0.2697526098 | AH90: =K90*VLOOKUP($B90,$AR$36:$AZ$47,MATCH(AH$2,$AS$2:$BA$2,0)+1,FALSE) -> 0.3948333877 | AI90: =L90*VLOOKUP($B90,$AR$36:$AZ$47,MATCH(AI$2,$AS$2:$BA$2,0)+1,FALSE) -> 0 | AJ90: =M90*VLOOKUP($B90,$AR$36:$AZ$47,MATCH(AJ$2,$AS$2:$BA$2,0)+1,FALSE) -> 0.0794405314 | AK90: =N90*VLOOKUP($B90,$AR$36:$AZ$47,MATCH(AK$2,$AS$2:$BA$2,0)+1,FALSE) -> 0.08911392644 | AL90: =O90*VLOOKUP($B90,$AR$36:$AZ$47,MATCH(AL$2,$AS$2:$BA$2,0)+1,FALSE) -> 0.06930345493 | AM90: =P90*VLOOKUP($B90,$AR$36:$AZ$47,MATCH(AM$2,$AS$2:$BA$2,0)+1,FALSE) -> 0 | AN90: =Q90*VLOOKUP($B90,$AR$36:$AZ$47,MATCH(AN$2,$AS$2:$BA$2,0)+1,FALSE) -> 0.001409871532 | AO90: =R90*VLOOKUP($B90,$AR$36:$BA$47,MATCH(AO$2,$AS$2:$BA$2,0)+1,FALSE) -> 0 | AP90: 0.9038537818
A91: 2006 | B91: 1 | C91: 4 | D91: 17 | F91: 2013 | G91: 1 | H91: 4 | I91: 17 | J91: 0.3180166031 | K91: 0.4681071649 | L91: 0.002525426244 | M91: 0.09882215087 | N91: 0.1118197 | O91: 0.076892 | P91: 5.141270004e-06 | Q91: 0.001945024434 | R91: 0 | S91: 1.078133211 | V91: 0.3011028873 | W91: 0.08659065619 | X91: 0.4143662427 | Y91: 0.08814341555 | Z91: 0.07088186993 | AA91: 0.001412378342 | AB91: 2.57309651e-06 | AC91: 0.001421690885 | AD91: 0 | AE91: 0.963921714 | AG91: =J91*VLOOKUP($B91,$AR$36:$AZ$47,MATCH(AG$2,$AS$2:$BA$2,0)+1,FALSE) -> 0.3051491041 | AH91: =K91*VLOOKUP($B91,$AR$36:$AZ$47,MATCH(AH$2,$AS$2:$BA$2,0)+1,FALSE) -> 0.3958940465 | AI91: =L91*VLOOKUP($B91,$AR$36:$AZ$47,MATCH(AI$2,$AS$2:$BA$2,0)+1,FALSE) -> 0.001866850173 | AJ91: =M91*VLOOKUP($B91,$AR$36:$AZ$47,MATCH(AJ$2,$AS$2:$BA$2,0)+1,FALSE) -> 0.08498666744 | AK91: =N91*VLOOKUP($B91,$AR$36:$AZ$47,MATCH(AK$2,$AS$2:$BA$2,0)+1,FALSE) -> 0.08747042917 | AL91: =O91*VLOOKUP($B91,$AR$36:$AZ$47,MATCH(AL$2,$AS$2:$BA$2,0)+1,FALSE) -> 0.0681433902 | AM91: =P91*VLOOKUP($B91,$AR$36:$AZ$47,MATCH(AM$2,$AS$2:$BA$2,0)+1,FALSE) -> 2.57309651e-06 | AN91: =Q91*VLOOKUP($B91,$AR$36:$AZ$47,MATCH(AN$2,$AS$2:$BA$2,0)+1,FALSE) -> 0.001486434024 | AO91: =R91*VLOOKUP($B91,$AR$36:$BA$47,MATCH(AO$2,$AS$2:$BA$2,0)+1,FALSE) -> 0 | AP91: 0.9449994947
A92: 2006 | B92: 1 | C92: 4 | D92: 18 | F92: 2013 | G92: 1 | H92: 4 | I92: 18 | J92: 0.3870233018 | K92: 0.4611986051 | L92: 0.008418087479 | M92: 0.0959673943 | N92: 0.1089469 | O92: 0.074548 | P92: 1.713756668e-05 | Q92: 0.002178785549 | R92: 0 | S92: 1.138298212 | V92: 0.3664394641 | W92: 0.08408924084 | X92: 0.4082508183 | Y92: 0.08587889147 | Z92: 0.06872108463 | AA92: 0.004707927806 | AB92: 8.576988365e-06 | AC92: 0.0015925556 | AD92: 0 | AE92: 1.01968856 | AG92: =J92*VLOOKUP($B92,$AR$36:$AZ$47,MATCH(AG$2,$AS$2:$BA$2,0)+1,FALSE) -> 0.3713636729 | AH92: =K92*VLOOKUP($B92,$AR$36:$AZ$47,MATCH(AH$2,$AS$2:$BA$2,0)+1,FALSE) -> 0.3900512441 | AI92: =L92*VLOOKUP($B92,$AR$36:$AZ$47,MATCH(AI$2,$AS$2:$BA$2,0)+1,FALSE) -> 0.00622283391 | AJ92: =M92*VLOOKUP($B92,$AR$36:$AZ$47,MATCH(AJ$2,$AS$2:$BA$2,0)+1,FALSE) -> 0.08253158783 | AK92: =N92*VLOOKUP($B92,$AR$36:$AZ$47,MATCH(AK$2,$AS$2:$BA$2,0)+1,FALSE) -> 0.08522319502 | AL92: =O92*VLOOKUP($B92,$AR$36:$AZ$47,MATCH(AL$2,$AS$2:$BA$2,0)+1,FALSE) -> 0.06606608558 | AM92: =P92*VLOOKUP($B92,$AR$36:$AZ$47,MATCH(AM$2,$AS$2:$BA$2,0)+1,FALSE) -> 8.576988365e-06 | AN92: =Q92*VLOOKUP($B92,$AR$36:$AZ$47,MATCH(AN$2,$AS$2:$BA$2,0)+1,FALSE) -> 0.001665079838 | AO92: =R92*VLOOKUP($B92,$AR$36:$BA$47,MATCH(AO$2,$AS$2:$BA$2,0)+1,FALSE) -> 0 | AP92: 1.003132276
A93: 2006 | B93: 1 | C93: 4 | D93: 19 | F93: 2013 | G93: 1 | H93: 4 | I93: 19 | J93: 0.4209784827 | K93: 0.4513740471 | L93: 0.008418087479 | M93: 0.1068064691 | N93: 0.098318 | O93: 0.069831 | P93: 1.713756668e-05 | Q93: 0.002178785549 | R93: 0 | S93: 1.15792201 | V93: 0.3985887384 | W93: 0.09358673294 | X93: 0.3995541662 | Y93: 0.07750051494 | Z93: 0.06437278077 | AA93: 0.004707927806 | AB93: 8.576988365e-06 | AC93: 0.0015925556 | AD93: 0 | AE93: 1.039911994 | AG93: =J93*VLOOKUP($B93,$AR$36:$AZ$47,MATCH(AG$2,$AS$2:$BA$2,0)+1,FALSE) -> 0.4039449688 | AH93: =K93*VLOOKUP($B93,$AR$36:$AZ$47,MATCH(AH$2,$AS$2:$BA$2,0)+1,FALSE) -> 0.3817422834 | AI93: =L93*VLOOKUP($B93,$AR$36:$AZ$47,MATCH(AI$2,$AS$2:$BA$2,0)+1,FALSE) -> 0.00622283391 | AJ93: =M93*VLOOKUP($B93,$AR$36:$AZ$47,MATCH(AJ$2,$AS$2:$BA$2,0)+1,FALSE) -> 0.0918531502 | AK93: =N93*VLOOKUP($B93,$AR$36:$AZ$47,MATCH(AK$2,$AS$2:$BA$2,0)+1,FALSE) -> 0.07690878848 | AL93: =O93*VLOOKUP($B93,$AR$36:$AZ$47,MATCH(AL$2,$AS$2:$BA$2,0)+1,FALSE) -> 0.0618857759 | AM93: =P93*VLOOKUP($B93,$AR$36:$AZ$47,MATCH(AM$2,$AS$2:$BA$2,0)+1,FALSE) -> 8.576988365e-06 | AN93: =Q93*VLOOKUP($B93,$AR$36:$AZ$47,MATCH(AN$2,$AS$2:$BA$2,0)+1,FALSE) -> 0.001665079838 | AO93: =R93*VLOOKUP($B93,$AR$36:$BA$47,MATCH(AO$2,$AS$2:$BA$2,0)+1,FALSE) -> 0 | AP93: 1.024231458
A94: 2006 | B94: 1 | C94: 4 | D94: 20 | F94: 2013 | G94: 1 | H94: 4 | I94: 20 | J94: 0.4243097499 | K94: 0.4260264347 | L94: 0.008418087479 | M94: 0.08807038497 | N94: 0.0943035 | O94: 0.067866 | P94: 1.713756668e-05 | Q94: 0.002178785549 | R94: 0 | S94: 1.11119008 | V94: 0.4017428322 | W94: 0.07716966649 | X94: 0.3771165799 | Y94: 0.07433603013 | Z94: 0.06256137159 | AA94: 0.004707927806 | AB94: 8.576988365e-06 | AC94: 0.0015925556 | AD94: 0 | AE94: 0.9992355407 | AG94: =J94*VLOOKUP($B94,$AR$36:$AZ$47,MATCH(AG$2,$AS$2:$BA$2,0)+1,FALSE) -> 0.4071414472 | AH94: =K94*VLOOKUP($B94,$AR$36:$AZ$47,MATCH(AH$2,$AS$2:$BA$2,0)+1,FALSE) -> 0.3603049511 | AI94: =L94*VLOOKUP($B94,$AR$36:$AZ$47,MATCH(AI$2,$AS$2:$BA$2,0)+1,FALSE) -> 0.00622283391 | AJ94: =M94*VLOOKUP($B94,$AR$36:$AZ$47,MATCH(AJ$2,$AS$2:$BA$2,0)+1,FALSE) -> 0.07574019036 | AK94: =N94*VLOOKUP($B94,$AR$36:$AZ$47,MATCH(AK$2,$AS$2:$BA$2,0)+1,FALSE) -> 0.07376846492 | AL94: =O94*VLOOKUP($B94,$AR$36:$AZ$47,MATCH(AL$2,$AS$2:$BA$2,0)+1,FALSE) -> 0.06014434946 | AM94: =P94*VLOOKUP($B94,$AR$36:$AZ$47,MATCH(AM$2,$AS$2:$BA$2,0)+1,FALSE) -> 8.576988365e-06 | AN94: =Q94*VLOOKUP($B94,$AR$36:$AZ$47,MATCH(AN$2,$AS$2:$BA$2,0)+1,FALSE) -> 0.001665079838 | AO94: =R94*VLOOKUP($B94,$AR$36:$BA$47,MATCH(AO$2,$AS$2:$BA$2,0)+1,FALSE) -> 0 | AP94: 0.9849958938
A95: 2006 | B95: 1 | C95: 4 | D95: 21 | F95: 2013 | G95: 1 | H95: 4 | I95: 21 | J95: 0.3982332328 | K95: 0.4273589768 | L95: 0.008418087479 | M95: 0.10495491 | N95: 0.0920696 | O95: 0.067257 | P95: 1.713756668e-05 | Q95: 0.002178785549 | R95: 0 | S95: 1.10048773 | V95: 0.3770531948 | W95: 0.09196434653 | X95: 0.3782961398 | Y95: 0.07257512775 | Z95: 0.06199997302 | AA95: 0.004707927806 | AB95: 8.576988365e-06 | AC95: 0.0015925556 | AD95: 0 | AE95: 0.9881978423 | AG95: =J95*VLOOKUP($B95,$AR$36:$AZ$47,MATCH(AG$2,$AS$2:$BA$2,0)+1,FALSE) -> 0.3821200308 | AH95: =K95*VLOOKUP($B95,$AR$36:$AZ$47,MATCH(AH$2,$AS$2:$BA$2,0)+1,FALSE) -> 0.361431927 | AI95: =L95*VLOOKUP($B95,$AR$36:$AZ$47,MATCH(AI$2,$AS$2:$BA$2,0)+1,FALSE) -> 0.00622283391 | AJ95: =M95*VLOOKUP($B95,$AR$36:$AZ$47,MATCH(AJ$2,$AS$2:$BA$2,0)+1,FALSE) -> 0.09026081657 | AK95: =N95*VLOOKUP($B95,$AR$36:$AZ$47,MATCH(AK$2,$AS$2:$BA$2,0)+1,FALSE) -> 0.07202100726 | AL95: =O95*VLOOKUP($B95,$AR$36:$AZ$47,MATCH(AL$2,$AS$2:$BA$2,0)+1,FALSE) -> 0.0596046402 | AM95: =P95*VLOOKUP($B95,$AR$36:$AZ$47,MATCH(AM$2,$AS$2:$BA$2,0)+1,FALSE) -> 8.576988365e-06 | AN95: =Q95*VLOOKUP($B95,$AR$36:$AZ$47,MATCH(AN$2,$AS$2:$BA$2,0)+1,FALSE) -> 0.001665079838 | AO95: =R95*VLOOKUP($B95,$AR$36:$BA$47,MATCH(AO$2,$AS$2:$BA$2,0)+1,FALSE) -> 0 | AP95: 0.9733349126
A96: 2006 | B96: 1 | C96: 4 | D96: 22 | F96: 2013 | G96: 1 | H96: 4 | I96: 22 | J96: 0.362580995 | K96: 0.3951896002 | L96: 0.008418087479 | M96: 0.09421829814 | N96: 0.0891921 | O96: 0.066144 | P96: 1.713756668e-05 | Q96: 0.002178785549 | R96: 0 | S96: 1.017939004 | V96: 0.3432971216 | W96: 0.08255663521 | X96: 0.3498199602 | Y96: 0.07030689882 | Z96: 0.06097396874 | AA96: 0.004707927806 | AB96: 8.576988365e-06 | AC96: 0.0015925556 | AD96: 0 | AE96: 0.913263645 | AG96: =J96*VLOOKUP($B96,$AR$36:$AZ$47,MATCH(AG$2,$AS$2:$BA$2,0)+1,FALSE) -> 0.347910344 | AH96: =K96*VLOOKUP($B96,$AR$36:$AZ$47,MATCH(AH$2,$AS$2:$BA$2,0)+1,FALSE) -> 0.3342251982 | AI96: =L96*VLOOKUP($B96,$AR$36:$AZ$47,MATCH(AI$2,$AS$2:$BA$2,0)+1,FALSE) -> 0.00622283391 | AJ96: =M96*VLOOKUP($B96,$AR$36:$AZ$47,MATCH(AJ$2,$AS$2:$BA$2,0)+1,FALSE) -> 0.0810273719 | AK96: =N96*VLOOKUP($B96,$AR$36:$AZ$47,MATCH(AK$2,$AS$2:$BA$2,0)+1,FALSE) -> 0.06977009655 | AL96: =O96*VLOOKUP($B96,$AR$36:$AZ$47,MATCH(AL$2,$AS$2:$BA$2,0)+1,FALSE) -> 0.058618275 | AM96: =P96*VLOOKUP($B96,$AR$36:$AZ$47,MATCH(AM$2,$AS$2:$BA$2,0)+1,FALSE) -> 8.576988365e-06 | AN96: =Q96*VLOOKUP($B96,$AR$36:$AZ$47,MATCH(AN$2,$AS$2:$BA$2,0)+1,FALSE) -> 0.001665079838 | AO96: =R96*VLOOKUP($B96,$AR$36:$BA$47,MATCH(AO$2,$AS$2:$BA$2,0)+1,FALSE) -> 0 | AP96: 0.8994477763
A97: 2006 | B97: 1 | C97: 4 | D97: 23 | F97: 2013 | G97: 1 | H97: 4 | I97: 23 | J97: 0.3280329368 | K97: 0.3846181333 | L97: 0.008418087479 | M97: 0.1032713182 | N97: 0.0860788 | O97: 0.064109 | P97: 1.713756668e-05 | Q97: 0.002178785549 | R97: 0 | S97: 0.9767241989 | V97: 0.3105865021 | W97: 0.09048913758 | X97: 0.3404621479 | Y97: 0.0678527973 | Z97: 0.05909803099 | AA97: 0.004707927806 | AB97: 8.576988365e-06 | AC97: 0.0015925556 | AD97: 0 | AE97: 0.8747976763 | AG97: =J97*VLOOKUP($B97,$AR$36:$AZ$47,MATCH(AG$2,$AS$2:$BA$2,0)+1,FALSE) -> 0.3147601596 | AH97: =K97*VLOOKUP($B97,$AR$36:$AZ$47,MATCH(AH$2,$AS$2:$BA$2,0)+1,FALSE) -> 0.3252845515 | AI97: =L97*VLOOKUP($B97,$AR$36:$AZ$47,MATCH(AI$2,$AS$2:$BA$2,0)+1,FALSE) -> 0.00622283391 | AJ97: =M97*VLOOKUP($B97,$AR$36:$AZ$47,MATCH(AJ$2,$AS$2:$BA$2,0)+1,FALSE) -> 0.08881293411 | AK97: =N97*VLOOKUP($B97,$AR$36:$AZ$47,MATCH(AK$2,$AS$2:$BA$2,0)+1,FALSE) -> 0.06733473242 | AL97: =O97*VLOOKUP($B97,$AR$36:$AZ$47,MATCH(AL$2,$AS$2:$BA$2,0)+1,FALSE) -> 0.05681481301 | AM97: =P97*VLOOKUP($B97,$AR$36:$AZ$47,MATCH(AM$2,$AS$2:$BA$2,0)+1,FALSE) -> 8.576988365e-06 | AN97: =Q97*VLOOKUP($B97,$AR$36:$AZ$47,MATCH(AN$2,$AS$2:$BA$2,0)+1,FALSE) -> 0.001665079838 | AO97: =R97*VLOOKUP($B97,$AR$36:$BA$47,MATCH(AO$2,$AS$2:$BA$2,0)+1,FALSE) -> 0 | AP97: 0.8609036814
A98: 2006 | B98: 1 | C98: 4 | D98: 24 | F98: 2013 | G98: 1 | H98: 4 | I98: 24 | J98: 0.2319594031 | K98: 0.3775972832 | L98: 0.008418087479 | M98: 0.1225541483 | N98: 0.0844132 | O98: 0.062744 | P98: 1.713756668e-05 | Q98: 0.002178785549 | R98: 0 | S98: 0.8898820452 | V98: 0.2196226402 | W98: 0.1073852778 | X98: 0.3342473246 | Y98: 0.06653986521 | Z98: 0.05783972386 | AA98: 0.004707927806 | AB98: 8.576988365e-06 | AC98: 0.0015925556 | AD98: 0 | AE98: 0.791943892 | AG98: =J98*VLOOKUP($B98,$AR$36:$AZ$47,MATCH(AG$2,$AS$2:$BA$2,0)+1,FALSE) -> 0.2225739264 | AH98: =K98*VLOOKUP($B98,$AR$36:$AZ$47,MATCH(AH$2,$AS$2:$BA$2,0)+1,FALSE) -> 0.3193467813 | AI98: =L98*VLOOKUP($B98,$AR$36:$AZ$47,MATCH(AI$2,$AS$2:$BA$2,0)+1,FALSE) -> 0.00622283391 | AJ98: =M98*VLOOKUP($B98,$AR$36:$AZ$47,MATCH(AJ$2,$AS$2:$BA$2,0)+1,FALSE) -> 0.1053960934 | AK98: =N98*VLOOKUP($B98,$AR$36:$AZ$47,MATCH(AK$2,$AS$2:$BA$2,0)+1,FALSE) -> 0.06603182473 | AL98: =O98*VLOOKUP($B98,$AR$36:$AZ$47,MATCH(AL$2,$AS$2:$BA$2,0)+1,FALSE) -> 0.05560511984 | AM98: =P98*VLOOKUP($B98,$AR$36:$AZ$47,MATCH(AM$2,$AS$2:$BA$2,0)+1,FALSE) -> 8.576988365e-06 | AN98: =Q98*VLOOKUP($B98,$AR$36:$AZ$47,MATCH(AN$2,$AS$2:$BA$2,0)+1,FALSE) -> 0.001665079838 | AO98: =R98*VLOOKUP($B98,$AR$36:$BA$47,MATCH(AO$2,$AS$2:$BA$2,0)+1,FALSE) -> 0 | AP98: 0.7768502364
A99: 2006 | B99: 1 | C99: 5 | D99: 1 | F99: 2013 | G99: 1 | H99: 5 | I99: 1 | J99: 0.2342915149 | K99: 0.3316933225 | L99: 0.008418087479 | M99: 0.0992885649 | N99: 0.0840233 | O99: 0.061968 | P99: 1.713756668e-05 | Q99: 0.002178785549 | R99: 0 | S99: 0.821878713 | V99: 0.2218307186 | W99: 0.08699934085 | X99: 0.2936133563 | Y99: 0.06623252118 | Z99: 0.05712437855 | AA99: 0.004707927806 | AB99: 8.576988365e-06 | AC99: 0.0015925556 | AD99: 0 | AE99: 0.7321093759 | AG99: =J99*VLOOKUP($B99,$AR$36:$AZ$47,MATCH(AG$2,$AS$2:$BA$2,0)+1,FALSE) -> 0.224811677 | AH99: =K99*VLOOKUP($B99,$AR$36:$AZ$47,MATCH(AH$2,$AS$2:$BA$2,0)+1,FALSE) -> 0.2805242507 | AI99: =L99*VLOOKUP($B99,$AR$36:$AZ$47,MATCH(AI$2,$AS$2:$BA$2,0)+1,FALSE) -> 0.00622283391 | AJ99: =M99*VLOOKUP($B99,$AR$36:$AZ$47,MATCH(AJ$2,$AS$2:$BA$2,0)+1,FALSE) -> 0.0853877817 | AK99: =N99*VLOOKUP($B99,$AR$36:$AZ$47,MATCH(AK$2,$AS$2:$BA$2,0)+1,FALSE) -> 0.06572682731 | AL99: =O99*VLOOKUP($B99,$AR$36:$AZ$47,MATCH(AL$2,$AS$2:$BA$2,0)+1,FALSE) -> 0.05491741148 | AM99: =P99*VLOOKUP($B99,$AR$36:$AZ$47,MATCH(AM$2,$AS$2:$BA$2,0)+1,FALSE) -> 8.576988365e-06 | AN99: =Q99*VLOOKUP($B99,$AR$36:$AZ$47,MATCH(AN$2,$AS$2:$BA$2,0)+1,FALSE) -> 0.001665079838 | AO99: =R99*VLOOKUP($B99,$AR$36:$BA$47,MATCH(AO$2,$AS$2:$BA$2,0)+1,FALSE) -> 0 | AP99: 0.7192644389
A100: 2006 | B100: 1 | C100: 5 | D100: 2 | F100: 2013 | G100: 1 | H100: 5 | I100: 2 | J100: 0.2167567234 | K100: 0.3211028714 | L100: 0.008418087479 | M100: 0.09421765057 | N100: 0.0825609 | O100: 0.061812 | P100: 1.713756668e-05 | Q100: 0.002178785549 | R100: 0 | S100: 0.787064156 | V100: 0.2052285152 | W100: 0.0825560678 | X100: 0.2842387392 | Y100: 0.06507976427 | Z100: 0.05698057202 | AA100: 0.004707927806 | AB100: 8.576988365e-06 | AC100: 0.0015925556 | AD100: 0 | AE100: 0.7003927189 | AG100: =J100*VLOOKUP($B100,$AR$36:$AZ$47,MATCH(AG$2,$AS$2:$BA$2,0)+1,FALSE) -> 0.2079863734 | AH100: =K100*VLOOKUP($B100,$AR$36:$AZ$47,MATCH(AH$2,$AS$2:$BA$2,0)+1,FALSE) -> 0.2715675483 | AI100: =L100*VLOOKUP($B100,$AR$36:$AZ$47,MATCH(AI$2,$AS$2:$BA$2,0)+1,FALSE) -> 0.00622283391 | AJ100: =M100*VLOOKUP($B100,$AR$36:$AZ$47,MATCH(AJ$2,$AS$2:$BA$2,0)+1,FALSE) -> 0.08102681499 | AK100: =N100*VLOOKUP($B100,$AR$36:$AZ$47,MATCH(AK$2,$AS$2:$BA$2,0)+1,FALSE) -> 0.06458287185 | AL100: =O100*VLOOKUP($B100,$AR$36:$AZ$47,MATCH(AL$2,$AS$2:$BA$2,0)+1,FALSE) -> 0.05477916083 | AM100: =P100*VLOOKUP($B100,$AR$36:$AZ$47,MATCH(AM$2,$AS$2:$BA$2,0)+1,FALSE) -> 8.576988365e-06 | AN100: =Q100*VLOOKUP($B100,$AR$36:$AZ$47,MATCH(AN$2,$AS$2:$BA$2,0)+1,FALSE) -> 0.001665079838 | AO100: =R100*VLOOKUP($B100,$AR$36:$BA$47,MATCH(AO$2,$AS$2:$BA$2,0)+1,FALSE) -> 0 | AP100: 0.6878392601
A101: 2006 | B101: 1 | C101: 5 | D101: 3 | F101: 2013 | G101: 1 | H101: 5 | I101: 3 | J101: 0.2101267951 | K101: 0.3147248471 | L101: 0.008418087479 | M101: 0.09011371427 | N101: 0.0828729 | O101: 0.06206 | P101: 1.713756668e-05 | Q101: 0.002178785549 | R101: 0 | S101: 0.770512267 | V101: 0.1989511996 | W101: 0.0789600872 | X101: 0.2785929423 | Y101: 0.06532570256 | Z101: 0.05720918753 | AA101: 0.004707927806 | AB101: 8.576988365e-06 | AC101: 0.0015925556 | AD101: 0 | AE101: 0.6853481796 | AG101: =J101*VLOOKUP($B101,$AR$36:$AZ$47,MATCH(AG$2,$AS$2:$BA$2,0)+1,FALSE) -> 0.2016247033 | AH101: =K101*VLOOKUP($B101,$AR$36:$AZ$47,MATCH(AH$2,$AS$2:$BA$2,0)+1,FALSE) -> 0.2661734376 | AI101: =L101*VLOOKUP($B101,$AR$36:$AZ$47,MATCH(AI$2,$AS$2:$BA$2,0)+1,FALSE) -> 0.00622283391 | AJ101: =M101*VLOOKUP($B101,$AR$36:$AZ$47,MATCH(AJ$2,$AS$2:$BA$2,0)+1,FALSE) -> 0.07749744565 | AK101: =N101*VLOOKUP($B101,$AR$36:$AZ$47,MATCH(AK$2,$AS$2:$BA$2,0)+1,FALSE) -> 0.06482693237 | AL101: =O101*VLOOKUP($B101,$AR$36:$AZ$47,MATCH(AL$2,$AS$2:$BA$2,0)+1,FALSE) -> 0.05499894392 | AM101: =P101*VLOOKUP($B101,$AR$36:$AZ$47,MATCH(AM$2,$AS$2:$BA$2,0)+1,FALSE) -> 8.576988365e-06 | AN101: =Q101*VLOOKUP($B101,$AR$36:$AZ$47,MATCH(AN$2,$AS$2:$BA$2,0)+1,FALSE) -> 0.001665079838 | AO101: =R101*VLOOKUP($B101,$AR$36:$BA$47,MATCH(AO$2,$AS$2:$BA$2,0)+1,FALSE) -> 0 | AP101: 0.6730179536
A102: 2006 | B102: 1 | C102: 5 | D102: 4 | F102: 2013 | G102: 1 | H102: 5 | I102: 4 | J102: 0.2055822969 | K102: 0.3141980087 | L102: 0.008418087479 | M102: 0.09108939686 | N102: 0.0836149 | O102: 0.061644 | P102: 1.713756668e-05 | Q102: 0.002178785549 | R102: 0 | S102: 0.7667426131 | V102: 0.1946484006 | W102: 0.07981500682 | X102: 0.2781265875 | Y102: 0.06591059426 | Z102: 0.05682570345 | AA102: 0.004707927806 | AB102: 8.576988365e-06 | AC102: 0.0015925556 | AD102: 0 | AE102: 0.681635353 | AG102: =J102*VLOOKUP($B102,$AR$36:$AZ$47,MATCH(AG$2,$AS$2:$BA$2,0)+1,FALSE) -> 0.1972640833 | AH102: =K102*VLOOKUP($B102,$AR$36:$AZ$47,MATCH(AH$2,$AS$2:$BA$2,0)+1,FALSE) -> 0.2657278726 | AI102: =L102*VLOOKUP($B102,$AR$36:$AZ$47,MATCH(AI$2,$AS$2:$BA$2,0)+1,FALSE) -> 0.00622283391 | AJ102: =M102*VLOOKUP($B102,$AR$36:$AZ$47,MATCH(AJ$2,$AS$2:$BA$2,0)+1,FALSE) -> 0.07833652891 | AK102: =N102*VLOOKUP($B102,$AR$36:$AZ$47,MATCH(AK$2,$AS$2:$BA$2,0)+1,FALSE) -> 0.06540735835 | AL102: =O102*VLOOKUP($B102,$AR$36:$AZ$47,MATCH(AL$2,$AS$2:$BA$2,0)+1,FALSE) -> 0.05463027552 | AM102: =P102*VLOOKUP($B102,$AR$36:$AZ$47,MATCH(AM$2,$AS$2:$BA$2,0)+1,FALSE) -> 8.576988365e-06 | AN102: =Q102*VLOOKUP($B102,$AR$36:$AZ$47,MATCH(AN$2,$AS$2:$BA$2,0)+1,FALSE) -> 0.001665079838 | AO102: =R102*VLOOKUP($B102,$AR$36:$BA$47,MATCH(AO$2,$AS$2:$BA$2,0)+1,FALSE) -> 0 | AP102: 0.6692626095
A103: 2006 | B103: 1 | C103: 5 | D103: 5 | F103: 2013 | G103: 1 | H103: 5 | I103: 5 | J103: 0.2080543532 | K103: 0.3135104364 | L103: 0.008418087479 | M103: 0.08746145574 | N103: 0.0837817 | O103: 0.061943 | P103: 1.713756668e-05 | Q103: 0.002178785549 | R103: 0 | S103: 0.7653649559 | V103: 0.1969889806 | W103: 0.07663610614 | X103: 0.2775179517 | Y103: 0.06604207665 | Z103: 0.05710133263 | AA103: 0.004707927806 | AB103: 8.576988365e-06 | AC103: 0.0015925556 | AD103: 0 | AE103: 0.6805955081 | AG103: =J103*VLOOKUP($B103,$AR$36:$AZ$47,MATCH(AG$2,$AS$2:$BA$2,0)+1,FALSE) -> 0.199636116 | AH103: =K103*VLOOKUP($B103,$AR$36:$AZ$47,MATCH(AH$2,$AS$2:$BA$2,0)+1,FALSE) -> 0.2651463695 | AI103: =L103*VLOOKUP($B103,$AR$36:$AZ$47,MATCH(AI$2,$AS$2:$BA$2,0)+1,FALSE) -> 0.00622283391 | AJ103: =M103*VLOOKUP($B103,$AR$36:$AZ$47,MATCH(AJ$2,$AS$2:$BA$2,0)+1,FALSE) -> 0.07521651358 | AK103: =N103*VLOOKUP($B103,$AR$36:$AZ$47,MATCH(AK$2,$AS$2:$BA$2,0)+1,FALSE) -> 0.06553783685 | AL103: =O103*VLOOKUP($B103,$AR$36:$AZ$47,MATCH(AL$2,$AS$2:$BA$2,0)+1,FALSE) -> 0.05489525593 | AM103: =P103*VLOOKUP($B103,$AR$36:$AZ$47,MATCH(AM$2,$AS$2:$BA$2,0)+1,FALSE) -> 8.576988365e-06 | AN103: =Q103*VLOOKUP($B103,$AR$36:$AZ$47,MATCH(AN$2,$AS$2:$BA$2,0)+1,FALSE) -> 0.001665079838 | AO103: =R103*VLOOKUP($B103,$AR$36:$BA$47,MATCH(AO$2,$AS$2:$BA$2,0)+1,FALSE) -> 0 | AP103: 0.6683285826
A104: 2006 | B104: 1 | C104: 5 | D104: 6 | F104: 2013 | G104: 1 | H104: 5 | I104: 6 | J104: 0.2122779711 | K104: 0.3223929802 | L104: 0.008418087479 | M104: 0.08805824405 | N104: 0.084549 | O104: 0.061984 | P104: 1.713756668e-05 | Q104: 0.002178785549 | R104: 0 | S104: 0.779876206 | V104: 0.2009879654 | W104: 0.07715902829 | X104: 0.2853807374 | Y104: 0.06664691143 | Z104: 0.05713912794 | AA104: 0.004707927806 | AB104: 8.576988365e-06 | AC104: 0.0015925556 | AD104: 0 | AE104: 0.6936228308 | AG104: =J104*VLOOKUP($B104,$AR$36:$AZ$47,MATCH(AG$2,$AS$2:$BA$2,0)+1,FALSE) -> 0.2036888391 | AH104: =K104*VLOOKUP($B104,$AR$36:$AZ$47,MATCH(AH$2,$AS$2:$BA$2,0)+1,FALSE) -> 0.2726586369 | AI104: =L104*VLOOKUP($B104,$AR$36:$AZ$47,MATCH(AI$2,$AS$2:$BA$2,0)+1,FALSE) -> 0.00622283391 | AJ104: =M104*VLOOKUP($B104,$AR$36:$AZ$47,MATCH(AJ$2,$AS$2:$BA$2,0)+1,FALSE) -> 0.07572974921 | AK104: =N104*VLOOKUP($B104,$AR$36:$AZ$47,MATCH(AK$2,$AS$2:$BA$2,0)+1,FALSE) -> 0.06613805363 | AL104: =O104*VLOOKUP($B104,$AR$36:$AZ$47,MATCH(AL$2,$AS$2:$BA$2,0)+1,FALSE) -> 0.05493159104 | AM104: =P104*VLOOKUP($B104,$AR$36:$AZ$47,MATCH(AM$2,$AS$2:$BA$2,0)+1,FALSE) -> 8.576988365e-06 | AN104: =Q104*VLOOKUP($B104,$AR$36:$AZ$47,MATCH(AN$2,$AS$2:$BA$2,0)+1,FALSE) -> 0.001665079838 | AO104: =R104*VLOOKUP($B104,$AR$36:$BA$47,MATCH(AO$2,$AS$2:$BA$2,0)+1,FALSE) -> 0 | AP104: 0.6810433606
A105: 2006 | B105: 1 | C105: 5 | D105: 7 | F105: 2013 | G105: 1 | H105: 5 | I105: 7 | J105: 0.241039815 | K105: 0.3305011802 | L105: 0.008418087479 | M105: 0.07993263536 | N105: 0.0863868 | O105: 0.063186 | P105: 1.713756668e-05 | Q105: 0.002178785549 | R105: 0 | S105: 0.8116604412 | V105: 0.2282201103 | W105: 0.07003914897 | X105: 0.2925580776 | Y105: 0.06809558254 | Z105: 0.05824717569 | AA105: 0.004707927806 | AB105: 8.576988365e-06 | AC105: 0.0015925556 | AD105: 0 | AE105: 0.7234691555 | AG105: =J105*VLOOKUP($B105,$AR$36:$AZ$47,MATCH(AG$2,$AS$2:$BA$2,0)+1,FALSE) -> 0.2312869292 | AH105: =K105*VLOOKUP($B105,$AR$36:$AZ$47,MATCH(AH$2,$AS$2:$BA$2,0)+1,FALSE) -> 0.2795160157 | AI105: =L105*VLOOKUP($B105,$AR$36:$AZ$47,MATCH(AI$2,$AS$2:$BA$2,0)+1,FALSE) -> 0.00622283391 | AJ105: =M105*VLOOKUP($B105,$AR$36:$AZ$47,MATCH(AJ$2,$AS$2:$BA$2,0)+1,FALSE) -> 0.06874175718 | AK105: =N105*VLOOKUP($B105,$AR$36:$AZ$47,MATCH(AK$2,$AS$2:$BA$2,0)+1,FALSE) -> 0.06757566395 | AL105: =O105*VLOOKUP($B105,$AR$36:$AZ$47,MATCH(AL$2,$AS$2:$BA$2,0)+1,FALSE) -> 0.05599683001 | AM105: =P105*VLOOKUP($B105,$AR$36:$AZ$47,MATCH(AM$2,$AS$2:$BA$2,0)+1,FALSE) -> 8.576988365e-06 | AN105: =Q105*VLOOKUP($B105,$AR$36:$AZ$47,MATCH(AN$2,$AS$2:$BA$2,0)+1,FALSE) -> 0.001665079838 | AO105: =R105*VLOOKUP($B105,$AR$36:$BA$47,MATCH(AO$2,$AS$2:$BA$2,0)+1,FALSE) -> 0 | AP105: 0.7110136868
A106: 2006 | B106: 1 | C106: 5 | D106: 8 | F106: 2013 | G106: 1 | H106: 5 | I106: 8 | J106: 0.262623538 | K106: 0.3464964978 | L106: 0.005191153945 | M106: 0.08093352479 | N106: 0.0879089 | O106: 0.065066 | P106: 1.056816612e-05 | Q106: 0.00205077351 | R106: 0 | S106: 0.8502809561 | V106: 0.2486559028 | W106: 0.07091615551 | X106: 0.3067170568 | Y106: 0.06929539879 | Z106: 0.05998022875 | AA106: 0.002903222147 | AB106: 5.289142825e-06 | AC106: 0.001498986828 | AD106: 0 | AE106: 0.7599722408 | AG106: =J106*VLOOKUP($B106,$AR$36:$AZ$47,MATCH(AG$2,$AS$2:$BA$2,0)+1,FALSE) -> 0.2519973376 | AH106: =K106*VLOOKUP($B106,$AR$36:$AZ$47,MATCH(AH$2,$AS$2:$BA$2,0)+1,FALSE) -> 0.2930437962 | AI106: =L106*VLOOKUP($B106,$AR$36:$AZ$47,MATCH(AI$2,$AS$2:$BA$2,0)+1,FALSE) -> 0.003837414244 | AJ106: =M106*VLOOKUP($B106,$AR$36:$AZ$47,MATCH(AJ$2,$AS$2:$BA$2,0)+1,FALSE) -> 0.06960251821 | AK106: =N106*VLOOKUP($B106,$AR$36:$AZ$47,MATCH(AK$2,$AS$2:$BA$2,0)+1,FALSE) -> 0.06876631945 | AL106: =O106*VLOOKUP($B106,$AR$36:$AZ$47,MATCH(AL$2,$AS$2:$BA$2,0)+1,FALSE) -> 0.05766292757 | AM106: =P106*VLOOKUP($B106,$AR$36:$AZ$47,MATCH(AM$2,$AS$2:$BA$2,0)+1,FALSE) -> 5.289142825e-06 | AN106: =Q106*VLOOKUP($B106,$AR$36:$AZ$47,MATCH(AN$2,$AS$2:$BA$2,0)+1,FALSE) -> 0.001567249988 | AO106: =R106*VLOOKUP($B106,$AR$36:$BA$47,MATCH(AO$2,$AS$2:$BA$2,0)+1,FALSE) -> 0 | AP106: 0.7464828524
A107: 2006 | B107: 1 | C107: 5 | D107: 9 | F107: 2013 | G107: 1 | H107: 5 | I107: 9 | J107: 0.279961526 | K107: 0.3688533627 | L107: 0 | M107: 0.09268497815 | N107: 0.0896191 | O107: 0.065399 | P107: 0 | Q107: 0.0018448411 | R107: 0 | S107: 0.898362808 | V107: 0.2650717698 | W107: 0.08121309854 | X107: 0.3265072477 | Y107: 0.07064348744 | Z107: 0.06028720038 | AA107: 0 | AB107: 0 | AC107: 0.00134846315 | AD107: 0 | AE107: 0.805071267 | AG107: =J107*VLOOKUP($B107,$AR$36:$AZ$47,MATCH(AG$2,$AS$2:$BA$2,0)+1,FALSE) -> 0.2686338009 | AH107: =K107*VLOOKUP($B107,$AR$36:$AZ$47,MATCH(AH$2,$AS$2:$BA$2,0)+1,FALSE) -> 0.3119517523 | AI107: =L107*VLOOKUP($B107,$AR$36:$AZ$47,MATCH(AI$2,$AS$2:$BA$2,0)+1,FALSE) -> 0 | AJ107: =M107*VLOOKUP($B107,$AR$36:$AZ$47,MATCH(AJ$2,$AS$2:$BA$2,0)+1,FALSE) -> 0.07970872264 | AK107: =N107*VLOOKUP($B107,$AR$36:$AZ$47,MATCH(AK$2,$AS$2:$BA$2,0)+1,FALSE) -> 0.07010411528 | AL107: =O107*VLOOKUP($B107,$AR$36:$AZ$47,MATCH(AL$2,$AS$2:$BA$2,0)+1,FALSE) -> 0.05795803953 | AM107: =P107*VLOOKUP($B107,$AR$36:$AZ$47,MATCH(AM$2,$AS$2:$BA$2,0)+1,FALSE) -> 0 | AN107: =Q107*VLOOKUP($B107,$AR$36:$AZ$47,MATCH(AN$2,$AS$2:$BA$2,0)+1,FALSE) -> 0.001409871532 | AO107: =R107*VLOOKUP($B107,$AR$36:$BA$47,MATCH(AO$2,$AS$2:$BA$2,0)+1,FALSE) -> 0 | AP107: 0.7897663021
A108: 2006 | B108: 1 | C108: 5 | D108: 10 | F108: 2013 | G108: 1 | H108: 5 | I108: 10 | J108: 0.3091916199 | K108: 0.3743421628 | L108: 0 | M108: 0.09141862243 | N108: 0.0894963 | O108: 0.065772 | P108: 0 | Q108: 0.0018448411 | R108: 0 | S108: 0.9320655462 | V108: 0.2927472609 | W108: 0.08010348321 | X108: 0.3313659075 | Y108: 0.07054668866 | Z108: 0.06063104548 | AA108: 0 | AB108: 0 | AC108: 0.00134846315 | AD108: 0 | AE108: 0.8367428489 | AG108: =J108*VLOOKUP($B108,$AR$36:$AZ$47,MATCH(AG$2,$AS$2:$BA$2,0)+1,FALSE) -> 0.2966811949 | AH108: =K108*VLOOKUP($B108,$AR$36:$AZ$47,MATCH(AH$2,$AS$2:$BA$2,0)+1,FALSE) -> 0.316593816 | AI108: =L108*VLOOKUP($B108,$AR$36:$AZ$47,MATCH(AI$2,$AS$2:$BA$2,0)+1,FALSE) -> 0 | AJ108: =M108*VLOOKUP($B108,$AR$36:$AZ$47,MATCH(AJ$2,$AS$2:$BA$2,0)+1,FALSE) -> 0.07861966162 | AK108: =N108*VLOOKUP($B108,$AR$36:$AZ$47,MATCH(AK$2,$AS$2:$BA$2,0)+1,FALSE) -> 0.07000805556 | AL108: =O108*VLOOKUP($B108,$AR$36:$AZ$47,MATCH(AL$2,$AS$2:$BA$2,0)+1,FALSE) -> 0.05828860037 | AM108: =P108*VLOOKUP($B108,$AR$36:$AZ$47,MATCH(AM$2,$AS$2:$BA$2,0)+1,FALSE) -> 0 | AN108: =Q108*VLOOKUP($B108,$AR$36:$AZ$47,MATCH(AN$2,$AS$2:$BA$2,0)+1,FALSE) -> 0.001409871532 | AO108: =R108*VLOOKUP($B108,$AR$36:$BA$47,MATCH(AO$2,$AS$2:$BA$2,0)+1,FALSE) -> 0 | AP108: 0.8216011999
A109: 2006 | B109: 1 | C109: 5 | D109: 11 | F109: 2013 | G109: 1 | H109: 5 | I109: 11 | J109: 0.3410518242 | K109: 0.3724155992 | L109: 0 | M109: 0.08564766827 | N109: 0.091088 | O109: 0.066045 | P109: 0 | Q109: 0.0018448411 | R109: 0 | S109: 0.9580929327 | V109: 0.3229129799 | W109: 0.07504681623 | X109: 0.3296605225 | Y109: 0.07180136806 | Z109: 0.06088270691 | AA109: 0 | AB109: 0 | AC109: 0.00134846315 | AD109: 0 | AE109: 0.8616528568 | AG109: =J109*VLOOKUP($B109,$AR$36:$AZ$47,MATCH(AG$2,$AS$2:$BA$2,0)+1,FALSE) -> 0.3272522804 | AH109: =K109*VLOOKUP($B109,$AR$36:$AZ$47,MATCH(AH$2,$AS$2:$BA$2,0)+1,FALSE) -> 0.3149644561 | AI109: =L109*VLOOKUP($B109,$AR$36:$AZ$47,MATCH(AI$2,$AS$2:$BA$2,0)+1,FALSE) -> 0 | AJ109: =M109*VLOOKUP($B109,$AR$36:$AZ$47,MATCH(AJ$2,$AS$2:$BA$2,0)+1,FALSE) -> 0.07365666337 | AK109: =N109*VLOOKUP($B109,$AR$36:$AZ$47,MATCH(AK$2,$AS$2:$BA$2,0)+1,FALSE) -> 0.07125315532 | AL109: =O109*VLOOKUP($B109,$AR$36:$AZ$47,MATCH(AL$2,$AS$2:$BA$2,0)+1,FALSE) -> 0.05853053901 | AM109: =P109*VLOOKUP($B109,$AR$36:$AZ$47,MATCH(AM$2,$AS$2:$BA$2,0)+1,FALSE) -> 0 | AN109: =Q109*VLOOKUP($B109,$AR$36:$AZ$47,MATCH(AN$2,$AS$2:$BA$2,0)+1,FALSE) -> 0.001409871532 | AO109: =R109*VLOOKUP($B109,$AR$36:$BA$47,MATCH(AO$2,$AS$2:$BA$2,0)+1,FALSE) -> 0 | AP109: 0.8470669657
A110: 2006 | B110: 1 | C110: 5 | D110: 12 | F110: 2013 | G110: 1 | H110: 5 | I110: 12 | J110: 0.3134770576 | K110: 0.3894339504 | L110: 0 | M110: 0.1069760782 | N110: 0.0909402 | O110: 0.066418 | P110: 0 | Q110: 0.0018448411 | R110: 0 | S110: 0.9690901272 | V110: 0.2968047776 | W110: 0.09373534902 | X110: 0.3447250863 | Y110: 0.07168486268 | Z110: 0.06122655201 | AA110: 0 | AB110: 0 | AC110: 0.00134846315 | AD110: 0 | AE110: 0.8695250907 | AG110: =J110*VLOOKUP($B110,$AR$36:$AZ$47,MATCH(AG$2,$AS$2:$BA$2,0)+1,FALSE) -> 0.3007932364 | AH110: =K110*VLOOKUP($B110,$AR$36:$AZ$47,MATCH(AH$2,$AS$2:$BA$2,0)+1,FALSE) -> 0.3293574507 | AI110: =L110*VLOOKUP($B110,$AR$36:$AZ$47,MATCH(AI$2,$AS$2:$BA$2,0)+1,FALSE) -> 0 | AJ110: =M110*VLOOKUP($B110,$AR$36:$AZ$47,MATCH(AJ$2,$AS$2:$BA$2,0)+1,FALSE) -> 0.09199901335 | AK110: =N110*VLOOKUP($B110,$AR$36:$AZ$47,MATCH(AK$2,$AS$2:$BA$2,0)+1,FALSE) -> 0.07113753948 | AL110: =O110*VLOOKUP($B110,$AR$36:$AZ$47,MATCH(AL$2,$AS$2:$BA$2,0)+1,FALSE) -> 0.05886109986 | AM110: =P110*VLOOKUP($B110,$AR$36:$AZ$47,MATCH(AM$2,$AS$2:$BA$2,0)+1,FALSE) -> 0 | AN110: =Q110*VLOOKUP($B110,$AR$36:$AZ$47,MATCH(AN$2,$AS$2:$BA$2,0)+1,FALSE) -> 0.001409871532 | AO110: =R110*VLOOKUP($B110,$AR$36:$BA$47,MATCH(AO$2,$AS$2:$BA$2,0)+1,FALSE) -> 0 | AP110: 0.8535582113
A111: 2006 | B111: 1 | C111: 5 | D111: 13 | F111: 2013 | G111: 1 | H111: 5 | I111: 13 | J111: 0.3211647924 | K111: 0.3809032714 | L111: 0 | M111: 0.1011003982 | N111: 0.0907228 | O111: 0.066716 | P111: 0 | Q111: 0.0018448411 | R111: 0 | S111: 0.9624521031 | V111: 0.3040836401 | W111: 0.08858691841 | X111: 0.3371737697 | Y111: 0.07151349414 | Z111: 0.06150125935 | AA111: 0 | AB111: 0 | AC111: 0.00134846315 | AD111: 0 | AE111: 0.8642075449 | AG111: =J111*VLOOKUP($B111,$AR$36:$AZ$47,MATCH(AG$2,$AS$2:$BA$2,0)+1,FALSE) -> 0.3081699122 | AH111: =K111*VLOOKUP($B111,$AR$36:$AZ$47,MATCH(AH$2,$AS$2:$BA$2,0)+1,FALSE) -> 0.3221427672 | AI111: =L111*VLOOKUP($B111,$AR$36:$AZ$47,MATCH(AI$2,$AS$2:$BA$2,0)+1,FALSE) -> 0 | AJ111: =M111*VLOOKUP($B111,$AR$36:$AZ$47,MATCH(AJ$2,$AS$2:$BA$2,0)+1,FALSE) -> 0.08694595129 | AK111: =N111*VLOOKUP($B111,$AR$36:$AZ$47,MATCH(AK$2,$AS$2:$BA$2,0)+1,FALSE) -> 0.07096747936 | AL111: =O111*VLOOKUP($B111,$AR$36:$AZ$47,MATCH(AL$2,$AS$2:$BA$2,0)+1,FALSE) -> 0.05912519404 | AM111: =P111*VLOOKUP($B111,$AR$36:$AZ$47,MATCH(AM$2,$AS$2:$BA$2,0)+1,FALSE) -> 0 | AN111: =Q111*VLOOKUP($B111,$AR$36:$AZ$47,MATCH(AN$2,$AS$2:$BA$2,0)+1,FALSE) -> 0.001409871532 | AO111: =R111*VLOOKUP($B111,$AR$36:$BA$47,MATCH(AO$2,$AS$2:$BA$2,0)+1,FALSE) -> 0 | AP111: 0.8487611757
A112: 2006 | B112: 1 | C112: 5 | D112: 14 | F112: 2013 | G112: 1 | H112: 5 | I112: 14 | J112: 0.2887861313 | K112: 0.3899859091 | L112: 0 | M112: 0.1140010817 | N112: 0.0903688 | O112: 0.066868 | P112: 0 | Q112: 0.0018448411 | R112: 0 | S112: 0.9518547631 | V112: 0.2734270383 | W112: 0.09989084821 | X112: 0.3452136775 | Y112: 0.07123444877 | Z112: 0.06164137854 | AA112: 0 | AB112: 0 | AC112: 0.00134846315 | AD112: 0 | AE112: 0.8527558545 | AG112: =J112*VLOOKUP($B112,$AR$36:$AZ$47,MATCH(AG$2,$AS$2:$BA$2,0)+1,FALSE) -> 0.2771013474 | AH112: =K112*VLOOKUP($B112,$AR$36:$AZ$47,MATCH(AH$2,$AS$2:$BA$2,0)+1,FALSE) -> 0.3298242608 | AI112: =L112*VLOOKUP($B112,$AR$36:$AZ$47,MATCH(AI$2,$AS$2:$BA$2,0)+1,FALSE) -> 0 | AJ112: =M112*VLOOKUP($B112,$AR$36:$AZ$47,MATCH(AJ$2,$AS$2:$BA$2,0)+1,FALSE) -> 0.09804048925 | AK112: =N112*VLOOKUP($B112,$AR$36:$AZ$47,MATCH(AK$2,$AS$2:$BA$2,0)+1,FALSE) -> 0.07069056454 | AL112: =O112*VLOOKUP($B112,$AR$36:$AZ$47,MATCH(AL$2,$AS$2:$BA$2,0)+1,FALSE) -> 0.0592598998 | AM112: =P112*VLOOKUP($B112,$AR$36:$AZ$47,MATCH(AM$2,$AS$2:$BA$2,0)+1,FALSE) -> 0 | AN112: =Q112*VLOOKUP($B112,$AR$36:$AZ$47,MATCH(AN$2,$AS$2:$BA$2,0)+1,FALSE) -> 0.001409871532 | AO112: =R112*VLOOKUP($B112,$AR$36:$BA$47,MATCH(AO$2,$AS$2:$BA$2,0)+1,FALSE) -> 0 | AP112: 0.8363264333
A113: 2006 | B113: 1 | C113: 5 | D113: 15 | F113: 2013 | G113: 1 | H113: 5 | I113: 15 | J113: 0.3023222001 | K113: 0.3773829677 | L113: 0 | M113: 0.1007688884 | N113: 0.0902476 | O113: 0.067172 | P113: 0 | Q113: 0.0018448411 | R113: 0 | S113: 0.9397384973 | V113: 0.2862431912 | W113: 0.08829644054 | X113: 0.3340576136 | Y113: 0.07113891121 | Z113: 0.0619216169 | AA113: 0 | AB113: 0 | AC113: 0.00134846315 | AD113: 0 | AE113: 0.8430062367 | AG113: =J113*VLOOKUP($B113,$AR$36:$AZ$47,MATCH(AG$2,$AS$2:$BA$2,0)+1,FALSE) -> 0.2900897236 | AH113: =K113*VLOOKUP($B113,$AR$36:$AZ$47,MATCH(AH$2,$AS$2:$BA$2,0)+1,FALSE) -> 0.3191655275 | AI113: =L113*VLOOKUP($B113,$AR$36:$AZ$47,MATCH(AI$2,$AS$2:$BA$2,0)+1,FALSE) -> 0 | AJ113: =M113*VLOOKUP($B113,$AR$36:$AZ$47,MATCH(AJ$2,$AS$2:$BA$2,0)+1,FALSE) -> 0.08666085417 | AK113: =N113*VLOOKUP($B113,$AR$36:$AZ$47,MATCH(AK$2,$AS$2:$BA$2,0)+1,FALSE) -> 0.07059575642 | AL113: =O113*VLOOKUP($B113,$AR$36:$AZ$47,MATCH(AL$2,$AS$2:$BA$2,0)+1,FALSE) -> 0.05952931132 | AM113: =P113*VLOOKUP($B113,$AR$36:$AZ$47,MATCH(AM$2,$AS$2:$BA$2,0)+1,FALSE) -> 0 | AN113: =Q113*VLOOKUP($B113,$AR$36:$AZ$47,MATCH(AN$2,$AS$2:$BA$2,0)+1,FALSE) -> 0.001409871532 | AO113: =R113*VLOOKUP($B113,$AR$36:$BA$47,MATCH(AO$2,$AS$2:$BA$2,0)+1,FALSE) -> 0 | AP113: 0.8274510445
A114: 2006 | B114: 1 | C114: 5 | D114: 16 | F114: 2013 | G114: 1 | H114: 5 | I114: 16 | J114: 0.3083937923 | K114: 0.3780202335 | L114: 0 | M114: 0.1019227828 | N114: 0.0901999 | O114: 0.067131 | P114: 0 | Q114: 0.0018448411 | R114: 0 | S114: 0.9475125497 | V114: 0.2919918657 | W114: 0.08930751423 | X114: 0.3346217183 | Y114: 0.07110131103 | Z114: 0.0618838216 | AA114: 0 | AB114: 0 | AC114: 0.00134846315 | AD114: 0 | AE114: 0.850254694 | AG114: =J114*VLOOKUP($B114,$AR$36:$AZ$47,MATCH(AG$2,$AS$2:$BA$2,0)+1,FALSE) -> 0.2959156487 | AH114: =K114*VLOOKUP($B114,$AR$36:$AZ$47,MATCH(AH$2,$AS$2:$BA$2,0)+1,FALSE) -> 0.3197044847 | AI114: =L114*VLOOKUP($B114,$AR$36:$AZ$47,MATCH(AI$2,$AS$2:$BA$2,0)+1,FALSE) -> 0 | AJ114: =M114*VLOOKUP($B114,$AR$36:$AZ$47,MATCH(AJ$2,$AS$2:$BA$2,0)+1,FALSE) -> 0.08765319892 | AK114: =N114*VLOOKUP($B114,$AR$36:$AZ$47,MATCH(AK$2,$AS$2:$BA$2,0)+1,FALSE) -> 0.07055844332 | AL114: =O114*VLOOKUP($B114,$AR$36:$AZ$47,MATCH(AL$2,$AS$2:$BA$2,0)+1,FALSE) -> 0.05949297622 | AM114: =P114*VLOOKUP($B114,$AR$36:$AZ$47,MATCH(AM$2,$AS$2:$BA$2,0)+1,FALSE) -> 0 | AN114: =Q114*VLOOKUP($B114,$AR$36:$AZ$47,MATCH(AN$2,$AS$2:$BA$2,0)+1,FALSE) -> 0.001409871532 | AO114: =R114*VLOOKUP($B114,$AR$36:$BA$47,MATCH(AO$2,$AS$2:$BA$2,0)+1,FALSE) -> 0 | AP114: 0.8347346233
A115: 2006 | B115: 1 | C115: 5 | D115: 17 | F115: 2013 | G115: 1 | H115: 5 | I115: 17 | J115: 0.3370688193 | K115: 0.3864463497 | L115: 0.002525426244 | M115: 0.1097534298 | N115: 0.0886404 | O115: 0.067141 | P115: 5.141270004e-06 | Q115: 0.001945024434 | R115: 0 | S115: 0.9935255907 | V115: 0.3191418112 | W115: 0.09616894004 | X115: 0.3420804763 | Y115: 0.06987201372 | Z115: 0.06189303996 | AA115: 0.001412378342 | AB115: 2.57309651e-06 | AC115: 0.001421690885 | AD115: 0 | AE115: 0.8919929235 | AG115: =J115*VLOOKUP($B115,$AR$36:$AZ$47,MATCH(AG$2,$AS$2:$BA$2,0)+1,FALSE) -> 0.3234304348 | AH115: =K115*VLOOKUP($B115,$AR$36:$AZ$47,MATCH(AH$2,$AS$2:$BA$2,0)+1,FALSE) -> 0.3268307358 | AI115: =L115*VLOOKUP($B115,$AR$36:$AZ$47,MATCH(AI$2,$AS$2:$BA$2,0)+1,FALSE) -> 0.001866850173 | AJ115: =M115*VLOOKUP($B115,$AR$36:$AZ$47,MATCH(AJ$2,$AS$2:$BA$2,0)+1,FALSE) -> 0.094387525 | AK115: =N115*VLOOKUP($B115,$AR$36:$AZ$47,MATCH(AK$2,$AS$2:$BA$2,0)+1,FALSE) -> 0.06933853185 | AL115: =O115*VLOOKUP($B115,$AR$36:$AZ$47,MATCH(AL$2,$AS$2:$BA$2,0)+1,FALSE) -> 0.05950183844 | AM115: =P115*VLOOKUP($B115,$AR$36:$AZ$47,MATCH(AM$2,$AS$2:$BA$2,0)+1,FALSE) -> 2.57309651e-06 | AN115: =Q115*VLOOKUP($B115,$AR$36:$AZ$47,MATCH(AN$2,$AS$2:$BA$2,0)+1,FALSE) -> 0.001486434024 | AO115: =R115*VLOOKUP($B115,$AR$36:$BA$47,MATCH(AO$2,$AS$2:$BA$2,0)+1,FALSE) -> 0 | AP115: 0.8768449232
A116: 2006 | B116: 1 | C116: 5 | D116: 18 | F116: 2013 | G116: 1 | H116: 5 | I116: 18 | J116: 0.4032940207 | K116: 0.3940036887 | L116: 0.008418087479 | M116: 0.1138569468 | N116: 0.0879132 | O116: 0.067232 | P116: 1.713756668e-05 | Q116: 0.002178785549 | R116: 0 | S116: 1.076913867 | V116: 0.3818448247 | W116: 0.09976455327 | X116: 0.3487701969 | Y116: 0.06929878832 | Z116: 0.06197692711 | AA116: 0.004707927806 | AB116: 8.576988365e-06 | AC116: 0.0015925556 | AD116: 0 | AE116: 0.9679643507 | AG116: =J116*VLOOKUP($B116,$AR$36:$AZ$47,MATCH(AG$2,$AS$2:$BA$2,0)+1,FALSE) -> 0.3869760506 | AH116: =K116*VLOOKUP($B116,$AR$36:$AZ$47,MATCH(AH$2,$AS$2:$BA$2,0)+1,FALSE) -> 0.3332222328 | AI116: =L116*VLOOKUP($B116,$AR$36:$AZ$47,MATCH(AI$2,$AS$2:$BA$2,0)+1,FALSE) -> 0.00622283391 | AJ116: =M116*VLOOKUP($B116,$AR$36:$AZ$47,MATCH(AJ$2,$AS$2:$BA$2,0)+1,FALSE) -> 0.09791653378 | AK116: =N116*VLOOKUP($B116,$AR$36:$AZ$47,MATCH(AK$2,$AS$2:$BA$2,0)+1,FALSE) -> 0.0687696831 | AL116: =O116*VLOOKUP($B116,$AR$36:$AZ$47,MATCH(AL$2,$AS$2:$BA$2,0)+1,FALSE) -> 0.05958248465 | AM116: =P116*VLOOKUP($B116,$AR$36:$AZ$47,MATCH(AM$2,$AS$2:$BA$2,0)+1,FALSE) -> 8.576988365e-06 | AN116: =Q116*VLOOKUP($B116,$AR$36:$AZ$47,MATCH(AN$2,$AS$2:$BA$2,0)+1,FALSE) -> 0.001665079838 | AO116: =R116*VLOOKUP($B116,$AR$36:$BA$47,MATCH(AO$2,$AS$2:$BA$2,0)+1,FALSE) -> 0 | AP116: 0.9543634756
A117: 2006 | B117: 1 | C117: 5 | D117: 19 | F117: 2013 | G117: 1 | H117: 5 | I117: 19 | J117: 0.4202695714 | K117: 0.3743569463 | L117: 0.008418087479 | M117: 0.09833049612 | N117: 0.0866558 | O117: 0.066406 | P117: 1.713756668e-05 | Q117: 0.002178785549 | R117: 0 | S117: 1.056632824 | V117: 0.3979175305 | W117: 0.08615985492 | X117: 0.3313789938 | Y117: 0.06830762549 | Z117: 0.06121548997 | AA117: 0.004707927806 | AB117: 8.576988365e-06 | AC117: 0.0015925556 | AD117: 0 | AE117: 0.951288555 | AG117: =J117*VLOOKUP($B117,$AR$36:$AZ$47,MATCH(AG$2,$AS$2:$BA$2,0)+1,FALSE) -> 0.4032647412 | AH117: =K117*VLOOKUP($B117,$AR$36:$AZ$47,MATCH(AH$2,$AS$2:$BA$2,0)+1,FALSE) -> 0.3166063189 | AI117: =L117*VLOOKUP($B117,$AR$36:$AZ$47,MATCH(AI$2,$AS$2:$BA$2,0)+1,FALSE) -> 0.00622283391 | AJ117: =M117*VLOOKUP($B117,$AR$36:$AZ$47,MATCH(AJ$2,$AS$2:$BA$2,0)+1,FALSE) -> 0.08456384625 | AK117: =N117*VLOOKUP($B117,$AR$36:$AZ$47,MATCH(AK$2,$AS$2:$BA$2,0)+1,FALSE) -> 0.06778608793 | AL117: =O117*VLOOKUP($B117,$AR$36:$AZ$47,MATCH(AL$2,$AS$2:$BA$2,0)+1,FALSE) -> 0.05885046519 | AM117: =P117*VLOOKUP($B117,$AR$36:$AZ$47,MATCH(AM$2,$AS$2:$BA$2,0)+1,FALSE) -> 8.576988365e-06 | AN117: =Q117*VLOOKUP($B117,$AR$36:$AZ$47,MATCH(AN$2,$AS$2:$BA$2,0)+1,FALSE) -> 0.001665079838 | AO117: =R117*VLOOKUP($B117,$AR$36:$BA$47,MATCH(AO$2,$AS$2:$BA$2,0)+1,FALSE) -> 0 | AP117: 0.9389679502
A118: 2006 | B118: 1 | C118: 5 | D118: 20 | F118: 2013 | G118: 1 | H118: 5 | I118: 20 | J118: 0.4006783709 | K118: 0.3670799475 | L118: 0.008418087479 | M118: 0.1026154496 | N118: 0.0860448 | O118: 0.066288 | P118: 1.713756668e-05 | Q118: 0.002178785549 | R118: 0 | S118: 1.033320579 | V118: 0.3793682882 | W118: 0.08991444771 | X118: 0.3249374289 | Y118: 0.06782599634 | Z118: 0.06110671323 | AA118: 0.004707927806 | AB118: 8.576988365e-06 | AC118: 0.0015925556 | AD118: 0 | AE118: 0.9294619349 | AG118: =J118*VLOOKUP($B118,$AR$36:$AZ$47,MATCH(AG$2,$AS$2:$BA$2,0)+1,FALSE) -> 0.3844662345 | AH118: =K118*VLOOKUP($B118,$AR$36:$AZ$47,MATCH(AH$2,$AS$2:$BA$2,0)+1,FALSE) -> 0.3104519151 | AI118: =L118*VLOOKUP($B118,$AR$36:$AZ$47,MATCH(AI$2,$AS$2:$BA$2,0)+1,FALSE) -> 0.00622283391 | AJ118: =M118*VLOOKUP($B118,$AR$36:$AZ$47,MATCH(AJ$2,$AS$2:$BA$2,0)+1,FALSE) -> 0.08824888969 | AK118: =N118*VLOOKUP($B118,$AR$36:$AZ$47,MATCH(AK$2,$AS$2:$BA$2,0)+1,FALSE) -> 0.06730813608 | AL118: =O118*VLOOKUP($B118,$AR$36:$AZ$47,MATCH(AL$2,$AS$2:$BA$2,0)+1,FALSE) -> 0.05874589098 | AM118: =P118*VLOOKUP($B118,$AR$36:$AZ$47,MATCH(AM$2,$AS$2:$BA$2,0)+1,FALSE) -> 8.576988365e-06 | AN118: =Q118*VLOOKUP($B118,$AR$36:$AZ$47,MATCH(AN$2,$AS$2:$BA$2,0)+1,FALSE) -> 0.001665079838 | AO118: =R118*VLOOKUP($B118,$AR$36:$BA$47,MATCH(AO$2,$AS$2:$BA$2,0)+1,FALSE) -> 0 | AP118: 0.9171175571
A119: 2006 | B119: 1 | C119: 5 | D119: 21 | F119: 2013 | G119: 1 | H119: 5 | I119: 21 | J119: 0.3720590647 | K119: 0.3661740347 | L119: 0.008418087479 | M119: 0.1108235491 | N119: 0.0855645 | O119: 0.065465 | P119: 1.713756668e-05 | Q119: 0.002178785549 | R119: 0 | S119: 1.010700159 | V119: 0.3522711 | W119: 0.09710660768 | X119: 0.3241355192 | Y119: 0.06744739326 | Z119: 0.0603480416 | AA119: 0.004707927806 | AB119: 8.576988365e-06 | AC119: 0.0015925556 | AD119: 0 | AE119: 0.9076177222 | AG119: =J119*VLOOKUP($B119,$AR$36:$AZ$47,MATCH(AG$2,$AS$2:$BA$2,0)+1,FALSE) -> 0.3570049146 | AH119: =K119*VLOOKUP($B119,$AR$36:$AZ$47,MATCH(AH$2,$AS$2:$BA$2,0)+1,FALSE) -> 0.309685754 | AI119: =L119*VLOOKUP($B119,$AR$36:$AZ$47,MATCH(AI$2,$AS$2:$BA$2,0)+1,FALSE) -> 0.00622283391 | AJ119: =M119*VLOOKUP($B119,$AR$36:$AZ$47,MATCH(AJ$2,$AS$2:$BA$2,0)+1,FALSE) -> 0.09530782346 | AK119: =N119*VLOOKUP($B119,$AR$36:$AZ$47,MATCH(AK$2,$AS$2:$BA$2,0)+1,FALSE) -> 0.06693242369 | AL119: =O119*VLOOKUP($B119,$AR$36:$AZ$47,MATCH(AL$2,$AS$2:$BA$2,0)+1,FALSE) -> 0.05801653019 | AM119: =P119*VLOOKUP($B119,$AR$36:$AZ$47,MATCH(AM$2,$AS$2:$BA$2,0)+1,FALSE) -> 8.576988365e-06 | AN119: =Q119*VLOOKUP($B119,$AR$36:$AZ$47,MATCH(AN$2,$AS$2:$BA$2,0)+1,FALSE) -> 0.001665079838 | AO119: =R119*VLOOKUP($B119,$AR$36:$BA$47,MATCH(AO$2,$AS$2:$BA$2,0)+1,FALSE) -> 0 | AP119: 0.8948439367
A120: 2006 | B120: 1 | C120: 5 | D120: 22 | F120: 2013 | G120: 1 | H120: 5 | I120: 22 | J120: 0.3611061577 | K120: 0.35153174 | L120: 0.008418087479 | M120: 0.106262567 | N120: 0.0846656 | O120: 0.064916 | P120: 1.713756668e-05 | Q120: 0.002178785549 | R120: 0 | S120: 0.9790960753 | V120: 0.3419007236 | W120: 0.09311015115 | X120: 0.3111742294 | Y120: 0.06673882298 | Z120: 0.05984195324 | AA120: 0.004707927806 | AB120: 8.576988365e-06 | AC120: 0.0015925556 | AD120: 0 | AE120: 0.8790749407 | AG120: =J120*VLOOKUP($B120,$AR$36:$AZ$47,MATCH(AG$2,$AS$2:$BA$2,0)+1,FALSE) -> 0.3464951811 | AH120: =K120*VLOOKUP($B120,$AR$36:$AZ$47,MATCH(AH$2,$AS$2:$BA$2,0)+1,FALSE) -> 0.2973022706 | AI120: =L120*VLOOKUP($B120,$AR$36:$AZ$47,MATCH(AI$2,$AS$2:$BA$2,0)+1,FALSE) -> 0.00622283391 | AJ120: =M120*VLOOKUP($B120,$AR$36:$AZ$47,MATCH(AJ$2,$AS$2:$BA$2,0)+1,FALSE) -> 0.09138539653 | AK120: =N120*VLOOKUP($B120,$AR$36:$AZ$47,MATCH(AK$2,$AS$2:$BA$2,0)+1,FALSE) -> 0.06622926343 | AL120: =O120*VLOOKUP($B120,$AR$36:$AZ$47,MATCH(AL$2,$AS$2:$BA$2,0)+1,FALSE) -> 0.05752999425 | AM120: =P120*VLOOKUP($B120,$AR$36:$AZ$47,MATCH(AM$2,$AS$2:$BA$2,0)+1,FALSE) -> 8.576988365e-06 | AN120: =Q120*VLOOKUP($B120,$AR$36:$AZ$47,MATCH(AN$2,$AS$2:$BA$2,0)+1,FALSE) -> 0.001665079838 | AO120: =R120*VLOOKUP($B120,$AR$36:$BA$47,MATCH(AO$2,$AS$2:$BA$2,0)+1,FALSE) -> 0 | AP120: 0.8668385967
A121: 2006 | B121: 1 | C121: 5 | D121: 23 | F121: 2013 | G121: 1 | H121: 5 | I121: 23 | J121: 0.3393330478 | K121: 0.3290367969 | L121: 0.008418087479 | M121: 0.09228096107 | N121: 0.0837546 | O121: 0.064272 | P121: 1.713756668e-05 | Q121: 0.002178785549 | R121: 0 | S121: 0.9192914164 | V121: 0.3212856166 | W121: 0.08085908778 | X121: 0.2912618125 | Y121: 0.06602071471 | Z121: 0.05924829038 | AA121: 0.004707927806 | AB121: 8.576988365e-06 | AC121: 0.0015925556 | AD121: 0 | AE121: 0.8249845823 | AG121: =J121*VLOOKUP($B121,$AR$36:$AZ$47,MATCH(AG$2,$AS$2:$BA$2,0)+1,FALSE) -> 0.3256030487 | AH121: =K121*VLOOKUP($B121,$AR$36:$AZ$47,MATCH(AH$2,$AS$2:$BA$2,0)+1,FALSE) -> 0.2782775372 | AI121: =L121*VLOOKUP($B121,$AR$36:$AZ$47,MATCH(AI$2,$AS$2:$BA$2,0)+1,FALSE) -> 0.00622283391 | AJ121: =M121*VLOOKUP($B121,$AR$36:$AZ$47,MATCH(AJ$2,$AS$2:$BA$2,0)+1,FALSE) -> 0.07936126951 | AK121: =N121*VLOOKUP($B121,$AR$36:$AZ$47,MATCH(AK$2,$AS$2:$BA$2,0)+1,FALSE) -> 0.06551663801 | AL121: =O121*VLOOKUP($B121,$AR$36:$AZ$47,MATCH(AL$2,$AS$2:$BA$2,0)+1,FALSE) -> 0.05695926721 | AM121: =P121*VLOOKUP($B121,$AR$36:$AZ$47,MATCH(AM$2,$AS$2:$BA$2,0)+1,FALSE) -> 8.576988365e-06 | AN121: =Q121*VLOOKUP($B121,$AR$36:$AZ$47,MATCH(AN$2,$AS$2:$BA$2,0)+1,FALSE) -> 0.001665079838 | AO121: =R121*VLOOKUP($B121,$AR$36:$BA$47,MATCH(AO$2,$AS$2:$BA$2,0)+1,FALSE) -> 0 | AP121: 0.8136142513
A122: 2006 | B122: 1 | C122: 5 | D122: 24 | F122: 2013 | G122: 1 | H122: 5 | I122: 24 | J122: 0.2331309291 | K122: 0.3478809419 | L122: 0.008418087479 | M122: 0.132433957 | N122: 0.0828169 | O122: 0.063363 | P122: 1.713756668e-05 | Q122: 0.002178785549 | R122: 0 | S122: 0.8702397386 | V122: 0.2207318586 | W122: 0.1160422348 | X122: 0.3079425602 | Y122: 0.06528155979 | Z122: 0.05841034079 | AA122: 0.004707927806 | AB122: 8.576988365e-06 | AC122: 0.0015925556 | AD122: 0 | AE122: 0.7747176146 | AG122: =J122*VLOOKUP($B122,$AR$36:$AZ$47,MATCH(AG$2,$AS$2:$BA$2,0)+1,FALSE) -> 0.2236980505 | AH122: =K122*VLOOKUP($B122,$AR$36:$AZ$47,MATCH(AH$2,$AS$2:$BA$2,0)+1,FALSE) -> 0.2942146674 | AI122: =L122*VLOOKUP($B122,$AR$36:$AZ$47,MATCH(AI$2,$AS$2:$BA$2,0)+1,FALSE) -> 0.00622283391 | AJ122: =M122*VLOOKUP($B122,$AR$36:$AZ$47,MATCH(AJ$2,$AS$2:$BA$2,0)+1,FALSE) -> 0.1138926906 | AK122: =N122*VLOOKUP($B122,$AR$36:$AZ$47,MATCH(AK$2,$AS$2:$BA$2,0)+1,FALSE) -> 0.06478312664 | AL122: =O122*VLOOKUP($B122,$AR$36:$AZ$47,MATCH(AL$2,$AS$2:$BA$2,0)+1,FALSE) -> 0.05615369132 | AM122: =P122*VLOOKUP($B122,$AR$36:$AZ$47,MATCH(AM$2,$AS$2:$BA$2,0)+1,FALSE) -> 8.576988365e-06 | AN122: =Q122*VLOOKUP($B122,$AR$36:$AZ$47,MATCH(AN$2,$AS$2:$BA$2,0)+1,FALSE) -> 0.001665079838 | AO122: =R122*VLOOKUP($B122,$AR$36:$BA$47,MATCH(AO$2,$AS$2:$BA$2,0)+1,FALSE) -> 0 | AP122: 0.7606387172
A123: 2006 | B123: 1 | C123: 6 | D123: 1 | F123: 2013 | G123: 1 | H123: 6 | I123: 1 | J123: 0.220167972 | K123: 0.3034424964 | L123: 0.008418087479 | M123: 0.08780046934 | N123: 0.0826475 | O123: 0.063232 | P123: 1.713756668e-05 | Q123: 0.002178785549 | R123: 0 | S123: 0.7679044483 | V123: 0.2084583364 | W123: 0.07693315908 | X123: 0.268605859 | Y123: 0.06514802791 | Z123: 0.05828958018 | AA123: 0.004707927806 | AB123: 8.576988365e-06 | AC123: 0.0015925556 | AD123: 0 | AE123: 0.683744023 | AG123: =J123*VLOOKUP($B123,$AR$36:$AZ$47,MATCH(AG$2,$AS$2:$BA$2,0)+1,FALSE) -> 0.2112595969 | AH123: =K123*VLOOKUP($B123,$AR$36:$AZ$47,MATCH(AH$2,$AS$2:$BA$2,0)+1,FALSE) -> 0.2566315725 | AI123: =L123*VLOOKUP($B123,$AR$36:$AZ$47,MATCH(AI$2,$AS$2:$BA$2,0)+1,FALSE) -> 0.00622283391 | AJ123: =M123*VLOOKUP($B123,$AR$36:$AZ$47,MATCH(AJ$2,$AS$2:$BA$2,0)+1,FALSE) -> 0.07550806396 | AK123: =N123*VLOOKUP($B123,$AR$36:$AZ$47,MATCH(AK$2,$AS$2:$BA$2,0)+1,FALSE) -> 0.06465061429 | AL123: =O123*VLOOKUP($B123,$AR$36:$AZ$47,MATCH(AL$2,$AS$2:$BA$2,0)+1,FALSE) -> 0.05603759622 | AM123: =P123*VLOOKUP($B123,$AR$36:$AZ$47,MATCH(AM$2,$AS$2:$BA$2,0)+1,FALSE) -> 8.576988365e-06 | AN123: =Q123*VLOOKUP($B123,$AR$36:$AZ$47,MATCH(AN$2,$AS$2:$BA$2,0)+1,FALSE) -> 0.001665079838 | AO123: =R123*VLOOKUP($B123,$AR$36:$BA$47,MATCH(AO$2,$AS$2:$BA$2,0)+1,FALSE) -> 0 | AP123: 0.6719839346
A124: 2006 | B124: 1 | C124: 6 | D124: 2 | F124: 2013 | G124: 1 | H124: 6 | I124: 2 | J124: 0.203134728 | K124: 0.2955195883 | L124: 0.008418087479 | M124: 0.08150228894 | N124: 0.0824577 | O124: 0.063308 | P124: 1.713756668e-05 | Q124: 0.002178785549 | R124: 0 | S124: 0.7365363158 | V124: 0.1923310057 | W124: 0.07141452213 | X124: 0.2615925383 | Y124: 0.06499841546 | Z124: 0.05835963977 | AA124: 0.004707927806 | AB124: 8.576988365e-06 | AC124: 0.0015925556 | AD124: 0 | AE124: 0.6550051817 | AG124: =J124*VLOOKUP($B124,$AR$36:$AZ$47,MATCH(AG$2,$AS$2:$BA$2,0)+1,FALSE) -> 0.1949155473 | AH124: =K124*VLOOKUP($B124,$AR$36:$AZ$47,MATCH(AH$2,$AS$2:$BA$2,0)+1,FALSE) -> 0.2499309013 | AI124: =L124*VLOOKUP($B124,$AR$36:$AZ$47,MATCH(AI$2,$AS$2:$BA$2,0)+1,FALSE) -> 0.00622283391 | AJ124: =M124*VLOOKUP($B124,$AR$36:$AZ$47,MATCH(AJ$2,$AS$2:$BA$2,0)+1,FALSE) -> 0.07009165318 | AK124: =N124*VLOOKUP($B124,$AR$36:$AZ$47,MATCH(AK$2,$AS$2:$BA$2,0)+1,FALSE) -> 0.06450214414 | AL124: =O124*VLOOKUP($B124,$AR$36:$AZ$47,MATCH(AL$2,$AS$2:$BA$2,0)+1,FALSE) -> 0.0561049491 | AM124: =P124*VLOOKUP($B124,$AR$36:$AZ$47,MATCH(AM$2,$AS$2:$BA$2,0)+1,FALSE) -> 8.576988365e-06 | AN124: =Q124*VLOOKUP($B124,$AR$36:$AZ$47,MATCH(AN$2,$AS$2:$BA$2,0)+1,FALSE) -> 0.001665079838 | AO124: =R124*VLOOKUP($B124,$AR$36:$BA$47,MATCH(AO$2,$AS$2:$BA$2,0)+1,FALSE) -> 0 | AP124: 0.6434416858
A125: 2006 | B125: 1 | C125: 6 | D125: 3 | F125: 2013 | G125: 1 | H125: 6 | I125: 3 | J125: 0.1890991516 | K125: 0.2925490523 | L125: 0.008418087479 | M125: 0.08096341097 | N125: 0.0825087 | O125: 0.06322 | P125: 1.713756668e-05 | Q125: 0.002178785549 | R125: 0 | S125: 0.7189543255 | V125: 0.1790419116 | W125: 0.07094234259 | X125: 0.2589630339 | Y125: 0.06503861691 | Z125: 0.05827851814 | AA125: 0.004707927806 | AB125: 8.576988365e-06 | AC125: 0.0015925556 | AD125: 0 | AE125: 0.6385734835 | AG125: =J125*VLOOKUP($B125,$AR$36:$AZ$47,MATCH(AG$2,$AS$2:$BA$2,0)+1,FALSE) -> 0.1814478745 | AH125: =K125*VLOOKUP($B125,$AR$36:$AZ$47,MATCH(AH$2,$AS$2:$BA$2,0)+1,FALSE) -> 0.2474186187 | AI125: =L125*VLOOKUP($B125,$AR$36:$AZ$47,MATCH(AI$2,$AS$2:$BA$2,0)+1,FALSE) -> 0.00622283391 | AJ125: =M125*VLOOKUP($B125,$AR$36:$AZ$47,MATCH(AJ$2,$AS$2:$BA$2,0)+1,FALSE) -> 0.06962822021 | AK125: =N125*VLOOKUP($B125,$AR$36:$AZ$47,MATCH(AK$2,$AS$2:$BA$2,0)+1,FALSE) -> 0.06454203865 | AL125: =O125*VLOOKUP($B125,$AR$36:$AZ$47,MATCH(AL$2,$AS$2:$BA$2,0)+1,FALSE) -> 0.05602696156 | AM125: =P125*VLOOKUP($B125,$AR$36:$AZ$47,MATCH(AM$2,$AS$2:$BA$2,0)+1,FALSE) -> 8.576988365e-06 | AN125: =Q125*VLOOKUP($B125,$AR$36:$AZ$47,MATCH(AN$2,$AS$2:$BA$2,0)+1,FALSE) -> 0.001665079838 | AO125: =R125*VLOOKUP($B125,$AR$36:$BA$47,MATCH(AO$2,$AS$2:$BA$2,0)+1,FALSE) -> 0 | AP125: 0.6269602043
A126: 2006 | B126: 1 | C126: 6 | D126: 4 | F126: 2013 | G126: 1 | H126: 6 | I126: 4 | J126: 0.1852556172 | K126: 0.2923933115 | L126: 0.008418087479 | M126: 0.08066392591 | N126: 0.0830696 | O126: 0.062932 | P126: 1.713756668e-05 | Q126: 0.002178785549 | R126: 0 | S126: 0.7149284651 | V126: 0.1754027955 | W126: 0.07067992564 | X126: 0.2588251729 | Y126: 0.06548075404 | Z126: 0.05801302916 | AA126: 0.004707927806 | AB126: 8.576988365e-06 | AC126: 0.0015925556 | AD126: 0 | AE126: 0.6347107376 | AG126: =J126*VLOOKUP($B126,$AR$36:$AZ$47,MATCH(AG$2,$AS$2:$BA$2,0)+1,FALSE) -> 0.1777598561 | AH126: =K126*VLOOKUP($B126,$AR$36:$AZ$47,MATCH(AH$2,$AS$2:$BA$2,0)+1,FALSE) -> 0.2472869034 | AI126: =L126*VLOOKUP($B126,$AR$36:$AZ$47,MATCH(AI$2,$AS$2:$BA$2,0)+1,FALSE) -> 0.00622283391 | AJ126: =M126*VLOOKUP($B126,$AR$36:$AZ$47,MATCH(AJ$2,$AS$2:$BA$2,0)+1,FALSE) -> 0.06937066422 | AK126: =N126*VLOOKUP($B126,$AR$36:$AZ$47,MATCH(AK$2,$AS$2:$BA$2,0)+1,FALSE) -> 0.06498080001 | AL126: =O126*VLOOKUP($B126,$AR$36:$AZ$47,MATCH(AL$2,$AS$2:$BA$2,0)+1,FALSE) -> 0.05577172959 | AM126: =P126*VLOOKUP($B126,$AR$36:$AZ$47,MATCH(AM$2,$AS$2:$BA$2,0)+1,FALSE) -> 8.576988365e-06 | AN126: =Q126*VLOOKUP($B126,$AR$36:$AZ$47,MATCH(AN$2,$AS$2:$BA$2,0)+1,FALSE) -> 0.001665079838 | AO126: =R126*VLOOKUP($B126,$AR$36:$BA$47,MATCH(AO$2,$AS$2:$BA$2,0)+1,FALSE) -> 0 | AP126: 0.623066444
A127: 2006 | B127: 1 | C127: 6 | D127: 5 | F127: 2013 | G127: 1 | H127: 6 | I127: 5 | J127: 0.186454237 | K127: 0.2921978735 | L127: 0.008418087479 | M127: 0.078394606 | N127: 0.0832216 | O127: 0.063155 | P127: 1.713756668e-05 | Q127: 0.002178785549 | R127: 0 | S127: 0.7140373271 | V127: 0.1765376667 | W127: 0.06869148582 | X127: 0.2586521721 | Y127: 0.06560057013 | Z127: 0.05821859875 | AA127: 0.004707927806 | AB127: 8.576988365e-06 | AC127: 0.0015925556 | AD127: 0 | AE127: 0.6340095539 | AG127: =J127*VLOOKUP($B127,$AR$36:$AZ$47,MATCH(AG$2,$AS$2:$BA$2,0)+1,FALSE) -> 0.1789099776 | AH127: =K127*VLOOKUP($B127,$AR$36:$AZ$47,MATCH(AH$2,$AS$2:$BA$2,0)+1,FALSE) -> 0.2471216149 | AI127: =L127*VLOOKUP($B127,$AR$36:$AZ$47,MATCH(AI$2,$AS$2:$BA$2,0)+1,FALSE) -> 0.00622283391 | AJ127: =M127*VLOOKUP($B127,$AR$36:$AZ$47,MATCH(AJ$2,$AS$2:$BA$2,0)+1,FALSE) -> 0.06741905788 | AK127: =N127*VLOOKUP($B127,$AR$36:$AZ$47,MATCH(AK$2,$AS$2:$BA$2,0)+1,FALSE) -> 0.06509970129 | AL127: =O127*VLOOKUP($B127,$AR$36:$AZ$47,MATCH(AL$2,$AS$2:$BA$2,0)+1,FALSE) -> 0.05596935712 | AM127: =P127*VLOOKUP($B127,$AR$36:$AZ$47,MATCH(AM$2,$AS$2:$BA$2,0)+1,FALSE) -> 8.576988365e-06 | AN127: =Q127*VLOOKUP($B127,$AR$36:$AZ$47,MATCH(AN$2,$AS$2:$BA$2,0)+1,FALSE) -> 0.001665079838 | AO127: =R127*VLOOKUP($B127,$AR$36:$BA$47,MATCH(AO$2,$AS$2:$BA$2,0)+1,FALSE) -> 0 | AP127: 0.6224161996
A128: 2006 | B128: 1 | C128: 6 | D128: 6 | F128: 2013 | G128: 1 | H128: 6 | I128: 6 | J128: 0.1897496035 | K128: 0.2994332486 | L128: 0.008418087479 | M128: 0.07926911845 | N128: 0.0839352 | O128: 0.063517 | P128: 1.713756668e-05 | Q128: 0.002178785549 | R128: 0 | S128: 0.7265181812 | V128: 0.1796577692 | W128: 0.06945775741 | X128: 0.2650568919 | Y128: 0.06616307514 | Z128: 0.05855230365 | AA128: 0.004707927806 | AB128: 8.576988365e-06 | AC128: 0.0015925556 | AD128: 0 | AE128: 0.6451968577 | AG128: =J128*VLOOKUP($B128,$AR$36:$AZ$47,MATCH(AG$2,$AS$2:$BA$2,0)+1,FALSE) -> 0.182072008 | AH128: =K128*VLOOKUP($B128,$AR$36:$AZ$47,MATCH(AH$2,$AS$2:$BA$2,0)+1,FALSE) -> 0.2532408161 | AI128: =L128*VLOOKUP($B128,$AR$36:$AZ$47,MATCH(AI$2,$AS$2:$BA$2,0)+1,FALSE) -> 0.00622283391 | AJ128: =M128*VLOOKUP($B128,$AR$36:$AZ$47,MATCH(AJ$2,$AS$2:$BA$2,0)+1,FALSE) -> 0.0681711352 | AK128: =N128*VLOOKUP($B128,$AR$36:$AZ$47,MATCH(AK$2,$AS$2:$BA$2,0)+1,FALSE) -> 0.0656579115 | AL128: =O128*VLOOKUP($B128,$AR$36:$AZ$47,MATCH(AL$2,$AS$2:$BA$2,0)+1,FALSE) -> 0.05629016952 | AM128: =P128*VLOOKUP($B128,$AR$36:$AZ$47,MATCH(AM$2,$AS$2:$BA$2,0)+1,FALSE) -> 8.576988365e-06 | AN128: =Q128*VLOOKUP($B128,$AR$36:$AZ$47,MATCH(AN$2,$AS$2:$BA$2,0)+1,FALSE) -> 0.001665079838 | AO128: =R128*VLOOKUP($B128,$AR$36:$BA$47,MATCH(AO$2,$AS$2:$BA$2,0)+1,FALSE) -> 0 | AP128: 0.6333285311
A129: 2006 | B129: 1 | C129: 6 | D129: 7 | F129: 2013 | G129: 1 | H129: 6 | I129: 7 | J129: 0.2017417189 | K129: 0.310158706 | L129: 0.008418087479 | M129: 0.07915821542 | N129: 0.0850369 | O129: 0.064264 | P129: 1.713756668e-05 | Q129: 0.002178785549 | R129: 0 | S129: 0.7509735509 | V129: 0.1910120838 | W129: 0.06936058115 | X129: 0.2745510158 | Y129: 0.06703150531 | Z129: 0.05924091569 | AA129: 0.004707927806 | AB129: 8.576988365e-06 | AC129: 0.0015925556 | AD129: 0 | AE129: 0.6675051622 | AG129: =J129*VLOOKUP($B129,$AR$36:$AZ$47,MATCH(AG$2,$AS$2:$BA$2,0)+1,FALSE) -> 0.1935789018 | AH129: =K129*VLOOKUP($B129,$AR$36:$AZ$47,MATCH(AH$2,$AS$2:$BA$2,0)+1,FALSE) -> 0.2623116978 | AI129: =L129*VLOOKUP($B129,$AR$36:$AZ$47,MATCH(AI$2,$AS$2:$BA$2,0)+1,FALSE) -> 0.00622283391 | AJ129: =M129*VLOOKUP($B129,$AR$36:$AZ$47,MATCH(AJ$2,$AS$2:$BA$2,0)+1,FALSE) -> 0.06807575902 | AK129: =N129*VLOOKUP($B129,$AR$36:$AZ$47,MATCH(AK$2,$AS$2:$BA$2,0)+1,FALSE) -> 0.06651971109 | AL129: =O129*VLOOKUP($B129,$AR$36:$AZ$47,MATCH(AL$2,$AS$2:$BA$2,0)+1,FALSE) -> 0.05695217744 | AM129: =P129*VLOOKUP($B129,$AR$36:$AZ$47,MATCH(AM$2,$AS$2:$BA$2,0)+1,FALSE) -> 8.576988365e-06 | AN129: =Q129*VLOOKUP($B129,$AR$36:$AZ$47,MATCH(AN$2,$AS$2:$BA$2,0)+1,FALSE) -> 0.001665079838 | AO129: =R129*VLOOKUP($B129,$AR$36:$BA$47,MATCH(AO$2,$AS$2:$BA$2,0)+1,FALSE) -> 0 | AP129: 0.6553347379
A130: 2006 | B130: 1 | C130: 6 | D130: 8 | F130: 2013 | G130: 1 | H130: 6 | I130: 8 | J130: 0.2261546662 | K130: 0.3211174572 | L130: 0.005191153945 | M130: 0.07888998092 | N130: 0.0860889 | O130: 0.064951 | P130: 1.056816612e-05 | Q130: 0.00205077351 | R130: 0 | S130: 0.7844544999 | V130: 0.2141266283 | W130: 0.06912554679 | X130: 0.2842516505 | Y130: 0.06786075877 | Z130: 0.05987421752 | AA130: 0.002903222147 | AB130: 5.289142825e-06 | AC130: 0.001498986828 | AD130: 0 | AE130: 0.6996463 | AG130: =J130*VLOOKUP($B130,$AR$36:$AZ$47,MATCH(AG$2,$AS$2:$BA$2,0)+1,FALSE) -> 0.2170040592 | AH130: =K130*VLOOKUP($B130,$AR$36:$AZ$47,MATCH(AH$2,$AS$2:$BA$2,0)+1,FALSE) -> 0.271579884 | AI130: =L130*VLOOKUP($B130,$AR$36:$AZ$47,MATCH(AI$2,$AS$2:$BA$2,0)+1,FALSE) -> 0.003837414244 | AJ130: =M130*VLOOKUP($B130,$AR$36:$AZ$47,MATCH(AJ$2,$AS$2:$BA$2,0)+1,FALSE) -> 0.06784507839 | AK130: =N130*VLOOKUP($B130,$AR$36:$AZ$47,MATCH(AK$2,$AS$2:$BA$2,0)+1,FALSE) -> 0.06734263309 | AL130: =O130*VLOOKUP($B130,$AR$36:$AZ$47,MATCH(AL$2,$AS$2:$BA$2,0)+1,FALSE) -> 0.05756101203 | AM130: =P130*VLOOKUP($B130,$AR$36:$AZ$47,MATCH(AM$2,$AS$2:$BA$2,0)+1,FALSE) -> 5.289142825e-06 | AN130: =Q130*VLOOKUP($B130,$AR$36:$AZ$47,MATCH(AN$2,$AS$2:$BA$2,0)+1,FALSE) -> 0.001567249988 | AO130: =R130*VLOOKUP($B130,$AR$36:$BA$47,MATCH(AO$2,$AS$2:$BA$2,0)+1,FALSE) -> 0 | AP130: 0.6867426201
A131: 2006 | B131: 1 | C131: 6 | D131: 9 | F131: 2013 | G131: 1 | H131: 6 | I131: 9 | J131: 0.2620283764 | K131: 0.3290301798 | L131: 0 | M131: 0.07731053807 | N131: 0.0872029 | O131: 0.064867 | P131: 0 | Q131: 0.0018448411 | R131: 0 | S131: 0.8222838353 | V131: =$J131*$AS$6 -> 0.2480923949 | W131: =$M131*$AV$6 -> 0.06774159601 | X131: =$K131*$AT$6 -> 0.291255955 | Y131: =$N131*$AW$6 -> 0.06873888458 | Z131: =$O131*$AX$6 -> 0.05979678324 | AA131: =$L131*$AU$6 -> 0 | AB131: =$P131*$AY$6 -> 0 | AC131: =$Q131*$AZ$6 -> 0.00134846315 | AD131: 0 | AE131: =SUM(V131:AD131) -> 0.7369740768 | AG131: =J131*VLOOKUP($B131,$AR$36:$AZ$47,MATCH(AG$2,$AS$2:$BA$2,0)+1,FALSE) -> 0.2514262573 | AH131: =K131*VLOOKUP($B131,$AR$36:$AZ$47,MATCH(AH$2,$AS$2:$BA$2,0)+1,FALSE) -> 0.2782719409 | AI131: =L131*VLOOKUP($B131,$AR$36:$AZ$47,MATCH(AI$2,$AS$2:$BA$2,0)+1,FALSE) -> 0 | AJ131: =M131*VLOOKUP($B131,$AR$36:$AZ$47,MATCH(AJ$2,$AS$2:$BA$2,0)+1,FALSE) -> 0.06648676365 | AK131: =N131*VLOOKUP($B131,$AR$36:$AZ$47,MATCH(AK$2,$AS$2:$BA$2,0)+1,FALSE) -> 0.0682140543 | AL131: =O131*VLOOKUP($B131,$AR$36:$AZ$47,MATCH(AL$2,$AS$2:$BA$2,0)+1,FALSE) -> 0.05748656937 | AM131: =P131*VLOOKUP($B131,$AR$36:$AZ$47,MATCH(AM$2,$AS$2:$BA$2,0)+1,FALSE) -> 0 | AN131: =Q131*VLOOKUP($B131,$AR$36:$AZ$47,MATCH(AN$2,$AS$2:$BA$2,0)+1,FALSE) -> 0.001409871532 | AO131: =R131*VLOOKUP($B131,$AR$36:$BA$47,MATCH(AO$2,$AS$2:$BA$2,0)+1,FALSE) -> 0 | AP131: 0.723295457
A132: 2006 | B132: 1 | C132: 6 | D132: 10 | F132: 2013 | G132: 1 | H132: 6 | I132: 10 | J132: 0.3015733848 | K132: 0.3313953827 | L132: 0 | M132: 0.06765175602 | N132: 0.0869866 | O132: 0.06534 | P132: 0 | Q132: 0.0018448411 | R132: 0 | S132: 0.8547919646 | V132: 0.2855342017 | W132: 0.0592783085 | X132: 0.2933496214 | Y132: 0.06856838313 | Z132: 0.06023281201 | AA132: 0 | AB132: 0 | AC132: 0.00134846315 | AD132: =$R132*$BA$6 -> 0 | AE132: 0.7683117898 | AG132: =J132*VLOOKUP($B132,$AR$36:$AZ$47,MATCH(AG$2,$AS$2:$BA$2,0)+1,FALSE) -> 0.2893712066 | AH132: =K132*VLOOKUP($B132,$AR$36:$AZ$47,MATCH(AH$2,$AS$2:$BA$2,0)+1,FALSE) -> 0.2802722729 | AI132: =L132*VLOOKUP($B132,$AR$36:$AZ$47,MATCH(AI$2,$AS$2:$BA$2,0)+1,FALSE) -> 0 | AJ132: =M132*VLOOKUP($B132,$AR$36:$AZ$47,MATCH(AJ$2,$AS$2:$BA$2,0)+1,FALSE) -> 0.05818024846 | AK132: =N132*VLOOKUP($B132,$AR$36:$AZ$47,MATCH(AK$2,$AS$2:$BA$2,0)+1,FALSE) -> 0.06804485466 | AL132: =O132*VLOOKUP($B132,$AR$36:$AZ$47,MATCH(AL$2,$AS$2:$BA$2,0)+1,FALSE) -> 0.05790575242 | AM132: =P132*VLOOKUP($B132,$AR$36:$AZ$47,MATCH(AM$2,$AS$2:$BA$2,0)+1,FALSE) -> 0 | AN132: =Q132*VLOOKUP($B132,$AR$36:$AZ$47,MATCH(AN$2,$AS$2:$BA$2,0)+1,FALSE) -> 0.001409871532 | AO132: =R132*VLOOKUP($B132,$AR$36:$BA$47,MATCH(AO$2,$AS$2:$BA$2,0)+1,FALSE) -> 0 | AP132: =SUM(AG132:AO132) -> 0.7551842066
A133: 2006 | B133: 1 | C133: 6 | D133: 11 | F133: 2013 | G133: 1 | H133: 6 | I133: 11 | J133: 0.2946583879 | K133: 0.3457658035 | L133: 0 | M133: 0.07751842193 | N133: 0.0888858 | O133: 0.063951 | P133: 0 | Q133: 0.0018448411 | R133: 0 | S133: 0.8726242545 | V133: 0.2789869789 | W133: 0.06792374951 | X133: 0.3060702498 | Y133: 0.07006545364 | Z133: 0.05895238079 | AA133: 0 | AB133: 0 | AC133: 0.00134846315 | AD133: 0 | AE133: 0.7833472758 | AG133: =J133*VLOOKUP($B133,$AR$36:$AZ$47,MATCH(AG$2,$AS$2:$BA$2,0)+1,FALSE) -> 0.2827360024 | AH133: =K133*VLOOKUP($B133,$AR$36:$AZ$47,MATCH(AH$2,$AS$2:$BA$2,0)+1,FALSE) -> 0.2924258234 | AI133: =L133*VLOOKUP($B133,$AR$36:$AZ$47,MATCH(AI$2,$AS$2:$BA$2,0)+1,FALSE) -> 0 | AJ133: =M133*VLOOKUP($B133,$AR$36:$AZ$47,MATCH(AJ$2,$AS$2:$BA$2,0)+1,FALSE) -> 0.06666554297 | AK133: =N133*VLOOKUP($B133,$AR$36:$AZ$47,MATCH(AK$2,$AS$2:$BA$2,0)+1,FALSE) -> 0.06953049483 | AL133: =O133*VLOOKUP($B133,$AR$36:$AZ$47,MATCH(AL$2,$AS$2:$BA$2,0)+1,FALSE) -> 0.05667478992 | AM133: =P133*VLOOKUP($B133,$AR$36:$AZ$47,MATCH(AM$2,$AS$2:$BA$2,0)+1,FALSE) -> 0 | AN133: =Q133*VLOOKUP($B133,$AR$36:$AZ$47,MATCH(AN$2,$AS$2:$BA$2,0)+1,FALSE) -> 0.001409871532 | AO133: =R133*VLOOKUP($B133,$AR$36:$BA$47,MATCH(AO$2,$AS$2:$BA$2,0)+1,FALSE) -> 0 | AP133: 0.769442525
A134: 2006 | B134: 1 | C134: 6 | D134: 12 | F134: 2013 | G134: 1 | H134: 6 | I134: 12 | J134: 0.304047693 | K134: 0.3509219284 | L134: 0 | M134: 0.07839031651 | N134: 0.0891638 | O134: 0.064004 | P134: 0 | Q134: 0.0018448411 | R134: 0 | S134: 0.888372579 | V134: 0.2878769138 | W134: 0.06868772725 | X134: 0.3106344271 | Y134: 0.07028459096 | Z134: 0.05900123814 | AA134: 0 | AB134: 0 | AC134: 0.00134846315 | AD134: 0 | AE134: 0.7978333604 | AG134: =J134*VLOOKUP($B134,$AR$36:$AZ$47,MATCH(AG$2,$AS$2:$BA$2,0)+1,FALSE) -> 0.2917454001 | AH134: =K134*VLOOKUP($B134,$AR$36:$AZ$47,MATCH(AH$2,$AS$2:$BA$2,0)+1,FALSE) -> 0.2967865324 | AI134: =L134*VLOOKUP($B134,$AR$36:$AZ$47,MATCH(AI$2,$AS$2:$BA$2,0)+1,FALSE) -> 0 | AJ134: =M134*VLOOKUP($B134,$AR$36:$AZ$47,MATCH(AJ$2,$AS$2:$BA$2,0)+1,FALSE) -> 0.06741536893 | AK134: =N134*VLOOKUP($B134,$AR$36:$AZ$47,MATCH(AK$2,$AS$2:$BA$2,0)+1,FALSE) -> 0.06974795901 | AL134: =O134*VLOOKUP($B134,$AR$36:$AZ$47,MATCH(AL$2,$AS$2:$BA$2,0)+1,FALSE) -> 0.05672175969 | AM134: =P134*VLOOKUP($B134,$AR$36:$AZ$47,MATCH(AM$2,$AS$2:$BA$2,0)+1,FALSE) -> 0 | AN134: =Q134*VLOOKUP($B134,$AR$36:$AZ$47,MATCH(AN$2,$AS$2:$BA$2,0)+1,FALSE) -> 0.001409871532 | AO134: =R134*VLOOKUP($B134,$AR$36:$BA$47,MATCH(AO$2,$AS$2:$BA$2,0)+1,FALSE) -> 0 | AP134: 0.7838268917
A135: 2006 | B135: 1 | C135: 6 | D135: 13 | F135: 2013 | G135: 1 | H135: 6 | I135: 13 | J135: 0.2915886653 | K135: 0.3579008246 | L135: 0 | M135: 0.08919108259 | N135: 0.0891477 | O135: 0.065301 | P135: 0 | Q135: 0.0018448411 | R135: 0 | S135: 0.8949741135 | V135: 0.2760805196 | W135: 0.07815165223 | X135: 0.3168121128 | Y135: 0.07027189991 | Z135: 0.06019686038 | AA135: 0 | AB135: 0 | AC135: 0.00134846315 | AD135: 0 | AE135: 0.8028615081 | AG135: =J135*VLOOKUP($B135,$AR$36:$AZ$47,MATCH(AG$2,$AS$2:$BA$2,0)+1,FALSE) -> 0.2797904861 | AH135: =K135*VLOOKUP($B135,$AR$36:$AZ$47,MATCH(AH$2,$AS$2:$BA$2,0)+1,FALSE) -> 0.3026888207 | AI135: =L135*VLOOKUP($B135,$AR$36:$AZ$47,MATCH(AI$2,$AS$2:$BA$2,0)+1,FALSE) -> 0 | AJ135: =M135*VLOOKUP($B135,$AR$36:$AZ$47,MATCH(AJ$2,$AS$2:$BA$2,0)+1,FALSE) -> 0.07670398597 | AK135: =N135*VLOOKUP($B135,$AR$36:$AZ$47,MATCH(AK$2,$AS$2:$BA$2,0)+1,FALSE) -> 0.06973536487 | AL135: =O135*VLOOKUP($B135,$AR$36:$AZ$47,MATCH(AL$2,$AS$2:$BA$2,0)+1,FALSE) -> 0.05787118976 | AM135: =P135*VLOOKUP($B135,$AR$36:$AZ$47,MATCH(AM$2,$AS$2:$BA$2,0)+1,FALSE) -> 0 | AN135: =Q135*VLOOKUP($B135,$AR$36:$AZ$47,MATCH(AN$2,$AS$2:$BA$2,0)+1,FALSE) -> 0.001409871532 | AO135: =R135*VLOOKUP($B135,$AR$36:$BA$47,MATCH(AO$2,$AS$2:$BA$2,0)+1,FALSE) -> 0 | AP135: 0.7881997189
A136: 2006 | B136: 1 | C136: 6 | D136: 14 | F136: 2013 | G136: 1 | H136: 6 | I136: 14 | J136: 0.2870054772 | K136: 0.3556999146 | L136: 0 | M136: 0.08553579676 | N136: 0.0896729 | O136: 0.065981 | P136: 0 | Q136: 0.0018448411 | R136: 0 | S136: 0.8857399296 | V136: 0.2717410884 | W136: 0.07494879137 | X136: 0.3148638778 | Y136: 0.07068589603 | Z136: 0.06082370935 | AA136: 0 | AB136: 0 | AC136: 0.00134846315 | AD136: 0 | AE136: 0.794411826 | AG136: =J136*VLOOKUP($B136,$AR$36:$AZ$47,MATCH(AG$2,$AS$2:$BA$2,0)+1,FALSE) -> 0.2753927416 | AH136: =K136*VLOOKUP($B136,$AR$36:$AZ$47,MATCH(AH$2,$AS$2:$BA$2,0)+1,FALSE) -> 0.3008274368 | AI136: =L136*VLOOKUP($B136,$AR$36:$AZ$47,MATCH(AI$2,$AS$2:$BA$2,0)+1,FALSE) -> 0 | AJ136: =M136*VLOOKUP($B136,$AR$36:$AZ$47,MATCH(AJ$2,$AS$2:$BA$2,0)+1,FALSE) -> 0.0735604543 | AK136: =N136*VLOOKUP($B136,$AR$36:$AZ$47,MATCH(AK$2,$AS$2:$BA$2,0)+1,FALSE) -> 0.07014620007 | AL136: =O136*VLOOKUP($B136,$AR$36:$AZ$47,MATCH(AL$2,$AS$2:$BA$2,0)+1,FALSE) -> 0.05847382079 | AM136: =P136*VLOOKUP($B136,$AR$36:$AZ$47,MATCH(AM$2,$AS$2:$BA$2,0)+1,FALSE) -> 0 | AN136: =Q136*VLOOKUP($B136,$AR$36:$AZ$47,MATCH(AN$2,$AS$2:$BA$2,0)+1,FALSE) -> 0.001409871532 | AO136: =R136*VLOOKUP($B136,$AR$36:$BA$47,MATCH(AO$2,$AS$2:$BA$2,0)+1,FALSE) -> 0 | AP136: 0.7798105251
A137: 2006 | B137: 1 | C137: 6 | D137: 15 | F137: 2013 | G137: 1 | H137: 6 | I137: 15 | J137: 0.3040711812 | K137: 0.3476489625 | L137: 0 | M137: 0.07193453118 | N137: 0.0901343 | O137: 0.06643 | P137: 0 | Q137: 0.0018448411 | R137: 0 | S137: 0.882063816 | V137: 0.2878991528 | W137: 0.06303099257 | X137: 0.3077372131 | Y137: 0.07104960093 | Z137: 0.06123761405 | AA137: 0 | AB137: 0 | AC137: 0.00134846315 | AD137: 0 | AE137: 0.7923030366 | AG137: =J137*VLOOKUP($B137,$AR$36:$AZ$47,MATCH(AG$2,$AS$2:$BA$2,0)+1,FALSE) -> 0.2917679379 | AH137: =K137*VLOOKUP($B137,$AR$36:$AZ$47,MATCH(AH$2,$AS$2:$BA$2,0)+1,FALSE) -> 0.2940184745 | AI137: =L137*VLOOKUP($B137,$AR$36:$AZ$47,MATCH(AI$2,$AS$2:$BA$2,0)+1,FALSE) -> 0 | AJ137: =M137*VLOOKUP($B137,$AR$36:$AZ$47,MATCH(AJ$2,$AS$2:$BA$2,0)+1,FALSE) -> 0.06186341852 | AK137: =N137*VLOOKUP($B137,$AR$36:$AZ$47,MATCH(AK$2,$AS$2:$BA$2,0)+1,FALSE) -> 0.07050712803 | AL137: =O137*VLOOKUP($B137,$AR$36:$AZ$47,MATCH(AL$2,$AS$2:$BA$2,0)+1,FALSE) -> 0.05887173452 | AM137: =P137*VLOOKUP($B137,$AR$36:$AZ$47,MATCH(AM$2,$AS$2:$BA$2,0)+1,FALSE) -> 0 | AN137: =Q137*VLOOKUP($B137,$AR$36:$AZ$47,MATCH(AN$2,$AS$2:$BA$2,0)+1,FALSE) -> 0.001409871532 | AO137: =R137*VLOOKUP($B137,$AR$36:$BA$47,MATCH(AO$2,$AS$2:$BA$2,0)+1,FALSE) -> 0 | AP137: 0.778438565
A138: 2006 | B138: 1 | C138: 6 | D138: 16 | F138: 2013 | G138: 1 | H138: 6 | I138: 16 | J138: 0.3143512983 | K138: 0.3515292287 | L138: 0 | M138: 0.07621298214 | N138: 0.0901549 | O138: 0.066351 | P138: 0 | Q138: 0.0018448411 | R138: 0 | S138: 0.9004442502 | V138: 0.2976325218 | W138: 0.06677988766 | X138: 0.3111720064 | Y138: 0.07106583916 | Z138: 0.06116478895 | AA138: 0 | AB138: 0 | AC138: 0.00134846315 | AD138: 0 | AE138: 0.809163507 | AG138: =J138*VLOOKUP($B138,$AR$36:$AZ$47,MATCH(AG$2,$AS$2:$BA$2,0)+1,FALSE) -> 0.3016321038 | AH138: =K138*VLOOKUP($B138,$AR$36:$AZ$47,MATCH(AH$2,$AS$2:$BA$2,0)+1,FALSE) -> 0.2973001467 | AI138: =L138*VLOOKUP($B138,$AR$36:$AZ$47,MATCH(AI$2,$AS$2:$BA$2,0)+1,FALSE) -> 0 | AJ138: =M138*VLOOKUP($B138,$AR$36:$AZ$47,MATCH(AJ$2,$AS$2:$BA$2,0)+1,FALSE) -> 0.0655428698 | AK138: =N138*VLOOKUP($B138,$AR$36:$AZ$47,MATCH(AK$2,$AS$2:$BA$2,0)+1,FALSE) -> 0.07052324228 | AL138: =O138*VLOOKUP($B138,$AR$36:$AZ$47,MATCH(AL$2,$AS$2:$BA$2,0)+1,FALSE) -> 0.05880172297 | AM138: =P138*VLOOKUP($B138,$AR$36:$AZ$47,MATCH(AM$2,$AS$2:$BA$2,0)+1,FALSE) -> 0 | AN138: =Q138*VLOOKUP($B138,$AR$36:$AZ$47,MATCH(AN$2,$AS$2:$BA$2,0)+1,FALSE) -> 0.001409871532 | AO138: =R138*VLOOKUP($B138,$AR$36:$BA$47,MATCH(AO$2,$AS$2:$BA$2,0)+1,FALSE) -> 0 | AP138: 0.7952099571
A139: 2006 | B139: 1 | C139: 6 | D139: 17 | F139: 2013 | G139: 1 | H139: 6 | I139: 17 | J139: 0.359357487 | K139: 0.3535625025 | L139: 0.002385124786 | M139: 0.07513243344 | N139: 0.0891442 | O139: 0.066965 | P139: 4.855643892e-06 | Q139: 0.001939458694 | R139: 0 | S139: 0.948491062 | V139: 0.3402450559 | W139: 0.0658330815 | X139: 0.3129718507 | Y139: 0.07026914099 | Z139: 0.0617307967 | AA139: 0.001333912878 | AB139: 2.430146704e-06 | AC139: 0.001417622678 | AD139: 0 | AE139: 0.8538038915 | AG139: =J139*VLOOKUP($B139,$AR$36:$AZ$47,MATCH(AG$2,$AS$2:$BA$2,0)+1,FALSE) -> 0.3448172646 | AH139: =K139*VLOOKUP($B139,$AR$36:$AZ$47,MATCH(AH$2,$AS$2:$BA$2,0)+1,FALSE) -> 0.2990197551 | AI139: =L139*VLOOKUP($B139,$AR$36:$AZ$47,MATCH(AI$2,$AS$2:$BA$2,0)+1,FALSE) -> 0.001763136274 | AJ139: =M139*VLOOKUP($B139,$AR$36:$AZ$47,MATCH(AJ$2,$AS$2:$BA$2,0)+1,FALSE) -> 0.0646136021 | AK139: =N139*VLOOKUP($B139,$AR$36:$AZ$47,MATCH(AK$2,$AS$2:$BA$2,0)+1,FALSE) -> 0.06973262701 | AL139: =O139*VLOOKUP($B139,$AR$36:$AZ$47,MATCH(AL$2,$AS$2:$BA$2,0)+1,FALSE) -> 0.05934586335 | AM139: =P139*VLOOKUP($B139,$AR$36:$AZ$47,MATCH(AM$2,$AS$2:$BA$2,0)+1,FALSE) -> 2.430146704e-06 | AN139: =Q139*VLOOKUP($B139,$AR$36:$AZ$47,MATCH(AN$2,$AS$2:$BA$2,0)+1,FALSE) -> 0.001482180552 | AO139: =R139*VLOOKUP($B139,$AR$36:$BA$47,MATCH(AO$2,$AS$2:$BA$2,0)+1,FALSE) -> 0 | AP139: 0.8407768591
A140: 2006 | B140: 1 | C140: 6 | D140: 18 | F140: 2013 | G140: 1 | H140: 6 | I140: 18 | J140: 0.4216484324 | K140: 0.3521077133 | L140: 0.008418087479 | M140: 0.0738790656 | N140: 0.0884689 | O140: 0.06739 | P140: 1.713756668e-05 | Q140: 0.002178785549 | R140: 0 | S140: 1.014108122 | V140: 0.3992230568 | W140: 0.06473484651 | X140: 0.3116840782 | Y140: 0.06973682648 | Z140: 0.06212257731 | AA140: 0.004707927806 | AB140: 8.576988365e-06 | AC140: 0.0015925556 | AD140: 0 | AE140: 0.9138104457 | AG140: =J140*VLOOKUP($B140,$AR$36:$AZ$47,MATCH(AG$2,$AS$2:$BA$2,0)+1,FALSE) -> 0.4045878111 | AH140: =K140*VLOOKUP($B140,$AR$36:$AZ$47,MATCH(AH$2,$AS$2:$BA$2,0)+1,FALSE) -> 0.2977893907 | AI140: =L140*VLOOKUP($B140,$AR$36:$AZ$47,MATCH(AI$2,$AS$2:$BA$2,0)+1,FALSE) -> 0.00622283391 | AJ140: =M140*VLOOKUP($B140,$AR$36:$AZ$47,MATCH(AJ$2,$AS$2:$BA$2,0)+1,FALSE) -> 0.0635357106 | AK140: =N140*VLOOKUP($B140,$AR$36:$AZ$47,MATCH(AK$2,$AS$2:$BA$2,0)+1,FALSE) -> 0.06920437679 | AL140: =O140*VLOOKUP($B140,$AR$36:$AZ$47,MATCH(AL$2,$AS$2:$BA$2,0)+1,FALSE) -> 0.05972250774 | AM140: =P140*VLOOKUP($B140,$AR$36:$AZ$47,MATCH(AM$2,$AS$2:$BA$2,0)+1,FALSE) -> 8.576988365e-06 | AN140: =Q140*VLOOKUP($B140,$AR$36:$AZ$47,MATCH(AN$2,$AS$2:$BA$2,0)+1,FALSE) -> 0.001665079838 | AO140: =R140*VLOOKUP($B140,$AR$36:$BA$47,MATCH(AO$2,$AS$2:$BA$2,0)+1,FALSE) -> 0 | AP140: 0.9027362877
A141: 2006 | B141: 1 | C141: 6 | D141: 19 | F141: 2013 | G141: 1 | H141: 6 | I141: 19 | J141: 0.4495369977 | K141: 0.3423700438 | L141: 0.008418087479 | M141: 0.07598892446 | N141: 0.0870245 | O141: 0.066475 | P141: 1.713756668e-05 | Q141: 0.002178785549 | R141: 0 | S141: 1.032009477 | V141: 0.4256283685 | W141: 0.06658356222 | X141: 0.3030643394 | Y141: 0.06859825833 | Z141: 0.0612790967 | AA141: 0.004707927806 | AB141: 8.576988365e-06 | AC141: 0.0015925556 | AD141: 0 | AE141: 0.9314626855 | AG141: =J141*VLOOKUP($B141,$AR$36:$AZ$47,MATCH(AG$2,$AS$2:$BA$2,0)+1,FALSE) -> 0.4313479571 | AH141: =K141*VLOOKUP($B141,$AR$36:$AZ$47,MATCH(AH$2,$AS$2:$BA$2,0)+1,FALSE) -> 0.2895539146 | AI141: =L141*VLOOKUP($B141,$AR$36:$AZ$47,MATCH(AI$2,$AS$2:$BA$2,0)+1,FALSE) -> 0.00622283391 | AJ141: =M141*VLOOKUP($B141,$AR$36:$AZ$47,MATCH(AJ$2,$AS$2:$BA$2,0)+1,FALSE) -> 0.06535018105 | AK141: =N141*VLOOKUP($B141,$AR$36:$AZ$47,MATCH(AK$2,$AS$2:$BA$2,0)+1,FALSE) -> 0.06807450175 | AL141: =O141*VLOOKUP($B141,$AR$36:$AZ$47,MATCH(AL$2,$AS$2:$BA$2,0)+1,FALSE) -> 0.05891161452 | AM141: =P141*VLOOKUP($B141,$AR$36:$AZ$47,MATCH(AM$2,$AS$2:$BA$2,0)+1,FALSE) -> 8.576988365e-06 | AN141: =Q141*VLOOKUP($B141,$AR$36:$AZ$47,MATCH(AN$2,$AS$2:$BA$2,0)+1,FALSE) -> 0.001665079838 | AO141: =R141*VLOOKUP($B141,$AR$36:$BA$47,MATCH(AO$2,$AS$2:$BA$2,0)+1,FALSE) -> 0 | AP141: 0.9211346598
A142: 2006 | B142: 1 | C142: 6 | D142: 20 | F142: 2013 | G142: 1 | H142: 6 | I142: 20 | J142: 0.4116377451 | K142: 0.3353333304 | L142: 0.008418087479 | M142: 0.08070793788 | N142: 0.0866682 | O142: 0.065981 | P142: 1.713756668e-05 | Q142: 0.002178785549 | R142: 0 | S142: 0.990942224 | V142: 0.389744788 | W142: 0.07071849012 | X142: 0.296835474 | Y142: 0.06831739996 | Z142: 0.06082370935 | AA142: 0.004707927806 | AB142: 8.576988365e-06 | AC142: 0.0015925556 | AD142: 0 | AE142: 0.8927489218 | AG142: =J142*VLOOKUP($B142,$AR$36:$AZ$47,MATCH(AG$2,$AS$2:$BA$2,0)+1,FALSE) -> 0.3949821735 | AH142: =K142*VLOOKUP($B142,$AR$36:$AZ$47,MATCH(AH$2,$AS$2:$BA$2,0)+1,FALSE) -> 0.2836027283 | AI142: =L142*VLOOKUP($B142,$AR$36:$AZ$47,MATCH(AI$2,$AS$2:$BA$2,0)+1,FALSE) -> 0.00622283391 | AJ142: =M142*VLOOKUP($B142,$AR$36:$AZ$47,MATCH(AJ$2,$AS$2:$BA$2,0)+1,FALSE) -> 0.06940851434 | AK142: =N142*VLOOKUP($B142,$AR$36:$AZ$47,MATCH(AK$2,$AS$2:$BA$2,0)+1,FALSE) -> 0.06779578777 | AL142: =O142*VLOOKUP($B142,$AR$36:$AZ$47,MATCH(AL$2,$AS$2:$BA$2,0)+1,FALSE) -> 0.05847382079 | AM142: =P142*VLOOKUP($B142,$AR$36:$AZ$47,MATCH(AM$2,$AS$2:$BA$2,0)+1,FALSE) -> 8.576988365e-06 | AN142: =Q142*VLOOKUP($B142,$AR$36:$AZ$47,MATCH(AN$2,$AS$2:$BA$2,0)+1,FALSE) -> 0.001665079838 | AO142: =R142*VLOOKUP($B142,$AR$36:$BA$47,MATCH(AO$2,$AS$2:$BA$2,0)+1,FALSE) -> 0 | AP142: 0.8821595155
A143: 2006 | B143: 1 | C143: 6 | D143: 21 | F143: 2013 | G143: 1 | H143: 6 | I143: 21 | J143: 0.3926355274 | K143: 0.3325622636 | L143: 0.008418087479 | M143: 0.08468212643 | N143: 0.0867216 | O143: 0.065334 | P143: 1.713756668e-05 | Q143: 0.002178785549 | R143: 0 | S143: 0.972549528 | V143: 0.3717532034 | W143: 0.07420078222 | X143: 0.2943825388 | Y143: 0.06835949324 | Z143: 0.06022728099 | AA143: 0.004707927806 | AB143: 8.576988365e-06 | AC143: 0.0015925556 | AD143: 0 | AE143: 0.8752323591 | AG143: =J143*VLOOKUP($B143,$AR$36:$AZ$47,MATCH(AG$2,$AS$2:$BA$2,0)+1,FALSE) -> 0.3767488182 | AH143: =K143*VLOOKUP($B143,$AR$36:$AZ$47,MATCH(AH$2,$AS$2:$BA$2,0)+1,FALSE) -> 0.2812591435 | AI143: =L143*VLOOKUP($B143,$AR$36:$AZ$47,MATCH(AI$2,$AS$2:$BA$2,0)+1,FALSE) -> 0.00622283391 | AJ143: =M143*VLOOKUP($B143,$AR$36:$AZ$47,MATCH(AJ$2,$AS$2:$BA$2,0)+1,FALSE) -> 0.07282630112 | AK143: =N143*VLOOKUP($B143,$AR$36:$AZ$47,MATCH(AK$2,$AS$2:$BA$2,0)+1,FALSE) -> 0.06783755966 | AL143: =O143*VLOOKUP($B143,$AR$36:$AZ$47,MATCH(AL$2,$AS$2:$BA$2,0)+1,FALSE) -> 0.05790043509 | AM143: =P143*VLOOKUP($B143,$AR$36:$AZ$47,MATCH(AM$2,$AS$2:$BA$2,0)+1,FALSE) -> 8.576988365e-06 | AN143: =Q143*VLOOKUP($B143,$AR$36:$AZ$47,MATCH(AN$2,$AS$2:$BA$2,0)+1,FALSE) -> 0.001665079838 | AO143: =R143*VLOOKUP($B143,$AR$36:$BA$47,MATCH(AO$2,$AS$2:$BA$2,0)+1,FALSE) -> 0 | AP143: 0.8644687483
A144: 2006 | B144: 1 | C144: 6 | D144: 22 | F144: 2013 | G144: 1 | H144: 6 | I144: 22 | J144: 0.3570468463 | K144: 0.3237079116 | L144: 0.008418087479 | M144: 0.0808457996 | N144: 0.0859914 | O144: 0.065115 | P144: 1.713756668e-05 | Q144: 0.002178785549 | R144: 0 | S144: 0.9233209681 | V144: 0.3380573067 | W144: 0.07083928831 | X144: 0.2865447084 | Y144: 0.06778390305 | Z144: 0.06002539875 | AA144: 0.004707927806 | AB144: 8.576988365e-06 | AC144: 0.0015925556 | AD144: 0 | AE144: 0.8295596656 | AG144: =J144*VLOOKUP($B144,$AR$36:$AZ$47,MATCH(AG$2,$AS$2:$BA$2,0)+1,FALSE) -> 0.3426001165 | AH144: =K144*VLOOKUP($B144,$AR$36:$AZ$47,MATCH(AH$2,$AS$2:$BA$2,0)+1,FALSE) -> 0.2737707188 | AI144: =L144*VLOOKUP($B144,$AR$36:$AZ$47,MATCH(AI$2,$AS$2:$BA$2,0)+1,FALSE) -> 0.00622283391 | AJ144: =M144*VLOOKUP($B144,$AR$36:$AZ$47,MATCH(AJ$2,$AS$2:$BA$2,0)+1,FALSE) -> 0.06952707489 | AK144: =N144*VLOOKUP($B144,$AR$36:$AZ$47,MATCH(AK$2,$AS$2:$BA$2,0)+1,FALSE) -> 0.06726636418 | AL144: =O144*VLOOKUP($B144,$AR$36:$AZ$47,MATCH(AL$2,$AS$2:$BA$2,0)+1,FALSE) -> 0.05770635245 | AM144: =P144*VLOOKUP($B144,$AR$36:$AZ$47,MATCH(AM$2,$AS$2:$BA$2,0)+1,FALSE) -> 8.576988365e-06 | AN144: =Q144*VLOOKUP($B144,$AR$36:$AZ$47,MATCH(AN$2,$AS$2:$BA$2,0)+1,FALSE) -> 0.001665079838 | AO144: =R144*VLOOKUP($B144,$AR$36:$BA$47,MATCH(AO$2,$AS$2:$BA$2,0)+1,FALSE) -> 0 | AP144: 0.8187671176
A145: 2006 | B145: 1 | C145: 6 | D145: 23 | F145: 2013 | G145: 1 | H145: 6 | I145: 23 | J145: 0.2969320644 | K145: 0.3228330362 | L145: 0.008418087479 | M145: 0.08515982425 | N145: 0.0856502 | O145: 0.065319 | P145: 1.713756668e-05 | Q145: 0.002178785549 | R145: 0 | S145: 0.8665081354 | V145: 0.2811397299 | W145: 0.07461935404 | X145: 0.2857702729 | Y145: 0.06751494746 | Z145: 0.06021345344 | AA145: 0.004707927806 | AB145: 8.576988365e-06 | AC145: 0.0015925556 | AD145: 0 | AE145: 0.7755668181 | AG145: =J145*VLOOKUP($B145,$AR$36:$AZ$47,MATCH(AG$2,$AS$2:$BA$2,0)+1,FALSE) -> 0.2849176821 | AH145: =K145*VLOOKUP($B145,$AR$36:$AZ$47,MATCH(AH$2,$AS$2:$BA$2,0)+1,FALSE) -> 0.2730308071 | AI145: =L145*VLOOKUP($B145,$AR$36:$AZ$47,MATCH(AI$2,$AS$2:$BA$2,0)+1,FALSE) -> 0.00622283391 | AJ145: =M145*VLOOKUP($B145,$AR$36:$AZ$47,MATCH(AJ$2,$AS$2:$BA$2,0)+1,FALSE) -> 0.0732371194 | AK145: =N145*VLOOKUP($B145,$AR$36:$AZ$47,MATCH(AK$2,$AS$2:$BA$2,0)+1,FALSE) -> 0.0669994621 | AL145: =O145*VLOOKUP($B145,$AR$36:$AZ$47,MATCH(AL$2,$AS$2:$BA$2,0)+1,FALSE) -> 0.05788714176 | AM145: =P145*VLOOKUP($B145,$AR$36:$AZ$47,MATCH(AM$2,$AS$2:$BA$2,0)+1,FALSE) -> 8.576988365e-06 | AN145: =Q145*VLOOKUP($B145,$AR$36:$AZ$47,MATCH(AN$2,$AS$2:$BA$2,0)+1,FALSE) -> 0.001665079838 | AO145: =R145*VLOOKUP($B145,$AR$36:$BA$47,MATCH(AO$2,$AS$2:$BA$2,0)+1,FALSE) -> 0 | AP145: 0.7639687032
A146: 2006 | B146: 1 | C146: 6 | D146: 24 | F146: 2013 | G146: 1 | H146: 6 | I146: 24 | J146: 0.2048735891 | K146: 0.3315294893 | L146: 0.008418087479 | M146: 0.1073445601 | N146: 0.0852791 | O146: 0.0647 | P146: 1.713756668e-05 | Q146: 0.002178785549 | R146: 0 | S146: 0.8043407491 | V146: 0.1939773855 | W146: 0.09405822293 | X146: 0.2934683319 | Y146: 0.06722242279 | Z146: 0.0596428365 | AA146: 0.004707927806 | AB146: 8.576988365e-06 | AC146: 0.0015925556 | AD146: 0 | AE146: 0.71467826 | AG146: =J146*VLOOKUP($B146,$AR$36:$AZ$47,MATCH(AG$2,$AS$2:$BA$2,0)+1,FALSE) -> 0.1965840511 | AH146: =K146*VLOOKUP($B146,$AR$36:$AZ$47,MATCH(AH$2,$AS$2:$BA$2,0)+1,FALSE) -> 0.2803856914 | AI146: =L146*VLOOKUP($B146,$AR$36:$AZ$47,MATCH(AI$2,$AS$2:$BA$2,0)+1,FALSE) -> 0.00622283391 | AJ146: =M146*VLOOKUP($B146,$AR$36:$AZ$47,MATCH(AJ$2,$AS$2:$BA$2,0)+1,FALSE) -> 0.0923159064 | AK146: =N146*VLOOKUP($B146,$AR$36:$AZ$47,MATCH(AK$2,$AS$2:$BA$2,0)+1,FALSE) -> 0.06670917089 | AL146: =O146*VLOOKUP($B146,$AR$36:$AZ$47,MATCH(AL$2,$AS$2:$BA$2,0)+1,FALSE) -> 0.05733857028 | AM146: =P146*VLOOKUP($B146,$AR$36:$AZ$47,MATCH(AM$2,$AS$2:$BA$2,0)+1,FALSE) -> 8.576988365e-06 | AN146: =Q146*VLOOKUP($B146,$AR$36:$AZ$47,MATCH(AN$2,$AS$2:$BA$2,0)+1,FALSE) -> 0.001665079838 | AO146: =R146*VLOOKUP($B146,$AR$36:$BA$47,MATCH(AO$2,$AS$2:$BA$2,0)+1,FALSE) -> 0 | AP146: 0.7012298808
A147: 2006 | B147: 1 | C147: 7 | D147: 1 | F147: 2013 | G147: 1 | H147: 7 | I147: 1 | J147: 0.2231791011 | K147: 0.3164264557 | L147: 0.008418087479 | M147: 0.08547903896 | N147: 0.0861619 | O147: 0.064243 | P147: 1.713756668e-05 | Q147: 0.002178785549 | R147: 0 | S147: 0.7861035063 | V147: 0.2113093186 | W147: 0.07489905865 | X147: 0.2800991982 | Y147: 0.06791830202 | Z147: 0.05922155712 | AA147: 0.004707927806 | AB147: 8.576988365e-06 | AC147: 0.0015925556 | AD147: 0 | AE147: 0.699756495 | AG147: =J147*VLOOKUP($B147,$AR$36:$AZ$47,MATCH(AG$2,$AS$2:$BA$2,0)+1,FALSE) -> 0.2141488905 | AH147: =K147*VLOOKUP($B147,$AR$36:$AZ$47,MATCH(AH$2,$AS$2:$BA$2,0)+1,FALSE) -> 0.2676125455 | AI147: =L147*VLOOKUP($B147,$AR$36:$AZ$47,MATCH(AI$2,$AS$2:$BA$2,0)+1,FALSE) -> 0.00622283391 | AJ147: =M147*VLOOKUP($B147,$AR$36:$AZ$47,MATCH(AJ$2,$AS$2:$BA$2,0)+1,FALSE) -> 0.07351164282 | AK147: =N147*VLOOKUP($B147,$AR$36:$AZ$47,MATCH(AK$2,$AS$2:$BA$2,0)+1,FALSE) -> 0.067399737 | AL147: =O147*VLOOKUP($B147,$AR$36:$AZ$47,MATCH(AL$2,$AS$2:$BA$2,0)+1,FALSE) -> 0.05693356677 | AM147: =P147*VLOOKUP($B147,$AR$36:$AZ$47,MATCH(AM$2,$AS$2:$BA$2,0)+1,FALSE) -> 8.576988365e-06 | AN147: =Q147*VLOOKUP($B147,$AR$36:$AZ$47,MATCH(AN$2,$AS$2:$BA$2,0)+1,FALSE) -> 0.001665079838 | AO147: =R147*VLOOKUP($B147,$AR$36:$BA$47,MATCH(AO$2,$AS$2:$BA$2,0)+1,FALSE) -> 0 | AP147: 0.6875028734
A148: 2006 | B148: 1 | C148: 7 | D148: 2 | F148: 2013 | G148: 1 | H148: 7 | I148: 2 | J148: 0.2085991371 | K148: 0.3102214698 | L148: 0.008418087479 | M148: 0.08240752418 | N148: 0.0860252 | O148: 0.063198 | P148: 1.713756668e-05 | Q148: 0.002178785549 | R148: 0 | S148: 0.7610653417 | V148: 0.1975047902 | W148: 0.07220771386 | X148: 0.2746065741 | Y148: 0.06781054637 | Z148: 0.05825823773 | AA148: 0.004707927806 | AB148: 8.576988365e-06 | AC148: 0.0015925556 | AD148: 0 | AE148: 0.6766969226 | AG148: =J148*VLOOKUP($B148,$AR$36:$AZ$47,MATCH(AG$2,$AS$2:$BA$2,0)+1,FALSE) -> 0.200158857 | AH148: =K148*VLOOKUP($B148,$AR$36:$AZ$47,MATCH(AH$2,$AS$2:$BA$2,0)+1,FALSE) -> 0.2623647793 | AI148: =L148*VLOOKUP($B148,$AR$36:$AZ$47,MATCH(AI$2,$AS$2:$BA$2,0)+1,FALSE) -> 0.00622283391 | AJ148: =M148*VLOOKUP($B148,$AR$36:$AZ$47,MATCH(AJ$2,$AS$2:$BA$2,0)+1,FALSE) -> 0.07087015199 | AK148: =N148*VLOOKUP($B148,$AR$36:$AZ$47,MATCH(AK$2,$AS$2:$BA$2,0)+1,FALSE) -> 0.06729280407 | AL148: =O148*VLOOKUP($B148,$AR$36:$AZ$47,MATCH(AL$2,$AS$2:$BA$2,0)+1,FALSE) -> 0.05600746467 | AM148: =P148*VLOOKUP($B148,$AR$36:$AZ$47,MATCH(AM$2,$AS$2:$BA$2,0)+1,FALSE) -> 8.576988365e-06 | AN148: =Q148*VLOOKUP($B148,$AR$36:$AZ$47,MATCH(AN$2,$AS$2:$BA$2,0)+1,FALSE) -> 0.001665079838 | AO148: =R148*VLOOKUP($B148,$AR$36:$BA$47,MATCH(AO$2,$AS$2:$BA$2,0)+1,FALSE) -> 0 | AP148: 0.6645905478
A149: 2006 | B149: 1 | C149: 7 | D149: 3 | F149: 2013 | G149: 1 | H149: 7 | I149: 3 | J149: 0.2012738104 | K149: 0.3093396494 | L149: 0.008418087479 | M149: 0.08146123322 | N149: 0.0861351 | O149: 0.063246 | P149: 1.713756668e-05 | Q149: 0.002178785549 | R149: 0 | S149: 0.7520698036 | V149: 0.190569061 | W149: 0.07137854798 | X149: 0.2738259909 | Y149: 0.06789717655 | Z149: 0.0583024859 | AA149: 0.004707927806 | AB149: 8.576988365e-06 | AC149: 0.0015925556 | AD149: 0 | AE149: 0.6682823227 | AG149: =J149*VLOOKUP($B149,$AR$36:$AZ$47,MATCH(AG$2,$AS$2:$BA$2,0)+1,FALSE) -> 0.1931299256 | AH149: =K149*VLOOKUP($B149,$AR$36:$AZ$47,MATCH(AH$2,$AS$2:$BA$2,0)+1,FALSE) -> 0.261618994 | AI149: =L149*VLOOKUP($B149,$AR$36:$AZ$47,MATCH(AI$2,$AS$2:$BA$2,0)+1,FALSE) -> 0.00622283391 | AJ149: =M149*VLOOKUP($B149,$AR$36:$AZ$47,MATCH(AJ$2,$AS$2:$BA$2,0)+1,FALSE) -> 0.07005634542 | AK149: =N149*VLOOKUP($B149,$AR$36:$AZ$47,MATCH(AK$2,$AS$2:$BA$2,0)+1,FALSE) -> 0.06737877283 | AL149: =O149*VLOOKUP($B149,$AR$36:$AZ$47,MATCH(AL$2,$AS$2:$BA$2,0)+1,FALSE) -> 0.05605000333 | AM149: =P149*VLOOKUP($B149,$AR$36:$AZ$47,MATCH(AM$2,$AS$2:$BA$2,0)+1,FALSE) -> 8.576988365e-06 | AN149: =Q149*VLOOKUP($B149,$AR$36:$AZ$47,MATCH(AN$2,$AS$2:$BA$2,0)+1,FALSE) -> 0.001665079838 | AO149: =R149*VLOOKUP($B149,$AR$36:$BA$47,MATCH(AO$2,$AS$2:$BA$2,0)+1,FALSE) -> 0 | AP149: 0.6561305319
A150: 2006 | B150: 1 | C150: 7 | D150: 4 | F150: 2013 | G150: 1 | H150: 7 | I150: 4 | J150: 0.1969545035 | K150: 0.3130918594 | L150: 0.008418087479 | M150: 0.08483470133 | N150: 0.0867675 | O150: 0.063605 | P150: 1.713756668e-05 | Q150: 0.002178785549 | R150: 0 | S150: 0.7558675748 | V150: 0.1864794765 | W150: 0.07433447249 | X150: 0.2771474293 | Y150: 0.06839567455 | Z150: 0.05863342528 | AA150: 0.004707927806 | AB150: 8.576988365e-06 | AC150: 0.0015925556 | AD150: 0 | AE150: 0.6712995386 | AG150: =J150*VLOOKUP($B150,$AR$36:$AZ$47,MATCH(AG$2,$AS$2:$BA$2,0)+1,FALSE) -> 0.1889853854 | AH150: =K150*VLOOKUP($B150,$AR$36:$AZ$47,MATCH(AH$2,$AS$2:$BA$2,0)+1,FALSE) -> 0.2647923648 | AI150: =L150*VLOOKUP($B150,$AR$36:$AZ$47,MATCH(AI$2,$AS$2:$BA$2,0)+1,FALSE) -> 0.00622283391 | AJ150: =M150*VLOOKUP($B150,$AR$36:$AZ$47,MATCH(AJ$2,$AS$2:$BA$2,0)+1,FALSE) -> 0.07295751495 | AK150: =N150*VLOOKUP($B150,$AR$36:$AZ$47,MATCH(AK$2,$AS$2:$BA$2,0)+1,FALSE) -> 0.06787346472 | AL150: =O150*VLOOKUP($B150,$AR$36:$AZ$47,MATCH(AL$2,$AS$2:$BA$2,0)+1,FALSE) -> 0.05636815707 | AM150: =P150*VLOOKUP($B150,$AR$36:$AZ$47,MATCH(AM$2,$AS$2:$BA$2,0)+1,FALSE) -> 8.576988365e-06 | AN150: =Q150*VLOOKUP($B150,$AR$36:$AZ$47,MATCH(AN$2,$AS$2:$BA$2,0)+1,FALSE) -> 0.001665079838 | AO150: =R150*VLOOKUP($B150,$AR$36:$BA$47,MATCH(AO$2,$AS$2:$BA$2,0)+1,FALSE) -> 0 | AP150: 0.6588733776
A151: 2006 | B151: 1 | C151: 7 | D151: 5 | F151: 2013 | G151: 1 | H151: 7 | I151: 5 | J151: 0.2049290604 | K151: 0.3180136081 | L151: 0.008418087479 | M151: 0.08303236753 | N151: 0.0910936 | O151: 0.064518 | P151: 1.713756668e-05 | Q151: 0.002178785549 | R151: 0 | S151: 0.7722006466 | V151: 0.1940299065 | W151: 0.0727552186 | X151: 0.281504138 | Y151: 0.07180578234 | Z151: 0.05947506222 | AA151: 0.004707927806 | AB151: 8.576988365e-06 | AC151: 0.0015925556 | AD151: 0 | AE151: 0.685879168 | AG151: =J151*VLOOKUP($B151,$AR$36:$AZ$47,MATCH(AG$2,$AS$2:$BA$2,0)+1,FALSE) -> 0.1966372779 | AH151: =K151*VLOOKUP($B151,$AR$36:$AZ$47,MATCH(AH$2,$AS$2:$BA$2,0)+1,FALSE) -> 0.2689548539 | AI151: =L151*VLOOKUP($B151,$AR$36:$AZ$47,MATCH(AI$2,$AS$2:$BA$2,0)+1,FALSE) -> 0.00622283391 | AJ151: =M151*VLOOKUP($B151,$AR$36:$AZ$47,MATCH(AJ$2,$AS$2:$BA$2,0)+1,FALSE) -> 0.07140751485 | AK151: =N151*VLOOKUP($B151,$AR$36:$AZ$47,MATCH(AK$2,$AS$2:$BA$2,0)+1,FALSE) -> 0.0712575359 | AL151: =O151*VLOOKUP($B151,$AR$36:$AZ$47,MATCH(AL$2,$AS$2:$BA$2,0)+1,FALSE) -> 0.05717727785 | AM151: =P151*VLOOKUP($B151,$AR$36:$AZ$47,MATCH(AM$2,$AS$2:$BA$2,0)+1,FALSE) -> 8.576988365e-06 | AN151: =Q151*VLOOKUP($B151,$AR$36:$AZ$47,MATCH(AN$2,$AS$2:$BA$2,0)+1,FALSE) -> 0.001665079838 | AO151: =R151*VLOOKUP($B151,$AR$36:$BA$47,MATCH(AO$2,$AS$2:$BA$2,0)+1,FALSE) -> 0 | AP151: 0.6733309512
A152: 2006 | B152: 1 | C152: 7 | D152: 6 | F152: 2013 | G152: 1 | H152: 7 | I152: 6 | J152: 0.2247414884 | K152: 0.3349587388 | L152: 0.008418087479 | M152: 0.07930305489 | N152: 0.0945335 | O152: 0.067211 | P152: 1.713756668e-05 | Q152: 0.002178785549 | R152: 0 | S152: 0.8113617926 | V152: 0.2127886103 | W152: 0.06948749344 | X152: 0.2965038873 | Y152: 0.07451733079 | Z152: 0.06195756853 | AA152: 0.004707927806 | AB152: 8.576988365e-06 | AC152: 0.0015925556 | AD152: 0 | AE152: 0.7215639508 | AG152: =J152*VLOOKUP($B152,$AR$36:$AZ$47,MATCH(AG$2,$AS$2:$BA$2,0)+1,FALSE) -> 0.215648061 | AH152: =K152*VLOOKUP($B152,$AR$36:$AZ$47,MATCH(AH$2,$AS$2:$BA$2,0)+1,FALSE) -> 0.2832859236 | AI152: =L152*VLOOKUP($B152,$AR$36:$AZ$47,MATCH(AI$2,$AS$2:$BA$2,0)+1,FALSE) -> 0.00622283391 | AJ152: =M152*VLOOKUP($B152,$AR$36:$AZ$47,MATCH(AJ$2,$AS$2:$BA$2,0)+1,FALSE) -> 0.0682003204 | AK152: =N152*VLOOKUP($B152,$AR$36:$AZ$47,MATCH(AK$2,$AS$2:$BA$2,0)+1,FALSE) -> 0.07394838133 | AL152: =O152*VLOOKUP($B152,$AR$36:$AZ$47,MATCH(AL$2,$AS$2:$BA$2,0)+1,FALSE) -> 0.05956387399 | AM152: =P152*VLOOKUP($B152,$AR$36:$AZ$47,MATCH(AM$2,$AS$2:$BA$2,0)+1,FALSE) -> 8.576988365e-06 | AN152: =Q152*VLOOKUP($B152,$AR$36:$AZ$47,MATCH(AN$2,$AS$2:$BA$2,0)+1,FALSE) -> 0.001665079838 | AO152: =R152*VLOOKUP($B152,$AR$36:$BA$47,MATCH(AO$2,$AS$2:$BA$2,0)+1,FALSE) -> 0 | AP152: 0.708543051
A153: 2006 | B153: 1 | C153: 7 | D153: 7 | F153: 2013 | G153: 1 | H153: 7 | I153: 7 | J153: 0.2596074208 | K153: 0.3788349233 | L153: 0.008418087479 | M153: 0.08480376855 | N153: 0.1072323 | O153: 0.072888 | P153: 1.713756668e-05 | Q153: 0.002178785549 | R153: 0 | S153: 0.9139804232 | V153: 0.2458001978 | W153: 0.07430736835 | X153: 0.3353428778 | Y153: 0.08452733445 | Z153: 0.06719083566 | AA153: 0.004707927806 | AB153: 8.576988365e-06 | AC153: 0.0015925556 | AD153: 0 | AE153: 0.8134776744 | AG153: =J153*VLOOKUP($B153,$AR$36:$AZ$47,MATCH(AG$2,$AS$2:$BA$2,0)+1,FALSE) -> 0.2491032577 | AH153: =K153*VLOOKUP($B153,$AR$36:$AZ$47,MATCH(AH$2,$AS$2:$BA$2,0)+1,FALSE) -> 0.3203934953 | AI153: =L153*VLOOKUP($B153,$AR$36:$AZ$47,MATCH(AI$2,$AS$2:$BA$2,0)+1,FALSE) -> 0.00622283391 | AJ153: =M153*VLOOKUP($B153,$AR$36:$AZ$47,MATCH(AJ$2,$AS$2:$BA$2,0)+1,FALSE) -> 0.07293091288 | AK153: =N153*VLOOKUP($B153,$AR$36:$AZ$47,MATCH(AK$2,$AS$2:$BA$2,0)+1,FALSE) -> 0.08388195731 | AL153: =O153*VLOOKUP($B153,$AR$36:$AZ$47,MATCH(AL$2,$AS$2:$BA$2,0)+1,FALSE) -> 0.06459495688 | AM153: =P153*VLOOKUP($B153,$AR$36:$AZ$47,MATCH(AM$2,$AS$2:$BA$2,0)+1,FALSE) -> 8.576988365e-06 | AN153: =Q153*VLOOKUP($B153,$AR$36:$AZ$47,MATCH(AN$2,$AS$2:$BA$2,0)+1,FALSE) -> 0.001665079838 | AO153: =R153*VLOOKUP($B153,$AR$36:$BA$47,MATCH(AO$2,$AS$2:$BA$2,0)+1,FALSE) -> 0 | AP153: 0.7988010709
A154: 2006 | B154: 1 | C154: 7 | D154: 8 | F154: 2013 | G154: 1 | H154: 7 | I154: 8 | J154: 0.2765810962 | K154: 0.4379348629 | L154: 0.005191153945 | M154: 0.1072162947 | N154: 0.1151365 | O154: 0.078075 | P154: 1.056816612e-05 | Q154: 0.00205077351 | R154: 0 | S154: 1.022196249 | V154: 0.2618711282 | W154: 0.09394583328 | X154: 0.3876578641 | Y154: 0.09075792875 | Z154: 0.07197240278 | AA154: 0.002903222147 | AB154: 5.289142825e-06 | AC154: 0.001498986828 | AD154: 0 | AE154: 0.9106126552 | AG154: =J154*VLOOKUP($B154,$AR$36:$AZ$47,MATCH(AG$2,$AS$2:$BA$2,0)+1,FALSE) -> 0.265390149 | AH154: =K154*VLOOKUP($B154,$AR$36:$AZ$47,MATCH(AH$2,$AS$2:$BA$2,0)+1,FALSE) -> 0.3703763113 | AI154: =L154*VLOOKUP($B154,$AR$36:$AZ$47,MATCH(AI$2,$AS$2:$BA$2,0)+1,FALSE) -> 0.003837414244 | AJ154: =M154*VLOOKUP($B154,$AR$36:$AZ$47,MATCH(AJ$2,$AS$2:$BA$2,0)+1,FALSE) -> 0.09220559864 | AK154: =N154*VLOOKUP($B154,$AR$36:$AZ$47,MATCH(AK$2,$AS$2:$BA$2,0)+1,FALSE) -> 0.09006498022 | AL154: =O154*VLOOKUP($B154,$AR$36:$AZ$47,MATCH(AL$2,$AS$2:$BA$2,0)+1,FALSE) -> 0.06919179095 | AM154: =P154*VLOOKUP($B154,$AR$36:$AZ$47,MATCH(AM$2,$AS$2:$BA$2,0)+1,FALSE) -> 5.289142825e-06 | AN154: =Q154*VLOOKUP($B154,$AR$36:$AZ$47,MATCH(AN$2,$AS$2:$BA$2,0)+1,FALSE) -> 0.001567249988 | AO154: =R154*VLOOKUP($B154,$AR$36:$BA$47,MATCH(AO$2,$AS$2:$BA$2,0)+1,FALSE) -> 0 | AP154: 0.8926387835
A155: 2006 | B155: 1 | C155: 7 | D155: 9 | F155: 2013 | G155: 1 | H155: 7 | I155: 9 | J155: 0.2582635318 | K155: 0.4657365385 | L155: 0 | M155: 0.1113664879 | N155: 0.1202737 | O155: 0.080991 | P155: 0 | Q155: 0.0018448411 | R155: 0 | S155: 1.038476099 | V155: 0.2445277836 | W155: 0.09758234545 | X155: 0.4122677754 | Y155: 0.09480739726 | Z155: 0.07466047869 | AA155: 0 | AB155: 0 | AC155: 0.00134846315 | AD155: 0 | AE155: 0.9251942436 | AG155: =J155*VLOOKUP($B155,$AR$36:$AZ$47,MATCH(AG$2,$AS$2:$BA$2,0)+1,FALSE) -> 0.2478137448 | AH155: =K155*VLOOKUP($B155,$AR$36:$AZ$47,MATCH(AH$2,$AS$2:$BA$2,0)+1,FALSE) -> 0.3938891277 | AI155: =L155*VLOOKUP($B155,$AR$36:$AZ$47,MATCH(AI$2,$AS$2:$BA$2,0)+1,FALSE) -> 0 | AJ155: =M155*VLOOKUP($B155,$AR$36:$AZ$47,MATCH(AJ$2,$AS$2:$BA$2,0)+1,FALSE) -> 0.09577474876 | AK155: =N155*VLOOKUP($B155,$AR$36:$AZ$47,MATCH(AK$2,$AS$2:$BA$2,0)+1,FALSE) -> 0.09408353051 | AL155: =O155*VLOOKUP($B155,$AR$36:$AZ$47,MATCH(AL$2,$AS$2:$BA$2,0)+1,FALSE) -> 0.07177601461 | AM155: =P155*VLOOKUP($B155,$AR$36:$AZ$47,MATCH(AM$2,$AS$2:$BA$2,0)+1,FALSE) -> 0 | AN155: =Q155*VLOOKUP($B155,$AR$36:$AZ$47,MATCH(AN$2,$AS$2:$BA$2,0)+1,FALSE) -> 0.001409871532 | AO155: =R155*VLOOKUP($B155,$AR$36:$BA$47,MATCH(AO$2,$AS$2:$BA$2,0)+1,FALSE) -> 0 | AP155: 0.9047470379
A156: 2006 | B156: 1 | C156: 7 | D156: 10 | F156: 2013 | G156: 1 | H156: 7 | I156: 10 | J156: 0.2545146052 | K156: 0.475236903 | L156: 0 | M156: 0.107484335 | N156: 0.12267 | O156: 0.083523 | P156: 0 | Q156: 0.0018448411 | R156: 0 | S156: 1.045273684 | V156: 0.2409782437 | W156: 0.09418069749 | X156: 0.4206774531 | Y156: 0.09669631367 | Z156: 0.07699456929 | AA156: 0 | AB156: 0 | AC156: 0.00134846315 | AD156: 0 | AE156: 0.9308757404 | AG156: =J156*VLOOKUP($B156,$AR$36:$AZ$47,MATCH(AG$2,$AS$2:$BA$2,0)+1,FALSE) -> 0.2442165063 | AH156: =K156*VLOOKUP($B156,$AR$36:$AZ$47,MATCH(AH$2,$AS$2:$BA$2,0)+1,FALSE) -> 0.401923907 | AI156: =L156*VLOOKUP($B156,$AR$36:$AZ$47,MATCH(AI$2,$AS$2:$BA$2,0)+1,FALSE) -> 0 | AJ156: =M156*VLOOKUP($B156,$AR$36:$AZ$47,MATCH(AJ$2,$AS$2:$BA$2,0)+1,FALSE) -> 0.09243611227 | AK156: =N156*VLOOKUP($B156,$AR$36:$AZ$47,MATCH(AK$2,$AS$2:$BA$2,0)+1,FALSE) -> 0.09595802481 | AL156: =O156*VLOOKUP($B156,$AR$36:$AZ$47,MATCH(AL$2,$AS$2:$BA$2,0)+1,FALSE) -> 0.07401992898 | AM156: =P156*VLOOKUP($B156,$AR$36:$AZ$47,MATCH(AM$2,$AS$2:$BA$2,0)+1,FALSE) -> 0 | AN156: =Q156*VLOOKUP($B156,$AR$36:$AZ$47,MATCH(AN$2,$AS$2:$BA$2,0)+1,FALSE) -> 0.001409871532 | AO156: =R156*VLOOKUP($B156,$AR$36:$BA$47,MATCH(AO$2,$AS$2:$BA$2,0)+1,FALSE) -> 0 | AP156: 0.9099643509
A157: 2006 | B157: 1 | C157: 7 | D157: 11 | F157: 2013 | G157: 1 | H157: 7 | I157: 11 | J157: 0.2491936918 | K157: 0.4822602608 | L157: 0 | M157: 0.1121061956 | N157: 0.1230521 | O157: 0.083978 | P157: 0 | Q157: 0.0018448411 | R157: 0 | S157: 1.052435089 | V157: 0.2359403231 | W157: 0.09823049743 | X157: 0.4268944961 | Y157: 0.09699750925 | Z157: 0.077414005 | AA157: 0 | AB157: 0 | AC157: 0.00134846315 | AD157: 0 | AE157: 0.936825294 | AG157: =J157*VLOOKUP($B157,$AR$36:$AZ$47,MATCH(AG$2,$AS$2:$BA$2,0)+1,FALSE) -> 0.2391108861 | AH157: =K157*VLOOKUP($B157,$AR$36:$AZ$47,MATCH(AH$2,$AS$2:$BA$2,0)+1,FALSE) -> 0.407863798 | AI157: =L157*VLOOKUP($B157,$AR$36:$AZ$47,MATCH(AI$2,$AS$2:$BA$2,0)+1,FALSE) -> 0 | AJ157: =M157*VLOOKUP($B157,$AR$36:$AZ$47,MATCH(AJ$2,$AS$2:$BA$2,0)+1,FALSE) -> 0.0964108945 | AK157: =N157*VLOOKUP($B157,$AR$36:$AZ$47,MATCH(AK$2,$AS$2:$BA$2,0)+1,FALSE) -> 0.09625692072 | AL157: =O157*VLOOKUP($B157,$AR$36:$AZ$47,MATCH(AL$2,$AS$2:$BA$2,0)+1,FALSE) -> 0.07442316004 | AM157: =P157*VLOOKUP($B157,$AR$36:$AZ$47,MATCH(AM$2,$AS$2:$BA$2,0)+1,FALSE) -> 0 | AN157: =Q157*VLOOKUP($B157,$AR$36:$AZ$47,MATCH(AN$2,$AS$2:$BA$2,0)+1,FALSE) -> 0.001409871532 | AO157: =R157*VLOOKUP($B157,$AR$36:$BA$47,MATCH(AO$2,$AS$2:$BA$2,0)+1,FALSE) -> 0 | AP157: 0.9154755309
A158: 2006 | B158: 1 | C158: 7 | D158: 12 | F158: 2013 | G158: 1 | H158: 7 | I158: 12 | J158: 0.2566049143 | K158: 0.4737261393 | L158: 0 | M158: 0.1022034983 | N158: 0.122088 | O158: 0.083748 | P158: 0 | Q158: 0.0018448411 | R158: 0 | S158: 1.040215393 | V158: 0.2429573797 | W158: 0.08955348477 | X158: 0.4193401323 | Y158: 0.09623754417 | Z158: 0.07720198256 | AA158: 0 | AB158: 0 | AC158: 0.00134846315 | AD158: 0 | AE158: 0.9266389866 | AG158: =J158*VLOOKUP($B158,$AR$36:$AZ$47,MATCH(AG$2,$AS$2:$BA$2,0)+1,FALSE) -> 0.2462222378 | AH158: =K158*VLOOKUP($B158,$AR$36:$AZ$47,MATCH(AH$2,$AS$2:$BA$2,0)+1,FALSE) -> 0.4006462031 | AI158: =L158*VLOOKUP($B158,$AR$36:$AZ$47,MATCH(AI$2,$AS$2:$BA$2,0)+1,FALSE) -> 0 | AJ158: =M158*VLOOKUP($B158,$AR$36:$AZ$47,MATCH(AJ$2,$AS$2:$BA$2,0)+1,FALSE) -> 0.08789461315 | AK158: =N158*VLOOKUP($B158,$AR$36:$AZ$47,MATCH(AK$2,$AS$2:$BA$2,0)+1,FALSE) -> 0.09550275807 | AL158: =O158*VLOOKUP($B158,$AR$36:$AZ$47,MATCH(AL$2,$AS$2:$BA$2,0)+1,FALSE) -> 0.07421932896 | AM158: =P158*VLOOKUP($B158,$AR$36:$AZ$47,MATCH(AM$2,$AS$2:$BA$2,0)+1,FALSE) -> 0 | AN158: =Q158*VLOOKUP($B158,$AR$36:$AZ$47,MATCH(AN$2,$AS$2:$BA$2,0)+1,FALSE) -> 0.001409871532 | AO158: =R158*VLOOKUP($B158,$AR$36:$BA$47,MATCH(AO$2,$AS$2:$BA$2,0)+1,FALSE) -> 0 | AP158: 0.9058950126
A159: 2006 | B159: 1 | C159: 7 | D159: 13 | F159: 2013 | G159: 1 | H159: 7 | I159: 13 | J159: 0.2611215853 | K159: 0.4673112461 | L159: 0 | M159: 0.09531483008 | N159: 0.1222894 | O159: 0.083687 | P159: 0 | Q159: 0.0018448411 | R159: 0 | S159: 1.031568903 | V159: 0.2472338315 | W159: 0.08351744632 | X159: 0.4136616992 | Y159: 0.09639630049 | Z159: 0.07714575052 | AA159: 0 | AB159: 0 | AC159: 0.00134846315 | AD159: 0 | AE159: 0.9193034911 | AG159: =J159*VLOOKUP($B159,$AR$36:$AZ$47,MATCH(AG$2,$AS$2:$BA$2,0)+1,FALSE) -> 0.2505561566 | AH159: =K159*VLOOKUP($B159,$AR$36:$AZ$47,MATCH(AH$2,$AS$2:$BA$2,0)+1,FALSE) -> 0.3952209111 | AI159: =L159*VLOOKUP($B159,$AR$36:$AZ$47,MATCH(AI$2,$AS$2:$BA$2,0)+1,FALSE) -> 0 | AJ159: =M159*VLOOKUP($B159,$AR$36:$AZ$47,MATCH(AJ$2,$AS$2:$BA$2,0)+1,FALSE) -> 0.08197038512 | AK159: =N159*VLOOKUP($B159,$AR$36:$AZ$47,MATCH(AK$2,$AS$2:$BA$2,0)+1,FALSE) -> 0.09566030226 | AL159: =O159*VLOOKUP($B159,$AR$36:$AZ$47,MATCH(AL$2,$AS$2:$BA$2,0)+1,FALSE) -> 0.07416526941 | AM159: =P159*VLOOKUP($B159,$AR$36:$AZ$47,MATCH(AM$2,$AS$2:$BA$2,0)+1,FALSE) -> 0 | AN159: =Q159*VLOOKUP($B159,$AR$36:$AZ$47,MATCH(AN$2,$AS$2:$BA$2,0)+1,FALSE) -> 0.001409871532 | AO159: =R159*VLOOKUP($B159,$AR$36:$BA$47,MATCH(AO$2,$AS$2:$BA$2,0)+1,FALSE) -> 0 | AP159: 0.898982896
A160: 2006 | B160: 1 | C160: 7 | D160: 14 | F160: 2013 | G160: 1 | H160: 7 | I160: 14 | J160: 0.2593369166 | K160: 0.4640170657 | L160: 0 | M160: 0.09071396931 | N160: 0.1215665 | O160: 0.083987 | P160: 0 | Q160: 0.0018448411 | R160: 0 | S160: 1.021466293 | V160: 0.2455440804 | W160: 0.07948604699 | X160: 0.4107457063 | Y160: 0.09582646463 | Z160: 0.07742230153 | AA160: 0 | AB160: 0 | AC160: 0.00134846315 | AD160: 0 | AE160: 0.910373063 | AG160: =J160*VLOOKUP($B160,$AR$36:$AZ$47,MATCH(AG$2,$AS$2:$BA$2,0)+1,FALSE) -> 0.2488436986 | AH160: =K160*VLOOKUP($B160,$AR$36:$AZ$47,MATCH(AH$2,$AS$2:$BA$2,0)+1,FALSE) -> 0.3924349114 | AI160: =L160*VLOOKUP($B160,$AR$36:$AZ$47,MATCH(AI$2,$AS$2:$BA$2,0)+1,FALSE) -> 0 | AJ160: =M160*VLOOKUP($B160,$AR$36:$AZ$47,MATCH(AJ$2,$AS$2:$BA$2,0)+1,FALSE) -> 0.07801366266 | AK160: =N160*VLOOKUP($B160,$AR$36:$AZ$47,MATCH(AK$2,$AS$2:$BA$2,0)+1,FALSE) -> 0.09509481717 | AL160: =O160*VLOOKUP($B160,$AR$36:$AZ$47,MATCH(AL$2,$AS$2:$BA$2,0)+1,FALSE) -> 0.07443113604 | AM160: =P160*VLOOKUP($B160,$AR$36:$AZ$47,MATCH(AM$2,$AS$2:$BA$2,0)+1,FALSE) -> 0 | AN160: =Q160*VLOOKUP($B160,$AR$36:$AZ$47,MATCH(AN$2,$AS$2:$BA$2,0)+1,FALSE) -> 0.001409871532 | AO160: =R160*VLOOKUP($B160,$AR$36:$BA$47,MATCH(AO$2,$AS$2:$BA$2,0)+1,FALSE) -> 0 | AP160: 0.8902280975
A161: 2006 | B161: 1 | C161: 7 | D161: 15 | F161: 2013 | G161: 1 | H161: 7 | I161: 15 | J161: 0.2608990798 | K161: 0.4500186187 | L161: 0 | M161: 0.07609591204 | N161: 0.1206802 | O161: 0.083565 | P161: 0 | Q161: 0.0018448411 | R161: 0 | S161: 0.9931036517 | V161: 0.24702316 | W161: 0.06667730765 | X161: 0.3983543474 | Y161: 0.09512782647 | Z161: 0.07703328643 | AA161: 0 | AB161: 0 | AC161: 0.00134846315 | AD161: 0 | AE161: 0.8855643911 | AG161: =J161*VLOOKUP($B161,$AR$36:$AZ$47,MATCH(AG$2,$AS$2:$BA$2,0)+1,FALSE) -> 0.250342654 | AH161: =K161*VLOOKUP($B161,$AR$36:$AZ$47,MATCH(AH$2,$AS$2:$BA$2,0)+1,FALSE) -> 0.3805959518 | AI161: =L161*VLOOKUP($B161,$AR$36:$AZ$47,MATCH(AI$2,$AS$2:$BA$2,0)+1,FALSE) -> 0 | AJ161: =M161*VLOOKUP($B161,$AR$36:$AZ$47,MATCH(AJ$2,$AS$2:$BA$2,0)+1,FALSE) -> 0.06544218996 | AK161: =N161*VLOOKUP($B161,$AR$36:$AZ$47,MATCH(AK$2,$AS$2:$BA$2,0)+1,FALSE) -> 0.09440151321 | AL161: =O161*VLOOKUP($B161,$AR$36:$AZ$47,MATCH(AL$2,$AS$2:$BA$2,0)+1,FALSE) -> 0.07405715031 | AM161: =P161*VLOOKUP($B161,$AR$36:$AZ$47,MATCH(AM$2,$AS$2:$BA$2,0)+1,FALSE) -> 0 | AN161: =Q161*VLOOKUP($B161,$AR$36:$AZ$47,MATCH(AN$2,$AS$2:$BA$2,0)+1,FALSE) -> 0.001409871532 | AO161: =R161*VLOOKUP($B161,$AR$36:$BA$47,MATCH(AO$2,$AS$2:$BA$2,0)+1,FALSE) -> 0 | AP161: 0.8662493309
A162: 2006 | B162: 1 | C162: 7 | D162: 16 | F162: 2013 | G162: 1 | H162: 7 | I162: 16 | J162: 0.2803388359 | K162: 0.454421712 | L162: 0 | M162: 0.0879091904 | N162: 0.119566 | O162: 0.082385 | P162: 0 | Q162: 0.0018448411 | R162: 0 | S162: 1.026465579 | V162: 0.2654290125 | W162: 0.07702842343 | X162: 0.4022519447 | Y162: 0.09424954301 | Z162: 0.07594551909 | AA162: 0 | AB162: 0 | AC162: 0.00134846315 | AD162: 0 | AE162: 0.9162529059 | AG162: =J162*VLOOKUP($B162,$AR$36:$AZ$47,MATCH(AG$2,$AS$2:$BA$2,0)+1,FALSE) -> 0.2689958442 | AH162: =K162*VLOOKUP($B162,$AR$36:$AZ$47,MATCH(AH$2,$AS$2:$BA$2,0)+1,FALSE) -> 0.3843197966 | AI162: =L162*VLOOKUP($B162,$AR$36:$AZ$47,MATCH(AI$2,$AS$2:$BA$2,0)+1,FALSE) -> 0 | AJ162: =M162*VLOOKUP($B162,$AR$36:$AZ$47,MATCH(AJ$2,$AS$2:$BA$2,0)+1,FALSE) -> 0.07560156365 | AK162: =N162*VLOOKUP($B162,$AR$36:$AZ$47,MATCH(AK$2,$AS$2:$BA$2,0)+1,FALSE) -> 0.09352993555 | AL162: =O162*VLOOKUP($B162,$AR$36:$AZ$47,MATCH(AL$2,$AS$2:$BA$2,0)+1,FALSE) -> 0.07301140823 | AM162: =P162*VLOOKUP($B162,$AR$36:$AZ$47,MATCH(AM$2,$AS$2:$BA$2,0)+1,FALSE) -> 0 | AN162: =Q162*VLOOKUP($B162,$AR$36:$AZ$47,MATCH(AN$2,$AS$2:$BA$2,0)+1,FALSE) -> 0.001409871532 | AO162: =R162*VLOOKUP($B162,$AR$36:$BA$47,MATCH(AO$2,$AS$2:$BA$2,0)+1,FALSE) -> 0 | AP162: 0.8968684197
A163: 2006 | B163: 1 | C163: 7 | D163: 17 | F163: 2013 | G163: 1 | H163: 7 | I163: 17 | J163: 0.3292463792 | K163: 0.4523714391 | L163: 0.002244823328 | M163: 0.08925852641 | N163: 0.1177997 | O163: 0.080842 | P163: 4.570017781e-06 | Q163: 0.001933892953 | R163: 0 | S163: 1.073701331 | V163: 0.3117354077 | W163: 0.07821074833 | X163: 0.4004370529 | Y163: 0.09285723275 | Z163: 0.07452312502 | AA163: 0.001255447415 | AB163: 2.287196897e-06 | AC163: 0.00141355447 | AD163: 0 | AE163: 0.9604348557 | AG163: =J163*VLOOKUP($B163,$AR$36:$AZ$47,MATCH(AG$2,$AS$2:$BA$2,0)+1,FALSE) -> 0.3159245041 | AH163: =K163*VLOOKUP($B163,$AR$36:$AZ$47,MATCH(AH$2,$AS$2:$BA$2,0)+1,FALSE) -> 0.3825858115 | AI163: =L163*VLOOKUP($B163,$AR$36:$AZ$47,MATCH(AI$2,$AS$2:$BA$2,0)+1,FALSE) -> 0.001659422376 | AJ163: =M163*VLOOKUP($B163,$AR$36:$AZ$47,MATCH(AJ$2,$AS$2:$BA$2,0)+1,FALSE) -> 0.0767619874 | AK163: =N163*VLOOKUP($B163,$AR$36:$AZ$47,MATCH(AK$2,$AS$2:$BA$2,0)+1,FALSE) -> 0.09214825577 | AL163: =O163*VLOOKUP($B163,$AR$36:$AZ$47,MATCH(AL$2,$AS$2:$BA$2,0)+1,FALSE) -> 0.07164396752 | AM163: =P163*VLOOKUP($B163,$AR$36:$AZ$47,MATCH(AM$2,$AS$2:$BA$2,0)+1,FALSE) -> 2.287196897e-06 | AN163: =Q163*VLOOKUP($B163,$AR$36:$AZ$47,MATCH(AN$2,$AS$2:$BA$2,0)+1,FALSE) -> 0.00147792708 | AO163: =R163*VLOOKUP($B163,$AR$36:$BA$47,MATCH(AO$2,$AS$2:$BA$2,0)+1,FALSE) -> 0 | AP163: 0.942204163
A164: 2006 | B164: 1 | C164: 7 | D164: 18 | F164: 2013 | G164: 1 | H164: 7 | I164: 18 | J164: 0.4207190407 | K164: 0.4420002141 | L164: 0.008418087479 | M164: 0.08373263377 | N164: 0.114961 | O164: 0.07933 | P164: 1.713756668e-05 | Q164: 0.002178785549 | R164: 0 | S164: 1.151356899 | V164: 0.3983430948 | W164: 0.07336881093 | X164: 0.3912564937 | Y164: 0.09061958846 | Z164: 0.07312930788 | AA164: 0.004707927806 | AB164: 8.576988365e-06 | AC164: 0.0015925556 | AD164: 0 | AE164: 1.033026356 | AG164: =J164*VLOOKUP($B164,$AR$36:$AZ$47,MATCH(AG$2,$AS$2:$BA$2,0)+1,FALSE) -> 0.4036960243 | AH164: =K164*VLOOKUP($B164,$AR$36:$AZ$47,MATCH(AH$2,$AS$2:$BA$2,0)+1,FALSE) -> 0.3738145161 | AI164: =L164*VLOOKUP($B164,$AR$36:$AZ$47,MATCH(AI$2,$AS$2:$BA$2,0)+1,FALSE) -> 0.00622283391 | AJ164: =M164*VLOOKUP($B164,$AR$36:$AZ$47,MATCH(AJ$2,$AS$2:$BA$2,0)+1,FALSE) -> 0.07200974111 | AK164: =N164*VLOOKUP($B164,$AR$36:$AZ$47,MATCH(AK$2,$AS$2:$BA$2,0)+1,FALSE) -> 0.08992769617 | AL164: =O164*VLOOKUP($B164,$AR$36:$AZ$47,MATCH(AL$2,$AS$2:$BA$2,0)+1,FALSE) -> 0.07030399969 | AM164: =P164*VLOOKUP($B164,$AR$36:$AZ$47,MATCH(AM$2,$AS$2:$BA$2,0)+1,FALSE) -> 8.576988365e-06 | AN164: =Q164*VLOOKUP($B164,$AR$36:$AZ$47,MATCH(AN$2,$AS$2:$BA$2,0)+1,FALSE) -> 0.001665079838 | AO164: =R164*VLOOKUP($B164,$AR$36:$BA$47,MATCH(AO$2,$AS$2:$BA$2,0)+1,FALSE) -> 0 | AP164: 1.017648468
A165: 2006 | B165: 1 | C165: 7 | D165: 19 | F165: 2013 | G165: 1 | H165: 7 | I165: 19 | J165: 0.4571171358 | K165: 0.414891118 | L165: 0.008418087479 | M165: 0.07090352686 | N165: 0.1036706 | O165: 0.074009 | P165: 1.713756668e-05 | Q165: 0.002178785549 | R165: 0 | S165: 1.131205391 | V165: 0.432805357 | W165: 0.06212759854 | X165: 0.3672596504 | Y165: 0.08171977546 | Z165: 0.06822421463 | AA165: 0.004707927806 | AB165: 8.576988365e-06 | AC165: 0.0015925556 | AD165: 0 | AE165: 1.018445656 | AG165: =J165*VLOOKUP($B165,$AR$36:$AZ$47,MATCH(AG$2,$AS$2:$BA$2,0)+1,FALSE) -> 0.4386213898 | AH165: =K165*VLOOKUP($B165,$AR$36:$AZ$47,MATCH(AH$2,$AS$2:$BA$2,0)+1,FALSE) -> 0.3508874376 | AI165: =L165*VLOOKUP($B165,$AR$36:$AZ$47,MATCH(AI$2,$AS$2:$BA$2,0)+1,FALSE) -> 0.00622283391 | AJ165: =M165*VLOOKUP($B165,$AR$36:$AZ$47,MATCH(AJ$2,$AS$2:$BA$2,0)+1,FALSE) -> 0.0609767588 | AK165: =N165*VLOOKUP($B165,$AR$36:$AZ$47,MATCH(AK$2,$AS$2:$BA$2,0)+1,FALSE) -> 0.08109583441 | AL165: =O165*VLOOKUP($B165,$AR$36:$AZ$47,MATCH(AL$2,$AS$2:$BA$2,0)+1,FALSE) -> 0.06558841186 | AM165: =P165*VLOOKUP($B165,$AR$36:$AZ$47,MATCH(AM$2,$AS$2:$BA$2,0)+1,FALSE) -> 8.576988365e-06 | AN165: =Q165*VLOOKUP($B165,$AR$36:$AZ$47,MATCH(AN$2,$AS$2:$BA$2,0)+1,FALSE) -> 0.001665079838 | AO165: =R165*VLOOKUP($B165,$AR$36:$BA$47,MATCH(AO$2,$AS$2:$BA$2,0)+1,FALSE) -> 0 | AP165: 1.005066323
A166: 2006 | B166: 1 | C166: 7 | D166: 20 | F166: 2013 | G166: 1 | H166: 7 | I166: 20 | J166: 0.4329823546 | K166: 0.4079301627 | L166: 0.008418087479 | M166: 0.07896801483 | N166: 0.0982856 | O166: 0.071385 | P166: 1.713756668e-05 | Q166: 0.002178785549 | R166: 0 | S166: 1.100165143 | V166: 0.4099541842 | W166: 0.06919392223 | X166: 0.3610978457 | Y166: 0.07747497519 | Z166: 0.06580531505 | AA166: 0.004707927806 | AB166: 8.576988365e-06 | AC166: 0.0015925556 | AD166: 0 | AE166: 0.9898353028 | AG166: =J166*VLOOKUP($B166,$AR$36:$AZ$47,MATCH(AG$2,$AS$2:$BA$2,0)+1,FALSE) -> 0.4154631433 | AH166: =K166*VLOOKUP($B166,$AR$36:$AZ$47,MATCH(AH$2,$AS$2:$BA$2,0)+1,FALSE) -> 0.3450003224 | AI166: =L166*VLOOKUP($B166,$AR$36:$AZ$47,MATCH(AI$2,$AS$2:$BA$2,0)+1,FALSE) -> 0.00622283391 | AJ166: =M166*VLOOKUP($B166,$AR$36:$AZ$47,MATCH(AJ$2,$AS$2:$BA$2,0)+1,FALSE) -> 0.06791218725 | AK166: =N166*VLOOKUP($B166,$AR$36:$AZ$47,MATCH(AK$2,$AS$2:$BA$2,0)+1,FALSE) -> 0.07688344373 | AL166: =O166*VLOOKUP($B166,$AR$36:$AZ$47,MATCH(AL$2,$AS$2:$BA$2,0)+1,FALSE) -> 0.06326296506 | AM166: =P166*VLOOKUP($B166,$AR$36:$AZ$47,MATCH(AM$2,$AS$2:$BA$2,0)+1,FALSE) -> 8.576988365e-06 | AN166: =Q166*VLOOKUP($B166,$AR$36:$AZ$47,MATCH(AN$2,$AS$2:$BA$2,0)+1,FALSE) -> 0.001665079838 | AO166: =R166*VLOOKUP($B166,$AR$36:$BA$47,MATCH(AO$2,$AS$2:$BA$2,0)+1,FALSE) -> 0 | AP166: 0.9764185525
A167: 2006 | B167: 1 | C167: 7 | D167: 21 | F167: 2013 | G167: 1 | H167: 7 | I167: 21 | J167: 0.4062464775 | K167: 0.4068279607 | L167: 0.008418087479 | M167: 0.0914182754 | N167: 0.0961747 | O167: 0.069885 | P167: 1.713756668e-05 | Q167: 0.002178785549 | R167: 0 | S167: 1.081166424 | V167: 0.384640255 | W167: 0.08010317914 | X167: 0.3601221817 | Y167: 0.07581102925 | Z167: 0.06442255995 | AA167: 0.004707927806 | AB167: 8.576988365e-06 | AC167: 0.0015925556 | AD167: 0 | AE167: 0.9714082655 | AG167: =J167*VLOOKUP($B167,$AR$36:$AZ$47,MATCH(AG$2,$AS$2:$BA$2,0)+1,FALSE) -> 0.3898090459 | AH167: =K167*VLOOKUP($B167,$AR$36:$AZ$47,MATCH(AH$2,$AS$2:$BA$2,0)+1,FALSE) -> 0.3440681529 | AI167: =L167*VLOOKUP($B167,$AR$36:$AZ$47,MATCH(AI$2,$AS$2:$BA$2,0)+1,FALSE) -> 0.00622283391 | AJ167: =M167*VLOOKUP($B167,$AR$36:$AZ$47,MATCH(AJ$2,$AS$2:$BA$2,0)+1,FALSE) -> 0.07861936317 | AK167: =N167*VLOOKUP($B167,$AR$36:$AZ$47,MATCH(AK$2,$AS$2:$BA$2,0)+1,FALSE) -> 0.07523220224 | AL167: =O167*VLOOKUP($B167,$AR$36:$AZ$47,MATCH(AL$2,$AS$2:$BA$2,0)+1,FALSE) -> 0.0619336319 | AM167: =P167*VLOOKUP($B167,$AR$36:$AZ$47,MATCH(AM$2,$AS$2:$BA$2,0)+1,FALSE) -> 8.576988365e-06 | AN167: =Q167*VLOOKUP($B167,$AR$36:$AZ$47,MATCH(AN$2,$AS$2:$BA$2,0)+1,FALSE) -> 0.001665079838 | AO167: =R167*VLOOKUP($B167,$AR$36:$BA$47,MATCH(AO$2,$AS$2:$BA$2,0)+1,FALSE) -> 0 | AP167: 0.9575588868
A168: 2006 | B168: 1 | C168: 7 | D168: 22 | F168: 2013 | G168: 1 | H168: 7 | I168: 22 | J168: 0.3718188113 | K168: 0.37955484 | L168: 0.008418087479 | M168: 0.08296436333 | N168: 0.0929343 | O168: 0.068263 | P168: 1.713756668e-05 | Q168: 0.002178785549 | R168: 0 | S168: 1.006149325 | V168: 0.3520436245 | W168: 0.07269563147 | X168: 0.3359801446 | Y168: 0.07325673941 | Z168: 0.06292734077 | AA168: 0.004707927806 | AB168: 8.576988365e-06 | AC168: 0.0015925556 | AD168: 0 | AE168: 0.9032125412 | AG168: =J168*VLOOKUP($B168,$AR$36:$AZ$47,MATCH(AG$2,$AS$2:$BA$2,0)+1,FALSE) -> 0.3567743822 | AH168: =K168*VLOOKUP($B168,$AR$36:$AZ$47,MATCH(AH$2,$AS$2:$BA$2,0)+1,FALSE) -> 0.3210023532 | AI168: =L168*VLOOKUP($B168,$AR$36:$AZ$47,MATCH(AI$2,$AS$2:$BA$2,0)+1,FALSE) -> 0.00622283391 | AJ168: =M168*VLOOKUP($B168,$AR$36:$AZ$47,MATCH(AJ$2,$AS$2:$BA$2,0)+1,FALSE) -> 0.0713490315 | AK168: =N168*VLOOKUP($B168,$AR$36:$AZ$47,MATCH(AK$2,$AS$2:$BA$2,0)+1,FALSE) -> 0.07269741473 | AL168: =O168*VLOOKUP($B168,$AR$36:$AZ$47,MATCH(AL$2,$AS$2:$BA$2,0)+1,FALSE) -> 0.06049617964 | AM168: =P168*VLOOKUP($B168,$AR$36:$AZ$47,MATCH(AM$2,$AS$2:$BA$2,0)+1,FALSE) -> 8.576988365e-06 | AN168: =Q168*VLOOKUP($B168,$AR$36:$AZ$47,MATCH(AN$2,$AS$2:$BA$2,0)+1,FALSE) -> 0.001665079838 | AO168: =R168*VLOOKUP($B168,$AR$36:$BA$47,MATCH(AO$2,$AS$2:$BA$2,0)+1,FALSE) -> 0 | AP168: 0.8902158521
A169: 2006 | B169: 1 | C169: 7 | D169: 23 | F169: 2013 | G169: 1 | H169: 7 | I169: 23 | J169: 0.3202883161 | K169: 0.3633368686 | L169: 0.008418087479 | M169: 0.09138349121 | N169: 0.0895156 | O169: 0.066363 | P169: 1.713756668e-05 | Q169: 0.002178785549 | R169: 0 | S169: 0.9415012865 | V169: 0.3032537792 | W169: 0.08007270028 | X169: 0.3216240732 | Y169: 0.07056190215 | Z169: 0.06117585099 | AA169: 0.004707927806 | AB169: 8.576988365e-06 | AC169: 0.0015925556 | AD169: 0 | AE169: 0.8429973663 | AG169: =J169*VLOOKUP($B169,$AR$36:$AZ$47,MATCH(AG$2,$AS$2:$BA$2,0)+1,FALSE) -> 0.3073288996 | AH169: =K169*VLOOKUP($B169,$AR$36:$AZ$47,MATCH(AH$2,$AS$2:$BA$2,0)+1,FALSE) -> 0.3072862668 | AI169: =L169*VLOOKUP($B169,$AR$36:$AZ$47,MATCH(AI$2,$AS$2:$BA$2,0)+1,FALSE) -> 0.00622283391 | AJ169: =M169*VLOOKUP($B169,$AR$36:$AZ$47,MATCH(AJ$2,$AS$2:$BA$2,0)+1,FALSE) -> 0.07858944891 | AK169: =N169*VLOOKUP($B169,$AR$36:$AZ$47,MATCH(AK$2,$AS$2:$BA$2,0)+1,FALSE) -> 0.07002315289 | AL169: =O169*VLOOKUP($B169,$AR$36:$AZ$47,MATCH(AL$2,$AS$2:$BA$2,0)+1,FALSE) -> 0.05881235764 | AM169: =P169*VLOOKUP($B169,$AR$36:$AZ$47,MATCH(AM$2,$AS$2:$BA$2,0)+1,FALSE) -> 8.576988365e-06 | AN169: =Q169*VLOOKUP($B169,$AR$36:$AZ$47,MATCH(AN$2,$AS$2:$BA$2,0)+1,FALSE) -> 0.001665079838 | AO169: =R169*VLOOKUP($B169,$AR$36:$BA$47,MATCH(AO$2,$AS$2:$BA$2,0)+1,FALSE) -> 0 | AP169: 0.8299366166
A170: 2006 | B170: 1 | C170: 7 | D170: 24 | F170: 2013 | G170: 1 | H170: 7 | I170: 24 | J170: 0.2247720435 | K170: 0.3573308998 | L170: 0.008418087479 | M170: 0.1071178544 | N170: 0.0875092 | O170: 0.065092 | P170: 1.713756668e-05 | Q170: 0.002178785549 | R170: 0 | S170: 0.8524360083 | V170: 0.2128175404 | W170: 0.09385957722 | X170: 0.3163076181 | Y170: 0.06898032977 | Z170: 0.0600041965 | AA170: 0.004707927806 | AB170: 8.576988365e-06 | AC170: 0.0015925556 | AD170: 0 | AE170: 0.7582783224 | AG170: =J170*VLOOKUP($B170,$AR$36:$AZ$47,MATCH(AG$2,$AS$2:$BA$2,0)+1,FALSE) -> 0.2156773798 | AH170: =K170*VLOOKUP($B170,$AR$36:$AZ$47,MATCH(AH$2,$AS$2:$BA$2,0)+1,FALSE) -> 0.3022068161 | AI170: =L170*VLOOKUP($B170,$AR$36:$AZ$47,MATCH(AI$2,$AS$2:$BA$2,0)+1,FALSE) -> 0.00622283391 | AJ170: =M170*VLOOKUP($B170,$AR$36:$AZ$47,MATCH(AJ$2,$AS$2:$BA$2,0)+1,FALSE) -> 0.09212094037 | AK170: =N170*VLOOKUP($B170,$AR$36:$AZ$47,MATCH(AK$2,$AS$2:$BA$2,0)+1,FALSE) -> 0.06845365602 | AL170: =O170*VLOOKUP($B170,$AR$36:$AZ$47,MATCH(AL$2,$AS$2:$BA$2,0)+1,FALSE) -> 0.05768596934 | AM170: =P170*VLOOKUP($B170,$AR$36:$AZ$47,MATCH(AM$2,$AS$2:$BA$2,0)+1,FALSE) -> 8.576988365e-06 | AN170: =Q170*VLOOKUP($B170,$AR$36:$AZ$47,MATCH(AN$2,$AS$2:$BA$2,0)+1,FALSE) -> 0.001665079838 | AO170: =R170*VLOOKUP($B170,$AR$36:$BA$47,MATCH(AO$2,$AS$2:$BA$2,0)+1,FALSE) -> 0 | AP170: 0.7440412523
A171: 2006 | B171: 1 | C171: 8 | D171: 1 | F171: 2013 | G171: 1 | H171: 8 | I171: 1 | J171: 0.2402961247 | K171: 0.3555821798 | L171: 0.008418087479 | M171: 0.09436158351 | N171: 0.086929 | O171: 0.06453 | P171: 1.713756668e-05 | Q171: 0.002178785549 | R171: 0 | S171: 0.8523128986 | V171: 0.2275159732 | W171: 0.08268218575 | X171: 0.3147596595 | Y171: 0.06852297914 | Z171: 0.05948612426 | AA171: 0.004707927806 | AB171: 8.576988365e-06 | AC171: 0.0015925556 | AD171: 0 | AE171: 0.7592759822 | AG171: =J171*VLOOKUP($B171,$AR$36:$AZ$47,MATCH(AG$2,$AS$2:$BA$2,0)+1,FALSE) -> 0.2305733299 | AH171: =K171*VLOOKUP($B171,$AR$36:$AZ$47,MATCH(AH$2,$AS$2:$BA$2,0)+1,FALSE) -> 0.3007278644 | AI171: =L171*VLOOKUP($B171,$AR$36:$AZ$47,MATCH(AI$2,$AS$2:$BA$2,0)+1,FALSE) -> 0.00622283391 | AJ171: =M171*VLOOKUP($B171,$AR$36:$AZ$47,MATCH(AJ$2,$AS$2:$BA$2,0)+1,FALSE) -> 0.08115059676 | AK171: =N171*VLOOKUP($B171,$AR$36:$AZ$47,MATCH(AK$2,$AS$2:$BA$2,0)+1,FALSE) -> 0.06799979733 | AL171: =O171*VLOOKUP($B171,$AR$36:$AZ$47,MATCH(AL$2,$AS$2:$BA$2,0)+1,FALSE) -> 0.05718791252 | AM171: =P171*VLOOKUP($B171,$AR$36:$AZ$47,MATCH(AM$2,$AS$2:$BA$2,0)+1,FALSE) -> 8.576988365e-06 | AN171: =Q171*VLOOKUP($B171,$AR$36:$AZ$47,MATCH(AN$2,$AS$2:$BA$2,0)+1,FALSE) -> 0.001665079838 | AO171: =R171*VLOOKUP($B171,$AR$36:$BA$47,MATCH(AO$2,$AS$2:$BA$2,0)+1,FALSE) -> 0 | AP171: 0.7455359917
A172: 2006 | B172: 1 | C172: 8 | D172: 2 | F172: 2013 | G172: 1 | H172: 8 | I172: 2 | J172: 0.2284271129 | K172: 0.3451238315 | L172: 0.008418087479 | M172: 0.08714293812 | N172: 0.0862305 | O172: 0.064062 | P172: 1.713756668e-05 | Q172: 0.002178785549 | R172: 0 | S172: 0.8216003931 | V172: 0.2162782149 | W172: 0.07635701234 | X172: 0.3055019792 | Y172: 0.06797237692 | Z172: 0.05905470467 | AA172: 0.004707927806 | AB172: 8.576988365e-06 | AC172: 0.0015925556 | AD172: 0 | AE172: 0.7314733484 | AG172: =J172*VLOOKUP($B172,$AR$36:$AZ$47,MATCH(AG$2,$AS$2:$BA$2,0)+1,FALSE) -> 0.2191845588 | AH172: =K172*VLOOKUP($B172,$AR$36:$AZ$47,MATCH(AH$2,$AS$2:$BA$2,0)+1,FALSE) -> 0.291882886 | AI172: =L172*VLOOKUP($B172,$AR$36:$AZ$47,MATCH(AI$2,$AS$2:$BA$2,0)+1,FALSE) -> 0.00622283391 | AJ172: =M172*VLOOKUP($B172,$AR$36:$AZ$47,MATCH(AJ$2,$AS$2:$BA$2,0)+1,FALSE) -> 0.07494258966 | AK172: =N172*VLOOKUP($B172,$AR$36:$AZ$47,MATCH(AK$2,$AS$2:$BA$2,0)+1,FALSE) -> 0.06745339902 | AL172: =O172*VLOOKUP($B172,$AR$36:$AZ$47,MATCH(AL$2,$AS$2:$BA$2,0)+1,FALSE) -> 0.05677316057 | AM172: =P172*VLOOKUP($B172,$AR$36:$AZ$47,MATCH(AM$2,$AS$2:$BA$2,0)+1,FALSE) -> 8.576988365e-06 | AN172: =Q172*VLOOKUP($B172,$AR$36:$AZ$47,MATCH(AN$2,$AS$2:$BA$2,0)+1,FALSE) -> 0.001665079838 | AO172: =R172*VLOOKUP($B172,$AR$36:$BA$47,MATCH(AO$2,$AS$2:$BA$2,0)+1,FALSE) -> 0 | AP172: 0.7181330847
A173: 2006 | B173: 1 | C173: 8 | D173: 3 | F173: 2013 | G173: 1 | H173: 8 | I173: 3 | J173: 0.2233277419 | K173: 0.3422019386 | L173: 0.008418087479 | M173: 0.08840920233 | N173: 0.0852352 | O173: 0.063277 | P173: 1.713756668e-05 | Q173: 0.002178785549 | R173: 0 | S173: 0.8130650934 | V173: 0.211450054 | W173: 0.07746654748 | X173: 0.3029155334 | Y173: 0.06718781801 | Z173: 0.05833106283 | AA173: 0.004707927806 | AB173: 8.576988365e-06 | AC173: 0.0015925556 | AD173: 0 | AE173: 0.7236600761 | AG173: =J173*VLOOKUP($B173,$AR$36:$AZ$47,MATCH(AG$2,$AS$2:$BA$2,0)+1,FALSE) -> 0.2142915171 | AH173: =K173*VLOOKUP($B173,$AR$36:$AZ$47,MATCH(AH$2,$AS$2:$BA$2,0)+1,FALSE) -> 0.2894117423 | AI173: =L173*VLOOKUP($B173,$AR$36:$AZ$47,MATCH(AI$2,$AS$2:$BA$2,0)+1,FALSE) -> 0.00622283391 | AJ173: =M173*VLOOKUP($B173,$AR$36:$AZ$47,MATCH(AJ$2,$AS$2:$BA$2,0)+1,FALSE) -> 0.07603157198 | AK173: =N173*VLOOKUP($B173,$AR$36:$AZ$47,MATCH(AK$2,$AS$2:$BA$2,0)+1,FALSE) -> 0.06667483033 | AL173: =O173*VLOOKUP($B173,$AR$36:$AZ$47,MATCH(AL$2,$AS$2:$BA$2,0)+1,FALSE) -> 0.05607747622 | AM173: =P173*VLOOKUP($B173,$AR$36:$AZ$47,MATCH(AM$2,$AS$2:$BA$2,0)+1,FALSE) -> 8.576988365e-06 | AN173: =Q173*VLOOKUP($B173,$AR$36:$AZ$47,MATCH(AN$2,$AS$2:$BA$2,0)+1,FALSE) -> 0.001665079838 | AO173: =R173*VLOOKUP($B173,$AR$36:$BA$47,MATCH(AO$2,$AS$2:$BA$2,0)+1,FALSE) -> 0 | AP173: 0.7103836287
A174: 2006 | B174: 1 | C174: 8 | D174: 4 | F174: 2013 | G174: 1 | H174: 8 | I174: 4 | J174: 0.2241026056 | K174: 0.3411153831 | L174: 0.008418087479 | M174: 0.08619138989 | N174: 0.0847404 | O174: 0.062902 | P174: 1.713756668e-05 | Q174: 0.002178785549 | R174: 0 | S174: 0.8096657892 | V174: 0.2121837066 | W174: 0.07552323991 | X174: 0.3019537196 | Y174: 0.06679778511 | Z174: 0.05798537406 | AA174: 0.004707927806 | AB174: 8.576988365e-06 | AC174: 0.0015925556 | AD174: 0 | AE174: 0.7207528857 | AG174: =J174*VLOOKUP($B174,$AR$36:$AZ$47,MATCH(AG$2,$AS$2:$BA$2,0)+1,FALSE) -> 0.2150350285 | AH174: =K174*VLOOKUP($B174,$AR$36:$AZ$47,MATCH(AH$2,$AS$2:$BA$2,0)+1,FALSE) -> 0.2884928056 | AI174: =L174*VLOOKUP($B174,$AR$36:$AZ$47,MATCH(AI$2,$AS$2:$BA$2,0)+1,FALSE) -> 0.00622283391 | AJ174: =M174*VLOOKUP($B174,$AR$36:$AZ$47,MATCH(AJ$2,$AS$2:$BA$2,0)+1,FALSE) -> 0.07412426186 | AK174: =N174*VLOOKUP($B174,$AR$36:$AZ$47,MATCH(AK$2,$AS$2:$BA$2,0)+1,FALSE) -> 0.06628777538 | AL174: =O174*VLOOKUP($B174,$AR$36:$AZ$47,MATCH(AL$2,$AS$2:$BA$2,0)+1,FALSE) -> 0.05574514293 | AM174: =P174*VLOOKUP($B174,$AR$36:$AZ$47,MATCH(AM$2,$AS$2:$BA$2,0)+1,FALSE) -> 8.576988365e-06 | AN174: =Q174*VLOOKUP($B174,$AR$36:$AZ$47,MATCH(AN$2,$AS$2:$BA$2,0)+1,FALSE) -> 0.001665079838 | AO174: =R174*VLOOKUP($B174,$AR$36:$BA$47,MATCH(AO$2,$AS$2:$BA$2,0)+1,FALSE) -> 0 | AP174: 0.7075815051
A175: 2006 | B175: 1 | C175: 8 | D175: 5 | F175: 2013 | G175: 1 | H175: 8 | I175: 5 | J175: 0.2337532879 | K175: 0.3465337388 | L175: 0.008418087479 | M175: 0.08584105202 | N175: 0.0869258 | O175: 0.063258 | P175: 1.713756668e-05 | Q175: 0.002178785549 | R175: 0 | S175: 0.8269258893 | V175: 0.2213211172 | W175: 0.07521626434 | X175: 0.3067500225 | Y175: 0.0685204567 | Z175: 0.05831354794 | AA175: 0.004707927806 | AB175: 8.576988365e-06 | AC175: 0.0015925556 | AD175: 0 | AE175: 0.736430469 | AG175: =J175*VLOOKUP($B175,$AR$36:$AZ$47,MATCH(AG$2,$AS$2:$BA$2,0)+1,FALSE) -> 0.2242952275 | AH175: =K175*VLOOKUP($B175,$AR$36:$AZ$47,MATCH(AH$2,$AS$2:$BA$2,0)+1,FALSE) -> 0.2930752922 | AI175: =L175*VLOOKUP($B175,$AR$36:$AZ$47,MATCH(AI$2,$AS$2:$BA$2,0)+1,FALSE) -> 0.00622283391 | AJ175: =M175*VLOOKUP($B175,$AR$36:$AZ$47,MATCH(AJ$2,$AS$2:$BA$2,0)+1,FALSE) -> 0.07382297265 | AK175: =N175*VLOOKUP($B175,$AR$36:$AZ$47,MATCH(AK$2,$AS$2:$BA$2,0)+1,FALSE) -> 0.06799729414 | AL175: =O175*VLOOKUP($B175,$AR$36:$AZ$47,MATCH(AL$2,$AS$2:$BA$2,0)+1,FALSE) -> 0.056060638 | AM175: =P175*VLOOKUP($B175,$AR$36:$AZ$47,MATCH(AM$2,$AS$2:$BA$2,0)+1,FALSE) -> 8.576988365e-06 | AN175: =Q175*VLOOKUP($B175,$AR$36:$AZ$47,MATCH(AN$2,$AS$2:$BA$2,0)+1,FALSE) -> 0.001665079838 | AO175: =R175*VLOOKUP($B175,$AR$36:$BA$47,MATCH(AO$2,$AS$2:$BA$2,0)+1,FALSE) -> 0 | AP175: 0.7231479153
A176: 2006 | B176: 1 | C176: 8 | D176: 6 | F176: 2013 | G176: 1 | H176: 8 | I176: 6 | J176: 0.2552599617 | K176: 0.3661339888 | L176: 0.008418087479 | M176: 0.08453099456 | N176: 0.0917361 | O176: 0.066142 | P176: 1.713756668e-05 | Q176: 0.002178785549 | R176: 0 | S176: 0.8744170557 | V176: 0.2416839584 | W176: 0.07406835636 | X176: 0.3241000708 | Y176: 0.07231224179 | Z176: 0.06097212507 | AA176: 0.004707927806 | AB176: 8.576988365e-06 | AC176: 0.0015925556 | AD176: 0 | AE176: 0.7794458128 | AG176: =J176*VLOOKUP($B176,$AR$36:$AZ$47,MATCH(AG$2,$AS$2:$BA$2,0)+1,FALSE) -> 0.2449317044 | AH176: =K176*VLOOKUP($B176,$AR$36:$AZ$47,MATCH(AH$2,$AS$2:$BA$2,0)+1,FALSE) -> 0.3096518859 | AI176: =L176*VLOOKUP($B176,$AR$36:$AZ$47,MATCH(AI$2,$AS$2:$BA$2,0)+1,FALSE) -> 0.00622283391 | AJ176: =M176*VLOOKUP($B176,$AR$36:$AZ$47,MATCH(AJ$2,$AS$2:$BA$2,0)+1,FALSE) -> 0.0726963283 | AK176: =N176*VLOOKUP($B176,$AR$36:$AZ$47,MATCH(AK$2,$AS$2:$BA$2,0)+1,FALSE) -> 0.07176012847 | AL176: =O176*VLOOKUP($B176,$AR$36:$AZ$47,MATCH(AL$2,$AS$2:$BA$2,0)+1,FALSE) -> 0.05861650255 | AM176: =P176*VLOOKUP($B176,$AR$36:$AZ$47,MATCH(AM$2,$AS$2:$BA$2,0)+1,FALSE) -> 8.576988365e-06 | AN176: =Q176*VLOOKUP($B176,$AR$36:$AZ$47,MATCH(AN$2,$AS$2:$BA$2,0)+1,FALSE) -> 0.001665079838 | AO176: =R176*VLOOKUP($B176,$AR$36:$BA$47,MATCH(AO$2,$AS$2:$BA$2,0)+1,FALSE) -> 0 | AP176: 0.7655530403
A177: 2006 | B177: 1 | C177: 8 | D177: 7 | F177: 2013 | G177: 1 | H177: 8 | I177: 7 | J177: 0.2949391928 | K177: 0.4140876931 | L177: 0.008418087479 | M177: 0.09243814492 | N177: 0.1040492 | O177: 0.072286 | P177: 1.713756668e-05 | Q177: 0.002178785549 | R177: 0 | S177: 0.9884142414 | V177: 0.2792528492 | W177: 0.08099681655 | X177: 0.3665484625 | Y177: 0.08201821212 | Z177: 0.06663588994 | AA177: 0.004707927806 | AB177: 8.576988365e-06 | AC177: 0.0015925556 | AD177: 0 | AE177: 0.8817612907 | AG177: =J177*VLOOKUP($B177,$AR$36:$AZ$47,MATCH(AG$2,$AS$2:$BA$2,0)+1,FALSE) -> 0.2830054455 | AH177: =K177*VLOOKUP($B177,$AR$36:$AZ$47,MATCH(AH$2,$AS$2:$BA$2,0)+1,FALSE) -> 0.350207954 | AI177: =L177*VLOOKUP($B177,$AR$36:$AZ$47,MATCH(AI$2,$AS$2:$BA$2,0)+1,FALSE) -> 0.00622283391 | AJ177: =M177*VLOOKUP($B177,$AR$36:$AZ$47,MATCH(AJ$2,$AS$2:$BA$2,0)+1,FALSE) -> 0.07949644701 | AK177: =N177*VLOOKUP($B177,$AR$36:$AZ$47,MATCH(AK$2,$AS$2:$BA$2,0)+1,FALSE) -> 0.08139199246 | AL177: =O177*VLOOKUP($B177,$AR$36:$AZ$47,MATCH(AL$2,$AS$2:$BA$2,0)+1,FALSE) -> 0.06406145117 | AM177: =P177*VLOOKUP($B177,$AR$36:$AZ$47,MATCH(AM$2,$AS$2:$BA$2,0)+1,FALSE) -> 8.576988365e-06 | AN177: =Q177*VLOOKUP($B177,$AR$36:$AZ$47,MATCH(AN$2,$AS$2:$BA$2,0)+1,FALSE) -> 0.001665079838 | AO177: =R177*VLOOKUP($B177,$AR$36:$BA$47,MATCH(AO$2,$AS$2:$BA$2,0)+1,FALSE) -> 0 | AP177: 0.8660597808
A178: 2006 | B178: 1 | C178: 8 | D178: 8 | F178: 2013 | G178: 1 | H178: 8 | I178: 8 | J178: 0.3338962608 | K178: 0.4678133631 | L178: 0.005191153945 | M178: 0.1092339188 | N178: 0.1123518 | O178: 0.077871 | P178: 1.056816612e-05 | Q178: 0.00205077351 | R178: 0 | S178: 1.108418838 | V178: 0.3161379853 | W178: 0.09571373039 | X178: 0.4141061707 | Y178: 0.08856285069 | Z178: 0.07178434809 | AA178: 0.002903222147 | AB178: 5.289142825e-06 | AC178: 0.001498986828 | AD178: 0 | AE178: 0.9907125833 | AG178: =J178*VLOOKUP($B178,$AR$36:$AZ$47,MATCH(AG$2,$AS$2:$BA$2,0)+1,FALSE) -> 0.3203862435 | AH178: =K178*VLOOKUP($B178,$AR$36:$AZ$47,MATCH(AH$2,$AS$2:$BA$2,0)+1,FALSE) -> 0.3956455684 | AI178: =L178*VLOOKUP($B178,$AR$36:$AZ$47,MATCH(AI$2,$AS$2:$BA$2,0)+1,FALSE) -> 0.003837414244 | AJ178: =M178*VLOOKUP($B178,$AR$36:$AZ$47,MATCH(AJ$2,$AS$2:$BA$2,0)+1,FALSE) -> 0.09394074757 | AK178: =N178*VLOOKUP($B178,$AR$36:$AZ$47,MATCH(AK$2,$AS$2:$BA$2,0)+1,FALSE) -> 0.08788666187 | AL178: =O178*VLOOKUP($B178,$AR$36:$AZ$47,MATCH(AL$2,$AS$2:$BA$2,0)+1,FALSE) -> 0.06901100164 | AM178: =P178*VLOOKUP($B178,$AR$36:$AZ$47,MATCH(AM$2,$AS$2:$BA$2,0)+1,FALSE) -> 5.289142825e-06 | AN178: =Q178*VLOOKUP($B178,$AR$36:$AZ$47,MATCH(AN$2,$AS$2:$BA$2,0)+1,FALSE) -> 0.001567249988 | AO178: =R178*VLOOKUP($B178,$AR$36:$BA$47,MATCH(AO$2,$AS$2:$BA$2,0)+1,FALSE) -> 0 | AP178: 0.9722801763
A179: 2006 | B179: 1 | C179: 8 | D179: 9 | F179: 2013 | G179: 1 | H179: 8 | I179: 9 | J179: 0.2998483974 | K179: 0.5026134329 | L179: 0 | M179: 0.122209275 | N179: 0.1164788 | O179: 0.080378 | P179: 0 | Q179: 0.0018448411 | R179: 0 | S179: 1.123372746 | V179: 0.2839009577 | W179: 0.1070830904 | X179: 0.4449110276 | Y179: 0.09181601517 | Z179: 0.07409539277 | AA179: 0 | AB179: 0 | AC179: 0.00134846315 | AD179: 0 | AE179: 1.003154947 | AG179: =J179*VLOOKUP($B179,$AR$36:$AZ$47,MATCH(AG$2,$AS$2:$BA$2,0)+1,FALSE) -> 0.2877160152 | AH179: =K179*VLOOKUP($B179,$AR$36:$AZ$47,MATCH(AH$2,$AS$2:$BA$2,0)+1,FALSE) -> 0.4250771634 | AI179: =L179*VLOOKUP($B179,$AR$36:$AZ$47,MATCH(AI$2,$AS$2:$BA$2,0)+1,FALSE) -> 0 | AJ179: =M179*VLOOKUP($B179,$AR$36:$AZ$47,MATCH(AJ$2,$AS$2:$BA$2,0)+1,FALSE) -> 0.1050995037 | AK179: =N179*VLOOKUP($B179,$AR$36:$AZ$47,MATCH(AK$2,$AS$2:$BA$2,0)+1,FALSE) -> 0.09111498802 | AL179: =O179*VLOOKUP($B179,$AR$36:$AZ$47,MATCH(AL$2,$AS$2:$BA$2,0)+1,FALSE) -> 0.07123276046 | AM179: =P179*VLOOKUP($B179,$AR$36:$AZ$47,MATCH(AM$2,$AS$2:$BA$2,0)+1,FALSE) -> 0 | AN179: =Q179*VLOOKUP($B179,$AR$36:$AZ$47,MATCH(AN$2,$AS$2:$BA$2,0)+1,FALSE) -> 0.001409871532 | AO179: =R179*VLOOKUP($B179,$AR$36:$BA$47,MATCH(AO$2,$AS$2:$BA$2,0)+1,FALSE) -> 0 | AP179: 0.9816503022
A180: 2006 | B180: 1 | C180: 8 | D180: 10 | F180: 2013 | G180: 1 | H180: 8 | I180: 10 | J180: 0.2820616598 | K180: 0.517613346 | L180: 0 | M180: 0.1261515592 | N180: 0.119668 | O180: 0.08236 | P180: 0 | Q180: 0.0018448411 | R180: 0 | S180: 1.129699406 | V180: 0.2670602079 | W180: 0.110537427 | X180: 0.4581888795 | Y180: 0.09432994591 | Z180: 0.07592247317 | AA180: 0 | AB180: 0 | AC180: 0.00134846315 | AD180: 0 | AE180: 1.007387397 | AG180: =J180*VLOOKUP($B180,$AR$36:$AZ$47,MATCH(AG$2,$AS$2:$BA$2,0)+1,FALSE) -> 0.2706489596 | AH180: =K180*VLOOKUP($B180,$AR$36:$AZ$47,MATCH(AH$2,$AS$2:$BA$2,0)+1,FALSE) -> 0.4377630967 | AI180: =L180*VLOOKUP($B180,$AR$36:$AZ$47,MATCH(AI$2,$AS$2:$BA$2,0)+1,FALSE) -> 0 | AJ180: =M180*VLOOKUP($B180,$AR$36:$AZ$47,MATCH(AJ$2,$AS$2:$BA$2,0)+1,FALSE) -> 0.1084898529 | AK180: =N180*VLOOKUP($B180,$AR$36:$AZ$47,MATCH(AK$2,$AS$2:$BA$2,0)+1,FALSE) -> 0.09360972457 | AL180: =O180*VLOOKUP($B180,$AR$36:$AZ$47,MATCH(AL$2,$AS$2:$BA$2,0)+1,FALSE) -> 0.07298925267 | AM180: =P180*VLOOKUP($B180,$AR$36:$AZ$47,MATCH(AM$2,$AS$2:$BA$2,0)+1,FALSE) -> 0 | AN180: =Q180*VLOOKUP($B180,$AR$36:$AZ$47,MATCH(AN$2,$AS$2:$BA$2,0)+1,FALSE) -> 0.001409871532 | AO180: =R180*VLOOKUP($B180,$AR$36:$BA$47,MATCH(AO$2,$AS$2:$BA$2,0)+1,FALSE) -> 0 | AP180: 0.9849107579
A181: 2006 | B181: 1 | C181: 8 | D181: 11 | F181: 2013 | G181: 1 | H181: 8 | I181: 11 | J181: 0.2718937466 | K181: 0.5164148607 | L181: 0 | M181: 0.1240177789 | N181: 0.1201569 | O181: 0.083022 | P181: 0 | Q181: 0.0018448411 | R181: 0 | S181: 1.117350127 | V181: 0.2574330753 | W181: 0.1086677507 | X181: 0.457127986 | Y181: 0.09471532805 | Z181: 0.07653272909 | AA181: 0 | AB181: 0 | AC181: 0.00134846315 | AD181: 0 | AE181: 0.9958253322 | AG181: =J181*VLOOKUP($B181,$AR$36:$AZ$47,MATCH(AG$2,$AS$2:$BA$2,0)+1,FALSE) -> 0.2608924576 | AH181: =K181*VLOOKUP($B181,$AR$36:$AZ$47,MATCH(AH$2,$AS$2:$BA$2,0)+1,FALSE) -> 0.4367494972 | AI181: =L181*VLOOKUP($B181,$AR$36:$AZ$47,MATCH(AI$2,$AS$2:$BA$2,0)+1,FALSE) -> 0 | AJ181: =M181*VLOOKUP($B181,$AR$36:$AZ$47,MATCH(AJ$2,$AS$2:$BA$2,0)+1,FALSE) -> 0.1066548101 | AK181: =N181*VLOOKUP($B181,$AR$36:$AZ$47,MATCH(AK$2,$AS$2:$BA$2,0)+1,FALSE) -> 0.09399216427 | AL181: =O181*VLOOKUP($B181,$AR$36:$AZ$47,MATCH(AL$2,$AS$2:$BA$2,0)+1,FALSE) -> 0.07357593171 | AM181: =P181*VLOOKUP($B181,$AR$36:$AZ$47,MATCH(AM$2,$AS$2:$BA$2,0)+1,FALSE) -> 0 | AN181: =Q181*VLOOKUP($B181,$AR$36:$AZ$47,MATCH(AN$2,$AS$2:$BA$2,0)+1,FALSE) -> 0.001409871532 | AO181: =R181*VLOOKUP($B181,$AR$36:$BA$47,MATCH(AO$2,$AS$2:$BA$2,0)+1,FALSE) -> 0 | AP181: 0.9732747324
A182: 2006 | B182: 1 | C182: 8 | D182: 12 | F182: 2013 | G182: 1 | H182: 8 | I182: 12 | J182: 0.2763152897 | K182: 0.5121522693 | L182: 0 | M182: 0.1197493752 | N182: 0.1203782 | O182: 0.083531 | P182: 0 | Q182: 0.0018448411 | R182: 0 | S182: 1.113970975 | V182: 0.2616194586 | W182: 0.1049276593 | X182: 0.4533547603 | Y182: 0.09488977082 | Z182: 0.07700194399 | AA182: 0 | AB182: 0 | AC182: 0.00134846315 | AD182: 0 | AE182: 0.9931420562 | AG182: =J182*VLOOKUP($B182,$AR$36:$AZ$47,MATCH(AG$2,$AS$2:$BA$2,0)+1,FALSE) -> 0.2651350976 | AH182: =K182*VLOOKUP($B182,$AR$36:$AZ$47,MATCH(AH$2,$AS$2:$BA$2,0)+1,FALSE) -> 0.4331444796 | AI182: =L182*VLOOKUP($B182,$AR$36:$AZ$47,MATCH(AI$2,$AS$2:$BA$2,0)+1,FALSE) -> 0 | AJ182: =M182*VLOOKUP($B182,$AR$36:$AZ$47,MATCH(AJ$2,$AS$2:$BA$2,0)+1,FALSE) -> 0.1029839994 | AK182: =N182*VLOOKUP($B182,$AR$36:$AZ$47,MATCH(AK$2,$AS$2:$BA$2,0)+1,FALSE) -> 0.09416527514 | AL182: =O182*VLOOKUP($B182,$AR$36:$AZ$47,MATCH(AL$2,$AS$2:$BA$2,0)+1,FALSE) -> 0.07402701876 | AM182: =P182*VLOOKUP($B182,$AR$36:$AZ$47,MATCH(AM$2,$AS$2:$BA$2,0)+1,FALSE) -> 0 | AN182: =Q182*VLOOKUP($B182,$AR$36:$AZ$47,MATCH(AN$2,$AS$2:$BA$2,0)+1,FALSE) -> 0.001409871532 | AO182: =R182*VLOOKUP($B182,$AR$36:$BA$47,MATCH(AO$2,$AS$2:$BA$2,0)+1,FALSE) -> 0 | AP182: 0.9708657421
A183: 2006 | B183: 1 | C183: 8 | D183: 13 | F183: 2013 | G183: 1 | H183: 8 | I183: 13 | J183: 0.2755963299 | K183: 0.5092572441 | L183: 0 | M183: 0.1195570831 | N183: 0.1198531 | O183: 0.083535 | P183: 0 | Q183: 0.0018448411 | R183: 0 | S183: 1.109643598 | V183: 0.2609387367 | W183: 0.1047591677 | X183: 0.4507920977 | Y183: 0.09447585353 | Z183: 0.07700563133 | AA183: 0 | AB183: 0 | AC183: 0.00134846315 | AD183: 0 | AE183: 0.9893199502 | AG183: =J183*VLOOKUP($B183,$AR$36:$AZ$47,MATCH(AG$2,$AS$2:$BA$2,0)+1,FALSE) -> 0.2644452281 | AH183: =K183*VLOOKUP($B183,$AR$36:$AZ$47,MATCH(AH$2,$AS$2:$BA$2,0)+1,FALSE) -> 0.430696059 | AI183: =L183*VLOOKUP($B183,$AR$36:$AZ$47,MATCH(AI$2,$AS$2:$BA$2,0)+1,FALSE) -> 0 | AJ183: =M183*VLOOKUP($B183,$AR$36:$AZ$47,MATCH(AJ$2,$AS$2:$BA$2,0)+1,FALSE) -> 0.1028186289 | AK183: =N183*VLOOKUP($B183,$AR$36:$AZ$47,MATCH(AK$2,$AS$2:$BA$2,0)+1,FALSE) -> 0.09375451816 | AL183: =O183*VLOOKUP($B183,$AR$36:$AZ$47,MATCH(AL$2,$AS$2:$BA$2,0)+1,FALSE) -> 0.07403056365 | AM183: =P183*VLOOKUP($B183,$AR$36:$AZ$47,MATCH(AM$2,$AS$2:$BA$2,0)+1,FALSE) -> 0 | AN183: =Q183*VLOOKUP($B183,$AR$36:$AZ$47,MATCH(AN$2,$AS$2:$BA$2,0)+1,FALSE) -> 0.001409871532 | AO183: =R183*VLOOKUP($B183,$AR$36:$BA$47,MATCH(AO$2,$AS$2:$BA$2,0)+1,FALSE) -> 0 | AP183: 0.9671548694
A184: 2006 | B184: 1 | C184: 8 | D184: 14 | F184: 2013 | G184: 1 | H184: 8 | I184: 14 | J184: 0.2738960101 | K184: 0.5024923999 | L184: 0 | M184: 0.111155214 | N184: 0.1199543 | O184: 0.082858 | P184: 0 | Q184: 0.0018448411 | R184: 0 | S184: 1.092200765 | V184: 0.2593288484 | W184: 0.09739722152 | X184: 0.4448038897 | Y184: 0.09455562582 | Z184: 0.07638154787 | AA184: 0 | AB184: 0 | AC184: 0.00134846315 | AD184: 0 | AE184: 0.9738155965 | AG184: =J184*VLOOKUP($B184,$AR$36:$AZ$47,MATCH(AG$2,$AS$2:$BA$2,0)+1,FALSE) -> 0.2628137062 | AH184: =K184*VLOOKUP($B184,$AR$36:$AZ$47,MATCH(AH$2,$AS$2:$BA$2,0)+1,FALSE) -> 0.4249748017 | AI184: =L184*VLOOKUP($B184,$AR$36:$AZ$47,MATCH(AI$2,$AS$2:$BA$2,0)+1,FALSE) -> 0 | AJ184: =M184*VLOOKUP($B184,$AR$36:$AZ$47,MATCH(AJ$2,$AS$2:$BA$2,0)+1,FALSE) -> 0.09559305403 | AK184: =N184*VLOOKUP($B184,$AR$36:$AZ$47,MATCH(AK$2,$AS$2:$BA$2,0)+1,FALSE) -> 0.09383368138 | AL184: =O184*VLOOKUP($B184,$AR$36:$AZ$47,MATCH(AL$2,$AS$2:$BA$2,0)+1,FALSE) -> 0.07343059128 | AM184: =P184*VLOOKUP($B184,$AR$36:$AZ$47,MATCH(AM$2,$AS$2:$BA$2,0)+1,FALSE) -> 0 | AN184: =Q184*VLOOKUP($B184,$AR$36:$AZ$47,MATCH(AN$2,$AS$2:$BA$2,0)+1,FALSE) -> 0.001409871532 | AO184: =R184*VLOOKUP($B184,$AR$36:$BA$47,MATCH(AO$2,$AS$2:$BA$2,0)+1,FALSE) -> 0 | AP184: 0.9520557061
A185: 2006 | B185: 1 | C185: 8 | D185: 15 | F185: 2013 | G185: 1 | H185: 8 | I185: 15 | J185: 0.2783020158 | K185: 0.4910021811 | L185: 0 | M185: 0.1020169797 | N185: 0.1194261 | O185: 0.082169 | P185: 0 | Q185: 0.0018448411 | R185: 0 | S185: 1.074761118 | V185: 0.2635005207 | W185: 0.08939005212 | X185: 0.4346328025 | Y185: 0.09413926491 | Z185: 0.07574640236 | AA185: 0 | AB185: 0 | AC185: 0.00134846315 | AD185: 0 | AE185: 0.9587575058 | AG185: =J185*VLOOKUP($B185,$AR$36:$AZ$47,MATCH(AG$2,$AS$2:$BA$2,0)+1,FALSE) -> 0.2670414373 | AH185: =K185*VLOOKUP($B185,$AR$36:$AZ$47,MATCH(AH$2,$AS$2:$BA$2,0)+1,FALSE) -> 0.4152571354 | AI185: =L185*VLOOKUP($B185,$AR$36:$AZ$47,MATCH(AI$2,$AS$2:$BA$2,0)+1,FALSE) -> 0 | AJ185: =M185*VLOOKUP($B185,$AR$36:$AZ$47,MATCH(AJ$2,$AS$2:$BA$2,0)+1,FALSE) -> 0.0877342079 | AK185: =N185*VLOOKUP($B185,$AR$36:$AZ$47,MATCH(AK$2,$AS$2:$BA$2,0)+1,FALSE) -> 0.09342049944 | AL185: =O185*VLOOKUP($B185,$AR$36:$AZ$47,MATCH(AL$2,$AS$2:$BA$2,0)+1,FALSE) -> 0.07281998425 | AM185: =P185*VLOOKUP($B185,$AR$36:$AZ$47,MATCH(AM$2,$AS$2:$BA$2,0)+1,FALSE) -> 0 | AN185: =Q185*VLOOKUP($B185,$AR$36:$AZ$47,MATCH(AN$2,$AS$2:$BA$2,0)+1,FALSE) -> 0.001409871532 | AO185: =R185*VLOOKUP($B185,$AR$36:$BA$47,MATCH(AO$2,$AS$2:$BA$2,0)+1,FALSE) -> 0 | AP185: 0.9376831358
A186: 2006 | B186: 1 | C186: 8 | D186: 16 | F186: 2013 | G186: 1 | H186: 8 | I186: 16 | J186: 0.306963078 | K186: 0.4879971282 | L186: 0 | M186: 0.103105482 | N186: 0.1175916 | O186: 0.081032 | P186: 0 | Q186: 0.0018448411 | R186: 0 | S186: 1.098534129 | V186: 0.290637244 | W186: 0.09034382744 | X186: 0.431972744 | Y186: 0.09269319507 | Z186: 0.07469827399 | AA186: 0 | AB186: 0 | AC186: 0.00134846315 | AD186: 0 | AE186: 0.9816937476 | AG186: =J186*VLOOKUP($B186,$AR$36:$AZ$47,MATCH(AG$2,$AS$2:$BA$2,0)+1,FALSE) -> 0.2945428235 | AH186: =K186*VLOOKUP($B186,$AR$36:$AZ$47,MATCH(AH$2,$AS$2:$BA$2,0)+1,FALSE) -> 0.4127156606 | AI186: =L186*VLOOKUP($B186,$AR$36:$AZ$47,MATCH(AI$2,$AS$2:$BA$2,0)+1,FALSE) -> 0 | AJ186: =M186*VLOOKUP($B186,$AR$36:$AZ$47,MATCH(AJ$2,$AS$2:$BA$2,0)+1,FALSE) -> 0.08867031567 | AK186: =N186*VLOOKUP($B186,$AR$36:$AZ$47,MATCH(AK$2,$AS$2:$BA$2,0)+1,FALSE) -> 0.09198547053 | AL186: =O186*VLOOKUP($B186,$AR$36:$AZ$47,MATCH(AL$2,$AS$2:$BA$2,0)+1,FALSE) -> 0.07181234972 | AM186: =P186*VLOOKUP($B186,$AR$36:$AZ$47,MATCH(AM$2,$AS$2:$BA$2,0)+1,FALSE) -> 0 | AN186: =Q186*VLOOKUP($B186,$AR$36:$AZ$47,MATCH(AN$2,$AS$2:$BA$2,0)+1,FALSE) -> 0.001409871532 | AO186: =R186*VLOOKUP($B186,$AR$36:$BA$47,MATCH(AO$2,$AS$2:$BA$2,0)+1,FALSE) -> 0 | AP186: 0.9611364916
A187: 2006 | B187: 1 | C187: 8 | D187: 17 | F187: 2013 | G187: 1 | H187: 8 | I187: 17 | J187: 0.3540743905 | K187: 0.4897609286 | L187: 0.002244823328 | M187: 0.1071170195 | N187: 0.1147633 | O187: 0.079301 | P187: 4.570017781e-06 | Q187: 0.001933892953 | R187: 0 | S187: 1.149199925 | V187: 0.3352429409 | W187: 0.09385884565 | X187: 0.4335340517 | Y187: 0.09046374872 | Z187: 0.07310257461 | AA187: 0.001255447415 | AB187: 2.287196897e-06 | AC187: 0.00141355447 | AD187: 0 | AE187: 1.028873451 | AG187: =J187*VLOOKUP($B187,$AR$36:$AZ$47,MATCH(AG$2,$AS$2:$BA$2,0)+1,FALSE) -> 0.3397479313 | AH187: =K187*VLOOKUP($B187,$AR$36:$AZ$47,MATCH(AH$2,$AS$2:$BA$2,0)+1,FALSE) -> 0.4142073662 | AI187: =L187*VLOOKUP($B187,$AR$36:$AZ$47,MATCH(AI$2,$AS$2:$BA$2,0)+1,FALSE) -> 0.001659422376 | AJ187: =M187*VLOOKUP($B187,$AR$36:$AZ$47,MATCH(AJ$2,$AS$2:$BA$2,0)+1,FALSE) -> 0.09212022235 | AK187: =N187*VLOOKUP($B187,$AR$36:$AZ$47,MATCH(AK$2,$AS$2:$BA$2,0)+1,FALSE) -> 0.08977304629 | AL187: =O187*VLOOKUP($B187,$AR$36:$AZ$47,MATCH(AL$2,$AS$2:$BA$2,0)+1,FALSE) -> 0.07027829925 | AM187: =P187*VLOOKUP($B187,$AR$36:$AZ$47,MATCH(AM$2,$AS$2:$BA$2,0)+1,FALSE) -> 2.287196897e-06 | AN187: =Q187*VLOOKUP($B187,$AR$36:$AZ$47,MATCH(AN$2,$AS$2:$BA$2,0)+1,FALSE) -> 0.00147792708 | AO187: =R187*VLOOKUP($B187,$AR$36:$BA$47,MATCH(AO$2,$AS$2:$BA$2,0)+1,FALSE) -> 0 | AP187: 1.009266502
A188: 2006 | B188: 1 | C188: 8 | D188: 18 | F188: 2013 | G188: 1 | H188: 8 | I188: 18 | J188: 0.4238991816 | K188: 0.4947297846 | L188: 0.008418087479 | M188: 0.1213522075 | N188: 0.1110213 | O188: 0.077555 | P188: 1.713756668e-05 | Q188: 0.002178785549 | R188: 0 | S188: 1.239171484 | V188: 0.4013540999 | W188: 0.1063321045 | X188: 0.4379324595 | Y188: 0.08751406578 | Z188: 0.07149304768 | AA188: 0.004707927806 | AB188: 8.576988365e-06 | AC188: 0.0015925556 | AD188: 0 | AE188: 1.110934838 | AG188: =J188*VLOOKUP($B188,$AR$36:$AZ$47,MATCH(AG$2,$AS$2:$BA$2,0)+1,FALSE) -> 0.4067474912 | AH188: =K188*VLOOKUP($B188,$AR$36:$AZ$47,MATCH(AH$2,$AS$2:$BA$2,0)+1,FALSE) -> 0.4184096956 | AI188: =L188*VLOOKUP($B188,$AR$36:$AZ$47,MATCH(AI$2,$AS$2:$BA$2,0)+1,FALSE) -> 0.00622283391 | AJ188: =M188*VLOOKUP($B188,$AR$36:$AZ$47,MATCH(AJ$2,$AS$2:$BA$2,0)+1,FALSE) -> 0.104362429 | AK188: =N188*VLOOKUP($B188,$AR$36:$AZ$47,MATCH(AK$2,$AS$2:$BA$2,0)+1,FALSE) -> 0.08684588456 | AL188: =O188*VLOOKUP($B188,$AR$36:$AZ$47,MATCH(AL$2,$AS$2:$BA$2,0)+1,FALSE) -> 0.06873095545 | AM188: =P188*VLOOKUP($B188,$AR$36:$AZ$47,MATCH(AM$2,$AS$2:$BA$2,0)+1,FALSE) -> 8.576988365e-06 | AN188: =Q188*VLOOKUP($B188,$AR$36:$AZ$47,MATCH(AN$2,$AS$2:$BA$2,0)+1,FALSE) -> 0.001665079838 | AO188: =R188*VLOOKUP($B188,$AR$36:$BA$47,MATCH(AO$2,$AS$2:$BA$2,0)+1,FALSE) -> 0 | AP188: 1.092992947
A189: 2006 | B189: 1 | C189: 8 | D189: 19 | F189: 2013 | G189: 1 | H189: 8 | I189: 19 | J189: 0.4683534623 | K189: 0.4626559028 | L189: 0.008418087479 | M189: 0.1020867986 | N189: 0.1006866 | O189: 0.072926 | P189: 1.713756668e-05 | Q189: 0.002178785549 | R189: 0 | S189: 1.217322774 | V189: 0.4434440793 | W189: 0.08945122927 | X189: 0.4095408114 | Y189: 0.07936759645 | Z189: 0.06722586545 | AA189: 0.004707927806 | AB189: 8.576988365e-06 | AC189: 0.0015925556 | AD189: 0 | AE189: 1.095338642 | AG189: =J189*VLOOKUP($B189,$AR$36:$AZ$47,MATCH(AG$2,$AS$2:$BA$2,0)+1,FALSE) -> 0.4494030752 | AH189: =K189*VLOOKUP($B189,$AR$36:$AZ$47,MATCH(AH$2,$AS$2:$BA$2,0)+1,FALSE) -> 0.39128373 | AI189: =L189*VLOOKUP($B189,$AR$36:$AZ$47,MATCH(AI$2,$AS$2:$BA$2,0)+1,FALSE) -> 0.00622283391 | AJ189: =M189*VLOOKUP($B189,$AR$36:$AZ$47,MATCH(AJ$2,$AS$2:$BA$2,0)+1,FALSE) -> 0.08779425181 | AK189: =N189*VLOOKUP($B189,$AR$36:$AZ$47,MATCH(AK$2,$AS$2:$BA$2,0)+1,FALSE) -> 0.07876161458 | AL189: =O189*VLOOKUP($B189,$AR$36:$AZ$47,MATCH(AL$2,$AS$2:$BA$2,0)+1,FALSE) -> 0.06462863332 | AM189: =P189*VLOOKUP($B189,$AR$36:$AZ$47,MATCH(AM$2,$AS$2:$BA$2,0)+1,FALSE) -> 8.576988365e-06 | AN189: =Q189*VLOOKUP($B189,$AR$36:$AZ$47,MATCH(AN$2,$AS$2:$BA$2,0)+1,FALSE) -> 0.001665079838 | AO189: =R189*VLOOKUP($B189,$AR$36:$BA$47,MATCH(AO$2,$AS$2:$BA$2,0)+1,FALSE) -> 0 | AP189: 1.079767796
A190: 2006 | B190: 1 | C190: 8 | D190: 20 | F190: 2013 | G190: 1 | H190: 8 | I190: 20 | J190: 0.4693012247 | K190: 0.4456882504 | L190: 0.008418087479 | M190: 0.09569622848 | N190: 0.0962028 | O190: 0.071095 | P190: 1.713756668e-05 | Q190: 0.002178785549 | R190: 0 | S190: 1.188597514 | V190: 0.4443414349 | W190: 0.08385163797 | X190: 0.3945211259 | Y190: 0.07583317947 | Z190: 0.0655379824 | AA190: 0.004707927806 | AB190: 8.576988365e-06 | AC190: 0.0015925556 | AD190: 0 | AE190: 1.070394421 | AG190: =J190*VLOOKUP($B190,$AR$36:$AZ$47,MATCH(AG$2,$AS$2:$BA$2,0)+1,FALSE) -> 0.4503124894 | AH190: =K190*VLOOKUP($B190,$AR$36:$AZ$47,MATCH(AH$2,$AS$2:$BA$2,0)+1,FALSE) -> 0.376933613 | AI190: =L190*VLOOKUP($B190,$AR$36:$AZ$47,MATCH(AI$2,$AS$2:$BA$2,0)+1,FALSE) -> 0.00622283391 | AJ190: =M190*VLOOKUP($B190,$AR$36:$AZ$47,MATCH(AJ$2,$AS$2:$BA$2,0)+1,FALSE) -> 0.08229838627 | AK190: =N190*VLOOKUP($B190,$AR$36:$AZ$47,MATCH(AK$2,$AS$2:$BA$2,0)+1,FALSE) -> 0.07525418333 | AL190: =O190*VLOOKUP($B190,$AR$36:$AZ$47,MATCH(AL$2,$AS$2:$BA$2,0)+1,FALSE) -> 0.06300596065 | AM190: =P190*VLOOKUP($B190,$AR$36:$AZ$47,MATCH(AM$2,$AS$2:$BA$2,0)+1,FALSE) -> 8.576988365e-06 | AN190: =Q190*VLOOKUP($B190,$AR$36:$AZ$47,MATCH(AN$2,$AS$2:$BA$2,0)+1,FALSE) -> 0.001665079838 | AO190: =R190*VLOOKUP($B190,$AR$36:$BA$47,MATCH(AO$2,$AS$2:$BA$2,0)+1,FALSE) -> 0 | AP190: 1.055701123
A191: 2006 | B191: 1 | C191: 8 | D191: 21 | F191: 2013 | G191: 1 | H191: 8 | I191: 21 | J191: 0.437030843 | K191: 0.4444933172 | L191: 0.008418087479 | M191: 0.1102455864 | N191: 0.0941914 | O191: 0.069864 | P191: 1.713756668e-05 | Q191: 0.002178785549 | R191: 0 | S191: 1.166439157 | V191: 0.4137873538 | W191: 0.09660018109 | X191: 0.3934633767 | Y191: 0.07424766577 | Z191: 0.06440320138 | AA191: 0.004707927806 | AB191: 8.576988365e-06 | AC191: 0.0015925556 | AD191: 0 | AE191: 1.048810839 | AG191: =J191*VLOOKUP($B191,$AR$36:$AZ$47,MATCH(AG$2,$AS$2:$BA$2,0)+1,FALSE) -> 0.419347823 | AH191: =K191*VLOOKUP($B191,$AR$36:$AZ$47,MATCH(AH$2,$AS$2:$BA$2,0)+1,FALSE) -> 0.3759230177 | AI191: =L191*VLOOKUP($B191,$AR$36:$AZ$47,MATCH(AI$2,$AS$2:$BA$2,0)+1,FALSE) -> 0.00622283391 | AJ191: =M191*VLOOKUP($B191,$AR$36:$AZ$47,MATCH(AJ$2,$AS$2:$BA$2,0)+1,FALSE) -> 0.09481077782 | AK191: =N191*VLOOKUP($B191,$AR$36:$AZ$47,MATCH(AK$2,$AS$2:$BA$2,0)+1,FALSE) -> 0.07368077523 | AL191: =O191*VLOOKUP($B191,$AR$36:$AZ$47,MATCH(AL$2,$AS$2:$BA$2,0)+1,FALSE) -> 0.06191502123 | AM191: =P191*VLOOKUP($B191,$AR$36:$AZ$47,MATCH(AM$2,$AS$2:$BA$2,0)+1,FALSE) -> 8.576988365e-06 | AN191: =Q191*VLOOKUP($B191,$AR$36:$AZ$47,MATCH(AN$2,$AS$2:$BA$2,0)+1,FALSE) -> 0.001665079838 | AO191: =R191*VLOOKUP($B191,$AR$36:$BA$47,MATCH(AO$2,$AS$2:$BA$2,0)+1,FALSE) -> 0 | AP191: 1.033573906
A192: 2006 | B192: 1 | C192: 8 | D192: 22 | F192: 2013 | G192: 1 | H192: 8 | I192: 22 | J192: 0.3874822375 | K192: 0.4208804944 | L192: 0.008418087479 | M192: 0.1071901175 | N192: 0.0910682 | O192: 0.068534 | P192: 1.713756668e-05 | Q192: 0.002178785549 | R192: 0 | S192: 1.08576906 | V192: 0.3668739913 | W192: 0.09392289614 | X192: 0.372561418 | Y192: 0.07178576044 | Z192: 0.06317715853 | AA192: 0.004707927806 | AB192: 8.576988365e-06 | AC192: 0.0015925556 | AD192: 0 | AE192: 0.9746302848 | AG192: =J192*VLOOKUP($B192,$AR$36:$AZ$47,MATCH(AG$2,$AS$2:$BA$2,0)+1,FALSE) -> 0.3718040393 | AH192: =K192*VLOOKUP($B192,$AR$36:$AZ$47,MATCH(AH$2,$AS$2:$BA$2,0)+1,FALSE) -> 0.3559528556 | AI192: =L192*VLOOKUP($B192,$AR$36:$AZ$47,MATCH(AI$2,$AS$2:$BA$2,0)+1,FALSE) -> 0.00622283391 | AJ192: =M192*VLOOKUP($B192,$AR$36:$AZ$47,MATCH(AJ$2,$AS$2:$BA$2,0)+1,FALSE) -> 0.09218308639 | AK192: =N192*VLOOKUP($B192,$AR$36:$AZ$47,MATCH(AK$2,$AS$2:$BA$2,0)+1,FALSE) -> 0.07123766687 | AL192: =O192*VLOOKUP($B192,$AR$36:$AZ$47,MATCH(AL$2,$AS$2:$BA$2,0)+1,FALSE) -> 0.06073634583 | AM192: =P192*VLOOKUP($B192,$AR$36:$AZ$47,MATCH(AM$2,$AS$2:$BA$2,0)+1,FALSE) -> 8.576988365e-06 | AN192: =Q192*VLOOKUP($B192,$AR$36:$AZ$47,MATCH(AN$2,$AS$2:$BA$2,0)+1,FALSE) -> 0.001665079838 | AO192: =R192*VLOOKUP($B192,$AR$36:$BA$47,MATCH(AO$2,$AS$2:$BA$2,0)+1,FALSE) -> 0 | AP192: 0.9598104847
A193: 2006 | B193: 1 | C193: 8 | D193: 23 | F193: 2013 | G193: 1 | H193: 8 | I193: 23 | J193: 0.3441189973 | K193: 0.3978431016 | L193: 0.008418087479 | M193: 0.108757561 | N193: 0.0868726 | O193: 0.066364 | P193: 1.713756668e-05 | Q193: 0.002178785549 | R193: 0 | S193: 1.014570271 | V193: 0.3258170254 | W193: 0.09529633278 | X193: 0.3521688271 | Y193: 0.06847852107 | Z193: 0.06117677282 | AA193: 0.004707927806 | AB193: 8.576988365e-06 | AC193: 0.0015925556 | AD193: 0 | AE193: 0.9092465395 | AG193: =J193*VLOOKUP($B193,$AR$36:$AZ$47,MATCH(AG$2,$AS$2:$BA$2,0)+1,FALSE) -> 0.3301953504 | AH193: =K193*VLOOKUP($B193,$AR$36:$AZ$47,MATCH(AH$2,$AS$2:$BA$2,0)+1,FALSE) -> 0.336469354 | AI193: =L193*VLOOKUP($B193,$AR$36:$AZ$47,MATCH(AI$2,$AS$2:$BA$2,0)+1,FALSE) -> 0.00622283391 | AJ193: =M193*VLOOKUP($B193,$AR$36:$AZ$47,MATCH(AJ$2,$AS$2:$BA$2,0)+1,FALSE) -> 0.09353108175 | AK193: =N193*VLOOKUP($B193,$AR$36:$AZ$47,MATCH(AK$2,$AS$2:$BA$2,0)+1,FALSE) -> 0.0679556787 | AL193: =O193*VLOOKUP($B193,$AR$36:$AZ$47,MATCH(AL$2,$AS$2:$BA$2,0)+1,FALSE) -> 0.05881324386 | AM193: =P193*VLOOKUP($B193,$AR$36:$AZ$47,MATCH(AM$2,$AS$2:$BA$2,0)+1,FALSE) -> 8.576988365e-06 | AN193: =Q193*VLOOKUP($B193,$AR$36:$AZ$47,MATCH(AN$2,$AS$2:$BA$2,0)+1,FALSE) -> 0.001665079838 | AO193: =R193*VLOOKUP($B193,$AR$36:$BA$47,MATCH(AO$2,$AS$2:$BA$2,0)+1,FALSE) -> 0 | AP193: 0.8948611995
A194: 2006 | B194: 1 | C194: 8 | D194: 24 | F194: 2013 | G194: 1 | H194: 8 | I194: 24 | J194: 0.2432312483 | K194: 0.3908051527 | L194: 0.008418087479 | M194: 0.1221702509 | N194: 0.0851433 | O194: 0.063982 | P194: 1.713756668e-05 | Q194: 0.002178785549 | R194: 0 | S194: 0.9159459625 | V194: 0.2302949922 | W194: 0.1070488964 | X194: 0.3459388681 | Y194: 0.06711537657 | Z194: 0.05898095773 | AA194: 0.004707927806 | AB194: 8.576988365e-06 | AC194: 0.0015925556 | AD194: 0 | AE194: 0.8156881515 | AG194: =J194*VLOOKUP($B194,$AR$36:$AZ$47,MATCH(AG$2,$AS$2:$BA$2,0)+1,FALSE) -> 0.2333896934 | AH194: =K194*VLOOKUP($B194,$AR$36:$AZ$47,MATCH(AH$2,$AS$2:$BA$2,0)+1,FALSE) -> 0.3305171228 | AI194: =L194*VLOOKUP($B194,$AR$36:$AZ$47,MATCH(AI$2,$AS$2:$BA$2,0)+1,FALSE) -> 0.00622283391 | AJ194: =M194*VLOOKUP($B194,$AR$36:$AZ$47,MATCH(AJ$2,$AS$2:$BA$2,0)+1,FALSE) -> 0.1050659431 | AK194: =N194*VLOOKUP($B194,$AR$36:$AZ$47,MATCH(AK$2,$AS$2:$BA$2,0)+1,FALSE) -> 0.06660294199 | AL194: =O194*VLOOKUP($B194,$AR$36:$AZ$47,MATCH(AL$2,$AS$2:$BA$2,0)+1,FALSE) -> 0.0567022628 | AM194: =P194*VLOOKUP($B194,$AR$36:$AZ$47,MATCH(AM$2,$AS$2:$BA$2,0)+1,FALSE) -> 8.576988365e-06 | AN194: =Q194*VLOOKUP($B194,$AR$36:$AZ$47,MATCH(AN$2,$AS$2:$BA$2,0)+1,FALSE) -> 0.001665079838 | AO194: =R194*VLOOKUP($B194,$AR$36:$BA$47,MATCH(AO$2,$AS$2:$BA$2,0)+1,FALSE) -> 0 | AP194: 0.8001744549
A195: 2006 | B195: 1 | C195: 9 | D195: 1 | F195: 2013 | G195: 1 | H195: 9 | I195: 1 | J195: 0.2430458777 | K195: 0.3617126669 | L195: 0.008418087479 | M195: 0.09595625355 | N195: 0.0843703 | O195: 0.063605 | P195: 1.713756668e-05 | Q195: 0.002178785549 | R195: 0 | S195: 0.8593041087 | V195: =$J195*$AS$6 -> 0.2301194806 | W195: =$M195*$AV$6 -> 0.08407947901 | X195: =$K195*$AT$6 -> 0.3201863376 | Y195: =$N195*$AW$6 -> 0.0665060487 | Z195: =$O195*$AX$6 -> 0.05863342528 | AA195: =$L195*$AU$6 -> 0.004707927806 | AB195: =$P195*$AY$6 -> 8.576988365e-06 | AC195: =$Q195*$AZ$6 -> 0.0015925556 | AD195: 0 | AE195: =SUM(V195:AD195) -> 0.7658338315 | AG195: =J195*VLOOKUP($B195,$AR$36:$AZ$47,MATCH(AG$2,$AS$2:$BA$2,0)+1,FALSE) -> 0.2332118232 | AH195: =K195*VLOOKUP($B195,$AR$36:$AZ$47,MATCH(AH$2,$AS$2:$BA$2,0)+1,FALSE) -> 0.3059126245 | AI195: =L195*VLOOKUP($B195,$AR$36:$AZ$47,MATCH(AI$2,$AS$2:$BA$2,0)+1,FALSE) -> 0.00622283391 | AJ195: =M195*VLOOKUP($B195,$AR$36:$AZ$47,MATCH(AJ$2,$AS$2:$BA$2,0)+1,FALSE) -> 0.08252200683 | AK195: =N195*VLOOKUP($B195,$AR$36:$AZ$47,MATCH(AK$2,$AS$2:$BA$2,0)+1,FALSE) -> 0.06599826641 | AL195: =O195*VLOOKUP($B195,$AR$36:$AZ$47,MATCH(AL$2,$AS$2:$BA$2,0)+1,FALSE) -> 0.05636815707 | AM195: =P195*VLOOKUP($B195,$AR$36:$AZ$47,MATCH(AM$2,$AS$2:$BA$2,0)+1,FALSE) -> 8.576988365e-06 | AN195: =Q195*VLOOKUP($B195,$AR$36:$AZ$47,MATCH(AN$2,$AS$2:$BA$2,0)+1,FALSE) -> 0.001665079838 | AO195: =R195*VLOOKUP($B195,$AR$36:$BA$47,MATCH(AO$2,$AS$2:$BA$2,0)+1,FALSE) -> 0 | AP195: 0.7519093688
A196: 2006 | B196: 1 | C196: 9 | D196: 2 | F196: 2013 | G196: 1 | H196: 9 | I196: 2 | J196: 0.2312273031 | K196: 0.351093048 | L196: 0.008418087479 | M196: 0.08844375948 | N196: 0.0834933 | O196: 0.063332 | P196: 1.713756668e-05 | Q196: 0.002178785549 | R196: 0 | S196: 0.8282034212 | V196: 0.218929477 | W196: 0.0774968274 | X196: 0.3107859013 | Y196: 0.06581474139 | Z196: 0.05838176385 | AA196: 0.004707927806 | AB196: 8.576988365e-06 | AC196: 0.0015925556 | AD196: =$R196*$BA$6 -> 0 | AE196: 0.7377177713 | AG196: =J196*VLOOKUP($B196,$AR$36:$AZ$47,MATCH(AG$2,$AS$2:$BA$2,0)+1,FALSE) -> 0.2218714485 | AH196: =K196*VLOOKUP($B196,$AR$36:$AZ$47,MATCH(AH$2,$AS$2:$BA$2,0)+1,FALSE) -> 0.296931254 | AI196: =L196*VLOOKUP($B196,$AR$36:$AZ$47,MATCH(AI$2,$AS$2:$BA$2,0)+1,FALSE) -> 0.00622283391 | AJ196: =M196*VLOOKUP($B196,$AR$36:$AZ$47,MATCH(AJ$2,$AS$2:$BA$2,0)+1,FALSE) -> 0.07606129099 | AK196: =N196*VLOOKUP($B196,$AR$36:$AZ$47,MATCH(AK$2,$AS$2:$BA$2,0)+1,FALSE) -> 0.06531223732 | AL196: =O196*VLOOKUP($B196,$AR$36:$AZ$47,MATCH(AL$2,$AS$2:$BA$2,0)+1,FALSE) -> 0.05612621844 | AM196: =P196*VLOOKUP($B196,$AR$36:$AZ$47,MATCH(AM$2,$AS$2:$BA$2,0)+1,FALSE) -> 8.576988365e-06 | AN196: =Q196*VLOOKUP($B196,$AR$36:$AZ$47,MATCH(AN$2,$AS$2:$BA$2,0)+1,FALSE) -> 0.001665079838 | AO196: =R196*VLOOKUP($B196,$AR$36:$BA$47,MATCH(AO$2,$AS$2:$BA$2,0)+1,FALSE) -> 0 | AP196: =SUM(AG196:AO196) -> 0.72419894
A197: 2006 | B197: 1 | C197: 9 | D197: 3 | F197: 2013 | G197: 1 | H197: 9 | I197: 3 | J197: 0.22541074 | K197: 0.3484898401 | L197: 0.008418087479 | M197: 0.09000927796 | N197: 0.0831025 | O197: 0.062803 | P197: 1.713756668e-05 | Q197: 0.002178785549 | R197: 0 | S197: 0.8204293686 | V197: 0.2134222678 | W197: 0.07886857726 | X197: 0.308481554 | Y197: 0.06550668792 | Z197: 0.05789411222 | AA197: 0.004707927806 | AB197: 8.576988365e-06 | AC197: 0.0015925556 | AD197: 0 | AE197: 0.7304822596 | AG197: =J197*VLOOKUP($B197,$AR$36:$AZ$47,MATCH(AG$2,$AS$2:$BA$2,0)+1,FALSE) -> 0.2162902335 | AH197: =K197*VLOOKUP($B197,$AR$36:$AZ$47,MATCH(AH$2,$AS$2:$BA$2,0)+1,FALSE) -> 0.2947296331 | AI197: =L197*VLOOKUP($B197,$AR$36:$AZ$47,MATCH(AI$2,$AS$2:$BA$2,0)+1,FALSE) -> 0.00622283391 | AJ197: =M197*VLOOKUP($B197,$AR$36:$AZ$47,MATCH(AJ$2,$AS$2:$BA$2,0)+1,FALSE) -> 0.07740763083 | AK197: =N197*VLOOKUP($B197,$AR$36:$AZ$47,MATCH(AK$2,$AS$2:$BA$2,0)+1,FALSE) -> 0.06500653588 | AL197: =O197*VLOOKUP($B197,$AR$36:$AZ$47,MATCH(AL$2,$AS$2:$BA$2,0)+1,FALSE) -> 0.05565740694 | AM197: =P197*VLOOKUP($B197,$AR$36:$AZ$47,MATCH(AM$2,$AS$2:$BA$2,0)+1,FALSE) -> 8.576988365e-06 | AN197: =Q197*VLOOKUP($B197,$AR$36:$AZ$47,MATCH(AN$2,$AS$2:$BA$2,0)+1,FALSE) -> 0.001665079838 | AO197: =R197*VLOOKUP($B197,$AR$36:$BA$47,MATCH(AO$2,$AS$2:$BA$2,0)+1,FALSE) -> 0 | AP197: 0.716987931
A198: 2006 | B198: 1 | C198: 9 | D198: 4 | F198: 2013 | G198: 1 | H198: 9 | I198: 4 | J198: 0.2267870332 | K198: 0.3470904661 | L198: 0.008418087479 | M198: 0.08747000516 | N198: 0.0833171 | O198: 0.062717 | P198: 1.713756668e-05 | Q198: 0.002178785549 | R198: 0 | S198: 0.8179956151 | V198: 0.2147253629 | W198: 0.07664359737 | X198: 0.3072428348 | Y198: 0.06567584932 | Z198: 0.05781483426 | AA198: 0.004707927806 | AB198: 8.576988365e-06 | AC198: 0.0015925556 | AD198: 0 | AE198: 0.728411539 | AG198: =J198*VLOOKUP($B198,$AR$36:$AZ$47,MATCH(AG$2,$AS$2:$BA$2,0)+1,FALSE) -> 0.2176108396 | AH198: =K198*VLOOKUP($B198,$AR$36:$AZ$47,MATCH(AH$2,$AS$2:$BA$2,0)+1,FALSE) -> 0.2935461353 | AI198: =L198*VLOOKUP($B198,$AR$36:$AZ$47,MATCH(AI$2,$AS$2:$BA$2,0)+1,FALSE) -> 0.00622283391 | AJ198: =M198*VLOOKUP($B198,$AR$36:$AZ$47,MATCH(AJ$2,$AS$2:$BA$2,0)+1,FALSE) -> 0.07522386604 | AK198: =N198*VLOOKUP($B198,$AR$36:$AZ$47,MATCH(AK$2,$AS$2:$BA$2,0)+1,FALSE) -> 0.06517440571 | AL198: =O198*VLOOKUP($B198,$AR$36:$AZ$47,MATCH(AL$2,$AS$2:$BA$2,0)+1,FALSE) -> 0.05558119184 | AM198: =P198*VLOOKUP($B198,$AR$36:$AZ$47,MATCH(AM$2,$AS$2:$BA$2,0)+1,FALSE) -> 8.576988365e-06 | AN198: =Q198*VLOOKUP($B198,$AR$36:$AZ$47,MATCH(AN$2,$AS$2:$BA$2,0)+1,FALSE) -> 0.001665079838 | AO198: =R198*VLOOKUP($B198,$AR$36:$BA$47,MATCH(AO$2,$AS$2:$BA$2,0)+1,FALSE) -> 0 | AP198: 0.7150329292
A199: 2006 | B199: 1 | C199: 9 | D199: 5 | F199: 2013 | G199: 1 | H199: 9 | I199: 5 | J199: 0.2369706268 | K199: 0.3523672165 | L199: 0.008418087479 | M199: 0.08693452246 | N199: 0.085764 | O199: 0.063171 | P199: 1.713756668e-05 | Q199: 0.002178785549 | R199: 0 | S199: 0.8358213763 | V199: 0.2243673419 | W199: 0.07617439287 | X199: 0.3119137892 | Y199: 0.06760465188 | Z199: 0.05823334814 | AA199: 0.004707927806 | AB199: 8.576988365e-06 | AC199: 0.0015925556 | AD199: 0 | AE199: 0.7446025844 | AG199: =J199*VLOOKUP($B199,$AR$36:$AZ$47,MATCH(AG$2,$AS$2:$BA$2,0)+1,FALSE) -> 0.2273823874 | AH199: =K199*VLOOKUP($B199,$AR$36:$AZ$47,MATCH(AH$2,$AS$2:$BA$2,0)+1,FALSE) -> 0.2980088613 | AI199: =L199*VLOOKUP($B199,$AR$36:$AZ$47,MATCH(AI$2,$AS$2:$BA$2,0)+1,FALSE) -> 0.00622283391 | AJ199: =M199*VLOOKUP($B199,$AR$36:$AZ$47,MATCH(AJ$2,$AS$2:$BA$2,0)+1,FALSE) -> 0.07476335299 | AK199: =N199*VLOOKUP($B199,$AR$36:$AZ$47,MATCH(AK$2,$AS$2:$BA$2,0)+1,FALSE) -> 0.06708848161 | AL199: =O199*VLOOKUP($B199,$AR$36:$AZ$47,MATCH(AL$2,$AS$2:$BA$2,0)+1,FALSE) -> 0.05598353668 | AM199: =P199*VLOOKUP($B199,$AR$36:$AZ$47,MATCH(AM$2,$AS$2:$BA$2,0)+1,FALSE) -> 8.576988365e-06 | AN199: =Q199*VLOOKUP($B199,$AR$36:$AZ$47,MATCH(AN$2,$AS$2:$BA$2,0)+1,FALSE) -> 0.001665079838 | AO199: =R199*VLOOKUP($B199,$AR$36:$BA$47,MATCH(AO$2,$AS$2:$BA$2,0)+1,FALSE) -> 0 | AP199: 0.7311231107
A200: 2006 | B200: 1 | C200: 9 | D200: 6 | F200: 2013 | G200: 1 | H200: 9 | I200: 6 | J200: 0.2586078592 | K200: 0.3722095361 | L200: 0.008418087479 | M200: 0.08582610913 | N200: 0.0915604 | O200: 0.066193 | P200: 1.713756668e-05 | Q200: 0.002178785549 | R200: 0 | S200: 0.885010915 | V200: 0.244853798 | W200: 0.07520317097 | X200: 0.3294781164 | Y200: 0.07217374385 | Z200: 0.06101913874 | AA200: 0.004707927806 | AB200: 8.576988365e-06 | AC200: 0.0015925556 | AD200: 0 | AE200: 0.7890370283 | AG200: =J200*VLOOKUP($B200,$AR$36:$AZ$47,MATCH(AG$2,$AS$2:$BA$2,0)+1,FALSE) -> 0.2481441402 | AH200: =K200*VLOOKUP($B200,$AR$36:$AZ$47,MATCH(AH$2,$AS$2:$BA$2,0)+1,FALSE) -> 0.3147901815 | AI200: =L200*VLOOKUP($B200,$AR$36:$AZ$47,MATCH(AI$2,$AS$2:$BA$2,0)+1,FALSE) -> 0.00622283391 | AJ200: =M200*VLOOKUP($B200,$AR$36:$AZ$47,MATCH(AJ$2,$AS$2:$BA$2,0)+1,FALSE) -> 0.07381012182 | AK200: =N200*VLOOKUP($B200,$AR$36:$AZ$47,MATCH(AK$2,$AS$2:$BA$2,0)+1,FALSE) -> 0.07162268798 | AL200: =O200*VLOOKUP($B200,$AR$36:$AZ$47,MATCH(AL$2,$AS$2:$BA$2,0)+1,FALSE) -> 0.05866169988 | AM200: =P200*VLOOKUP($B200,$AR$36:$AZ$47,MATCH(AM$2,$AS$2:$BA$2,0)+1,FALSE) -> 8.576988365e-06 | AN200: =Q200*VLOOKUP($B200,$AR$36:$AZ$47,MATCH(AN$2,$AS$2:$BA$2,0)+1,FALSE) -> 0.001665079838 | AO200: =R200*VLOOKUP($B200,$AR$36:$BA$47,MATCH(AO$2,$AS$2:$BA$2,0)+1,FALSE) -> 0 | AP200: 0.7749253221
... 2049 more rows

Sheet 2021 (Monthly Scaling)
B2: *Monthly Scaling Used in CA Model
B4: Day | C4: Hour | D4: Residential | E4: GS < 50 kW | F4: GS > 50 < 1500 | G4: GS > 1500 < 5000 | I4: LU | J4: Street Lighting | K4: Sentinel Lighting | L4: USL | O4: standby | P4: TOTAL LDC sales | R4: Range Start | S4: Range End
A6: NCP
A8: Jan | D8: =_xlfn.MAXIFS('Hourly load shapes by class'!AG:AG,'Hourly load shapes by class'!$B:$B,$V8)*1000000 -> 512376.4105 | E8: =_xlfn.MAXIFS('Hourly load shapes by class'!AJ:AJ,'Hourly load shapes by class'!$B:$B,$V8)*1000000 -> 133322.4525 | F8: =_xlfn.MAXIFS('Hourly load shapes by class'!AH:AH,'Hourly load shapes by class'!$B:$B,$V8)*1000000 -> 468330.1205 | G8: =_xlfn.MAXIFS('Hourly load shapes by class'!AK:AK,'Hourly load shapes by class'!$B:$B,$V8)*1000000 -> 100295.9658 | I8: =_xlfn.MAXIFS('Hourly load shapes by class'!AL:AL,'Hourly load shapes by class'!$B:$B,$V8)*1000000 -> 77181.08324 | J8: =_xlfn.MAXIFS('Hourly load shapes by class'!AI:AI,'Hourly load shapes by class'!$B:$B,$V8)*1000000 -> 6443.865297 | K8: =_xlfn.MAXIFS('Hourly load shapes by class'!AM:AM,'Hourly load shapes by class'!$B:$B,$V8)*1000000 -> 10.15065254 | L8: =_xlfn.MAXIFS('Hourly load shapes by class'!AN:AN,'Hourly load shapes by class'!$B:$B,$V8)*1000000 -> 1868.550769 | O8: =_xlfn.MAXIFS('Hourly load shapes by class'!AO:AO,'Hourly load shapes by class'!$B:$B,$V8)*1000000 -> 705.92 | P8: =_xlfn.MAXIFS('Hourly load shapes by class'!AP:AP,'Hourly load shapes by class'!$B:$B,$V8)*1000000 -> 1182640.547 | R8: 3 | S8: 746 | V8: 1
A9: Feb | D9: =_xlfn.MAXIFS('Hourly load shapes by class'!AG:AG,'Hourly load shapes by class'!$B:$B,$V9)*1000000 -> 495458.0504 | E9: =_xlfn.MAXIFS('Hourly load shapes by class'!AJ:AJ,'Hourly load shapes by class'!$B:$B,$V9)*1000000 -> 135056.215 | F9: =_xlfn.MAXIFS('Hourly load shapes by class'!AH:AH,'Hourly load shapes by class'!$B:$B,$V9)*1000000 -> 478734.8517 | G9: =_xlfn.MAXIFS('Hourly load shapes by class'!AK:AK,'Hourly load shapes by class'!$B:$B,$V9)*1000000 -> 99438.66446 | I9: =_xlfn.MAXIFS('Hourly load shapes by class'!AL:AL,'Hourly load shapes by class'!$B:$B,$V9)*1000000 -> 76343.58345 | J9: =_xlfn.MAXIFS('Hourly load shapes by class'!AI:AI,'Hourly load shapes by class'!$B:$B,$V9)*1000000 -> 6101.722777 | K9: =_xlfn.MAXIFS('Hourly load shapes by class'!AM:AM,'Hourly load shapes by class'!$B:$B,$V9)*1000000 -> 10.28255417 | L9: =_xlfn.MAXIFS('Hourly load shapes by class'!AN:AN,'Hourly load shapes by class'!$B:$B,$V9)*1000000 -> 1885.790226 | O9: =_xlfn.MAXIFS('Hourly load shapes by class'!AO:AO,'Hourly load shapes by class'!$B:$B,$V9)*1000000 -> 80 | P9: =_xlfn.MAXIFS('Hourly load shapes by class'!AP:AP,'Hourly load shapes by class'!$B:$B,$V9)*1000000 -> 1166261.763 | R9: 747 | S9: 1442 | T9: =R9-S8 -> 1 | V9: 2
A10: Mar | D10: =_xlfn.MAXIFS('Hourly load shapes by class'!AG:AG,'Hourly load shapes by class'!$B:$B,$V10)*1000000 -> 450916.7541 | E10: =_xlfn.MAXIFS('Hourly load shapes by class'!AJ:AJ,'Hourly load shapes by class'!$B:$B,$V10)*1000000 -> 131102.1965 | F10: =_xlfn.MAXIFS('Hourly load shapes by class'!AH:AH,'Hourly load shapes by class'!$B:$B,$V10)*1000000 -> 465556.5721 | G10: =_xlfn.MAXIFS('Hourly load shapes by class'!AK:AK,'Hourly load shapes by class'!$B:$B,$V10)*1000000 -> 97370.95267 | I10: =_xlfn.MAXIFS('Hourly load shapes by class'!AL:AL,'Hourly load shapes by class'!$B:$B,$V10)*1000000 -> 77453.49345 | J10: =_xlfn.MAXIFS('Hourly load shapes by class'!AI:AI,'Hourly load shapes by class'!$B:$B,$V10)*1000000 -> 5642.311401 | K10: =_xlfn.MAXIFS('Hourly load shapes by class'!AM:AM,'Hourly load shapes by class'!$B:$B,$V10)*1000000 -> 12.50428615 | L10: =_xlfn.MAXIFS('Hourly load shapes by class'!AN:AN,'Hourly load shapes by class'!$B:$B,$V10)*1000000 -> 1662.716321 | O10: =_xlfn.MAXIFS('Hourly load shapes by class'!AO:AO,'Hourly load shapes by class'!$B:$B,$V10)*1000000 -> 543.04 | P10: =_xlfn.MAXIFS('Hourly load shapes by class'!AP:AP,'Hourly load shapes by class'!$B:$B,$V10)*1000000 -> 1082439.298 | R10: 1443 | S10: 2186 | T10: =R10-S9 -> 1 | V10: 3
A11: Apr | D11: =_xlfn.MAXIFS('Hourly load shapes by class'!AG:AG,'Hourly load shapes by class'!$B:$B,$V11)*1000000 -> 367703.0314 | E11: =_xlfn.MAXIFS('Hourly load shapes by class'!AJ:AJ,'Hourly load shapes by class'!$B:$B,$V11)*1000000 -> 111164.3809 | F11: =_xlfn.MAXIFS('Hourly load shapes by class'!AH:AH,'Hourly load shapes by class'!$B:$B,$V11)*1000000 -> 410605.732 | G11: =_xlfn.MAXIFS('Hourly load shapes by class'!AK:AK,'Hourly load shapes by class'!$B:$B,$V11)*1000000 -> 98167.40864 | I11: =_xlfn.MAXIFS('Hourly load shapes by class'!AL:AL,'Hourly load shapes by class'!$B:$B,$V11)*1000000 -> 77654.80747 | J11: =_xlfn.MAXIFS('Hourly load shapes by class'!AI:AI,'Hourly load shapes by class'!$B:$B,$V11)*1000000 -> 5574.462203 | K11: =_xlfn.MAXIFS('Hourly load shapes by class'!AM:AM,'Hourly load shapes by class'!$B:$B,$V11)*1000000 -> 13.76467484 | L11: =_xlfn.MAXIFS('Hourly load shapes by class'!AN:AN,'Hourly load shapes by class'!$B:$B,$V11)*1000000 -> 1827.34245 | O11: =_xlfn.MAXIFS('Hourly load shapes by class'!AO:AO,'Hourly load shapes by class'!$B:$B,$V11)*1000000 -> 604.48 | P11: =_xlfn.MAXIFS('Hourly load shapes by class'!AP:AP,'Hourly load shapes by class'!$B:$B,$V11)*1000000 -> 956794.8595 | R11: 2187 | S11: 2906 | T11: 1 | V11: 4
A12: May | D12: =_xlfn.MAXIFS('Hourly load shapes by class'!AG:AG,'Hourly load shapes by class'!$B:$B,$V12)*1000000 -> 355557.4493 | E12: =_xlfn.MAXIFS('Hourly load shapes by class'!AJ:AJ,'Hourly load shapes by class'!$B:$B,$V12)*1000000 -> 125679.0515 | F12: =_xlfn.MAXIFS('Hourly load shapes by class'!AH:AH,'Hourly load shapes by class'!$B:$B,$V12)*1000000 -> 461680.335 | G12: =_xlfn.MAXIFS('Hourly load shapes by class'!AK:AK,'Hourly load shapes by class'!$B:$B,$V12)*1000000 -> 112082.8657 | I12: =_xlfn.MAXIFS('Hourly load shapes by class'!AL:AL,'Hourly load shapes by class'!$B:$B,$V12)*1000000 -> 89288.05392 | J12: =_xlfn.MAXIFS('Hourly load shapes by class'!AI:AI,'Hourly load shapes by class'!$B:$B,$V12)*1000000 -> 4575.291686 | K12: =_xlfn.MAXIFS('Hourly load shapes by class'!AM:AM,'Hourly load shapes by class'!$B:$B,$V12)*1000000 -> 15.09041083 | L12: =_xlfn.MAXIFS('Hourly load shapes by class'!AN:AN,'Hourly load shapes by class'!$B:$B,$V12)*1000000 -> 1841.300472 | O12: =_xlfn.MAXIFS('Hourly load shapes by class'!AO:AO,'Hourly load shapes by class'!$B:$B,$V12)*1000000 -> 595.52 | P12: =_xlfn.MAXIFS('Hourly load shapes by class'!AP:AP,'Hourly load shapes by class'!$B:$B,$V12)*1000000 -> 1071526.255 | R12: 2907 | S12: 3650 | T12: 1 | V12: 5
A13: Jun | D13: =_xlfn.MAXIFS('Hourly load shapes by class'!AG:AG,'Hourly load shapes by class'!$B:$B,$V13)*1000000 -> 467001.3508 | E13: =_xlfn.MAXIFS('Hourly load shapes by class'!AJ:AJ,'Hourly load shapes by class'!$B:$B,$V13)*1000000 -> 142014.9835 | F13: =_xlfn.MAXIFS('Hourly load shapes by class'!AH:AH,'Hourly load shapes by class'!$B:$B,$V13)*1000000 -> 494819.0972 | G13: =_xlfn.MAXIFS('Hourly load shapes by class'!AK:AK,'Hourly load shapes by class'!$B:$B,$V13)*1000000 -> 122930.232 | I13: =_xlfn.MAXIFS('Hourly load shapes by class'!AL:AL,'Hourly load shapes by class'!$B:$B,$V13)*1000000 -> 93586.53095 | J13: =_xlfn.MAXIFS('Hourly load shapes by class'!AI:AI,'Hourly load shapes by class'!$B:$B,$V13)*1000000 -> 3787.712824 | K13: =_xlfn.MAXIFS('Hourly load shapes by class'!AM:AM,'Hourly load shapes by class'!$B:$B,$V13)*1000000 -> 15.09041083 | L13: =_xlfn.MAXIFS('Hourly load shapes by class'!AN:AN,'Hourly load shapes by class'!$B:$B,$V13)*1000000 -> 1896.188748 | O13: =_xlfn.MAXIFS('Hourly load shapes by class'!AO:AO,'Hourly load shapes by class'!$B:$B,$V13)*1000000 -> 935.36 | P13: =_xlfn.MAXIFS('Hourly load shapes by class'!AP:AP,'Hourly load shapes by class'!$B:$B,$V13)*1000000 -> 1221892.248 | R13: 3651 | S13: 4370 | T13: 1 | V13: 6
A14: Jul | D14: =_xlfn.MAXIFS('Hourly load shapes by class'!AG:AG,'Hourly load shapes by class'!$B:$B,$V14)*1000000 -> 575678.0492 | E14: =_xlfn.MAXIFS('Hourly load shapes by class'!AJ:AJ,'Hourly load shapes by class'!$B:$B,$V14)*1000000 -> 145550.5987 | F14: =_xlfn.MAXIFS('Hourly load shapes by class'!AH:AH,'Hourly load shapes by class'!$B:$B,$V14)*1000000 -> 498407.1318 | G14: =_xlfn.MAXIFS('Hourly load shapes by class'!AK:AK,'Hourly load shapes by class'!$B:$B,$V14)*1000000 -> 125662.248 | I14: =_xlfn.MAXIFS('Hourly load shapes by class'!AL:AL,'Hourly load shapes by class'!$B:$B,$V14)*1000000 -> 95229.08061 | J14: =_xlfn.MAXIFS('Hourly load shapes by class'!AI:AI,'Hourly load shapes by class'!$B:$B,$V14)*1000000 -> 4001.793898 | K14: =_xlfn.MAXIFS('Hourly load shapes by class'!AM:AM,'Hourly load shapes by class'!$B:$B,$V14)*1000000 -> 14.24351868 | L14: =_xlfn.MAXIFS('Hourly load shapes by class'!AN:AN,'Hourly load shapes by class'!$B:$B,$V14)*1000000 -> 1798.346164 | O14: =_xlfn.MAXIFS('Hourly load shapes by class'!AO:AO,'Hourly load shapes by class'!$B:$B,$V14)*1000000 -> 1152 | P14: =_xlfn.MAXIFS('Hourly load shapes by class'!AP:AP,'Hourly load shapes by class'!$B:$B,$V14)*1000000 -> 1277321.332 | R14: 4371 | S14: 5114 | T14: 1 | V14: 7
A15: Aug | D15: =_xlfn.MAXIFS('Hourly load shapes by class'!AG:AG,'Hourly load shapes by class'!$B:$B,$V15)*1000000 -> 540051.7863 | E15: =_xlfn.MAXIFS('Hourly load shapes by class'!AJ:AJ,'Hourly load shapes by class'!$B:$B,$V15)*1000000 -> 139235.5467 | F15: =_xlfn.MAXIFS('Hourly load shapes by class'!AH:AH,'Hourly load shapes by class'!$B:$B,$V15)*1000000 -> 495989.7268 | G15: =_xlfn.MAXIFS('Hourly load shapes by class'!AK:AK,'Hourly load shapes by class'!$B:$B,$V15)*1000000 -> 119839.1528 | I15: =_xlfn.MAXIFS('Hourly load shapes by class'!AL:AL,'Hourly load shapes by class'!$B:$B,$V15)*1000000 -> 91697.33126 | J15: =_xlfn.MAXIFS('Hourly load shapes by class'!AI:AI,'Hourly load shapes by class'!$B:$B,$V15)*1000000 -> 4434.042498 | K15: =_xlfn.MAXIFS('Hourly load shapes by class'!AM:AM,'Hourly load shapes by class'!$B:$B,$V15)*1000000 -> 12.83199881 | L15: =_xlfn.MAXIFS('Hourly load shapes by class'!AN:AN,'Hourly load shapes by class'!$B:$B,$V15)*1000000 -> 1742.681652 | O15: =_xlfn.MAXIFS('Hourly load shapes by class'!AO:AO,'Hourly load shapes by class'!$B:$B,$V15)*1000000 -> 965.76 | P15: =_xlfn.MAXIFS('Hourly load shapes by class'!AP:AP,'Hourly load shapes by class'!$B:$B,$V15)*1000000 -> 1270207.976 | R15: 5115 | S15: 5858 | T15: 1 | V15: 8
A16: Sep | D16: =_xlfn.MAXIFS('Hourly load shapes by class'!AG:AG,'Hourly load shapes by class'!$B:$B,$V16)*1000000 -> 443914.0659 | E16: =_xlfn.MAXIFS('Hourly load shapes by class'!AJ:AJ,'Hourly load shapes by class'!$B:$B,$V16)*1000000 -> 121562.6355 | F16: =_xlfn.MAXIFS('Hourly load shapes by class'!AH:AH,'Hourly load shapes by class'!$B:$B,$V16)*1000000 -> 454503.2561 | G16: =_xlfn.MAXIFS('Hourly load shapes by class'!AK:AK,'Hourly load shapes by class'!$B:$B,$V16)*1000000 -> 118135.9873 | I16: =_xlfn.MAXIFS('Hourly load shapes by class'!AL:AL,'Hourly load shapes by class'!$B:$B,$V16)*1000000 -> 94150.81079 | J16: =_xlfn.MAXIFS('Hourly load shapes by class'!AI:AI,'Hourly load shapes by class'!$B:$B,$V16)*1000000 -> 4880.505977 | K16: =_xlfn.MAXIFS('Hourly load shapes by class'!AM:AM,'Hourly load shapes by class'!$B:$B,$V16)*1000000 -> 11.34530814 | L16: =_xlfn.MAXIFS('Hourly load shapes by class'!AN:AN,'Hourly load shapes by class'!$B:$B,$V16)*1000000 -> 1721.416718 | O16: =_xlfn.MAXIFS('Hourly load shapes by class'!AO:AO,'Hourly load shapes by class'!$B:$B,$V16)*1000000 -> 606.08 | P16: =_xlfn.MAXIFS('Hourly load shapes by class'!AP:AP,'Hourly load shapes by class'!$B:$B,$V16)*1000000 -> 995023.2594 | R16: 5859 | S16: 6578 | T16: 1 | V16: 9
A17: Oct | D17: =_xlfn.MAXIFS('Hourly load shapes by class'!AG:AG,'Hourly load shapes by class'!$B:$B,$V17)*1000000 -> 393934.226 | E17: =_xlfn.MAXIFS('Hourly load shapes by class'!AJ:AJ,'Hourly load shapes by class'!$B:$B,$V17)*1000000 -> 104743.9429 | F17: =_xlfn.MAXIFS('Hourly load shapes by class'!AH:AH,'Hourly load shapes by class'!$B:$B,$V17)*1000000 -> 392505.7471 | G17: =_xlfn.MAXIFS('Hourly load shapes by class'!AK:AK,'Hourly load shapes by class'!$B:$B,$V17)*1000000 -> 105329.3539 | I17: =_xlfn.MAXIFS('Hourly load shapes by class'!AL:AL,'Hourly load shapes by class'!$B:$B,$V17)*1000000 -> 84815.12191 | J17: =_xlfn.MAXIFS('Hourly load shapes by class'!AI:AI,'Hourly load shapes by class'!$B:$B,$V17)*1000000 -> 5234.362909 | K17: =_xlfn.MAXIFS('Hourly load shapes by class'!AM:AM,'Hourly load shapes by class'!$B:$B,$V17)*1000000 -> 9.483035072 | L17: =_xlfn.MAXIFS('Hourly load shapes by class'!AN:AN,'Hourly load shapes by class'!$B:$B,$V17)*1000000 -> 1665.161049 | O17: =_xlfn.MAXIFS('Hourly load shapes by class'!AO:AO,'Hourly load shapes by class'!$B:$B,$V17)*1000000 -> 782.72 | P17: =_xlfn.MAXIFS('Hourly load shapes by class'!AP:AP,'Hourly load shapes by class'!$B:$B,$V17)*1000000 -> 967038.369 | R17: 6579 | S17: 7322 | T17: 1 | V17: 10
A18: Nov | D18: =_xlfn.MAXIFS('Hourly load shapes by class'!AG:AG,'Hourly load shapes by class'!$B:$B,$V18)*1000000 -> 401421.1412 | E18: =_xlfn.MAXIFS('Hourly load shapes by class'!AJ:AJ,'Hourly load shapes by class'!$B:$B,$V18)*1000000 -> 117680.7864 | F18: =_xlfn.MAXIFS('Hourly load shapes by class'!AH:AH,'Hourly load shapes by class'!$B:$B,$V18)*1000000 -> 426124.527 | G18: =_xlfn.MAXIFS('Hourly load shapes by class'!AK:AK,'Hourly load shapes by class'!$B:$B,$V18)*1000000 -> 97029.33403 | I18: =_xlfn.MAXIFS('Hourly load shapes by class'!AL:AL,'Hourly load shapes by class'!$B:$B,$V18)*1000000 -> 76632.96537 | J18: =_xlfn.MAXIFS('Hourly load shapes by class'!AI:AI,'Hourly load shapes by class'!$B:$B,$V18)*1000000 -> 5809.997932 | K18: =_xlfn.MAXIFS('Hourly load shapes by class'!AM:AM,'Hourly load shapes by class'!$B:$B,$V18)*1000000 -> 8.987649937 | L18: =_xlfn.MAXIFS('Hourly load shapes by class'!AN:AN,'Hourly load shapes by class'!$B:$B,$V18)*1000000 -> 1639.221172 | O18: =_xlfn.MAXIFS('Hourly load shapes by class'!AO:AO,'Hourly load shapes by class'!$B:$B,$V18)*1000000 -> 0 | P18: =_xlfn.MAXIFS('Hourly load shapes by class'!AP:AP,'Hourly load shapes by class'!$B:$B,$V18)*1000000 -> 1029704.094 | R18: 7323 | S18: 8042 | T18: 1 | V18: 11
A19: Dec | D19: =_xlfn.MAXIFS('Hourly load shapes by class'!AG:AG,'Hourly load shapes by class'!$B:$B,$V19)*1000000 -> 505318.2777 | E19: =_xlfn.MAXIFS('Hourly load shapes by class'!AJ:AJ,'Hourly load shapes by class'!$B:$B,$V19)*1000000 -> 124816.5839 | F19: =_xlfn.MAXIFS('Hourly load shapes by class'!AH:AH,'Hourly load shapes by class'!$B:$B,$V19)*1000000 -> 464662.8811 | G19: =_xlfn.MAXIFS('Hourly load shapes by class'!AK:AK,'Hourly load shapes by class'!$B:$B,$V19)*1000000 -> 99756.98327 | I19: =_xlfn.MAXIFS('Hourly load shapes by class'!AL:AL,'Hourly load shapes by class'!$B:$B,$V19)*1000000 -> 78750.28955 | J19: =_xlfn.MAXIFS('Hourly load shapes by class'!AI:AI,'Hourly load shapes by class'!$B:$B,$V19)*1000000 -> 5641.925777 | K19: =_xlfn.MAXIFS('Hourly load shapes by class'!AM:AM,'Hourly load shapes by class'!$B:$B,$V19)*1000000 -> 8.423586315 | L19: =_xlfn.MAXIFS('Hourly load shapes by class'!AN:AN,'Hourly load shapes by class'!$B:$B,$V19)*1000000 -> 1612.703214 | O19: =_xlfn.MAXIFS('Hourly load shapes by class'!AO:AO,'Hourly load shapes by class'!$B:$B,$V19)*1000000 -> 686.08 | P19: =_xlfn.MAXIFS('Hourly load shapes by class'!AP:AP,'Hourly load shapes by class'!$B:$B,$V19)*1000000 -> 1150896.759 | R19: 8043 | S19: 8786 | T19: 1 | V19: 12
A21: 1NCP | D21: =LARGE(D8:D19,1) -> 575678.0492 | E21: =LARGE(E8:E19,1) -> 145550.5987 | F21: =LARGE(F8:F19,1) -> 498407.1318 | G21: 125662.248 | I21: 95229.08061 | J21: =LARGE(J8:J19,1) -> 6443.865297 | K21: =LARGE(K8:K19,1) -> 15.09041083 | L21: =LARGE(L8:L19,1) -> 1896.188748 | O21: =LARGE(O8:O19,1) -> 1152 | P21: =SUM(D21:O21) -> 1450034.253
A22: 4NCP | D22: =LARGE(D8:D19,1)+ LARGE(D8:D19,2)+ LARGE(D8:D19,3)+ LARGE(D8:D19,4) -> 2133424.524 | E22: =LARGE(E8:E19,1)+ LARGE(E8:E19,2)+ LARGE(E8:E19,3)+ LARGE(E8:E19,4) -> 561857.3438 | F22: =LARGE(F8:F19,1)+ LARGE(F8:F19,2)+ LARGE(F8:F19,3)+ LARGE(F8:F19,4) -> 1967950.808 | G22: 486567.6202 | I22: 374663.7536 | J22: =LARGE(J8:J19,1)+ LARGE(J8:J19,2)+ LARGE(J8:J19,3)+ LARGE(J8:J19,4) -> 23997.89741 | K22: =LARGE(K8:K19,1)+ LARGE(K8:K19,2)+ LARGE(K8:K19,3)+ LARGE(K8:K19,4) -> 58.18901517 | L22: =LARGE(L8:L19,1)+ LARGE(L8:L19,2)+ LARGE(L8:L19,3)+ LARGE(L8:L19,4) -> 7491.830214 | O22: =LARGE(O8:O19,1)+ LARGE(O8:O19,2)+ LARGE(O8:O19,3)+ LARGE(O8:O19,4) -> 3835.84 | P22: =SUM(D22:O22) -> 5559847.806
A23: 12NCP | D23: =SUM(D8:D19) -> 5509330.593 | E23: =SUM(E8:E19) -> 1531929.374 | F23: =SUM(F8:F19) -> 5511919.979 | G23: 1296039.149 | I23: 1012783.152 | J23: =SUM(J8:J19) -> 62127.99518 | K23: =SUM(K8:K19) -> 142.1980863 | L23: =SUM(L8:L19) -> 21161.41895 | O23: =SUM(O8:O19) -> 7656.96 | P23: =SUM(D8:O19) -> 14953090.82
A25: CP
A27: Jan | B27: =SUMIF('Hourly load shapes by class'!$AP:$AP,'2021 (Monthly Scaling)'!$P27/1000000,'Hourly load shapes by class'!C:C) -> 28 | C27: =SUMIF('Hourly load shapes by class'!$AP:$AP,'2021 (Monthly Scaling)'!$P27/1000000,'Hourly load shapes by class'!D:D) -> 18 | D27: =SUMIF('Hourly load shapes by class'!$AP:$AP,'2021 (Monthly Scaling)'!$P8/1000000,'Hourly load shapes by class'!AG:AG)*1000000 -> 473577.6137 | E27: =SUMIF('Hourly load shapes by class'!$AP:$AP,'2021 (Monthly Scaling)'!$P8/1000000,'Hourly load shapes by class'!AJ:AJ)*1000000 -> 105164.4902 | F27: =SUMIF('Hourly load shapes by class'!$AP:$AP,'2021 (Monthly Scaling)'!$P8/1000000,'Hourly load shapes by class'!AH:AH)*1000000 -> 433380.2836 | G27: =SUMIF('Hourly load shapes by class'!$AP:$AP,'2021 (Monthly Scaling)'!$P8/1000000,'Hourly load shapes by class'!AK:AK)*1000000 -> 90373.26307 | I27: =SUMIF('Hourly load shapes by class'!$AP:$AP,'2021 (Monthly Scaling)'!$P8/1000000,'Hourly load shapes by class'!AL:AL)*1000000 -> 72680.84738 | J27: =SUMIF('Hourly load shapes by class'!$AP:$AP,'2021 (Monthly Scaling)'!$P8/1000000,'Hourly load shapes by class'!AI:AI)*1000000 -> 5807.978316 | K27: =SUMIF('Hourly load shapes by class'!$AP:$AP,'2021 (Monthly Scaling)'!$P8/1000000,'Hourly load shapes by class'!AM:AM)*1000000 -> 8.005189141 | L27: =SUMIF('Hourly load shapes by class'!$AP:$AP,'2021 (Monthly Scaling)'!$P8/1000000,'Hourly load shapes by class'!AN:AN)*1000000 -> 1648.065951 | O27: =SUMIF('Hourly load shapes by class'!$AP:$AP,'2021 (Monthly Scaling)'!$P8/1000000,'Hourly load shapes by class'!AO:AO)*1000000 -> 0 | P27: =SUM(D27:O27) -> 1182640.547 | Q27: =OR(P27=LARGE(P$27:P$38,1), P27=LARGE(P$27:P$38,2), P27=LARGE(P$27:P$38,3), P27=LARGE(P$27:P$38,4)) -> TRUE
A28: Feb | B28: =SUMIF('Hourly load shapes by class'!$AP:$AP,'2021 (Monthly Scaling)'!$P28/1000000,'Hourly load shapes by class'!C:C) -> 14 | C28: =SUMIF('Hourly load shapes by class'!$AP:$AP,'2021 (Monthly Scaling)'!$P28/1000000,'Hourly load shapes by class'!D:D) -> 18 | D28: =SUMIF('Hourly load shapes by class'!$AP:$AP,'2021 (Monthly Scaling)'!$P9/1000000,'Hourly load shapes by class'!AG:AG)*1000000 -> 427611.9835 | E28: =SUMIF('Hourly load shapes by class'!$AP:$AP,'2021 (Monthly Scaling)'!$P9/1000000,'Hourly load shapes by class'!AJ:AJ)*1000000 -> 118614.6067 | F28: =SUMIF('Hourly load shapes by class'!$AP:$AP,'2021 (Monthly Scaling)'!$P9/1000000,'Hourly load shapes by class'!AH:AH)*1000000 -> 458228.8597 | G28: =SUMIF('Hourly load shapes by class'!$AP:$AP,'2021 (Monthly Scaling)'!$P9/1000000,'Hourly load shapes by class'!AK:AK)*1000000 -> 88744.98827 | I28: =SUMIF('Hourly load shapes by class'!$AP:$AP,'2021 (Monthly Scaling)'!$P9/1000000,'Hourly load shapes by class'!AL:AL)*1000000 -> 68251.1179 | J28: =SUMIF('Hourly load shapes by class'!$AP:$AP,'2021 (Monthly Scaling)'!$P9/1000000,'Hourly load shapes by class'!AI:AI)*1000000 -> 3066.943949 | K28: =SUMIF('Hourly load shapes by class'!$AP:$AP,'2021 (Monthly Scaling)'!$P9/1000000,'Hourly load shapes by class'!AM:AM)*1000000 -> 5.244503811 | L28: =SUMIF('Hourly load shapes by class'!$AP:$AP,'2021 (Monthly Scaling)'!$P9/1000000,'Hourly load shapes by class'!AN:AN)*1000000 -> 1738.018922 | O28: =SUMIF('Hourly load shapes by class'!$AP:$AP,'2021 (Monthly Scaling)'!$P9/1000000,'Hourly load shapes by class'!AO:AO)*1000000 -> 0 | P28: 1166261.763 | Q28: =OR(P28=LARGE(P$27:P$38,1), P28=LARGE(P$27:P$38,2), P28=LARGE(P$27:P$38,3), P28=LARGE(P$27:P$38,4)) -> FALSE
